Workbook

Sheet Aylık Yİ-ÜFE (hidden)
E1: Yurt İçi Üretici Fiyat Endeksi (2003=100) | F1: Yurt İçi Üretici Fiyat Endeksi (2003=100)
A2: 2005 | B2: Ocak | C2: 2005-Ocak | D2: 2005-1 | E2: 114.83 | F2: 114.83
A3: 2005 | B3: Şubat | C3: 2005-Şubat | D3: 2005-2 | E3: 114.81 | F3: 114.81
A4: 2005 | B4: Mart | C4: 2005-Mart | D4: 2005-3 | E4: 117.25 | F4: 117.25
A5: 2005 | B5: Nisan | C5: 2005-Nisan | D5: 2005-4 | E5: 119.62 | F5: 119.62
A6: 2005 | B6: Mayıs | C6: 2005-Mayıs | D6: 2005-5 | E6: 119.23 | F6: 119.23
A7: 2005 | B7: Haziran | C7: 2005-Haziran | D7: 2005-6 | E7: 119.64 | F7: 119.64
A8: 2005 | B8: Temmuz | C8: 2005-Temmuz | D8: 2005-7 | E8: 119.33 | F8: 119.33
A9: 2005 | B9: Ağustos | C9: 2005-Ağustos | D9: 2005-8 | E9: 121.4 | F9: 121.4
A10: 2005 | B10: Eylül | C10: 2005-Eylül | D10: 2005-9 | E10: 123.4 | F10: 123.4
A11: 2005 | B11: Ekim | C11: 2005-Ekim | D11: 2005-10 | E11: 124.22 | F11: 124.22
A12: 2005 | B12: Kasım | C12: 2005-Kasım | D12: 2005-11 | E12: 121.4 | F12: 121.4
A13: 2005 | B13: Aralık | C13: 2005-Aralık | D13: 2005-12 | E13: 121.14 | F13: 121.14
A14: 2006 | B14: Ocak | C14: 2006-Ocak | D14: 2006-1 | E14: 123.51 | F14: 123.51
A15: 2006 | B15: Şubat | C15: 2006-Şubat | D15: 2006-2 | E15: 123.83 | F15: 123.83
A16: 2006 | B16: Mart | C16: 2006-Mart | D16: 2006-3 | E16: 124.14 | F16: 124.14
A17: 2006 | B17: Nisan | C17: 2006-Nisan | D17: 2006-4 | E17: 126.54 | F17: 126.54
A18: 2006 | B18: Mayıs | C18: 2006-Mayıs | D18: 2006-5 | E18: 130.05 | F18: 130.05
A19: 2006 | B19: Haziran | C19: 2006-Haziran | D19: 2006-6 | E19: 135.28 | F19: 135.28
A20: 2006 | B20: Temmuz | C20: 2006-Temmuz | D20: 2006-7 | E20: 136.45 | F20: 136.45
A21: 2006 | B21: Ağustos | C21: 2006-Ağustos | D21: 2006-8 | E21: 135.43 | F21: 135.43
A22: 2006 | B22: Eylül | C22: 2006-Eylül | D22: 2006-9 | E22: 135.11 | F22: 135.11
A23: 2006 | B23: Ekim | C23: 2006-Ekim | D23: 2006-10 | E23: 135.73 | F23: 135.73
A24: 2006 | B24: Kasım | C24: 2006-Kasım | D24: 2006-11 | E24: 135.33 | F24: 135.33
A25: 2006 | B25: Aralık | C25: 2006-Aralık | D25: 2006-12 | E25: 135.16 | F25: 135.16
A26: 2007 | B26: Ocak | C26: 2007-Ocak | D26: 2007-1 | E26: 135.09 | F26: 135.09
A27: 2007 | B27: Şubat | C27: 2007-Şubat | D27: 2007-2 | E27: 136.37 | F27: 136.37
A28: 2007 | B28: Mart | C28: 2007-Mart | D28: 2007-3 | E28: 137.7 | F28: 137.7
A29: 2007 | B29: Nisan | C29: 2007-Nisan | D29: 2007-4 | E29: 138.8 | F29: 138.8
A30: 2007 | B30: Mayıs | C30: 2007-Mayıs | D30: 2007-5 | E30: 139.34 | F30: 139.34
A31: 2007 | B31: Haziran | C31: 2007-Haziran | D31: 2007-6 | E31: 139.19 | F31: 139.19
A32: 2007 | B32: Temmuz | C32: 2007-Temmuz | D32: 2007-7 | E32: 139.28 | F32: 139.28
A33: 2007 | B33: Ağustos | C33: 2007-Ağustos | D33: 2007-8 | E33: 140.47 | F33: 140.47
A34: 2007 | B34: Eylül | C34: 2007-Eylül | D34: 2007-9 | E34: 141.9 | F34: 141.9
A35: 2007 | B35: Ekim | C35: 2007-Ekim | D35: 2007-10 | E35: 141.71 | F35: 141.71
A36: 2007 | B36: Kasım | C36: 2007-Kasım | D36: 2007-11 | E36: 142.98 | F36: 142.98
A37: 2007 | B37: Aralık | C37: 2007-Aralık | D37: 2007-12 | E37: 143.19 | F37: 143.19
A38: 2008 | B38: Ocak | C38: 2008-Ocak | D38: 2008-1 | E38: 143.8 | F38: 143.8
A39: 2008 | B39: Şubat | C39: 2008-Şubat | D39: 2008-2 | E39: 147.48 | F39: 147.48
A40: 2008 | B40: Mart | C40: 2008-Mart | D40: 2008-3 | E40: 152.16 | F40: 152.16
A41: 2008 | B41: Nisan | C41: 2008-Nisan | D41: 2008-4 | E41: 159 | F41: 159
A42: 2008 | B42: Mayıs | C42: 2008-Mayıs | D42: 2008-5 | E42: 162.37 | F42: 162.37
A43: 2008 | B43: Haziran | C43: 2008-Haziran | D43: 2008-6 | E43: 162.9 | F43: 162.9
A44: 2008 | B44: Temmuz | C44: 2008-Temmuz | D44: 2008-7 | E44: 164.93 | F44: 164.93
A45: 2008 | B45: Ağustos | C45: 2008-Ağustos | D45: 2008-8 | E45: 161.07 | F45: 161.07
A46: 2008 | B46: Eylül | C46: 2008-Eylül | D46: 2008-9 | E46: 159.63 | F46: 159.63
A47: 2008 | B47: Ekim | C47: 2008-Ekim | D47: 2008-10 | E47: 160.54 | F47: 160.54
A48: 2008 | B48: Kasım | C48: 2008-Kasım | D48: 2008-11 | E48: 160.49 | F48: 160.49
A49: 2008 | B49: Aralık | C49: 2008-Aralık | D49: 2008-12 | E49: 154.8 | F49: 154.8
A50: 2009 | B50: Ocak | C50: 2009-Ocak | D50: 2009-1 | E50: 155.16 | F50: 155.16
A51: 2009 | B51: Şubat | C51: 2009-Şubat | D51: 2009-2 | E51: 156.97 | F51: 156.97
A52: 2009 | B52: Mart | C52: 2009-Mart | D52: 2009-3 | E52: 157.43 | F52: 157.43
A53: 2009 | B53: Nisan | C53: 2009-Nisan | D53: 2009-4 | E53: 158.45 | F53: 158.45
A54: 2009 | B54: Mayıs | C54: 2009-Mayıs | D54: 2009-5 | E54: 158.37 | F54: 158.37
A55: 2009 | B55: Haziran | C55: 2009-Haziran | D55: 2009-6 | E55: 159.86 | F55: 159.86
A56: 2009 | B56: Temmuz | C56: 2009-Temmuz | D56: 2009-7 | E56: 158.74 | F56: 158.74
A57: 2009 | B57: Ağustos | C57: 2009-Ağustos | D57: 2009-8 | E57: 159.4 | F57: 159.4
A58: 2009 | B58: Eylül | C58: 2009-Eylül | D58: 2009-9 | E58: 160.38 | F58: 160.38
A59: 2009 | B59: Ekim | C59: 2009-Ekim | D59: 2009-10 | E59: 160.84 | F59: 160.84
A60: 2009 | B60: Kasım | C60: 2009-Kasım | D60: 2009-11 | E60: 162.92 | F60: 162.92
A61: 2009 | B61: Aralık | C61: 2009-Aralık | D61: 2009-12 | E61: 163.98 | F61: 163.98
A62: 2010 | B62: Ocak | C62: 2010-Ocak | D62: 2010-1 | E62: 164.94 | F62: 164.94
A63: 2010 | B63: Şubat | C63: 2010-Şubat | D63: 2010-2 | E63: 167.68 | F63: 167.68
A64: 2010 | B64: Mart | C64: 2010-Mart | D64: 2010-3 | E64: 170.94 | F64: 170.94
A65: 2010 | B65: Nisan | C65: 2010-Nisan | D65: 2010-4 | E65: 174.96 | F65: 174.96
A66: 2010 | B66: Mayıs | C66: 2010-Mayıs | D66: 2010-5 | E66: 172.95 | F66: 172.95
A67: 2010 | B67: Haziran | C67: 2010-Haziran | D67: 2010-6 | E67: 172.08 | F67: 172.08
A68: 2010 | B68: Temmuz | C68: 2010-Temmuz | D68: 2010-7 | E68: 171.81 | F68: 171.81
A69: 2010 | B69: Ağustos | C69: 2010-Ağustos | D69: 2010-8 | E69: 173.79 | F69: 173.79
A70: 2010 | B70: Eylül | C70: 2010-Eylül | D70: 2010-9 | E70: 174.67 | F70: 174.67
A71: 2010 | B71: Ekim | C71: 2010-Ekim | D71: 2010-10 | E71: 176.78 | F71: 176.78
A72: 2010 | B72: Kasım | C72: 2010-Kasım | D72: 2010-11 | E72: 176.23 | F72: 176.23
A73: 2010 | B73: Aralık | C73: 2010-Aralık | D73: 2010-12 | E73: 178.54 | F73: 178.54
A74: 2011 | B74: Ocak | C74: 2011-Ocak | D74: 2011-1 | E74: 182.75 | F74: 182.75
A75: 2011 | B75: Şubat | C75: 2011-Şubat | D75: 2011-2 | E75: 185.9 | F75: 185.9
A76: 2011 | B76: Mart | C76: 2011-Mart | D76: 2011-3 | E76: 188.17 | F76: 188.17
A77: 2011 | B77: Nisan | C77: 2011-Nisan | D77: 2011-4 | E77: 189.32 | F77: 189.32
A78: 2011 | B78: Mayıs | C78: 2011-Mayıs | D78: 2011-5 | E78: 189.61 | F78: 189.61
A79: 2011 | B79: Haziran | C79: 2011-Haziran | D79: 2011-6 | E79: 189.62 | F79: 189.62
A80: 2011 | B80: Temmuz | C80: 2011-Temmuz | D80: 2011-7 | E80: 189.57 | F80: 189.57
A81: 2011 | B81: Ağustos | C81: 2011-Ağustos | D81: 2011-8 | E81: 192.91 | F81: 192.91
A82: 2011 | B82: Eylül | C82: 2011-Eylül | D82: 2011-9 | E82: 195.89 | F82: 195.89
A83: 2011 | B83: Ekim | C83: 2011-Ekim | D83: 2011-10 | E83: 199.03 | F83: 199.03
A84: 2011 | B84: Kasım | C84: 2011-Kasım | D84: 2011-11 | E84: 200.32 | F84: 200.32
A85: 2011 | B85: Aralık | C85: 2011-Aralık | D85: 2011-12 | E85: 202.33 | F85: 202.33
A86: 2012 | B86: Ocak | C86: 2012-Ocak | D86: 2012-1 | E86: 203.1 | F86: 203.1
A87: 2012 | B87: Şubat | C87: 2012-Şubat | D87: 2012-2 | E87: 202.91 | F87: 202.91
A88: 2012 | B88: Mart | C88: 2012-Mart | D88: 2012-3 | E88: 203.64 | F88: 203.64
A89: 2012 | B89: Nisan | C89: 2012-Nisan | D89: 2012-4 | E89: 203.81 | F89: 203.81
A90: 2012 | B90: Mayıs | C90: 2012-Mayıs | D90: 2012-5 | E90: 204.89 | F90: 204.89
A91: 2012 | B91: Haziran | C91: 2012-Haziran | D91: 2012-6 | E91: 201.83 | F91: 201.83
A92: 2012 | B92: Temmuz | C92: 2012-Temmuz | D92: 2012-7 | E92: 201.2 | F92: 201.2
A93: 2012 | B93: Ağustos | C93: 2012-Ağustos | D93: 2012-8 | E93: 201.71 | F93: 201.71
A94: 2012 | B94: Eylül | C94: 2012-Eylül | D94: 2012-9 | E94: 203.79 | F94: 203.79
A95: 2012 | B95: Ekim | C95: 2012-Ekim | D95: 2012-10 | E95: 204.15 | F95: 204.15
A96: 2012 | B96: Kasım | C96: 2012-Kasım | D96: 2012-11 | E96: 207.54 | F96: 207.54
A97: 2012 | B97: Aralık | C97: 2012-Aralık | D97: 2012-12 | E97: 207.29 | F97: 207.29
A98: 2013 | B98: Ocak | C98: 2013-Ocak | D98: 2013-1 | E98: 206.91 | F98: 206.91
A99: 2013 | B99: Şubat | C99: 2013-Şubat | D99: 2013-2 | E99: 206.65 | F99: 206.65
A100: 2013 | B100: Mart | C100: 2013-Mart | D100: 2013-3 | E100: 208.33 | F100: 208.33
A101: 2013 | B101: Nisan | C101: 2013-Nisan | D101: 2013-4 | E101: 207.27 | F101: 207.27
A102: 2013 | B102: Mayıs | C102: 2013-Mayıs | D102: 2013-5 | E102: 209.34 | F102: 209.34
A103: 2013 | B103: Haziran | C103: 2013-Haziran | D103: 2013-6 | E103: 212.39 | F103: 212.39
A104: 2013 | B104: Temmuz | C104: 2013-Temmuz | D104: 2013-7 | E104: 214.5 | F104: 214.5
A105: 2013 | B105: Ağustos | C105: 2013-Ağustos | D105: 2013-8 | E105: 214.59 | F105: 214.59
A106: 2013 | B106: Eylül | C106: 2013-Eylül | D106: 2013-9 | E106: 216.48 | F106: 216.48
A107: 2013 | B107: Ekim | C107: 2013-Ekim | D107: 2013-10 | E107: 217.97 | F107: 217.97
A108: 2013 | B108: Kasım | C108: 2013-Kasım | D108: 2013-11 | E108: 219.31 | F108: 219.31
A109: 2013 | B109: Aralık | C109: 2013-Aralık | D109: 2013-12 | E109: 221.74 | F109: 221.74
A110: 2014 | B110: Ocak | C110: 2014-Ocak | D110: 2014-1 | E110: 229.1 | F110: 229.1
A111: 2014 | B111: Şubat | C111: 2014-Şubat | D111: 2014-2 | E111: 232.27 | F111: 232.27
A112: 2014 | B112: Mart | C112: 2014-Mart | D112: 2014-3 | E112: 233.98 | F112: 233.98
A113: 2014 | B113: Nisan | C113: 2014-Nisan | D113: 2014-4 | E113: 234.18 | F113: 234.18
A114: 2014 | B114: Mayıs | C114: 2014-Mayıs | D114: 2014-5 | E114: 232.96 | F114: 232.96
A115: 2014 | B115: Haziran | C115: 2014-Haziran | D115: 2014-6 | E115: 233.09 | F115: 233.09
A116: 2014 | B116: Temmuz | C116: 2014-Temmuz | D116: 2014-7 | E116: 234.79 | F116: 234.79
A117: 2014 | B117: Ağustos | C117: 2014-Ağustos | D117: 2014-8 | E117: 235.78 | F117: 235.78
A118: 2014 | B118: Eylül | C118: 2014-Eylül | D118: 2014-9 | E118: 237.79 | F118: 237.79
A119: 2014 | B119: Ekim | C119: 2014-Ekim | D119: 2014-10 | E119: 239.97 | F119: 239.97
A120: 2014 | B120: Kasım | C120: 2014-Kasım | D120: 2014-11 | E120: 237.65 | F120: 237.65
A121: 2014 | B121: Aralık | C121: 2014-Aralık | D121: 2014-12 | E121: 235.84 | F121: 235.84
A122: 2015 | B122: Ocak | C122: 2015-Ocak | D122: 2015-1 | E122: 236.61 | F122: 236.61
A123: 2015 | B123: Şubat | C123: 2015-Şubat | D123: 2015-2 | E123: 239.46 | F123: 239.46
A124: 2015 | B124: Mart | C124: 2015-Mart | D124: 2015-3 | E124: 241.97 | F124: 241.97
A125: 2015 | B125: Nisan | C125: 2015-Nisan | D125: 2015-4 | E125: 245.42 | F125: 245.42
A126: 2015 | B126: Mayıs | C126: 2015-Mayıs | D126: 2015-5 | E126: 248.15 | F126: 248.15
A127: 2015 | B127: Haziran | C127: 2015-Haziran | D127: 2015-6 | E127: 248.78 | F127: 248.78
A128: 2015 | B128: Temmuz | C128: 2015-Temmuz | D128: 2015-7 | E128: 247.99 | F128: 247.99
A129: 2015 | B129: Ağustos | C129: 2015-Ağustos | D129: 2015-8 | E129: 250.43 | F129: 250.43
A130: 2015 | B130: Eylül | C130: 2015-Eylül | D130: 2015-9 | E130: 254.25 | F130: 254.25
A131: 2015 | B131: Ekim | C131: 2015-Ekim | D131: 2015-10 | E131: 253.74 | F131: 253.74
A132: 2015 | B132: Kasım | C132: 2015-Kasım | D132: 2015-11 | E132: 250.13 | F132: 250.13
A133: 2015 | B133: Aralık | C133: 2015-Aralık | D133: 2015-12 | E133: 249.31 | F133: 249.31
A134: 2016 | B134: Ocak | C134: 2016-Ocak | D134: 2016-1 | E134: 250.67 | F134: 250.67
A135: 2016 | B135: Şubat | C135: 2016-Şubat | D135: 2016-2 | E135: 250.16 | F135: 250.16
A136: 2016 | B136: Mart | C136: 2016-Mart | D136: 2016-3 | E136: 251.17 | F136: 251.17
A137: 2016 | B137: Nisan | C137: 2016-Nisan | D137: 2016-4 | E137: 252.47 | F137: 252.47
A138: 2016 | B138: Mayıs | C138: 2016-Mayıs | D138: 2016-5 | E138: 256.21 | F138: 256.21
A139: 2016 | B139: Haziran | C139: 2016-Haziran | D139: 2016-6 | E139: 257.27 | F139: 257.27
A140: 2016 | B140: Temmuz | C140: 2016-Temmuz | D140: 2016-7 | E140: 257.81 | F140: 257.81
A141: 2016 | B141: Ağustos | C141: 2016-Ağustos | D141: 2016-8 | E141: 258.01 | F141: 258.01
A142: 2016 | B142: Eylül | C142: 2016-Eylül | D142: 2016-9 | E142: 258.77 | F142: 258.77
A143: 2016 | B143: Ekim | C143: 2016-Ekim | D143: 2016-10 | E143: 260.94 | F143: 260.94
A144: 2016 | B144: Kasım | C144: 2016-Kasım | D144: 2016-11 | E144: 266.16 | F144: 266.16
A145: 2016 | B145: Aralık | C145: 2016-Aralık | D145: 2016-12 | E145: 274.09 | F145: 274.09
A146: 2017 | B146: Ocak | C146: 2017-Ocak | D146: 2017-1 | E146: 284.99 | F146: 284.99
A147: 2017 | B147: Şubat | C147: 2017-Şubat | D147: 2017-2 | E147: 288.59 | F147: 288.59
A148: 2017 | B148: Mart | C148: 2017-Mart | D148: 2017-3 | E148: 291.58 | F148: 291.58
A149: 2017 | B149: Nisan | C149: 2017-Nisan | D149: 2017-4 | E149: 293.79 | F149: 293.79
A150: 2017 | B150: Mayıs | C150: 2017-Mayıs | D150: 2017-5 | E150: 295.31 | F150: 295.31
A151: 2017 | B151: Haziran | C151: 2017-Haziran | D151: 2017-6 | E151: 295.52 | F151: 295.52
A152: 2017 | B152: Temmuz | C152: 2017-Temmuz | D152: 2017-7 | E152: 297.65 | F152: 297.65
A153: 2017 | B153: Ağustos | C153: 2017-Ağustos | D153: 2017-8 | E153: 300.18 | F153: 300.18
A154: 2017 | B154: Eylül | C154: 2017-Eylül | D154: 2017-9 | E154: 300.9 | F154: 300.9
A155: 2017 | B155: Ekim | C155: 2017-Ekim | D155: 2017-10 | E155: 306.04 | F155: 306.04
A156: 2017 | B156: Kasım | C156: 2017-Kasım | D156: 2017-11 | E156: 312.21 | F156: 312.21
A157: 2017 | B157: Aralık | C157: 2017-Aralık | D157: 2017-12 | E157: 316.48 | F157: 316.48
A158: 2018 | B158: Ocak | C158: 2018-Ocak | D158: 2018-1 | E158: 319.6 | F158: 319.6
A159: 2018 | B159: Şubat | C159: 2018-Şubat | D159: 2018-2 | E159: 328.17 | F159: 328.17
A160: 2018 | B160: Mart | C160: 2018-Mart | D160: 2018-3 | E160: 333.21 | F160: 333.21
A161: 2018 | B161: Nisan | C161: 2018-Nisan | D161: 2018-4 | E161: 341.88 | F161: 341.88
A162: 2018 | B162: Mayıs | C162: 2018-Mayıs | D162: 2018-5 | E162: 354.85 | F162: 354.85
A163: 2018 | B163: Haziran | C163: 2018-Haziran | D163: 2018-6 | E163: 365.6 | F163: 365.6
A164: 2018 | B164: Temmuz | C164: 2018-Temmuz | D164: 2018-7 | E164: 372.06 | F164: 372.06
A165: 2018 | B165: Ağustos | C165: 2018-Ağustos | D165: 2018-8 | E165: 396.62 | F165: 396.62
A166: 2018 | B166: Eylül | C166: 2018-Eylül | D166: 2018-9 | E166: 439.78 | F166: 439.78
A167: 2018 | B167: Ekim | C167: 2018-Ekim | D167: 2018-10 | E167: 443.78 | F167: 443.78
A168: 2018 | B168: Kasım | C168: 2018-Kasım | D168: 2018-11 | E168: 432.55 | F168: 432.55
A169: 2018 | B169: Aralık | C169: 2018-Aralık | D169: 2018-12 | E169: 422.94 | F169: 422.94
A170: 2019 | B170: Ocak | C170: 2019-Ocak | D170: 2019-1 | E170: 424.86 | F170: 424.86
A171: 2019 | B171: Şubat | C171: 2019-Şubat | D171: 2019-2 | E171: 425.26 | F171: 425.26
A172: 2019 | B172: Mart | C172: 2019-Mart | D172: 2019-3 | E172: 431.98 | F172: 431.98
A173: 2019 | B173: Nisan | C173: 2019-Nisan | D173: 2019-4 | E173: 444.85 | F173: 444.85
A174: 2019 | B174: Mayıs | C174: 2019-Mayıs | D174: 2019-5 | E174: 456.74 | F174: 456.74
A175: 2019 | B175: Haziran | C175: 2019-Haziran | D175: 2019-6 | E175: 457.16 | F175: 457.16
A176: 2019 | B176: Temmuz | C176: 2019-Temmuz | D176: 2019-7 | E176: 452.63 | F176: 452.63
A177: 2019 | B177: Ağustos | C177: 2019-Ağustos | D177: 2019-8 | E177: 449.96 | F177: 449.96
A178: 2019 | B178: Eylül | C178: 2019-Eylül | D178: 2019-9 | E178: 450.55 | F178: 450.55
A179: 2019 | B179: Ekim | C179: 2019-Ekim | D179: 2019-10 | E179: 451.31 | F179: 451.31
A180: 2019 | B180: Kasım | C180: 2019-Kasım | D180: 2019-11 | E180: 450.97 | F180: 450.97
A181: 2019 | B181: Aralık | C181: 2019-Aralık | D181: 2019-12 | E181: 454.08 | F181: 454.08
A182: 2020 | B182: Ocak | C182: 2020-Ocak | D182: 2020-1 | E182: 462.42 | F182: 462.42
A183: 2020 | B183: Şubat | C183: 2020-Şubat | D183: 2020-2 | E183: 464.64 | F183: 464.64
A184: 2020 | B184: Mart | C184: 2020-Mart | D184: 2020-3 | E184: 468.69 | F184: 468.69
A185: 2020 | B185: Nisan | C185: 2020-Nisan | D185: 2020-4 | E185: 474.69 | F185: 474.69
A186: 2020 | B186: Mayıs | C186: 2020-Mayıs | D186: 2020-5 | E186: 482.02 | F186: 482.02
A187: 2020 | B187: Haziran | C187: 2020-Haziran | D187: 2020-6 | E187: 485.37 | F187: 485.37
A188: 2020 | B188: Temmuz | C188: 2020-Temmuz | D188: 2020-7 | E188: 490.33 | F188: 490.33
A189: 2020 | B189: Ağustos | C189: 2020-Ağustos | D189: 2020-8 | E189: 501.85 | F189: 501.85
A190: 2020 | B190: Eylül | C190: 2020-Eylül | D190: 2020-9 | E190: 515.13 | F190: 515.13
A191: 2020 | B191: Ekim | C191: 2020-Ekim | D191: 2020-10 | E191: 533.44 | F191: 533.44
A192: 2020 | B192: Kasım | C192: 2020-Kasım | D192: 2020-11 | E192: 555.18 | F192: 555.18
A193: 2020 | B193: Aralık | C193: 2020-Aralık | D193: 2020-12 | E193: 568.27 | F193: 568.27
A194: 2021 | B194: Ocak | C194: 2021-Ocak | D194: 2021-1 | E194: 583.38 | F194: 583.38
A195: 2021 | B195: Şubat | C195: 2021-Şubat | D195: 2021-2 | E195: 590.52 | F195: 590.52
A196: 2021 | B196: Mart | C196: 2021-Mart | D196: 2021-3 | E196: 614.93 | F196: 614.93
A197: 2021 | B197: Nisan | C197: 2021-Nisan | D197: 2021-4 | E197: 641.63 | F197: 641.63
A198: 2021 | B198: Mayıs | C198: 2021-Mayıs | D198: 2021-5 | E198: 666.79 | F198: 666.79
A199: 2021 | B199: Haziran | C199: 2021-Haziran | D199: 2021-6 | E199: 693.54 | F199: 693.54
A200: 2021 | B200: Temmuz | C200: 2021-Temmuz | D200: 2021-7 | E200: 710.61 | F200: 710.61
... 69 more rows

Sheet DOLDURULMASI GEREKEN TABLO
C2: İKTİSADİ KIYMETİN NİTELİĞİ | E2: 250- Arazi ve Arsalar | H2: VUK GEÇİCİ 32 NCİ MADDE YENİDEN DEĞERLEME ÖNEMLİ NOTLAR: * 31.12.2024 VE ÖNCESİNDE BİLANÇODA BULUNAN VARLIKLAR LİSTEYE ALINMALIDIR. / 2025 YILI İÇİN YAPILACAK YENİDEN DEĞERLEMELER AÇISINDAN 2025 YILINDA EDİNİLEN VARLIKLAR LİSTEYE ALINMAMALIDIR. ** 1.1.2025 TEN ÖNCE AMORTİSMAN SÜRESİNİ DOLDURMUŞ OLANLAR LİSTEYE ALINMAMALIDIR. *** GEÇİCİ 32 İÇİN; İLK YILDAN SONRAKİ VE MALİYETE EKLENMİŞ OLAN KREDİ FAİZLERİ İLE KUR FARKLARI PARÇALI YENİDEN DEĞERLEMEYE TABİ TUTULUR. İLGİLİ MALİYET UNSURU AKTİFLEŞTİRİLDİĞİ TARİH İKTİSAP TARİHİ ALANINA YAZILACAK VE AYRI BİR İKTİSADİ KIYMET OLARAK DEĞERLENDİRİLECEKTİR. MÜK.298 Ç İÇİN BU TÜR MALİYET UNSURLARI YENİDEN DEĞERLEMEYE TABİ TUTULMAYACAKTIR. **** GEÇİCİ 32 İÇİN : İNŞA OLUNAN BİNALARDA, ARSA MALİYETİ ARSANIN AKTİFLEŞTİRİLDİĞİ, DİĞER MALİYET UNSURLARI İSE BİNANIN AKTİFLEŞTİRİLDİĞİ TARİH İKTİSAP TARİHİ ALANINA AYRI AYRI YAZILACAKTIR.
C3: Amortismana tabi olmayan gayrimenkul (boş arazi ve boş arsalar) | E3: 251- Yer altı Yerüstü Düzenleri
C4: Amortismana tabi gayrimenkul (gayrimenkullerin mütemmim cüzüleri ve teferruatı dahil) | E4: 252- Binalar
C5: Tesis ve arazi düzenlemeleri (tarım işletmelerinde vücuda getirilen meyvalık, dutluk, fındıklık, zeytinlik ve güllüklerle incir bahçeleri ve bağlar gibi tarım tesisleri dahil) | E5: 253- Tesis Makine ve Cihazlar
C6: Makinalar | E6: 254- Taşıtlar | F6: GEÇİCİ 32 İNCİ MADDEYE GÖRE YD BİR İKTİSADİ KIYMET İÇİN SADECE BİR KERE UYGULANABİLİR. Sürekli YD Yapılmadan Önce
A7: ALIM | C7: Gemiler | E7: 255- Demirbaşlar
A8: TARİHİ | C8: Taşıtlar | E8: 256- Diğer Maddi Duran Varlıklar | F8: HERHANGİ BİR İKTİSADİ KIYMET İÇİN MÜK. 298 Ç YAPILMIŞ İSE DAHA SONRADAN GEÇİCİ 32 YE GÖRE YENİDEN DEĞERLEME YAPMA İMKANI KALMAZ.
C9: Tesis ve arazi düzenlemeleri (tarım işletmelerinde vücuda getirilen meyvalık, dutluk, fındıklık, zeytinlik ve güllüklerle incir bahçeleri ve bağlar gibi tarım tesisleri dahil) | E9: 260- Haklar
C10: Demirbaşlar | E10: 261- Şerefiye
C11: Özel maliyet bedelleri | E11: 262- Kuruluş Ve Örgütlenme Giderleri
C12: Diğer amortismana tabi iktisadi kıymetler (şerefiye, aktifleştirilen ilk tesis ve taazzuv giderleri, araştırma-geliştirme harcamaları, sinema filmleri gibi) | E12: 263- Araştırma ve Geliştirme Giderleri
E13: 264- Özel Maliyetler | N13: =O13 -> 46022 | O13: 2025-12-31
E14: 267- Diğer Maddi Olmayan Duran Varlıklar | H14: =I14 -> 46022 | I14: 2025-12-31
E15: 271- Arama Giderleri | H15: =I15 -> 45657 | I15: 2024-12-31 | K15: AMORTİSMANA TABİ DEĞİL
E16: 272- Hazırlık Ve Geliştirme Giderleri | H16: 2025 YILINDA ALINANLAR HARİÇ | K16: NORMAL AMORTİSMAN | L16: EVET | M16: EVET
E17: 277- Diğer Özel Tükenmeye Tabi Varlıklar | H17: ÖMRÜNÜ TAMAMLAYANLAR HARİÇ | K17: AZALAN BAKİYELERE GÖRE AMORTİSMAN | L17: HAYIR | M17: HAYIR
B19: SIRA NO | C19: İKTİSADİ KIYMETİN NİTELİĞİ | D19: İKTİSADİ KIYMETİN ADI | E19: MUHASEBE ANA HESAP KODU | F19: İKTİSADİ KIYMETİN AKTİFLEŞTİRİLDİĞİ YILDAN SONRAKİ YILLARDA MALİYETE ATILAN KUR FARKI, KREDİ FAİZ NİTELİĞİNDE MİDİR? | G19: EKONOMİK ÖMRÜ | H19: İKTİSAPTARİHİ | I19: İKTİSAP TARİHİ KONTROLÜ (2023 YILINDAN ÖNCE AKTİFE ALINMASI DURUMU KONTROLÜ) | J19: TAŞINMAZ VEYA ATİK İN İKTİSAP DEĞERİ 31.12.2024 VE ÖNCESİNDE İKTİSAP OLUNAN İKTİSADİ KIYMETLER İÇİN 31.12.2024 TARİHLİ ENFLASYON DÜZELTMESİ SONRASI DÜZELTİLMİŞ DEĞER 2025 VE SONRASINDA İKTİSAP OLUNANLARDA İKTİSAP BEDELİ | K19: AMORTİSMAN YÖNTEMİ | L19: KIST AMORTİSMANA TABİ Mİ | M19: GEÇİCİ 32 MADDEYE GÖRE YD YAPILACAK MIDIR? | N19: YENİDEN DEĞERLEME TARİHİ | O19: MÜK. 298 Ç YENİDEN DEĞERLEME ORANI | P19: GEÇİCİ 32 YD ORANI
A21: 2006-06-23 | B21: 1 | C21: Makinalar | D21: A | E21: 253- Tesis Makine ve Cihazlar | F21: HAYIR | G21: 5 | H21: 2025-05-10 | I21: =IF(H21>45657,"2025 TE İKTİSAP EDİLEN KIYMETLER, İKTİSAP EDİLDİĞİ AYI İZLEYEN AYIN Yİ-ÜFE ENDEKSİ İLE DEĞERLEME YAPILACAK ARALIK/2025 AYININ Yİ-ÜFE'Sİ BAZ ALINARAK GEÇİCİ 32 YE GÖRE YD YAPILABİLECEKTİR.", "2025 YD ORANINA GÖRE GEÇİCİ 32 YE GÖRE YD YAPILABİLİR") -> 2025 TE İKTİSAP EDİLEN KIYMETLER, İKTİSAP EDİLDİĞİ AYI İZLEYEN AYIN Yİ-ÜFE ENDEKSİ İLE DEĞERLEME YAPILACAK ARALIK/2025 AYININ Yİ-ÜFE'Sİ BAZ ALINARAK GEÇİCİ 32 YE GÖRE YD YAPILABİLECEKTİR. | J21: 1000000 | K21: NORMAL AMORTİSMAN | L21: HAYIR | M21: EVET | N21: =$O$13 -> 2025-12-31 | O21: =TRUNC(IF(N21=46022,'Aylık Yİ-ÜFE'!$N$251,IF(N21=46112,'Aylık Yİ-ÜFE'!$N$254,IF(N21=46203,'Aylık Yİ-ÜFE'!$N$257,IF(N21=46295,'Aylık Yİ-ÜFE'!$N$260, IF(N21=46387,'Aylık Yİ-ÜFE'!$N$263))))),5) -> 0.2549 | P21: ='GEÇİCİ 32'!AA8-1 -> 0.10336
A22: 2006-08-02 | B22: 2 | C22: Taşıtlar | D22: B | E22: 254- Taşıtlar | F22: HAYIR | G22: 5 | H22: 2024-04-10 | I22: =IF(H22>45657,"2025 TE İKTİSAP EDİLEN KIYMETLER, İKTİSAP EDİLDİĞİ AYI İZLEYEN AYIN Yİ-ÜFE ENDEKSİ İLE DEĞERLEME YAPILACAK ARALIK/2025 AYININ Yİ-ÜFE'Sİ BAZ ALINARAK GEÇİCİ 32 YE GÖRE YD YAPILABİLECEKTİR.", "2025 YD ORANINA GÖRE GEÇİCİ 32 YE GÖRE YD YAPILABİLİR") -> 2025 YD ORANINA GÖRE GEÇİCİ 32 YE GÖRE YD YAPILABİLİR | J22: 1000000 | K22: NORMAL AMORTİSMAN | L22: EVET | M22: EVET | N22: 2025-12-31 | O22: =TRUNC(IF(N22=46022,'Aylık Yİ-ÜFE'!$N$251,IF(N22=46112,'Aylık Yİ-ÜFE'!$N$254,IF(N22=46203,'Aylık Yİ-ÜFE'!$N$257,IF(N22=46295,'Aylık Yİ-ÜFE'!$N$260, IF(N22=46387,'Aylık Yİ-ÜFE'!$N$263))))),5) -> 0.2549 | P22: ='GEÇİCİ 32'!AA9-1 -> 0.2387
A23: 2011-07-08 | B23: 3 | C23: Demirbaşlar | D23: C | E23: 255- Demirbaşlar | F23: HAYIR | G23: 5 | H23: 2024-04-10 | I23: 2025 YD ORANINA GÖRE GEÇİCİ 32 YE GÖRE YD YAPILABİLİR | J23: 1000000 | K23: AZALAN BAKİYELERE GÖRE AMORTİSMAN | L23: HAYIR | M23: EVET | N23: 2025-12-31 | O23: =TRUNC(IF(N23=46022,'Aylık Yİ-ÜFE'!$N$251,IF(N23=46112,'Aylık Yİ-ÜFE'!$N$254,IF(N23=46203,'Aylık Yİ-ÜFE'!$N$257,IF(N23=46295,'Aylık Yİ-ÜFE'!$N$260, IF(N23=46387,'Aylık Yİ-ÜFE'!$N$263))))),5) -> 0.2549 | P23: ='GEÇİCİ 32'!AA10-1 -> 0.2387
A24: 2008-10-09 | B24: 4 | C24: Özel maliyet bedelleri | D24: Ç | E24: 264- Özel Maliyetler | F24: HAYIR | G24: 5 | H24: 2024-04-10 | I24: 2025 YD ORANINA GÖRE GEÇİCİ 32 YE GÖRE YD YAPILABİLİR | J24: 1000000 | K24: AZALAN BAKİYELERE GÖRE AMORTİSMAN | L24: HAYIR | M24: EVET | N24: 2025-12-31 | O24: =TRUNC(IF(N24=46022,'Aylık Yİ-ÜFE'!$N$251,IF(N24=46112,'Aylık Yİ-ÜFE'!$N$254,IF(N24=46203,'Aylık Yİ-ÜFE'!$N$257,IF(N24=46295,'Aylık Yİ-ÜFE'!$N$260, IF(N24=46387,'Aylık Yİ-ÜFE'!$N$263))))),5) -> 0.2549 | P24: ='GEÇİCİ 32'!AA11-1 -> 0.2387
A25: 2000-01-01 | B25: 5 | C25: Taşıtlar | D25: D | E25: 254- Taşıtlar | F25: HAYIR | G25: 5 | H25: 2024-04-10 | I25: 2025 YD ORANINA GÖRE GEÇİCİ 32 YE GÖRE YD YAPILABİLİR | J25: 1000000 | K25: AZALAN BAKİYELERE GÖRE AMORTİSMAN | L25: EVET | M25: EVET | N25: 2025-12-31 | O25: =TRUNC(IF(N25=46022,'Aylık Yİ-ÜFE'!$N$251,IF(N25=46112,'Aylık Yİ-ÜFE'!$N$254,IF(N25=46203,'Aylık Yİ-ÜFE'!$N$257,IF(N25=46295,'Aylık Yİ-ÜFE'!$N$260, IF(N25=46387,'Aylık Yİ-ÜFE'!$N$263))))),5) -> 0.2549 | P25: ='GEÇİCİ 32'!AA12-1 -> 0.2387
A26: 2016-11-04 | B26: 6 | I26: 2025 YD ORANINA GÖRE GEÇİCİ 32 YE GÖRE YD YAPILABİLİR | N26: 2025-12-31 | O26: =TRUNC(IF(N26=46022,'Aylık Yİ-ÜFE'!$N$251,IF(N26=46112,'Aylık Yİ-ÜFE'!$N$254,IF(N26=46203,'Aylık Yİ-ÜFE'!$N$257,IF(N26=46295,'Aylık Yİ-ÜFE'!$N$260, IF(N26=46387,'Aylık Yİ-ÜFE'!$N$263))))),5) -> 0.2549 | P26: ='GEÇİCİ 32'!AA13-1 -> 0
A27: 2016-11-10 | B27: 7 | I27: 2025 YD ORANINA GÖRE GEÇİCİ 32 YE GÖRE YD YAPILABİLİR | N27: 2025-12-31 | O27: =TRUNC(IF(N27=46022,'Aylık Yİ-ÜFE'!$N$251,IF(N27=46112,'Aylık Yİ-ÜFE'!$N$254,IF(N27=46203,'Aylık Yİ-ÜFE'!$N$257,IF(N27=46295,'Aylık Yİ-ÜFE'!$N$260, IF(N27=46387,'Aylık Yİ-ÜFE'!$N$263))))),5) -> 0.2549 | P27: ='GEÇİCİ 32'!AA14-1 -> 0
A28: 2016-11-18 | B28: 8 | I28: 2025 YD ORANINA GÖRE GEÇİCİ 32 YE GÖRE YD YAPILABİLİR | N28: 2025-12-31 | O28: =TRUNC(IF(N28=46022,'Aylık Yİ-ÜFE'!$N$251,IF(N28=46112,'Aylık Yİ-ÜFE'!$N$254,IF(N28=46203,'Aylık Yİ-ÜFE'!$N$257,IF(N28=46295,'Aylık Yİ-ÜFE'!$N$260, IF(N28=46387,'Aylık Yİ-ÜFE'!$N$263))))),5) -> 0.2549 | P28: ='GEÇİCİ 32'!AA15-1 -> 0
A29: 2016-11-30 | B29: 9 | I29: 2025 YD ORANINA GÖRE GEÇİCİ 32 YE GÖRE YD YAPILABİLİR | N29: 2025-12-31 | O29: =TRUNC(IF(N29=46022,'Aylık Yİ-ÜFE'!$N$251,IF(N29=46112,'Aylık Yİ-ÜFE'!$N$254,IF(N29=46203,'Aylık Yİ-ÜFE'!$N$257,IF(N29=46295,'Aylık Yİ-ÜFE'!$N$260, IF(N29=46387,'Aylık Yİ-ÜFE'!$N$263))))),5) -> 0.2549 | P29: ='GEÇİCİ 32'!AA16-1 -> 0
A30: 2016-11-30 | B30: 10 | I30: 2025 YD ORANINA GÖRE GEÇİCİ 32 YE GÖRE YD YAPILABİLİR | N30: 2025-12-31 | O30: =TRUNC(IF(N30=46022,'Aylık Yİ-ÜFE'!$N$251,IF(N30=46112,'Aylık Yİ-ÜFE'!$N$254,IF(N30=46203,'Aylık Yİ-ÜFE'!$N$257,IF(N30=46295,'Aylık Yİ-ÜFE'!$N$260, IF(N30=46387,'Aylık Yİ-ÜFE'!$N$263))))),5) -> 0.2549 | P30: ='GEÇİCİ 32'!AA17-1 -> 0
A31: 2016-11-30 | B31: 11 | I31: 2025 YD ORANINA GÖRE GEÇİCİ 32 YE GÖRE YD YAPILABİLİR | N31: 2025-12-31 | O31: =TRUNC(IF(N31=46022,'Aylık Yİ-ÜFE'!$N$251,IF(N31=46112,'Aylık Yİ-ÜFE'!$N$254,IF(N31=46203,'Aylık Yİ-ÜFE'!$N$257,IF(N31=46295,'Aylık Yİ-ÜFE'!$N$260, IF(N31=46387,'Aylık Yİ-ÜFE'!$N$263))))),5) -> 0.2549 | P31: ='GEÇİCİ 32'!AA18-1 -> 0
A32: 2016-11-30 | B32: 12 | I32: 2025 YD ORANINA GÖRE GEÇİCİ 32 YE GÖRE YD YAPILABİLİR | N32: 2025-12-31 | O32: =TRUNC(IF(N32=46022,'Aylık Yİ-ÜFE'!$N$251,IF(N32=46112,'Aylık Yİ-ÜFE'!$N$254,IF(N32=46203,'Aylık Yİ-ÜFE'!$N$257,IF(N32=46295,'Aylık Yİ-ÜFE'!$N$260, IF(N32=46387,'Aylık Yİ-ÜFE'!$N$263))))),5) -> 0.2549 | P32: ='GEÇİCİ 32'!AA19-1 -> 0
A33: 2016-12-05 | B33: 13 | I33: 2025 YD ORANINA GÖRE GEÇİCİ 32 YE GÖRE YD YAPILABİLİR | N33: 2025-12-31 | O33: =TRUNC(IF(N33=46022,'Aylık Yİ-ÜFE'!$N$251,IF(N33=46112,'Aylık Yİ-ÜFE'!$N$254,IF(N33=46203,'Aylık Yİ-ÜFE'!$N$257,IF(N33=46295,'Aylık Yİ-ÜFE'!$N$260, IF(N33=46387,'Aylık Yİ-ÜFE'!$N$263))))),5) -> 0.2549 | P33: ='GEÇİCİ 32'!AA20-1 -> 0
A34: 2016-12-05 | B34: 14 | I34: 2025 YD ORANINA GÖRE GEÇİCİ 32 YE GÖRE YD YAPILABİLİR | N34: 2025-12-31 | O34: =TRUNC(IF(N34=46022,'Aylık Yİ-ÜFE'!$N$251,IF(N34=46112,'Aylık Yİ-ÜFE'!$N$254,IF(N34=46203,'Aylık Yİ-ÜFE'!$N$257,IF(N34=46295,'Aylık Yİ-ÜFE'!$N$260, IF(N34=46387,'Aylık Yİ-ÜFE'!$N$263))))),5) -> 0.2549 | P34: ='GEÇİCİ 32'!AA21-1 -> 0
A35: 2017-02-04 | B35: 15 | I35: 2025 YD ORANINA GÖRE GEÇİCİ 32 YE GÖRE YD YAPILABİLİR | N35: 2025-12-31 | O35: =TRUNC(IF(N35=46022,'Aylık Yİ-ÜFE'!$N$251,IF(N35=46112,'Aylık Yİ-ÜFE'!$N$254,IF(N35=46203,'Aylık Yİ-ÜFE'!$N$257,IF(N35=46295,'Aylık Yİ-ÜFE'!$N$260, IF(N35=46387,'Aylık Yİ-ÜFE'!$N$263))))),5) -> 0.2549 | P35: ='GEÇİCİ 32'!AA22-1 -> 0
A36: 2017-02-28 | B36: 16 | I36: 2025 YD ORANINA GÖRE GEÇİCİ 32 YE GÖRE YD YAPILABİLİR | N36: 2025-12-31 | O36: =TRUNC(IF(N36=46022,'Aylık Yİ-ÜFE'!$N$251,IF(N36=46112,'Aylık Yİ-ÜFE'!$N$254,IF(N36=46203,'Aylık Yİ-ÜFE'!$N$257,IF(N36=46295,'Aylık Yİ-ÜFE'!$N$260, IF(N36=46387,'Aylık Yİ-ÜFE'!$N$263))))),5) -> 0.2549 | P36: ='GEÇİCİ 32'!AA23-1 -> 0
A37: 2001-01-01 | B37: 17 | I37: 2025 YD ORANINA GÖRE GEÇİCİ 32 YE GÖRE YD YAPILABİLİR | N37: 2025-12-31 | O37: =TRUNC(IF(N37=46022,'Aylık Yİ-ÜFE'!$N$251,IF(N37=46112,'Aylık Yİ-ÜFE'!$N$254,IF(N37=46203,'Aylık Yİ-ÜFE'!$N$257,IF(N37=46295,'Aylık Yİ-ÜFE'!$N$260, IF(N37=46387,'Aylık Yİ-ÜFE'!$N$263))))),5) -> 0.2549 | P37: ='GEÇİCİ 32'!AA24-1 -> 0
A38: 2017-04-07 | B38: 18 | I38: 2025 YD ORANINA GÖRE GEÇİCİ 32 YE GÖRE YD YAPILABİLİR | N38: 2025-12-31 | O38: =TRUNC(IF(N38=46022,'Aylık Yİ-ÜFE'!$N$251,IF(N38=46112,'Aylık Yİ-ÜFE'!$N$254,IF(N38=46203,'Aylık Yİ-ÜFE'!$N$257,IF(N38=46295,'Aylık Yİ-ÜFE'!$N$260, IF(N38=46387,'Aylık Yİ-ÜFE'!$N$263))))),5) -> 0.2549 | P38: ='GEÇİCİ 32'!AA25-1 -> 0
A39: 2017-10-17 | B39: 19 | I39: 2025 YD ORANINA GÖRE GEÇİCİ 32 YE GÖRE YD YAPILABİLİR | N39: 2025-12-31 | O39: =TRUNC(IF(N39=46022,'Aylık Yİ-ÜFE'!$N$251,IF(N39=46112,'Aylık Yİ-ÜFE'!$N$254,IF(N39=46203,'Aylık Yİ-ÜFE'!$N$257,IF(N39=46295,'Aylık Yİ-ÜFE'!$N$260, IF(N39=46387,'Aylık Yİ-ÜFE'!$N$263))))),5) -> 0.2549 | P39: ='GEÇİCİ 32'!AA26-1 -> 0
A40: 2018-05-28 | B40: 20 | I40: 2025 YD ORANINA GÖRE GEÇİCİ 32 YE GÖRE YD YAPILABİLİR | N40: 2025-12-31 | O40: =TRUNC(IF(N40=46022,'Aylık Yİ-ÜFE'!$N$251,IF(N40=46112,'Aylık Yİ-ÜFE'!$N$254,IF(N40=46203,'Aylık Yİ-ÜFE'!$N$257,IF(N40=46295,'Aylık Yİ-ÜFE'!$N$260, IF(N40=46387,'Aylık Yİ-ÜFE'!$N$263))))),5) -> 0.2549 | P40: ='GEÇİCİ 32'!AA27-1 -> 0
A41: 2018-05-28 | B41: 21 | I41: 2025 YD ORANINA GÖRE GEÇİCİ 32 YE GÖRE YD YAPILABİLİR | N41: 2025-12-31 | O41: =TRUNC(IF(N41=46022,'Aylık Yİ-ÜFE'!$N$251,IF(N41=46112,'Aylık Yİ-ÜFE'!$N$254,IF(N41=46203,'Aylık Yİ-ÜFE'!$N$257,IF(N41=46295,'Aylık Yİ-ÜFE'!$N$260, IF(N41=46387,'Aylık Yİ-ÜFE'!$N$263))))),5) -> 0.2549 | P41: ='GEÇİCİ 32'!AA28-1 -> 0
A42: 2018-05-25 | B42: 22 | I42: 2025 YD ORANINA GÖRE GEÇİCİ 32 YE GÖRE YD YAPILABİLİR | N42: 2025-12-31 | O42: =TRUNC(IF(N42=46022,'Aylık Yİ-ÜFE'!$N$251,IF(N42=46112,'Aylık Yİ-ÜFE'!$N$254,IF(N42=46203,'Aylık Yİ-ÜFE'!$N$257,IF(N42=46295,'Aylık Yİ-ÜFE'!$N$260, IF(N42=46387,'Aylık Yİ-ÜFE'!$N$263))))),5) -> 0.2549 | P42: ='GEÇİCİ 32'!AA29-1 -> 0
A43: 2018-05-31 | B43: 23 | I43: 2025 YD ORANINA GÖRE GEÇİCİ 32 YE GÖRE YD YAPILABİLİR | N43: 2025-12-31 | O43: =TRUNC(IF(N43=46022,'Aylık Yİ-ÜFE'!$N$251,IF(N43=46112,'Aylık Yİ-ÜFE'!$N$254,IF(N43=46203,'Aylık Yİ-ÜFE'!$N$257,IF(N43=46295,'Aylık Yİ-ÜFE'!$N$260, IF(N43=46387,'Aylık Yİ-ÜFE'!$N$263))))),5) -> 0.2549 | P43: ='GEÇİCİ 32'!AA30-1 -> 0
A44: 2018-05-31 | B44: 24 | I44: 2025 YD ORANINA GÖRE GEÇİCİ 32 YE GÖRE YD YAPILABİLİR | N44: 2025-12-31 | O44: =TRUNC(IF(N44=46022,'Aylık Yİ-ÜFE'!$N$251,IF(N44=46112,'Aylık Yİ-ÜFE'!$N$254,IF(N44=46203,'Aylık Yİ-ÜFE'!$N$257,IF(N44=46295,'Aylık Yİ-ÜFE'!$N$260, IF(N44=46387,'Aylık Yİ-ÜFE'!$N$263))))),5) -> 0.2549 | P44: ='GEÇİCİ 32'!AA31-1 -> 0
A45: 2019-10-01 | B45: 25 | I45: 2025 YD ORANINA GÖRE GEÇİCİ 32 YE GÖRE YD YAPILABİLİR | N45: 2025-12-31 | O45: =TRUNC(IF(N45=46022,'Aylık Yİ-ÜFE'!$N$251,IF(N45=46112,'Aylık Yİ-ÜFE'!$N$254,IF(N45=46203,'Aylık Yİ-ÜFE'!$N$257,IF(N45=46295,'Aylık Yİ-ÜFE'!$N$260, IF(N45=46387,'Aylık Yİ-ÜFE'!$N$263))))),5) -> 0.2549 | P45: ='GEÇİCİ 32'!AA32-1 -> 0
A46: 2019-10-09 | B46: 26 | I46: 2025 YD ORANINA GÖRE GEÇİCİ 32 YE GÖRE YD YAPILABİLİR | N46: 2025-12-31 | O46: =TRUNC(IF(N46=46022,'Aylık Yİ-ÜFE'!$N$251,IF(N46=46112,'Aylık Yİ-ÜFE'!$N$254,IF(N46=46203,'Aylık Yİ-ÜFE'!$N$257,IF(N46=46295,'Aylık Yİ-ÜFE'!$N$260, IF(N46=46387,'Aylık Yİ-ÜFE'!$N$263))))),5) -> 0.2549 | P46: ='GEÇİCİ 32'!AA33-1 -> 0
A47: 2019-10-12 | B47: 27 | I47: 2025 YD ORANINA GÖRE GEÇİCİ 32 YE GÖRE YD YAPILABİLİR | N47: 2025-12-31 | O47: =TRUNC(IF(N47=46022,'Aylık Yİ-ÜFE'!$N$251,IF(N47=46112,'Aylık Yİ-ÜFE'!$N$254,IF(N47=46203,'Aylık Yİ-ÜFE'!$N$257,IF(N47=46295,'Aylık Yİ-ÜFE'!$N$260, IF(N47=46387,'Aylık Yİ-ÜFE'!$N$263))))),5) -> 0.2549 | P47: ='GEÇİCİ 32'!AA34-1 -> 0
A48: 2001-01-01 | B48: 28 | I48: 2025 YD ORANINA GÖRE GEÇİCİ 32 YE GÖRE YD YAPILABİLİR | N48: 2025-12-31 | O48: =TRUNC(IF(N48=46022,'Aylık Yİ-ÜFE'!$N$251,IF(N48=46112,'Aylık Yİ-ÜFE'!$N$254,IF(N48=46203,'Aylık Yİ-ÜFE'!$N$257,IF(N48=46295,'Aylık Yİ-ÜFE'!$N$260, IF(N48=46387,'Aylık Yİ-ÜFE'!$N$263))))),5) -> 0.2549 | P48: ='GEÇİCİ 32'!AA35-1 -> 0
A49: 2006-01-01 | B49: 29 | I49: 2025 YD ORANINA GÖRE GEÇİCİ 32 YE GÖRE YD YAPILABİLİR | N49: 2025-12-31 | O49: =TRUNC(IF(N49=46022,'Aylık Yİ-ÜFE'!$N$251,IF(N49=46112,'Aylık Yİ-ÜFE'!$N$254,IF(N49=46203,'Aylık Yİ-ÜFE'!$N$257,IF(N49=46295,'Aylık Yİ-ÜFE'!$N$260, IF(N49=46387,'Aylık Yİ-ÜFE'!$N$263))))),5) -> 0.2549 | P49: ='GEÇİCİ 32'!AA36-1 -> 0
A50: 2006-01-01 | B50: 30 | I50: 2025 YD ORANINA GÖRE GEÇİCİ 32 YE GÖRE YD YAPILABİLİR | N50: 2025-12-31 | O50: =TRUNC(IF(N50=46022,'Aylık Yİ-ÜFE'!$N$251,IF(N50=46112,'Aylık Yİ-ÜFE'!$N$254,IF(N50=46203,'Aylık Yİ-ÜFE'!$N$257,IF(N50=46295,'Aylık Yİ-ÜFE'!$N$260, IF(N50=46387,'Aylık Yİ-ÜFE'!$N$263))))),5) -> 0.2549 | P50: ='GEÇİCİ 32'!AA37-1 -> 0
A51: 2018-06-26 | B51: 31 | I51: 2025 YD ORANINA GÖRE GEÇİCİ 32 YE GÖRE YD YAPILABİLİR | N51: 2025-12-31 | O51: =TRUNC(IF(N51=46022,'Aylık Yİ-ÜFE'!$N$251,IF(N51=46112,'Aylık Yİ-ÜFE'!$N$254,IF(N51=46203,'Aylık Yİ-ÜFE'!$N$257,IF(N51=46295,'Aylık Yİ-ÜFE'!$N$260, IF(N51=46387,'Aylık Yİ-ÜFE'!$N$263))))),5) -> 0.2549 | P51: ='GEÇİCİ 32'!AA38-1 -> 0
A52: 2018-08-02 | B52: 32 | I52: 2025 YD ORANINA GÖRE GEÇİCİ 32 YE GÖRE YD YAPILABİLİR | N52: 2025-12-31 | O52: =TRUNC(IF(N52=46022,'Aylık Yİ-ÜFE'!$N$251,IF(N52=46112,'Aylık Yİ-ÜFE'!$N$254,IF(N52=46203,'Aylık Yİ-ÜFE'!$N$257,IF(N52=46295,'Aylık Yİ-ÜFE'!$N$260, IF(N52=46387,'Aylık Yİ-ÜFE'!$N$263))))),5) -> 0.2549 | P52: ='GEÇİCİ 32'!AA39-1 -> 0
A53: 2018-08-03 | B53: 33 | I53: 2025 YD ORANINA GÖRE GEÇİCİ 32 YE GÖRE YD YAPILABİLİR | N53: 2025-12-31 | O53: =TRUNC(IF(N53=46022,'Aylık Yİ-ÜFE'!$N$251,IF(N53=46112,'Aylık Yİ-ÜFE'!$N$254,IF(N53=46203,'Aylık Yİ-ÜFE'!$N$257,IF(N53=46295,'Aylık Yİ-ÜFE'!$N$260, IF(N53=46387,'Aylık Yİ-ÜFE'!$N$263))))),5) -> 0.2549 | P53: ='GEÇİCİ 32'!AA40-1 -> 0
A54: 2018-08-03 | B54: 34 | I54: 2025 YD ORANINA GÖRE GEÇİCİ 32 YE GÖRE YD YAPILABİLİR | N54: 2025-12-31 | O54: =TRUNC(IF(N54=46022,'Aylık Yİ-ÜFE'!$N$251,IF(N54=46112,'Aylık Yİ-ÜFE'!$N$254,IF(N54=46203,'Aylık Yİ-ÜFE'!$N$257,IF(N54=46295,'Aylık Yİ-ÜFE'!$N$260, IF(N54=46387,'Aylık Yİ-ÜFE'!$N$263))))),5) -> 0.2549 | P54: ='GEÇİCİ 32'!AA41-1 -> 0
A55: 2018-07-31 | B55: 35 | I55: 2025 YD ORANINA GÖRE GEÇİCİ 32 YE GÖRE YD YAPILABİLİR | N55: 2025-12-31 | O55: =TRUNC(IF(N55=46022,'Aylık Yİ-ÜFE'!$N$251,IF(N55=46112,'Aylık Yİ-ÜFE'!$N$254,IF(N55=46203,'Aylık Yİ-ÜFE'!$N$257,IF(N55=46295,'Aylık Yİ-ÜFE'!$N$260, IF(N55=46387,'Aylık Yİ-ÜFE'!$N$263))))),5) -> 0.2549 | P55: ='GEÇİCİ 32'!AA42-1 -> 0
A56: 2018-08-27 | B56: 36 | I56: 2025 YD ORANINA GÖRE GEÇİCİ 32 YE GÖRE YD YAPILABİLİR | N56: 2025-12-31 | O56: =TRUNC(IF(N56=46022,'Aylık Yİ-ÜFE'!$N$251,IF(N56=46112,'Aylık Yİ-ÜFE'!$N$254,IF(N56=46203,'Aylık Yİ-ÜFE'!$N$257,IF(N56=46295,'Aylık Yİ-ÜFE'!$N$260, IF(N56=46387,'Aylık Yİ-ÜFE'!$N$263))))),5) -> 0.2549 | P56: ='GEÇİCİ 32'!AA43-1 -> 0
A57: 2018-09-13 | B57: 37 | I57: 2025 YD ORANINA GÖRE GEÇİCİ 32 YE GÖRE YD YAPILABİLİR | N57: 2025-12-31 | O57: =TRUNC(IF(N57=46022,'Aylık Yİ-ÜFE'!$N$251,IF(N57=46112,'Aylık Yİ-ÜFE'!$N$254,IF(N57=46203,'Aylık Yİ-ÜFE'!$N$257,IF(N57=46295,'Aylık Yİ-ÜFE'!$N$260, IF(N57=46387,'Aylık Yİ-ÜFE'!$N$263))))),5) -> 0.2549 | P57: ='GEÇİCİ 32'!AA44-1 -> 0
A58: 2018-09-21 | B58: 38 | I58: 2025 YD ORANINA GÖRE GEÇİCİ 32 YE GÖRE YD YAPILABİLİR | N58: 2025-12-31 | O58: =TRUNC(IF(N58=46022,'Aylık Yİ-ÜFE'!$N$251,IF(N58=46112,'Aylık Yİ-ÜFE'!$N$254,IF(N58=46203,'Aylık Yİ-ÜFE'!$N$257,IF(N58=46295,'Aylık Yİ-ÜFE'!$N$260, IF(N58=46387,'Aylık Yİ-ÜFE'!$N$263))))),5) -> 0.2549 | P58: ='GEÇİCİ 32'!AA45-1 -> 0
A59: 2019-05-15 | B59: 39 | I59: 2025 YD ORANINA GÖRE GEÇİCİ 32 YE GÖRE YD YAPILABİLİR | N59: 2025-12-31 | O59: =TRUNC(IF(N59=46022,'Aylık Yİ-ÜFE'!$N$251,IF(N59=46112,'Aylık Yİ-ÜFE'!$N$254,IF(N59=46203,'Aylık Yİ-ÜFE'!$N$257,IF(N59=46295,'Aylık Yİ-ÜFE'!$N$260, IF(N59=46387,'Aylık Yİ-ÜFE'!$N$263))))),5) -> 0.2549 | P59: ='GEÇİCİ 32'!AA46-1 -> 0
A60: 2019-09-14 | B60: 40 | I60: 2025 YD ORANINA GÖRE GEÇİCİ 32 YE GÖRE YD YAPILABİLİR | N60: 2025-12-31 | O60: =TRUNC(IF(N60=46022,'Aylık Yİ-ÜFE'!$N$251,IF(N60=46112,'Aylık Yİ-ÜFE'!$N$254,IF(N60=46203,'Aylık Yİ-ÜFE'!$N$257,IF(N60=46295,'Aylık Yİ-ÜFE'!$N$260, IF(N60=46387,'Aylık Yİ-ÜFE'!$N$263))))),5) -> 0.2549 | P60: ='GEÇİCİ 32'!AA47-1 -> 0
A61: 2019-09-15 | B61: 41 | I61: 2025 YD ORANINA GÖRE GEÇİCİ 32 YE GÖRE YD YAPILABİLİR | N61: 2025-12-31 | O61: =TRUNC(IF(N61=46022,'Aylık Yİ-ÜFE'!$N$251,IF(N61=46112,'Aylık Yİ-ÜFE'!$N$254,IF(N61=46203,'Aylık Yİ-ÜFE'!$N$257,IF(N61=46295,'Aylık Yİ-ÜFE'!$N$260, IF(N61=46387,'Aylık Yİ-ÜFE'!$N$263))))),5) -> 0.2549 | P61: ='GEÇİCİ 32'!AA48-1 -> 0
A62: 2019-09-24 | B62: 42 | I62: 2025 YD ORANINA GÖRE GEÇİCİ 32 YE GÖRE YD YAPILABİLİR | N62: 2025-12-31 | O62: =TRUNC(IF(N62=46022,'Aylık Yİ-ÜFE'!$N$251,IF(N62=46112,'Aylık Yİ-ÜFE'!$N$254,IF(N62=46203,'Aylık Yİ-ÜFE'!$N$257,IF(N62=46295,'Aylık Yİ-ÜFE'!$N$260, IF(N62=46387,'Aylık Yİ-ÜFE'!$N$263))))),5) -> 0.2549 | P62: ='GEÇİCİ 32'!AA49-1 -> 0
A63: 2019-10-01 | B63: 43 | I63: 2025 YD ORANINA GÖRE GEÇİCİ 32 YE GÖRE YD YAPILABİLİR | N63: 2025-12-31 | O63: =TRUNC(IF(N63=46022,'Aylık Yİ-ÜFE'!$N$251,IF(N63=46112,'Aylık Yİ-ÜFE'!$N$254,IF(N63=46203,'Aylık Yİ-ÜFE'!$N$257,IF(N63=46295,'Aylık Yİ-ÜFE'!$N$260, IF(N63=46387,'Aylık Yİ-ÜFE'!$N$263))))),5) -> 0.2549 | P63: ='GEÇİCİ 32'!AA50-1 -> 0
A64: 2019-10-15 | B64: 44 | I64: 2025 YD ORANINA GÖRE GEÇİCİ 32 YE GÖRE YD YAPILABİLİR | N64: 2025-12-31 | O64: =TRUNC(IF(N64=46022,'Aylık Yİ-ÜFE'!$N$251,IF(N64=46112,'Aylık Yİ-ÜFE'!$N$254,IF(N64=46203,'Aylık Yİ-ÜFE'!$N$257,IF(N64=46295,'Aylık Yİ-ÜFE'!$N$260, IF(N64=46387,'Aylık Yİ-ÜFE'!$N$263))))),5) -> 0.2549 | P64: ='GEÇİCİ 32'!AA51-1 -> 0
A65: 2020-05-29 | B65: 45 | I65: 2025 YD ORANINA GÖRE GEÇİCİ 32 YE GÖRE YD YAPILABİLİR | N65: 2025-12-31 | O65: =TRUNC(IF(N65=46022,'Aylık Yİ-ÜFE'!$N$251,IF(N65=46112,'Aylık Yİ-ÜFE'!$N$254,IF(N65=46203,'Aylık Yİ-ÜFE'!$N$257,IF(N65=46295,'Aylık Yİ-ÜFE'!$N$260, IF(N65=46387,'Aylık Yİ-ÜFE'!$N$263))))),5) -> 0.2549 | P65: ='GEÇİCİ 32'!AA52-1 -> 0
A66: 2020-07-13 | B66: 46 | I66: 2025 YD ORANINA GÖRE GEÇİCİ 32 YE GÖRE YD YAPILABİLİR | N66: 2025-12-31 | O66: =TRUNC(IF(N66=46022,'Aylık Yİ-ÜFE'!$N$251,IF(N66=46112,'Aylık Yİ-ÜFE'!$N$254,IF(N66=46203,'Aylık Yİ-ÜFE'!$N$257,IF(N66=46295,'Aylık Yİ-ÜFE'!$N$260, IF(N66=46387,'Aylık Yİ-ÜFE'!$N$263))))),5) -> 0.2549 | P66: ='GEÇİCİ 32'!AA53-1 -> 0
A67: 2020-07-20 | B67: 47 | I67: 2025 YD ORANINA GÖRE GEÇİCİ 32 YE GÖRE YD YAPILABİLİR | N67: 2025-12-31 | O67: =TRUNC(IF(N67=46022,'Aylık Yİ-ÜFE'!$N$251,IF(N67=46112,'Aylık Yİ-ÜFE'!$N$254,IF(N67=46203,'Aylık Yİ-ÜFE'!$N$257,IF(N67=46295,'Aylık Yİ-ÜFE'!$N$260, IF(N67=46387,'Aylık Yİ-ÜFE'!$N$263))))),5) -> 0.2549 | P67: ='GEÇİCİ 32'!AA54-1 -> 0
A68: 2020-07-16 | B68: 48 | I68: 2025 YD ORANINA GÖRE GEÇİCİ 32 YE GÖRE YD YAPILABİLİR | N68: 2025-12-31 | O68: =TRUNC(IF(N68=46022,'Aylık Yİ-ÜFE'!$N$251,IF(N68=46112,'Aylık Yİ-ÜFE'!$N$254,IF(N68=46203,'Aylık Yİ-ÜFE'!$N$257,IF(N68=46295,'Aylık Yİ-ÜFE'!$N$260, IF(N68=46387,'Aylık Yİ-ÜFE'!$N$263))))),5) -> 0.2549 | P68: ='GEÇİCİ 32'!AA55-1 -> 0
A69: 2020-07-22 | B69: 49 | I69: 2025 YD ORANINA GÖRE GEÇİCİ 32 YE GÖRE YD YAPILABİLİR | N69: 2025-12-31 | O69: =TRUNC(IF(N69=46022,'Aylık Yİ-ÜFE'!$N$251,IF(N69=46112,'Aylık Yİ-ÜFE'!$N$254,IF(N69=46203,'Aylık Yİ-ÜFE'!$N$257,IF(N69=46295,'Aylık Yİ-ÜFE'!$N$260, IF(N69=46387,'Aylık Yİ-ÜFE'!$N$263))))),5) -> 0.2549 | P69: ='GEÇİCİ 32'!AA56-1 -> 0
A70: 2020-07-30 | B70: 50 | I70: 2025 YD ORANINA GÖRE GEÇİCİ 32 YE GÖRE YD YAPILABİLİR | N70: 2025-12-31 | O70: =TRUNC(IF(N70=46022,'Aylık Yİ-ÜFE'!$N$251,IF(N70=46112,'Aylık Yİ-ÜFE'!$N$254,IF(N70=46203,'Aylık Yİ-ÜFE'!$N$257,IF(N70=46295,'Aylık Yİ-ÜFE'!$N$260, IF(N70=46387,'Aylık Yİ-ÜFE'!$N$263))))),5) -> 0.2549 | P70: ='GEÇİCİ 32'!AA57-1 -> 0
A71: 2020-07-30 | B71: 51 | I71: 2025 YD ORANINA GÖRE GEÇİCİ 32 YE GÖRE YD YAPILABİLİR | N71: 2025-12-31 | O71: =TRUNC(IF(N71=46022,'Aylık Yİ-ÜFE'!$N$251,IF(N71=46112,'Aylık Yİ-ÜFE'!$N$254,IF(N71=46203,'Aylık Yİ-ÜFE'!$N$257,IF(N71=46295,'Aylık Yİ-ÜFE'!$N$260, IF(N71=46387,'Aylık Yİ-ÜFE'!$N$263))))),5) -> 0.2549 | P71: ='GEÇİCİ 32'!AA58-1 -> 0
A72: 2020-08-24 | B72: 52 | I72: 2025 YD ORANINA GÖRE GEÇİCİ 32 YE GÖRE YD YAPILABİLİR | N72: 2025-12-31 | O72: =TRUNC(IF(N72=46022,'Aylık Yİ-ÜFE'!$N$251,IF(N72=46112,'Aylık Yİ-ÜFE'!$N$254,IF(N72=46203,'Aylık Yİ-ÜFE'!$N$257,IF(N72=46295,'Aylık Yİ-ÜFE'!$N$260, IF(N72=46387,'Aylık Yİ-ÜFE'!$N$263))))),5) -> 0.2549 | P72: ='GEÇİCİ 32'!AA59-1 -> 0
A73: 2020-10-14 | B73: 53 | I73: 2025 YD ORANINA GÖRE GEÇİCİ 32 YE GÖRE YD YAPILABİLİR | N73: 2025-12-31 | O73: =TRUNC(IF(N73=46022,'Aylık Yİ-ÜFE'!$N$251,IF(N73=46112,'Aylık Yİ-ÜFE'!$N$254,IF(N73=46203,'Aylık Yİ-ÜFE'!$N$257,IF(N73=46295,'Aylık Yİ-ÜFE'!$N$260, IF(N73=46387,'Aylık Yİ-ÜFE'!$N$263))))),5) -> 0.2549 | P73: ='GEÇİCİ 32'!AA60-1 -> 0
A74: 2021-01-22 | B74: 54 | I74: 2025 YD ORANINA GÖRE GEÇİCİ 32 YE GÖRE YD YAPILABİLİR | N74: 2025-12-31 | O74: =TRUNC(IF(N74=46022,'Aylık Yİ-ÜFE'!$N$251,IF(N74=46112,'Aylık Yİ-ÜFE'!$N$254,IF(N74=46203,'Aylık Yİ-ÜFE'!$N$257,IF(N74=46295,'Aylık Yİ-ÜFE'!$N$260, IF(N74=46387,'Aylık Yİ-ÜFE'!$N$263))))),5) -> 0.2549 | P74: ='GEÇİCİ 32'!AA61-1 -> 0
A75: 2021-03-31 | B75: 55 | I75: 2025 YD ORANINA GÖRE GEÇİCİ 32 YE GÖRE YD YAPILABİLİR | N75: 2025-12-31 | O75: =TRUNC(IF(N75=46022,'Aylık Yİ-ÜFE'!$N$251,IF(N75=46112,'Aylık Yİ-ÜFE'!$N$254,IF(N75=46203,'Aylık Yİ-ÜFE'!$N$257,IF(N75=46295,'Aylık Yİ-ÜFE'!$N$260, IF(N75=46387,'Aylık Yİ-ÜFE'!$N$263))))),5) -> 0.2549 | P75: ='GEÇİCİ 32'!AA62-1 -> 0
A76: 2021-03-31 | B76: 56 | I76: 2025 YD ORANINA GÖRE GEÇİCİ 32 YE GÖRE YD YAPILABİLİR | N76: 2025-12-31 | O76: =TRUNC(IF(N76=46022,'Aylık Yİ-ÜFE'!$N$251,IF(N76=46112,'Aylık Yİ-ÜFE'!$N$254,IF(N76=46203,'Aylık Yİ-ÜFE'!$N$257,IF(N76=46295,'Aylık Yİ-ÜFE'!$N$260, IF(N76=46387,'Aylık Yİ-ÜFE'!$N$263))))),5) -> 0.2549 | P76: ='GEÇİCİ 32'!AA63-1 -> 0
A77: 2021-06-09 | B77: 57 | I77: 2025 YD ORANINA GÖRE GEÇİCİ 32 YE GÖRE YD YAPILABİLİR | N77: 2025-12-31 | O77: =TRUNC(IF(N77=46022,'Aylık Yİ-ÜFE'!$N$251,IF(N77=46112,'Aylık Yİ-ÜFE'!$N$254,IF(N77=46203,'Aylık Yİ-ÜFE'!$N$257,IF(N77=46295,'Aylık Yİ-ÜFE'!$N$260, IF(N77=46387,'Aylık Yİ-ÜFE'!$N$263))))),5) -> 0.2549 | P77: ='GEÇİCİ 32'!AA64-1 -> 0
A78: 2021-10-20 | B78: 58 | I78: 2025 YD ORANINA GÖRE GEÇİCİ 32 YE GÖRE YD YAPILABİLİR | N78: 2025-12-31 | O78: =TRUNC(IF(N78=46022,'Aylık Yİ-ÜFE'!$N$251,IF(N78=46112,'Aylık Yİ-ÜFE'!$N$254,IF(N78=46203,'Aylık Yİ-ÜFE'!$N$257,IF(N78=46295,'Aylık Yİ-ÜFE'!$N$260, IF(N78=46387,'Aylık Yİ-ÜFE'!$N$263))))),5) -> 0.2549 | P78: ='GEÇİCİ 32'!AA65-1 -> 0
A79: 2021-11-09 | B79: 59 | I79: 2025 YD ORANINA GÖRE GEÇİCİ 32 YE GÖRE YD YAPILABİLİR | N79: 2025-12-31 | O79: =TRUNC(IF(N79=46022,'Aylık Yİ-ÜFE'!$N$251,IF(N79=46112,'Aylık Yİ-ÜFE'!$N$254,IF(N79=46203,'Aylık Yİ-ÜFE'!$N$257,IF(N79=46295,'Aylık Yİ-ÜFE'!$N$260, IF(N79=46387,'Aylık Yİ-ÜFE'!$N$263))))),5) -> 0.2549 | P79: ='GEÇİCİ 32'!AA66-1 -> 0
A80: 2021-11-20 | B80: 60 | I80: 2025 YD ORANINA GÖRE GEÇİCİ 32 YE GÖRE YD YAPILABİLİR | N80: 2025-12-31 | O80: =TRUNC(IF(N80=46022,'Aylık Yİ-ÜFE'!$N$251,IF(N80=46112,'Aylık Yİ-ÜFE'!$N$254,IF(N80=46203,'Aylık Yİ-ÜFE'!$N$257,IF(N80=46295,'Aylık Yİ-ÜFE'!$N$260, IF(N80=46387,'Aylık Yİ-ÜFE'!$N$263))))),5) -> 0.2549 | P80: ='GEÇİCİ 32'!AA67-1 -> 0
A81: 2021-11-26 | B81: 61 | I81: 2025 YD ORANINA GÖRE GEÇİCİ 32 YE GÖRE YD YAPILABİLİR | N81: 2025-12-31 | O81: =TRUNC(IF(N81=46022,'Aylık Yİ-ÜFE'!$N$251,IF(N81=46112,'Aylık Yİ-ÜFE'!$N$254,IF(N81=46203,'Aylık Yİ-ÜFE'!$N$257,IF(N81=46295,'Aylık Yİ-ÜFE'!$N$260, IF(N81=46387,'Aylık Yİ-ÜFE'!$N$263))))),5) -> 0.2549 | P81: ='GEÇİCİ 32'!AA68-1 -> 0
A82: 2021-12-17 | B82: 62 | I82: 2025 YD ORANINA GÖRE GEÇİCİ 32 YE GÖRE YD YAPILABİLİR | N82: 2025-12-31 | O82: =TRUNC(IF(N82=46022,'Aylık Yİ-ÜFE'!$N$251,IF(N82=46112,'Aylık Yİ-ÜFE'!$N$254,IF(N82=46203,'Aylık Yİ-ÜFE'!$N$257,IF(N82=46295,'Aylık Yİ-ÜFE'!$N$260, IF(N82=46387,'Aylık Yİ-ÜFE'!$N$263))))),5) -> 0.2549 | P82: ='GEÇİCİ 32'!AA69-1 -> 0
A83: 2021-12-24 | B83: 63 | I83: 2025 YD ORANINA GÖRE GEÇİCİ 32 YE GÖRE YD YAPILABİLİR | N83: 2025-12-31 | O83: =TRUNC(IF(N83=46022,'Aylık Yİ-ÜFE'!$N$251,IF(N83=46112,'Aylık Yİ-ÜFE'!$N$254,IF(N83=46203,'Aylık Yİ-ÜFE'!$N$257,IF(N83=46295,'Aylık Yİ-ÜFE'!$N$260, IF(N83=46387,'Aylık Yİ-ÜFE'!$N$263))))),5) -> 0.2549 | P83: ='GEÇİCİ 32'!AA70-1 -> 0
A84: 2021-12-25 | B84: 64 | I84: 2025 YD ORANINA GÖRE GEÇİCİ 32 YE GÖRE YD YAPILABİLİR | N84: 2025-12-31 | O84: =TRUNC(IF(N84=46022,'Aylık Yİ-ÜFE'!$N$251,IF(N84=46112,'Aylık Yİ-ÜFE'!$N$254,IF(N84=46203,'Aylık Yİ-ÜFE'!$N$257,IF(N84=46295,'Aylık Yİ-ÜFE'!$N$260, IF(N84=46387,'Aylık Yİ-ÜFE'!$N$263))))),5) -> 0.2549 | P84: ='GEÇİCİ 32'!AA71-1 -> 0
B85: 65 | I85: 2025 YD ORANINA GÖRE GEÇİCİ 32 YE GÖRE YD YAPILABİLİR | N85: =$O$13 -> 2025-12-31 | O85: =TRUNC(IF(N85=46022,'Aylık Yİ-ÜFE'!$N$251,IF(N85=46112,'Aylık Yİ-ÜFE'!$N$254,IF(N85=46203,'Aylık Yİ-ÜFE'!$N$257,IF(N85=46295,'Aylık Yİ-ÜFE'!$N$260, IF(N85=46387,'Aylık Yİ-ÜFE'!$N$263))))),5) -> 0.2549 | P85: ='GEÇİCİ 32'!AA72-1 -> 0
B86: 66 | I86: =IF(H86>45657,"2025 TE İKTİSAP EDİLEN KIYMETLER, İKTİSAP EDİLDİĞİ AYI İZLEYEN AYIN Yİ-ÜFE ENDEKSİ İLE DEĞERLEME YAPILACAK ARALIK/2025 AYININ Yİ-ÜFE'Sİ BAZ ALINARAK GEÇİCİ 32 YE GÖRE YD YAPILABİLECEKTİR.", "2025 YD ORANINA GÖRE GEÇİCİ 32 YE GÖRE YD YAPILABİLİR") -> 2025 YD ORANINA GÖRE GEÇİCİ 32 YE GÖRE YD YAPILABİLİR | N86: 2025-12-31 | O86: =TRUNC(IF(N86=46022,'Aylık Yİ-ÜFE'!$N$251,IF(N86=46112,'Aylık Yİ-ÜFE'!$N$254,IF(N86=46203,'Aylık Yİ-ÜFE'!$N$257,IF(N86=46295,'Aylık Yİ-ÜFE'!$N$260, IF(N86=46387,'Aylık Yİ-ÜFE'!$N$263))))),5) -> 0.2549 | P86: ='GEÇİCİ 32'!AA73-1 -> 0
B87: 67 | I87: 2025 YD ORANINA GÖRE GEÇİCİ 32 YE GÖRE YD YAPILABİLİR | N87: 2025-12-31 | O87: =TRUNC(IF(N87=46022,'Aylık Yİ-ÜFE'!$N$251,IF(N87=46112,'Aylık Yİ-ÜFE'!$N$254,IF(N87=46203,'Aylık Yİ-ÜFE'!$N$257,IF(N87=46295,'Aylık Yİ-ÜFE'!$N$260, IF(N87=46387,'Aylık Yİ-ÜFE'!$N$263))))),5) -> 0.2549 | P87: ='GEÇİCİ 32'!AA74-1 -> 0
B88: 68 | I88: 2025 YD ORANINA GÖRE GEÇİCİ 32 YE GÖRE YD YAPILABİLİR | N88: 2025-12-31 | O88: =TRUNC(IF(N88=46022,'Aylık Yİ-ÜFE'!$N$251,IF(N88=46112,'Aylık Yİ-ÜFE'!$N$254,IF(N88=46203,'Aylık Yİ-ÜFE'!$N$257,IF(N88=46295,'Aylık Yİ-ÜFE'!$N$260, IF(N88=46387,'Aylık Yİ-ÜFE'!$N$263))))),5) -> 0.2549 | P88: ='GEÇİCİ 32'!AA75-1 -> 0
B89: 69 | I89: 2025 YD ORANINA GÖRE GEÇİCİ 32 YE GÖRE YD YAPILABİLİR | N89: 2025-12-31 | O89: =TRUNC(IF(N89=46022,'Aylık Yİ-ÜFE'!$N$251,IF(N89=46112,'Aylık Yİ-ÜFE'!$N$254,IF(N89=46203,'Aylık Yİ-ÜFE'!$N$257,IF(N89=46295,'Aylık Yİ-ÜFE'!$N$260, IF(N89=46387,'Aylık Yİ-ÜFE'!$N$263))))),5) -> 0.2549 | P89: ='GEÇİCİ 32'!AA76-1 -> 0
B90: 70 | I90: 2025 YD ORANINA GÖRE GEÇİCİ 32 YE GÖRE YD YAPILABİLİR | N90: 2025-12-31 | O90: =TRUNC(IF(N90=46022,'Aylık Yİ-ÜFE'!$N$251,IF(N90=46112,'Aylık Yİ-ÜFE'!$N$254,IF(N90=46203,'Aylık Yİ-ÜFE'!$N$257,IF(N90=46295,'Aylık Yİ-ÜFE'!$N$260, IF(N90=46387,'Aylık Yİ-ÜFE'!$N$263))))),5) -> 0.2549 | P90: ='GEÇİCİ 32'!AA77-1 -> 0
B91: 71 | I91: 2025 YD ORANINA GÖRE GEÇİCİ 32 YE GÖRE YD YAPILABİLİR | N91: 2025-12-31 | O91: =TRUNC(IF(N91=46022,'Aylık Yİ-ÜFE'!$N$251,IF(N91=46112,'Aylık Yİ-ÜFE'!$N$254,IF(N91=46203,'Aylık Yİ-ÜFE'!$N$257,IF(N91=46295,'Aylık Yİ-ÜFE'!$N$260, IF(N91=46387,'Aylık Yİ-ÜFE'!$N$263))))),5) -> 0.2549 | P91: ='GEÇİCİ 32'!AA78-1 -> 0
B92: 72 | I92: 2025 YD ORANINA GÖRE GEÇİCİ 32 YE GÖRE YD YAPILABİLİR | N92: 2025-12-31 | O92: =TRUNC(IF(N92=46022,'Aylık Yİ-ÜFE'!$N$251,IF(N92=46112,'Aylık Yİ-ÜFE'!$N$254,IF(N92=46203,'Aylık Yİ-ÜFE'!$N$257,IF(N92=46295,'Aylık Yİ-ÜFE'!$N$260, IF(N92=46387,'Aylık Yİ-ÜFE'!$N$263))))),5) -> 0.2549 | P92: ='GEÇİCİ 32'!AA79-1 -> 0
B93: 73 | I93: 2025 YD ORANINA GÖRE GEÇİCİ 32 YE GÖRE YD YAPILABİLİR | N93: 2025-12-31 | O93: =TRUNC(IF(N93=46022,'Aylık Yİ-ÜFE'!$N$251,IF(N93=46112,'Aylık Yİ-ÜFE'!$N$254,IF(N93=46203,'Aylık Yİ-ÜFE'!$N$257,IF(N93=46295,'Aylık Yİ-ÜFE'!$N$260, IF(N93=46387,'Aylık Yİ-ÜFE'!$N$263))))),5) -> 0.2549 | P93: ='GEÇİCİ 32'!AA80-1 -> 0
B94: 74 | I94: 2025 YD ORANINA GÖRE GEÇİCİ 32 YE GÖRE YD YAPILABİLİR | N94: 2025-12-31 | O94: =TRUNC(IF(N94=46022,'Aylık Yİ-ÜFE'!$N$251,IF(N94=46112,'Aylık Yİ-ÜFE'!$N$254,IF(N94=46203,'Aylık Yİ-ÜFE'!$N$257,IF(N94=46295,'Aylık Yİ-ÜFE'!$N$260, IF(N94=46387,'Aylık Yİ-ÜFE'!$N$263))))),5) -> 0.2549 | P94: ='GEÇİCİ 32'!AA81-1 -> 0
B95: 75 | I95: 2025 YD ORANINA GÖRE GEÇİCİ 32 YE GÖRE YD YAPILABİLİR | N95: 2025-12-31 | O95: =TRUNC(IF(N95=46022,'Aylık Yİ-ÜFE'!$N$251,IF(N95=46112,'Aylık Yİ-ÜFE'!$N$254,IF(N95=46203,'Aylık Yİ-ÜFE'!$N$257,IF(N95=46295,'Aylık Yİ-ÜFE'!$N$260, IF(N95=46387,'Aylık Yİ-ÜFE'!$N$263))))),5) -> 0.2549 | P95: ='GEÇİCİ 32'!AA82-1 -> 0
B96: 76 | I96: 2025 YD ORANINA GÖRE GEÇİCİ 32 YE GÖRE YD YAPILABİLİR | N96: 2025-12-31 | O96: =TRUNC(IF(N96=46022,'Aylık Yİ-ÜFE'!$N$251,IF(N96=46112,'Aylık Yİ-ÜFE'!$N$254,IF(N96=46203,'Aylık Yİ-ÜFE'!$N$257,IF(N96=46295,'Aylık Yİ-ÜFE'!$N$260, IF(N96=46387,'Aylık Yİ-ÜFE'!$N$263))))),5) -> 0.2549 | P96: ='GEÇİCİ 32'!AA83-1 -> 0
B97: 77 | I97: 2025 YD ORANINA GÖRE GEÇİCİ 32 YE GÖRE YD YAPILABİLİR | N97: 2025-12-31 | O97: =TRUNC(IF(N97=46022,'Aylık Yİ-ÜFE'!$N$251,IF(N97=46112,'Aylık Yİ-ÜFE'!$N$254,IF(N97=46203,'Aylık Yİ-ÜFE'!$N$257,IF(N97=46295,'Aylık Yİ-ÜFE'!$N$260, IF(N97=46387,'Aylık Yİ-ÜFE'!$N$263))))),5) -> 0.2549 | P97: ='GEÇİCİ 32'!AA84-1 -> 0
B98: 78 | I98: 2025 YD ORANINA GÖRE GEÇİCİ 32 YE GÖRE YD YAPILABİLİR | N98: 2025-12-31 | O98: =TRUNC(IF(N98=46022,'Aylık Yİ-ÜFE'!$N$251,IF(N98=46112,'Aylık Yİ-ÜFE'!$N$254,IF(N98=46203,'Aylık Yİ-ÜFE'!$N$257,IF(N98=46295,'Aylık Yİ-ÜFE'!$N$260, IF(N98=46387,'Aylık Yİ-ÜFE'!$N$263))))),5) -> 0.2549 | P98: ='GEÇİCİ 32'!AA85-1 -> 0
B99: 79 | I99: 2025 YD ORANINA GÖRE GEÇİCİ 32 YE GÖRE YD YAPILABİLİR | N99: 2025-12-31 | O99: =TRUNC(IF(N99=46022,'Aylık Yİ-ÜFE'!$N$251,IF(N99=46112,'Aylık Yİ-ÜFE'!$N$254,IF(N99=46203,'Aylık Yİ-ÜFE'!$N$257,IF(N99=46295,'Aylık Yİ-ÜFE'!$N$260, IF(N99=46387,'Aylık Yİ-ÜFE'!$N$263))))),5) -> 0.2549 | P99: ='GEÇİCİ 32'!AA86-1 -> 0
B100: 80 | I100: 2025 YD ORANINA GÖRE GEÇİCİ 32 YE GÖRE YD YAPILABİLİR | N100: 2025-12-31 | O100: =TRUNC(IF(N100=46022,'Aylık Yİ-ÜFE'!$N$251,IF(N100=46112,'Aylık Yİ-ÜFE'!$N$254,IF(N100=46203,'Aylık Yİ-ÜFE'!$N$257,IF(N100=46295,'Aylık Yİ-ÜFE'!$N$260, IF(N100=46387,'Aylık Yİ-ÜFE'!$N$263))))),5) -> 0.2549 | P100: ='GEÇİCİ 32'!AA87-1 -> 0
B101: 81 | I101: 2025 YD ORANINA GÖRE GEÇİCİ 32 YE GÖRE YD YAPILABİLİR | N101: 2025-12-31 | O101: =TRUNC(IF(N101=46022,'Aylık Yİ-ÜFE'!$N$251,IF(N101=46112,'Aylık Yİ-ÜFE'!$N$254,IF(N101=46203,'Aylık Yİ-ÜFE'!$N$257,IF(N101=46295,'Aylık Yİ-ÜFE'!$N$260, IF(N101=46387,'Aylık Yİ-ÜFE'!$N$263))))),5) -> 0.2549 | P101: ='GEÇİCİ 32'!AA88-1 -> 0
B102: 82 | I102: 2025 YD ORANINA GÖRE GEÇİCİ 32 YE GÖRE YD YAPILABİLİR | N102: 2025-12-31 | O102: =TRUNC(IF(N102=46022,'Aylık Yİ-ÜFE'!$N$251,IF(N102=46112,'Aylık Yİ-ÜFE'!$N$254,IF(N102=46203,'Aylık Yİ-ÜFE'!$N$257,IF(N102=46295,'Aylık Yİ-ÜFE'!$N$260, IF(N102=46387,'Aylık Yİ-ÜFE'!$N$263))))),5) -> 0.2549 | P102: ='GEÇİCİ 32'!AA89-1 -> 0
B103: 83 | I103: 2025 YD ORANINA GÖRE GEÇİCİ 32 YE GÖRE YD YAPILABİLİR | N103: 2025-12-31 | O103: =TRUNC(IF(N103=46022,'Aylık Yİ-ÜFE'!$N$251,IF(N103=46112,'Aylık Yİ-ÜFE'!$N$254,IF(N103=46203,'Aylık Yİ-ÜFE'!$N$257,IF(N103=46295,'Aylık Yİ-ÜFE'!$N$260, IF(N103=46387,'Aylık Yİ-ÜFE'!$N$263))))),5) -> 0.2549 | P103: ='GEÇİCİ 32'!AA90-1 -> 0
B104: 84 | I104: 2025 YD ORANINA GÖRE GEÇİCİ 32 YE GÖRE YD YAPILABİLİR | N104: 2025-12-31 | O104: =TRUNC(IF(N104=46022,'Aylık Yİ-ÜFE'!$N$251,IF(N104=46112,'Aylık Yİ-ÜFE'!$N$254,IF(N104=46203,'Aylık Yİ-ÜFE'!$N$257,IF(N104=46295,'Aylık Yİ-ÜFE'!$N$260, IF(N104=46387,'Aylık Yİ-ÜFE'!$N$263))))),5) -> 0.2549 | P104: ='GEÇİCİ 32'!AA91-1 -> 0
B105: 85 | I105: 2025 YD ORANINA GÖRE GEÇİCİ 32 YE GÖRE YD YAPILABİLİR | N105: 2025-12-31 | O105: =TRUNC(IF(N105=46022,'Aylık Yİ-ÜFE'!$N$251,IF(N105=46112,'Aylık Yİ-ÜFE'!$N$254,IF(N105=46203,'Aylık Yİ-ÜFE'!$N$257,IF(N105=46295,'Aylık Yİ-ÜFE'!$N$260, IF(N105=46387,'Aylık Yİ-ÜFE'!$N$263))))),5) -> 0.2549 | P105: ='GEÇİCİ 32'!AA92-1 -> 0
B106: 86 | I106: 2025 YD ORANINA GÖRE GEÇİCİ 32 YE GÖRE YD YAPILABİLİR | N106: 2025-12-31 | O106: =TRUNC(IF(N106=46022,'Aylık Yİ-ÜFE'!$N$251,IF(N106=46112,'Aylık Yİ-ÜFE'!$N$254,IF(N106=46203,'Aylık Yİ-ÜFE'!$N$257,IF(N106=46295,'Aylık Yİ-ÜFE'!$N$260, IF(N106=46387,'Aylık Yİ-ÜFE'!$N$263))))),5) -> 0.2549 | P106: ='GEÇİCİ 32'!AA93-1 -> 0
A107: 2013-09-30 | B107: 87 | I107: 2025 YD ORANINA GÖRE GEÇİCİ 32 YE GÖRE YD YAPILABİLİR | N107: 2025-12-31 | O107: =TRUNC(IF(N107=46022,'Aylık Yİ-ÜFE'!$N$251,IF(N107=46112,'Aylık Yİ-ÜFE'!$N$254,IF(N107=46203,'Aylık Yİ-ÜFE'!$N$257,IF(N107=46295,'Aylık Yİ-ÜFE'!$N$260, IF(N107=46387,'Aylık Yİ-ÜFE'!$N$263))))),5) -> 0.2549 | P107: ='GEÇİCİ 32'!AA94-1 -> 0
A108: 2013-09-30 | B108: 88 | I108: 2025 YD ORANINA GÖRE GEÇİCİ 32 YE GÖRE YD YAPILABİLİR | N108: 2025-12-31 | O108: =TRUNC(IF(N108=46022,'Aylık Yİ-ÜFE'!$N$251,IF(N108=46112,'Aylık Yİ-ÜFE'!$N$254,IF(N108=46203,'Aylık Yİ-ÜFE'!$N$257,IF(N108=46295,'Aylık Yİ-ÜFE'!$N$260, IF(N108=46387,'Aylık Yİ-ÜFE'!$N$263))))),5) -> 0.2549 | P108: ='GEÇİCİ 32'!AA95-1 -> 0
A109: 2014-07-18 | B109: 89 | I109: 2025 YD ORANINA GÖRE GEÇİCİ 32 YE GÖRE YD YAPILABİLİR | N109: 2025-12-31 | O109: =TRUNC(IF(N109=46022,'Aylık Yİ-ÜFE'!$N$251,IF(N109=46112,'Aylık Yİ-ÜFE'!$N$254,IF(N109=46203,'Aylık Yİ-ÜFE'!$N$257,IF(N109=46295,'Aylık Yİ-ÜFE'!$N$260, IF(N109=46387,'Aylık Yİ-ÜFE'!$N$263))))),5) -> 0.2549 | P109: ='GEÇİCİ 32'!AA96-1 -> 0
A110: 2014-08-11 | B110: 90 | I110: 2025 YD ORANINA GÖRE GEÇİCİ 32 YE GÖRE YD YAPILABİLİR | N110: 2025-12-31 | O110: =TRUNC(IF(N110=46022,'Aylık Yİ-ÜFE'!$N$251,IF(N110=46112,'Aylık Yİ-ÜFE'!$N$254,IF(N110=46203,'Aylık Yİ-ÜFE'!$N$257,IF(N110=46295,'Aylık Yİ-ÜFE'!$N$260, IF(N110=46387,'Aylık Yİ-ÜFE'!$N$263))))),5) -> 0.2549 | P110: ='GEÇİCİ 32'!AA97-1 -> 0
A111: 2014-08-11 | B111: 91 | I111: 2025 YD ORANINA GÖRE GEÇİCİ 32 YE GÖRE YD YAPILABİLİR | N111: 2025-12-31 | O111: =TRUNC(IF(N111=46022,'Aylık Yİ-ÜFE'!$N$251,IF(N111=46112,'Aylık Yİ-ÜFE'!$N$254,IF(N111=46203,'Aylık Yİ-ÜFE'!$N$257,IF(N111=46295,'Aylık Yİ-ÜFE'!$N$260, IF(N111=46387,'Aylık Yİ-ÜFE'!$N$263))))),5) -> 0.2549 | P111: ='GEÇİCİ 32'!AA98-1 -> 0
A112: 2014-08-11 | B112: 92 | I112: 2025 YD ORANINA GÖRE GEÇİCİ 32 YE GÖRE YD YAPILABİLİR | N112: 2025-12-31 | O112: =TRUNC(IF(N112=46022,'Aylık Yİ-ÜFE'!$N$251,IF(N112=46112,'Aylık Yİ-ÜFE'!$N$254,IF(N112=46203,'Aylık Yİ-ÜFE'!$N$257,IF(N112=46295,'Aylık Yİ-ÜFE'!$N$260, IF(N112=46387,'Aylık Yİ-ÜFE'!$N$263))))),5) -> 0.2549 | P112: ='GEÇİCİ 32'!AA99-1 -> 0
A113: 2014-08-11 | B113: 93 | I113: 2025 YD ORANINA GÖRE GEÇİCİ 32 YE GÖRE YD YAPILABİLİR | N113: 2025-12-31 | O113: =TRUNC(IF(N113=46022,'Aylık Yİ-ÜFE'!$N$251,IF(N113=46112,'Aylık Yİ-ÜFE'!$N$254,IF(N113=46203,'Aylık Yİ-ÜFE'!$N$257,IF(N113=46295,'Aylık Yİ-ÜFE'!$N$260, IF(N113=46387,'Aylık Yİ-ÜFE'!$N$263))))),5) -> 0.2549 | P113: ='GEÇİCİ 32'!AA100-1 -> 0
A114: 2014-08-11 | B114: 94 | I114: 2025 YD ORANINA GÖRE GEÇİCİ 32 YE GÖRE YD YAPILABİLİR | N114: 2025-12-31 | O114: =TRUNC(IF(N114=46022,'Aylık Yİ-ÜFE'!$N$251,IF(N114=46112,'Aylık Yİ-ÜFE'!$N$254,IF(N114=46203,'Aylık Yİ-ÜFE'!$N$257,IF(N114=46295,'Aylık Yİ-ÜFE'!$N$260, IF(N114=46387,'Aylık Yİ-ÜFE'!$N$263))))),5) -> 0.2549 | P114: ='GEÇİCİ 32'!AA101-1 -> 0
A115: 2014-08-11 | B115: 95 | I115: 2025 YD ORANINA GÖRE GEÇİCİ 32 YE GÖRE YD YAPILABİLİR | N115: 2025-12-31 | O115: =TRUNC(IF(N115=46022,'Aylık Yİ-ÜFE'!$N$251,IF(N115=46112,'Aylık Yİ-ÜFE'!$N$254,IF(N115=46203,'Aylık Yİ-ÜFE'!$N$257,IF(N115=46295,'Aylık Yİ-ÜFE'!$N$260, IF(N115=46387,'Aylık Yİ-ÜFE'!$N$263))))),5) -> 0.2549 | P115: ='GEÇİCİ 32'!AA102-1 -> 0
A116: 2014-08-11 | B116: 96 | I116: 2025 YD ORANINA GÖRE GEÇİCİ 32 YE GÖRE YD YAPILABİLİR | N116: 2025-12-31 | O116: =TRUNC(IF(N116=46022,'Aylık Yİ-ÜFE'!$N$251,IF(N116=46112,'Aylık Yİ-ÜFE'!$N$254,IF(N116=46203,'Aylık Yİ-ÜFE'!$N$257,IF(N116=46295,'Aylık Yİ-ÜFE'!$N$260, IF(N116=46387,'Aylık Yİ-ÜFE'!$N$263))))),5) -> 0.2549 | P116: ='GEÇİCİ 32'!AA103-1 -> 0
A117: 2014-08-11 | B117: 97 | I117: 2025 YD ORANINA GÖRE GEÇİCİ 32 YE GÖRE YD YAPILABİLİR | N117: 2025-12-31 | O117: =TRUNC(IF(N117=46022,'Aylık Yİ-ÜFE'!$N$251,IF(N117=46112,'Aylık Yİ-ÜFE'!$N$254,IF(N117=46203,'Aylık Yİ-ÜFE'!$N$257,IF(N117=46295,'Aylık Yİ-ÜFE'!$N$260, IF(N117=46387,'Aylık Yİ-ÜFE'!$N$263))))),5) -> 0.2549 | P117: ='GEÇİCİ 32'!AA104-1 -> 0
A118: 2014-08-11 | B118: 98 | I118: 2025 YD ORANINA GÖRE GEÇİCİ 32 YE GÖRE YD YAPILABİLİR | N118: 2025-12-31 | O118: =TRUNC(IF(N118=46022,'Aylık Yİ-ÜFE'!$N$251,IF(N118=46112,'Aylık Yİ-ÜFE'!$N$254,IF(N118=46203,'Aylık Yİ-ÜFE'!$N$257,IF(N118=46295,'Aylık Yİ-ÜFE'!$N$260, IF(N118=46387,'Aylık Yİ-ÜFE'!$N$263))))),5) -> 0.2549 | P118: ='GEÇİCİ 32'!AA105-1 -> 0
A119: 2014-08-11 | B119: 99 | I119: 2025 YD ORANINA GÖRE GEÇİCİ 32 YE GÖRE YD YAPILABİLİR | N119: 2025-12-31 | O119: =TRUNC(IF(N119=46022,'Aylık Yİ-ÜFE'!$N$251,IF(N119=46112,'Aylık Yİ-ÜFE'!$N$254,IF(N119=46203,'Aylık Yİ-ÜFE'!$N$257,IF(N119=46295,'Aylık Yİ-ÜFE'!$N$260, IF(N119=46387,'Aylık Yİ-ÜFE'!$N$263))))),5) -> 0.2549 | P119: ='GEÇİCİ 32'!AA106-1 -> 0
A120: 2014-08-11 | B120: 100 | I120: 2025 YD ORANINA GÖRE GEÇİCİ 32 YE GÖRE YD YAPILABİLİR | N120: 2025-12-31 | O120: =TRUNC(IF(N120=46022,'Aylık Yİ-ÜFE'!$N$251,IF(N120=46112,'Aylık Yİ-ÜFE'!$N$254,IF(N120=46203,'Aylık Yİ-ÜFE'!$N$257,IF(N120=46295,'Aylık Yİ-ÜFE'!$N$260, IF(N120=46387,'Aylık Yİ-ÜFE'!$N$263))))),5) -> 0.2549 | P120: ='GEÇİCİ 32'!AA107-1 -> 0
A121: 2014-08-11 | B121: 101 | I121: 2025 YD ORANINA GÖRE GEÇİCİ 32 YE GÖRE YD YAPILABİLİR | N121: 2025-12-31 | O121: =TRUNC(IF(N121=46022,'Aylık Yİ-ÜFE'!$N$251,IF(N121=46112,'Aylık Yİ-ÜFE'!$N$254,IF(N121=46203,'Aylık Yİ-ÜFE'!$N$257,IF(N121=46295,'Aylık Yİ-ÜFE'!$N$260, IF(N121=46387,'Aylık Yİ-ÜFE'!$N$263))))),5) -> 0.2549 | P121: ='GEÇİCİ 32'!AA108-1 -> 0
A122: 2014-08-11 | B122: 102 | I122: 2025 YD ORANINA GÖRE GEÇİCİ 32 YE GÖRE YD YAPILABİLİR | N122: 2025-12-31 | O122: =TRUNC(IF(N122=46022,'Aylık Yİ-ÜFE'!$N$251,IF(N122=46112,'Aylık Yİ-ÜFE'!$N$254,IF(N122=46203,'Aylık Yİ-ÜFE'!$N$257,IF(N122=46295,'Aylık Yİ-ÜFE'!$N$260, IF(N122=46387,'Aylık Yİ-ÜFE'!$N$263))))),5) -> 0.2549 | P122: ='GEÇİCİ 32'!AA109-1 -> 0
A123: 2014-08-11 | B123: 103 | I123: 2025 YD ORANINA GÖRE GEÇİCİ 32 YE GÖRE YD YAPILABİLİR | N123: 2025-12-31 | O123: =TRUNC(IF(N123=46022,'Aylık Yİ-ÜFE'!$N$251,IF(N123=46112,'Aylık Yİ-ÜFE'!$N$254,IF(N123=46203,'Aylık Yİ-ÜFE'!$N$257,IF(N123=46295,'Aylık Yİ-ÜFE'!$N$260, IF(N123=46387,'Aylık Yİ-ÜFE'!$N$263))))),5) -> 0.2549 | P123: ='GEÇİCİ 32'!AA110-1 -> 0
A124: 2014-08-11 | B124: 104 | I124: 2025 YD ORANINA GÖRE GEÇİCİ 32 YE GÖRE YD YAPILABİLİR | N124: 2025-12-31 | O124: =TRUNC(IF(N124=46022,'Aylık Yİ-ÜFE'!$N$251,IF(N124=46112,'Aylık Yİ-ÜFE'!$N$254,IF(N124=46203,'Aylık Yİ-ÜFE'!$N$257,IF(N124=46295,'Aylık Yİ-ÜFE'!$N$260, IF(N124=46387,'Aylık Yİ-ÜFE'!$N$263))))),5) -> 0.2549 | P124: ='GEÇİCİ 32'!AA111-1 -> 0
A125: 2014-08-11 | B125: 105 | I125: 2025 YD ORANINA GÖRE GEÇİCİ 32 YE GÖRE YD YAPILABİLİR | N125: 2025-12-31 | O125: =TRUNC(IF(N125=46022,'Aylık Yİ-ÜFE'!$N$251,IF(N125=46112,'Aylık Yİ-ÜFE'!$N$254,IF(N125=46203,'Aylık Yİ-ÜFE'!$N$257,IF(N125=46295,'Aylık Yİ-ÜFE'!$N$260, IF(N125=46387,'Aylık Yİ-ÜFE'!$N$263))))),5) -> 0.2549 | P125: ='GEÇİCİ 32'!AA112-1 -> 0
A126: 2014-08-11 | B126: 106 | I126: 2025 YD ORANINA GÖRE GEÇİCİ 32 YE GÖRE YD YAPILABİLİR | N126: 2025-12-31 | O126: =TRUNC(IF(N126=46022,'Aylık Yİ-ÜFE'!$N$251,IF(N126=46112,'Aylık Yİ-ÜFE'!$N$254,IF(N126=46203,'Aylık Yİ-ÜFE'!$N$257,IF(N126=46295,'Aylık Yİ-ÜFE'!$N$260, IF(N126=46387,'Aylık Yİ-ÜFE'!$N$263))))),5) -> 0.2549 | P126: ='GEÇİCİ 32'!AA113-1 -> 0
A127: 2014-08-11 | B127: 107 | I127: 2025 YD ORANINA GÖRE GEÇİCİ 32 YE GÖRE YD YAPILABİLİR | N127: 2025-12-31 | O127: =TRUNC(IF(N127=46022,'Aylık Yİ-ÜFE'!$N$251,IF(N127=46112,'Aylık Yİ-ÜFE'!$N$254,IF(N127=46203,'Aylık Yİ-ÜFE'!$N$257,IF(N127=46295,'Aylık Yİ-ÜFE'!$N$260, IF(N127=46387,'Aylık Yİ-ÜFE'!$N$263))))),5) -> 0.2549 | P127: ='GEÇİCİ 32'!AA114-1 -> 0
A128: 2014-08-11 | B128: 108 | I128: 2025 YD ORANINA GÖRE GEÇİCİ 32 YE GÖRE YD YAPILABİLİR | N128: 2025-12-31 | O128: =TRUNC(IF(N128=46022,'Aylık Yİ-ÜFE'!$N$251,IF(N128=46112,'Aylık Yİ-ÜFE'!$N$254,IF(N128=46203,'Aylık Yİ-ÜFE'!$N$257,IF(N128=46295,'Aylık Yİ-ÜFE'!$N$260, IF(N128=46387,'Aylık Yİ-ÜFE'!$N$263))))),5) -> 0.2549 | P128: ='GEÇİCİ 32'!AA115-1 -> 0
A129: 2014-09-04 | B129: 109 | I129: 2025 YD ORANINA GÖRE GEÇİCİ 32 YE GÖRE YD YAPILABİLİR | N129: 2025-12-31 | O129: =TRUNC(IF(N129=46022,'Aylık Yİ-ÜFE'!$N$251,IF(N129=46112,'Aylık Yİ-ÜFE'!$N$254,IF(N129=46203,'Aylık Yİ-ÜFE'!$N$257,IF(N129=46295,'Aylık Yİ-ÜFE'!$N$260, IF(N129=46387,'Aylık Yİ-ÜFE'!$N$263))))),5) -> 0.2549 | P129: ='GEÇİCİ 32'!AA116-1 -> 0
A130: 2014-09-04 | B130: 110 | I130: 2025 YD ORANINA GÖRE GEÇİCİ 32 YE GÖRE YD YAPILABİLİR | N130: 2025-12-31 | O130: =TRUNC(IF(N130=46022,'Aylık Yİ-ÜFE'!$N$251,IF(N130=46112,'Aylık Yİ-ÜFE'!$N$254,IF(N130=46203,'Aylık Yİ-ÜFE'!$N$257,IF(N130=46295,'Aylık Yİ-ÜFE'!$N$260, IF(N130=46387,'Aylık Yİ-ÜFE'!$N$263))))),5) -> 0.2549 | P130: ='GEÇİCİ 32'!AA117-1 -> 0
A131: 2014-09-04 | B131: 111 | I131: 2025 YD ORANINA GÖRE GEÇİCİ 32 YE GÖRE YD YAPILABİLİR | N131: 2025-12-31 | O131: =TRUNC(IF(N131=46022,'Aylık Yİ-ÜFE'!$N$251,IF(N131=46112,'Aylık Yİ-ÜFE'!$N$254,IF(N131=46203,'Aylık Yİ-ÜFE'!$N$257,IF(N131=46295,'Aylık Yİ-ÜFE'!$N$260, IF(N131=46387,'Aylık Yİ-ÜFE'!$N$263))))),5) -> 0.2549 | P131: ='GEÇİCİ 32'!AA118-1 -> 0
A132: 2014-09-04 | B132: 112 | I132: 2025 YD ORANINA GÖRE GEÇİCİ 32 YE GÖRE YD YAPILABİLİR | N132: 2025-12-31 | O132: =TRUNC(IF(N132=46022,'Aylık Yİ-ÜFE'!$N$251,IF(N132=46112,'Aylık Yİ-ÜFE'!$N$254,IF(N132=46203,'Aylık Yİ-ÜFE'!$N$257,IF(N132=46295,'Aylık Yİ-ÜFE'!$N$260, IF(N132=46387,'Aylık Yİ-ÜFE'!$N$263))))),5) -> 0.2549 | P132: ='GEÇİCİ 32'!AA119-1 -> 0
A133: 2014-09-04 | B133: 113 | I133: 2025 YD ORANINA GÖRE GEÇİCİ 32 YE GÖRE YD YAPILABİLİR | N133: 2025-12-31 | O133: =TRUNC(IF(N133=46022,'Aylık Yİ-ÜFE'!$N$251,IF(N133=46112,'Aylık Yİ-ÜFE'!$N$254,IF(N133=46203,'Aylık Yİ-ÜFE'!$N$257,IF(N133=46295,'Aylık Yİ-ÜFE'!$N$260, IF(N133=46387,'Aylık Yİ-ÜFE'!$N$263))))),5) -> 0.2549 | P133: ='GEÇİCİ 32'!AA120-1 -> 0
A134: 2014-09-04 | B134: 114 | I134: 2025 YD ORANINA GÖRE GEÇİCİ 32 YE GÖRE YD YAPILABİLİR | N134: 2025-12-31 | O134: =TRUNC(IF(N134=46022,'Aylık Yİ-ÜFE'!$N$251,IF(N134=46112,'Aylık Yİ-ÜFE'!$N$254,IF(N134=46203,'Aylık Yİ-ÜFE'!$N$257,IF(N134=46295,'Aylık Yİ-ÜFE'!$N$260, IF(N134=46387,'Aylık Yİ-ÜFE'!$N$263))))),5) -> 0.2549 | P134: ='GEÇİCİ 32'!AA121-1 -> 0
A135: 2014-09-04 | B135: 115 | I135: 2025 YD ORANINA GÖRE GEÇİCİ 32 YE GÖRE YD YAPILABİLİR | N135: 2025-12-31 | O135: =TRUNC(IF(N135=46022,'Aylık Yİ-ÜFE'!$N$251,IF(N135=46112,'Aylık Yİ-ÜFE'!$N$254,IF(N135=46203,'Aylık Yİ-ÜFE'!$N$257,IF(N135=46295,'Aylık Yİ-ÜFE'!$N$260, IF(N135=46387,'Aylık Yİ-ÜFE'!$N$263))))),5) -> 0.2549 | P135: ='GEÇİCİ 32'!AA122-1 -> 0
A136: 2014-09-04 | B136: 116 | I136: 2025 YD ORANINA GÖRE GEÇİCİ 32 YE GÖRE YD YAPILABİLİR | N136: 2025-12-31 | O136: =TRUNC(IF(N136=46022,'Aylık Yİ-ÜFE'!$N$251,IF(N136=46112,'Aylık Yİ-ÜFE'!$N$254,IF(N136=46203,'Aylık Yİ-ÜFE'!$N$257,IF(N136=46295,'Aylık Yİ-ÜFE'!$N$260, IF(N136=46387,'Aylık Yİ-ÜFE'!$N$263))))),5) -> 0.2549 | P136: ='GEÇİCİ 32'!AA123-1 -> 0
A137: 2014-09-04 | B137: 117 | I137: 2025 YD ORANINA GÖRE GEÇİCİ 32 YE GÖRE YD YAPILABİLİR | N137: 2025-12-31 | O137: =TRUNC(IF(N137=46022,'Aylık Yİ-ÜFE'!$N$251,IF(N137=46112,'Aylık Yİ-ÜFE'!$N$254,IF(N137=46203,'Aylık Yİ-ÜFE'!$N$257,IF(N137=46295,'Aylık Yİ-ÜFE'!$N$260, IF(N137=46387,'Aylık Yİ-ÜFE'!$N$263))))),5) -> 0.2549 | P137: ='GEÇİCİ 32'!AA124-1 -> 0
A138: 2014-09-04 | B138: 118 | I138: 2025 YD ORANINA GÖRE GEÇİCİ 32 YE GÖRE YD YAPILABİLİR | N138: 2025-12-31 | O138: =TRUNC(IF(N138=46022,'Aylık Yİ-ÜFE'!$N$251,IF(N138=46112,'Aylık Yİ-ÜFE'!$N$254,IF(N138=46203,'Aylık Yİ-ÜFE'!$N$257,IF(N138=46295,'Aylık Yİ-ÜFE'!$N$260, IF(N138=46387,'Aylık Yİ-ÜFE'!$N$263))))),5) -> 0.2549 | P138: ='GEÇİCİ 32'!AA125-1 -> 0
A139: 2014-09-04 | B139: 119 | I139: 2025 YD ORANINA GÖRE GEÇİCİ 32 YE GÖRE YD YAPILABİLİR | N139: 2025-12-31 | O139: =TRUNC(IF(N139=46022,'Aylık Yİ-ÜFE'!$N$251,IF(N139=46112,'Aylık Yİ-ÜFE'!$N$254,IF(N139=46203,'Aylık Yİ-ÜFE'!$N$257,IF(N139=46295,'Aylık Yİ-ÜFE'!$N$260, IF(N139=46387,'Aylık Yİ-ÜFE'!$N$263))))),5) -> 0.2549 | P139: ='GEÇİCİ 32'!AA126-1 -> 0
A140: 2014-09-04 | B140: 120 | I140: 2025 YD ORANINA GÖRE GEÇİCİ 32 YE GÖRE YD YAPILABİLİR | N140: 2025-12-31 | O140: =TRUNC(IF(N140=46022,'Aylık Yİ-ÜFE'!$N$251,IF(N140=46112,'Aylık Yİ-ÜFE'!$N$254,IF(N140=46203,'Aylık Yİ-ÜFE'!$N$257,IF(N140=46295,'Aylık Yİ-ÜFE'!$N$260, IF(N140=46387,'Aylık Yİ-ÜFE'!$N$263))))),5) -> 0.2549 | P140: ='GEÇİCİ 32'!AA127-1 -> 0
A141: 2014-09-04 | B141: 121 | I141: 2025 YD ORANINA GÖRE GEÇİCİ 32 YE GÖRE YD YAPILABİLİR | N141: 2025-12-31 | O141: =TRUNC(IF(N141=46022,'Aylık Yİ-ÜFE'!$N$251,IF(N141=46112,'Aylık Yİ-ÜFE'!$N$254,IF(N141=46203,'Aylık Yİ-ÜFE'!$N$257,IF(N141=46295,'Aylık Yİ-ÜFE'!$N$260, IF(N141=46387,'Aylık Yİ-ÜFE'!$N$263))))),5) -> 0.2549 | P141: ='GEÇİCİ 32'!AA128-1 -> 0
A142: 2014-09-04 | B142: 122 | I142: 2025 YD ORANINA GÖRE GEÇİCİ 32 YE GÖRE YD YAPILABİLİR | N142: 2025-12-31 | O142: =TRUNC(IF(N142=46022,'Aylık Yİ-ÜFE'!$N$251,IF(N142=46112,'Aylık Yİ-ÜFE'!$N$254,IF(N142=46203,'Aylık Yİ-ÜFE'!$N$257,IF(N142=46295,'Aylık Yİ-ÜFE'!$N$260, IF(N142=46387,'Aylık Yİ-ÜFE'!$N$263))))),5) -> 0.2549 | P142: ='GEÇİCİ 32'!AA129-1 -> 0
A143: 2014-09-04 | B143: 123 | I143: 2025 YD ORANINA GÖRE GEÇİCİ 32 YE GÖRE YD YAPILABİLİR | N143: 2025-12-31 | O143: =TRUNC(IF(N143=46022,'Aylık Yİ-ÜFE'!$N$251,IF(N143=46112,'Aylık Yİ-ÜFE'!$N$254,IF(N143=46203,'Aylık Yİ-ÜFE'!$N$257,IF(N143=46295,'Aylık Yİ-ÜFE'!$N$260, IF(N143=46387,'Aylık Yİ-ÜFE'!$N$263))))),5) -> 0.2549 | P143: ='GEÇİCİ 32'!AA130-1 -> 0
A144: 2014-09-04 | B144: 124 | I144: 2025 YD ORANINA GÖRE GEÇİCİ 32 YE GÖRE YD YAPILABİLİR | N144: 2025-12-31 | O144: =TRUNC(IF(N144=46022,'Aylık Yİ-ÜFE'!$N$251,IF(N144=46112,'Aylık Yİ-ÜFE'!$N$254,IF(N144=46203,'Aylık Yİ-ÜFE'!$N$257,IF(N144=46295,'Aylık Yİ-ÜFE'!$N$260, IF(N144=46387,'Aylık Yİ-ÜFE'!$N$263))))),5) -> 0.2549 | P144: ='GEÇİCİ 32'!AA131-1 -> 0
A145: 2014-09-04 | B145: 125 | I145: 2025 YD ORANINA GÖRE GEÇİCİ 32 YE GÖRE YD YAPILABİLİR | N145: 2025-12-31 | O145: =TRUNC(IF(N145=46022,'Aylık Yİ-ÜFE'!$N$251,IF(N145=46112,'Aylık Yİ-ÜFE'!$N$254,IF(N145=46203,'Aylık Yİ-ÜFE'!$N$257,IF(N145=46295,'Aylık Yİ-ÜFE'!$N$260, IF(N145=46387,'Aylık Yİ-ÜFE'!$N$263))))),5) -> 0.2549 | P145: ='GEÇİCİ 32'!AA132-1 -> 0
A146: 2014-09-04 | B146: 126 | I146: 2025 YD ORANINA GÖRE GEÇİCİ 32 YE GÖRE YD YAPILABİLİR | N146: 2025-12-31 | O146: =TRUNC(IF(N146=46022,'Aylık Yİ-ÜFE'!$N$251,IF(N146=46112,'Aylık Yİ-ÜFE'!$N$254,IF(N146=46203,'Aylık Yİ-ÜFE'!$N$257,IF(N146=46295,'Aylık Yİ-ÜFE'!$N$260, IF(N146=46387,'Aylık Yİ-ÜFE'!$N$263))))),5) -> 0.2549 | P146: ='GEÇİCİ 32'!AA133-1 -> 0
A147: 2014-09-04 | B147: 127 | I147: 2025 YD ORANINA GÖRE GEÇİCİ 32 YE GÖRE YD YAPILABİLİR | N147: 2025-12-31 | O147: =TRUNC(IF(N147=46022,'Aylık Yİ-ÜFE'!$N$251,IF(N147=46112,'Aylık Yİ-ÜFE'!$N$254,IF(N147=46203,'Aylık Yİ-ÜFE'!$N$257,IF(N147=46295,'Aylık Yİ-ÜFE'!$N$260, IF(N147=46387,'Aylık Yİ-ÜFE'!$N$263))))),5) -> 0.2549 | P147: ='GEÇİCİ 32'!AA134-1 -> 0
A148: 2014-09-04 | B148: 128 | I148: 2025 YD ORANINA GÖRE GEÇİCİ 32 YE GÖRE YD YAPILABİLİR | N148: 2025-12-31 | O148: =TRUNC(IF(N148=46022,'Aylık Yİ-ÜFE'!$N$251,IF(N148=46112,'Aylık Yİ-ÜFE'!$N$254,IF(N148=46203,'Aylık Yİ-ÜFE'!$N$257,IF(N148=46295,'Aylık Yİ-ÜFE'!$N$260, IF(N148=46387,'Aylık Yİ-ÜFE'!$N$263))))),5) -> 0.2549 | P148: ='GEÇİCİ 32'!AA135-1 -> 0
A149: 2014-09-04 | B149: 129 | I149: 2025 YD ORANINA GÖRE GEÇİCİ 32 YE GÖRE YD YAPILABİLİR | N149: =$O$13 -> 2025-12-31 | O149: =TRUNC(IF(N149=46022,'Aylık Yİ-ÜFE'!$N$251,IF(N149=46112,'Aylık Yİ-ÜFE'!$N$254,IF(N149=46203,'Aylık Yİ-ÜFE'!$N$257,IF(N149=46295,'Aylık Yİ-ÜFE'!$N$260, IF(N149=46387,'Aylık Yİ-ÜFE'!$N$263))))),5) -> 0.2549 | P149: ='GEÇİCİ 32'!AA136-1 -> 0
A150: 2014-09-04 | B150: 130 | I150: =IF(H150>45657,"2025 TE İKTİSAP EDİLEN KIYMETLER, İKTİSAP EDİLDİĞİ AYI İZLEYEN AYIN Yİ-ÜFE ENDEKSİ İLE DEĞERLEME YAPILACAK ARALIK/2025 AYININ Yİ-ÜFE'Sİ BAZ ALINARAK GEÇİCİ 32 YE GÖRE YD YAPILABİLECEKTİR.", "2025 YD ORANINA GÖRE GEÇİCİ 32 YE GÖRE YD YAPILABİLİR") -> 2025 YD ORANINA GÖRE GEÇİCİ 32 YE GÖRE YD YAPILABİLİR | N150: 2025-12-31 | O150: =TRUNC(IF(N150=46022,'Aylık Yİ-ÜFE'!$N$251,IF(N150=46112,'Aylık Yİ-ÜFE'!$N$254,IF(N150=46203,'Aylık Yİ-ÜFE'!$N$257,IF(N150=46295,'Aylık Yİ-ÜFE'!$N$260, IF(N150=46387,'Aylık Yİ-ÜFE'!$N$263))))),5) -> 0.2549 | P150: ='GEÇİCİ 32'!AA137-1 -> 0
A151: 2014-09-04 | B151: 131 | I151: 2025 YD ORANINA GÖRE GEÇİCİ 32 YE GÖRE YD YAPILABİLİR | N151: 2025-12-31 | O151: =TRUNC(IF(N151=46022,'Aylık Yİ-ÜFE'!$N$251,IF(N151=46112,'Aylık Yİ-ÜFE'!$N$254,IF(N151=46203,'Aylık Yİ-ÜFE'!$N$257,IF(N151=46295,'Aylık Yİ-ÜFE'!$N$260, IF(N151=46387,'Aylık Yİ-ÜFE'!$N$263))))),5) -> 0.2549 | P151: ='GEÇİCİ 32'!AA138-1 -> 0
A152: 2014-09-04 | B152: 132 | I152: 2025 YD ORANINA GÖRE GEÇİCİ 32 YE GÖRE YD YAPILABİLİR | N152: 2025-12-31 | O152: =TRUNC(IF(N152=46022,'Aylık Yİ-ÜFE'!$N$251,IF(N152=46112,'Aylık Yİ-ÜFE'!$N$254,IF(N152=46203,'Aylık Yİ-ÜFE'!$N$257,IF(N152=46295,'Aylık Yİ-ÜFE'!$N$260, IF(N152=46387,'Aylık Yİ-ÜFE'!$N$263))))),5) -> 0.2549 | P152: ='GEÇİCİ 32'!AA139-1 -> 0
A153: 2014-07-02 | B153: 133 | I153: 2025 YD ORANINA GÖRE GEÇİCİ 32 YE GÖRE YD YAPILABİLİR | N153: 2025-12-31 | O153: =TRUNC(IF(N153=46022,'Aylık Yİ-ÜFE'!$N$251,IF(N153=46112,'Aylık Yİ-ÜFE'!$N$254,IF(N153=46203,'Aylık Yİ-ÜFE'!$N$257,IF(N153=46295,'Aylık Yİ-ÜFE'!$N$260, IF(N153=46387,'Aylık Yİ-ÜFE'!$N$263))))),5) -> 0.2549 | P153: ='GEÇİCİ 32'!AA140-1 -> 0
A154: 2014-07-02 | B154: 134 | I154: 2025 YD ORANINA GÖRE GEÇİCİ 32 YE GÖRE YD YAPILABİLİR | N154: 2025-12-31 | O154: =TRUNC(IF(N154=46022,'Aylık Yİ-ÜFE'!$N$251,IF(N154=46112,'Aylık Yİ-ÜFE'!$N$254,IF(N154=46203,'Aylık Yİ-ÜFE'!$N$257,IF(N154=46295,'Aylık Yİ-ÜFE'!$N$260, IF(N154=46387,'Aylık Yİ-ÜFE'!$N$263))))),5) -> 0.2549 | P154: ='GEÇİCİ 32'!AA141-1 -> 0
A155: 2014-07-02 | B155: 135 | I155: 2025 YD ORANINA GÖRE GEÇİCİ 32 YE GÖRE YD YAPILABİLİR | N155: 2025-12-31 | O155: =TRUNC(IF(N155=46022,'Aylık Yİ-ÜFE'!$N$251,IF(N155=46112,'Aylık Yİ-ÜFE'!$N$254,IF(N155=46203,'Aylık Yİ-ÜFE'!$N$257,IF(N155=46295,'Aylık Yİ-ÜFE'!$N$260, IF(N155=46387,'Aylık Yİ-ÜFE'!$N$263))))),5) -> 0.2549 | P155: ='GEÇİCİ 32'!AA142-1 -> 0
A156: 2014-07-02 | B156: 136 | I156: 2025 YD ORANINA GÖRE GEÇİCİ 32 YE GÖRE YD YAPILABİLİR | N156: 2025-12-31 | O156: =TRUNC(IF(N156=46022,'Aylık Yİ-ÜFE'!$N$251,IF(N156=46112,'Aylık Yİ-ÜFE'!$N$254,IF(N156=46203,'Aylık Yİ-ÜFE'!$N$257,IF(N156=46295,'Aylık Yİ-ÜFE'!$N$260, IF(N156=46387,'Aylık Yİ-ÜFE'!$N$263))))),5) -> 0.2549 | P156: ='GEÇİCİ 32'!AA143-1 -> 0
A157: 2014-07-02 | B157: 137 | I157: 2025 YD ORANINA GÖRE GEÇİCİ 32 YE GÖRE YD YAPILABİLİR | N157: 2025-12-31 | O157: =TRUNC(IF(N157=46022,'Aylık Yİ-ÜFE'!$N$251,IF(N157=46112,'Aylık Yİ-ÜFE'!$N$254,IF(N157=46203,'Aylık Yİ-ÜFE'!$N$257,IF(N157=46295,'Aylık Yİ-ÜFE'!$N$260, IF(N157=46387,'Aylık Yİ-ÜFE'!$N$263))))),5) -> 0.2549 | P157: ='GEÇİCİ 32'!AA144-1 -> 0
A158: 2014-07-11 | B158: 138 | I158: 2025 YD ORANINA GÖRE GEÇİCİ 32 YE GÖRE YD YAPILABİLİR | N158: 2025-12-31 | O158: =TRUNC(IF(N158=46022,'Aylık Yİ-ÜFE'!$N$251,IF(N158=46112,'Aylık Yİ-ÜFE'!$N$254,IF(N158=46203,'Aylık Yİ-ÜFE'!$N$257,IF(N158=46295,'Aylık Yİ-ÜFE'!$N$260, IF(N158=46387,'Aylık Yİ-ÜFE'!$N$263))))),5) -> 0.2549 | P158: ='GEÇİCİ 32'!AA145-1 -> 0
A159: 2014-07-11 | B159: 139 | I159: 2025 YD ORANINA GÖRE GEÇİCİ 32 YE GÖRE YD YAPILABİLİR | N159: 2025-12-31 | O159: =TRUNC(IF(N159=46022,'Aylık Yİ-ÜFE'!$N$251,IF(N159=46112,'Aylık Yİ-ÜFE'!$N$254,IF(N159=46203,'Aylık Yİ-ÜFE'!$N$257,IF(N159=46295,'Aylık Yİ-ÜFE'!$N$260, IF(N159=46387,'Aylık Yİ-ÜFE'!$N$263))))),5) -> 0.2549 | P159: ='GEÇİCİ 32'!AA146-1 -> 0
A160: 2014-10-17 | B160: 140 | I160: 2025 YD ORANINA GÖRE GEÇİCİ 32 YE GÖRE YD YAPILABİLİR | N160: 2025-12-31 | O160: =TRUNC(IF(N160=46022,'Aylık Yİ-ÜFE'!$N$251,IF(N160=46112,'Aylık Yİ-ÜFE'!$N$254,IF(N160=46203,'Aylık Yİ-ÜFE'!$N$257,IF(N160=46295,'Aylık Yİ-ÜFE'!$N$260, IF(N160=46387,'Aylık Yİ-ÜFE'!$N$263))))),5) -> 0.2549 | P160: ='GEÇİCİ 32'!AA147-1 -> 0
A161: 2014-10-17 | B161: 141 | I161: 2025 YD ORANINA GÖRE GEÇİCİ 32 YE GÖRE YD YAPILABİLİR | N161: 2025-12-31 | O161: =TRUNC(IF(N161=46022,'Aylık Yİ-ÜFE'!$N$251,IF(N161=46112,'Aylık Yİ-ÜFE'!$N$254,IF(N161=46203,'Aylık Yİ-ÜFE'!$N$257,IF(N161=46295,'Aylık Yİ-ÜFE'!$N$260, IF(N161=46387,'Aylık Yİ-ÜFE'!$N$263))))),5) -> 0.2549 | P161: ='GEÇİCİ 32'!AA148-1 -> 0
A162: 2014-10-28 | B162: 142 | I162: 2025 YD ORANINA GÖRE GEÇİCİ 32 YE GÖRE YD YAPILABİLİR | N162: 2025-12-31 | O162: =TRUNC(IF(N162=46022,'Aylık Yİ-ÜFE'!$N$251,IF(N162=46112,'Aylık Yİ-ÜFE'!$N$254,IF(N162=46203,'Aylık Yİ-ÜFE'!$N$257,IF(N162=46295,'Aylık Yİ-ÜFE'!$N$260, IF(N162=46387,'Aylık Yİ-ÜFE'!$N$263))))),5) -> 0.2549 | P162: ='GEÇİCİ 32'!AA149-1 -> 0
A163: 2014-10-28 | B163: 143 | I163: 2025 YD ORANINA GÖRE GEÇİCİ 32 YE GÖRE YD YAPILABİLİR | N163: 2025-12-31 | O163: =TRUNC(IF(N163=46022,'Aylık Yİ-ÜFE'!$N$251,IF(N163=46112,'Aylık Yİ-ÜFE'!$N$254,IF(N163=46203,'Aylık Yİ-ÜFE'!$N$257,IF(N163=46295,'Aylık Yİ-ÜFE'!$N$260, IF(N163=46387,'Aylık Yİ-ÜFE'!$N$263))))),5) -> 0.2549 | P163: ='GEÇİCİ 32'!AA150-1 -> 0
A164: 2014-10-28 | B164: 144 | I164: 2025 YD ORANINA GÖRE GEÇİCİ 32 YE GÖRE YD YAPILABİLİR | N164: 2025-12-31 | O164: =TRUNC(IF(N164=46022,'Aylık Yİ-ÜFE'!$N$251,IF(N164=46112,'Aylık Yİ-ÜFE'!$N$254,IF(N164=46203,'Aylık Yİ-ÜFE'!$N$257,IF(N164=46295,'Aylık Yİ-ÜFE'!$N$260, IF(N164=46387,'Aylık Yİ-ÜFE'!$N$263))))),5) -> 0.2549 | P164: ='GEÇİCİ 32'!AA151-1 -> 0
A165: 2014-10-28 | B165: 145 | I165: 2025 YD ORANINA GÖRE GEÇİCİ 32 YE GÖRE YD YAPILABİLİR | N165: 2025-12-31 | O165: =TRUNC(IF(N165=46022,'Aylık Yİ-ÜFE'!$N$251,IF(N165=46112,'Aylık Yİ-ÜFE'!$N$254,IF(N165=46203,'Aylık Yİ-ÜFE'!$N$257,IF(N165=46295,'Aylık Yİ-ÜFE'!$N$260, IF(N165=46387,'Aylık Yİ-ÜFE'!$N$263))))),5) -> 0.2549 | P165: ='GEÇİCİ 32'!AA152-1 -> 0
A166: 2014-10-28 | B166: 146 | I166: 2025 YD ORANINA GÖRE GEÇİCİ 32 YE GÖRE YD YAPILABİLİR | N166: 2025-12-31 | O166: =TRUNC(IF(N166=46022,'Aylık Yİ-ÜFE'!$N$251,IF(N166=46112,'Aylık Yİ-ÜFE'!$N$254,IF(N166=46203,'Aylık Yİ-ÜFE'!$N$257,IF(N166=46295,'Aylık Yİ-ÜFE'!$N$260, IF(N166=46387,'Aylık Yİ-ÜFE'!$N$263))))),5) -> 0.2549 | P166: ='GEÇİCİ 32'!AA153-1 -> 0
A167: 2014-10-28 | B167: 147 | I167: 2025 YD ORANINA GÖRE GEÇİCİ 32 YE GÖRE YD YAPILABİLİR | N167: 2025-12-31 | O167: =TRUNC(IF(N167=46022,'Aylık Yİ-ÜFE'!$N$251,IF(N167=46112,'Aylık Yİ-ÜFE'!$N$254,IF(N167=46203,'Aylık Yİ-ÜFE'!$N$257,IF(N167=46295,'Aylık Yİ-ÜFE'!$N$260, IF(N167=46387,'Aylık Yİ-ÜFE'!$N$263))))),5) -> 0.2549 | P167: ='GEÇİCİ 32'!AA154-1 -> 0
A168: 2014-10-28 | B168: 148 | I168: 2025 YD ORANINA GÖRE GEÇİCİ 32 YE GÖRE YD YAPILABİLİR | N168: 2025-12-31 | O168: =TRUNC(IF(N168=46022,'Aylık Yİ-ÜFE'!$N$251,IF(N168=46112,'Aylık Yİ-ÜFE'!$N$254,IF(N168=46203,'Aylık Yİ-ÜFE'!$N$257,IF(N168=46295,'Aylık Yİ-ÜFE'!$N$260, IF(N168=46387,'Aylık Yİ-ÜFE'!$N$263))))),5) -> 0.2549 | P168: ='GEÇİCİ 32'!AA155-1 -> 0
A169: 2014-10-28 | B169: 149 | I169: 2025 YD ORANINA GÖRE GEÇİCİ 32 YE GÖRE YD YAPILABİLİR | N169: 2025-12-31 | O169: =TRUNC(IF(N169=46022,'Aylık Yİ-ÜFE'!$N$251,IF(N169=46112,'Aylık Yİ-ÜFE'!$N$254,IF(N169=46203,'Aylık Yİ-ÜFE'!$N$257,IF(N169=46295,'Aylık Yİ-ÜFE'!$N$260, IF(N169=46387,'Aylık Yİ-ÜFE'!$N$263))))),5) -> 0.2549 | P169: ='GEÇİCİ 32'!AA156-1 -> 0
A170: 2014-10-28 | B170: 150 | I170: 2025 YD ORANINA GÖRE GEÇİCİ 32 YE GÖRE YD YAPILABİLİR | N170: 2025-12-31 | O170: =TRUNC(IF(N170=46022,'Aylık Yİ-ÜFE'!$N$251,IF(N170=46112,'Aylık Yİ-ÜFE'!$N$254,IF(N170=46203,'Aylık Yİ-ÜFE'!$N$257,IF(N170=46295,'Aylık Yİ-ÜFE'!$N$260, IF(N170=46387,'Aylık Yİ-ÜFE'!$N$263))))),5) -> 0.2549 | P170: ='GEÇİCİ 32'!AA157-1 -> 0
A171: 2014-10-28 | B171: 151 | I171: 2025 YD ORANINA GÖRE GEÇİCİ 32 YE GÖRE YD YAPILABİLİR | N171: 2025-12-31 | O171: =TRUNC(IF(N171=46022,'Aylık Yİ-ÜFE'!$N$251,IF(N171=46112,'Aylık Yİ-ÜFE'!$N$254,IF(N171=46203,'Aylık Yİ-ÜFE'!$N$257,IF(N171=46295,'Aylık Yİ-ÜFE'!$N$260, IF(N171=46387,'Aylık Yİ-ÜFE'!$N$263))))),5) -> 0.2549 | P171: ='GEÇİCİ 32'!AA158-1 -> 0
A172: 2014-10-28 | B172: 152 | I172: 2025 YD ORANINA GÖRE GEÇİCİ 32 YE GÖRE YD YAPILABİLİR | N172: 2025-12-31 | O172: =TRUNC(IF(N172=46022,'Aylık Yİ-ÜFE'!$N$251,IF(N172=46112,'Aylık Yİ-ÜFE'!$N$254,IF(N172=46203,'Aylık Yİ-ÜFE'!$N$257,IF(N172=46295,'Aylık Yİ-ÜFE'!$N$260, IF(N172=46387,'Aylık Yİ-ÜFE'!$N$263))))),5) -> 0.2549 | P172: ='GEÇİCİ 32'!AA159-1 -> 0
A173: 2014-10-28 | B173: 153 | I173: 2025 YD ORANINA GÖRE GEÇİCİ 32 YE GÖRE YD YAPILABİLİR | N173: 2025-12-31 | O173: =TRUNC(IF(N173=46022,'Aylık Yİ-ÜFE'!$N$251,IF(N173=46112,'Aylık Yİ-ÜFE'!$N$254,IF(N173=46203,'Aylık Yİ-ÜFE'!$N$257,IF(N173=46295,'Aylık Yİ-ÜFE'!$N$260, IF(N173=46387,'Aylık Yİ-ÜFE'!$N$263))))),5) -> 0.2549 | P173: ='GEÇİCİ 32'!AA160-1 -> 0
A174: 2014-10-28 | B174: 154 | I174: 2025 YD ORANINA GÖRE GEÇİCİ 32 YE GÖRE YD YAPILABİLİR | N174: 2025-12-31 | O174: =TRUNC(IF(N174=46022,'Aylık Yİ-ÜFE'!$N$251,IF(N174=46112,'Aylık Yİ-ÜFE'!$N$254,IF(N174=46203,'Aylık Yİ-ÜFE'!$N$257,IF(N174=46295,'Aylık Yİ-ÜFE'!$N$260, IF(N174=46387,'Aylık Yİ-ÜFE'!$N$263))))),5) -> 0.2549 | P174: ='GEÇİCİ 32'!AA161-1 -> 0
A175: 2014-10-28 | B175: 155 | I175: 2025 YD ORANINA GÖRE GEÇİCİ 32 YE GÖRE YD YAPILABİLİR | N175: 2025-12-31 | O175: =TRUNC(IF(N175=46022,'Aylık Yİ-ÜFE'!$N$251,IF(N175=46112,'Aylık Yİ-ÜFE'!$N$254,IF(N175=46203,'Aylık Yİ-ÜFE'!$N$257,IF(N175=46295,'Aylık Yİ-ÜFE'!$N$260, IF(N175=46387,'Aylık Yİ-ÜFE'!$N$263))))),5) -> 0.2549 | P175: ='GEÇİCİ 32'!AA162-1 -> 0
A176: 2014-10-28 | B176: 156 | I176: 2025 YD ORANINA GÖRE GEÇİCİ 32 YE GÖRE YD YAPILABİLİR | N176: 2025-12-31 | O176: =TRUNC(IF(N176=46022,'Aylık Yİ-ÜFE'!$N$251,IF(N176=46112,'Aylık Yİ-ÜFE'!$N$254,IF(N176=46203,'Aylık Yİ-ÜFE'!$N$257,IF(N176=46295,'Aylık Yİ-ÜFE'!$N$260, IF(N176=46387,'Aylık Yİ-ÜFE'!$N$263))))),5) -> 0.2549 | P176: ='GEÇİCİ 32'!AA163-1 -> 0
A177: 2014-10-28 | B177: 157 | I177: 2025 YD ORANINA GÖRE GEÇİCİ 32 YE GÖRE YD YAPILABİLİR | N177: 2025-12-31 | O177: =TRUNC(IF(N177=46022,'Aylık Yİ-ÜFE'!$N$251,IF(N177=46112,'Aylık Yİ-ÜFE'!$N$254,IF(N177=46203,'Aylık Yİ-ÜFE'!$N$257,IF(N177=46295,'Aylık Yİ-ÜFE'!$N$260, IF(N177=46387,'Aylık Yİ-ÜFE'!$N$263))))),5) -> 0.2549 | P177: ='GEÇİCİ 32'!AA164-1 -> 0
A178: 2014-10-28 | B178: 158 | I178: 2025 YD ORANINA GÖRE GEÇİCİ 32 YE GÖRE YD YAPILABİLİR | N178: 2025-12-31 | O178: =TRUNC(IF(N178=46022,'Aylık Yİ-ÜFE'!$N$251,IF(N178=46112,'Aylık Yİ-ÜFE'!$N$254,IF(N178=46203,'Aylık Yİ-ÜFE'!$N$257,IF(N178=46295,'Aylık Yİ-ÜFE'!$N$260, IF(N178=46387,'Aylık Yİ-ÜFE'!$N$263))))),5) -> 0.2549 | P178: ='GEÇİCİ 32'!AA165-1 -> 0
A179: 2014-10-28 | B179: 159 | I179: 2025 YD ORANINA GÖRE GEÇİCİ 32 YE GÖRE YD YAPILABİLİR | N179: 2025-12-31 | O179: =TRUNC(IF(N179=46022,'Aylık Yİ-ÜFE'!$N$251,IF(N179=46112,'Aylık Yİ-ÜFE'!$N$254,IF(N179=46203,'Aylık Yİ-ÜFE'!$N$257,IF(N179=46295,'Aylık Yİ-ÜFE'!$N$260, IF(N179=46387,'Aylık Yİ-ÜFE'!$N$263))))),5) -> 0.2549 | P179: ='GEÇİCİ 32'!AA166-1 -> 0
A180: 2014-10-28 | B180: 160 | I180: 2025 YD ORANINA GÖRE GEÇİCİ 32 YE GÖRE YD YAPILABİLİR | N180: 2025-12-31 | O180: =TRUNC(IF(N180=46022,'Aylık Yİ-ÜFE'!$N$251,IF(N180=46112,'Aylık Yİ-ÜFE'!$N$254,IF(N180=46203,'Aylık Yİ-ÜFE'!$N$257,IF(N180=46295,'Aylık Yİ-ÜFE'!$N$260, IF(N180=46387,'Aylık Yİ-ÜFE'!$N$263))))),5) -> 0.2549 | P180: ='GEÇİCİ 32'!AA167-1 -> 0
A181: 2014-10-03 | B181: 161 | I181: 2025 YD ORANINA GÖRE GEÇİCİ 32 YE GÖRE YD YAPILABİLİR | N181: 2025-12-31 | O181: =TRUNC(IF(N181=46022,'Aylık Yİ-ÜFE'!$N$251,IF(N181=46112,'Aylık Yİ-ÜFE'!$N$254,IF(N181=46203,'Aylık Yİ-ÜFE'!$N$257,IF(N181=46295,'Aylık Yİ-ÜFE'!$N$260, IF(N181=46387,'Aylık Yİ-ÜFE'!$N$263))))),5) -> 0.2549 | P181: ='GEÇİCİ 32'!AA168-1 -> 0
A182: 2014-10-03 | B182: 162 | I182: 2025 YD ORANINA GÖRE GEÇİCİ 32 YE GÖRE YD YAPILABİLİR | N182: 2025-12-31 | O182: =TRUNC(IF(N182=46022,'Aylık Yİ-ÜFE'!$N$251,IF(N182=46112,'Aylık Yİ-ÜFE'!$N$254,IF(N182=46203,'Aylık Yİ-ÜFE'!$N$257,IF(N182=46295,'Aylık Yİ-ÜFE'!$N$260, IF(N182=46387,'Aylık Yİ-ÜFE'!$N$263))))),5) -> 0.2549 | P182: ='GEÇİCİ 32'!AA169-1 -> 0
A183: 2014-10-03 | B183: 163 | I183: 2025 YD ORANINA GÖRE GEÇİCİ 32 YE GÖRE YD YAPILABİLİR | N183: 2025-12-31 | O183: =TRUNC(IF(N183=46022,'Aylık Yİ-ÜFE'!$N$251,IF(N183=46112,'Aylık Yİ-ÜFE'!$N$254,IF(N183=46203,'Aylık Yİ-ÜFE'!$N$257,IF(N183=46295,'Aylık Yİ-ÜFE'!$N$260, IF(N183=46387,'Aylık Yİ-ÜFE'!$N$263))))),5) -> 0.2549 | P183: ='GEÇİCİ 32'!AA170-1 -> 0
A184: 2014-10-03 | B184: 164 | I184: 2025 YD ORANINA GÖRE GEÇİCİ 32 YE GÖRE YD YAPILABİLİR | N184: 2025-12-31 | O184: =TRUNC(IF(N184=46022,'Aylık Yİ-ÜFE'!$N$251,IF(N184=46112,'Aylık Yİ-ÜFE'!$N$254,IF(N184=46203,'Aylık Yİ-ÜFE'!$N$257,IF(N184=46295,'Aylık Yİ-ÜFE'!$N$260, IF(N184=46387,'Aylık Yİ-ÜFE'!$N$263))))),5) -> 0.2549 | P184: ='GEÇİCİ 32'!AA171-1 -> 0
A185: 2014-10-03 | B185: 165 | I185: 2025 YD ORANINA GÖRE GEÇİCİ 32 YE GÖRE YD YAPILABİLİR | N185: 2025-12-31 | O185: =TRUNC(IF(N185=46022,'Aylık Yİ-ÜFE'!$N$251,IF(N185=46112,'Aylık Yİ-ÜFE'!$N$254,IF(N185=46203,'Aylık Yİ-ÜFE'!$N$257,IF(N185=46295,'Aylık Yİ-ÜFE'!$N$260, IF(N185=46387,'Aylık Yİ-ÜFE'!$N$263))))),5) -> 0.2549 | P185: ='GEÇİCİ 32'!AA172-1 -> 0
A186: 2014-10-03 | B186: 166 | I186: 2025 YD ORANINA GÖRE GEÇİCİ 32 YE GÖRE YD YAPILABİLİR | N186: 2025-12-31 | O186: =TRUNC(IF(N186=46022,'Aylık Yİ-ÜFE'!$N$251,IF(N186=46112,'Aylık Yİ-ÜFE'!$N$254,IF(N186=46203,'Aylık Yİ-ÜFE'!$N$257,IF(N186=46295,'Aylık Yİ-ÜFE'!$N$260, IF(N186=46387,'Aylık Yİ-ÜFE'!$N$263))))),5) -> 0.2549 | P186: ='GEÇİCİ 32'!AA173-1 -> 0
A187: 2014-10-03 | B187: 167 | I187: 2025 YD ORANINA GÖRE GEÇİCİ 32 YE GÖRE YD YAPILABİLİR | N187: 2025-12-31 | O187: =TRUNC(IF(N187=46022,'Aylık Yİ-ÜFE'!$N$251,IF(N187=46112,'Aylık Yİ-ÜFE'!$N$254,IF(N187=46203,'Aylık Yİ-ÜFE'!$N$257,IF(N187=46295,'Aylık Yİ-ÜFE'!$N$260, IF(N187=46387,'Aylık Yİ-ÜFE'!$N$263))))),5) -> 0.2549 | P187: ='GEÇİCİ 32'!AA174-1 -> 0
A188: 2014-10-03 | B188: 168 | I188: 2025 YD ORANINA GÖRE GEÇİCİ 32 YE GÖRE YD YAPILABİLİR | N188: 2025-12-31 | O188: =TRUNC(IF(N188=46022,'Aylık Yİ-ÜFE'!$N$251,IF(N188=46112,'Aylık Yİ-ÜFE'!$N$254,IF(N188=46203,'Aylık Yİ-ÜFE'!$N$257,IF(N188=46295,'Aylık Yİ-ÜFE'!$N$260, IF(N188=46387,'Aylık Yİ-ÜFE'!$N$263))))),5) -> 0.2549 | P188: ='GEÇİCİ 32'!AA175-1 -> 0
A189: 2014-10-03 | B189: 169 | I189: 2025 YD ORANINA GÖRE GEÇİCİ 32 YE GÖRE YD YAPILABİLİR | N189: 2025-12-31 | O189: =TRUNC(IF(N189=46022,'Aylık Yİ-ÜFE'!$N$251,IF(N189=46112,'Aylık Yİ-ÜFE'!$N$254,IF(N189=46203,'Aylık Yİ-ÜFE'!$N$257,IF(N189=46295,'Aylık Yİ-ÜFE'!$N$260, IF(N189=46387,'Aylık Yİ-ÜFE'!$N$263))))),5) -> 0.2549 | P189: ='GEÇİCİ 32'!AA176-1 -> 0
A190: 2014-10-03 | B190: 170 | I190: 2025 YD ORANINA GÖRE GEÇİCİ 32 YE GÖRE YD YAPILABİLİR | N190: 2025-12-31 | O190: =TRUNC(IF(N190=46022,'Aylık Yİ-ÜFE'!$N$251,IF(N190=46112,'Aylık Yİ-ÜFE'!$N$254,IF(N190=46203,'Aylık Yİ-ÜFE'!$N$257,IF(N190=46295,'Aylık Yİ-ÜFE'!$N$260, IF(N190=46387,'Aylık Yİ-ÜFE'!$N$263))))),5) -> 0.2549 | P190: ='GEÇİCİ 32'!AA177-1 -> 0
A191: 2014-10-03 | B191: 171 | I191: 2025 YD ORANINA GÖRE GEÇİCİ 32 YE GÖRE YD YAPILABİLİR | N191: 2025-12-31 | O191: =TRUNC(IF(N191=46022,'Aylık Yİ-ÜFE'!$N$251,IF(N191=46112,'Aylık Yİ-ÜFE'!$N$254,IF(N191=46203,'Aylık Yİ-ÜFE'!$N$257,IF(N191=46295,'Aylık Yİ-ÜFE'!$N$260, IF(N191=46387,'Aylık Yİ-ÜFE'!$N$263))))),5) -> 0.2549 | P191: ='GEÇİCİ 32'!AA178-1 -> 0
A192: 2014-10-03 | B192: 172 | I192: 2025 YD ORANINA GÖRE GEÇİCİ 32 YE GÖRE YD YAPILABİLİR | N192: 2025-12-31 | O192: =TRUNC(IF(N192=46022,'Aylık Yİ-ÜFE'!$N$251,IF(N192=46112,'Aylık Yİ-ÜFE'!$N$254,IF(N192=46203,'Aylık Yİ-ÜFE'!$N$257,IF(N192=46295,'Aylık Yİ-ÜFE'!$N$260, IF(N192=46387,'Aylık Yİ-ÜFE'!$N$263))))),5) -> 0.2549 | P192: ='GEÇİCİ 32'!AA179-1 -> 0
A193: 2014-10-03 | B193: 173 | I193: 2025 YD ORANINA GÖRE GEÇİCİ 32 YE GÖRE YD YAPILABİLİR | N193: 2025-12-31 | O193: =TRUNC(IF(N193=46022,'Aylık Yİ-ÜFE'!$N$251,IF(N193=46112,'Aylık Yİ-ÜFE'!$N$254,IF(N193=46203,'Aylık Yİ-ÜFE'!$N$257,IF(N193=46295,'Aylık Yİ-ÜFE'!$N$260, IF(N193=46387,'Aylık Yİ-ÜFE'!$N$263))))),5) -> 0.2549 | P193: ='GEÇİCİ 32'!AA180-1 -> 0
A194: 2014-10-03 | B194: 174 | I194: 2025 YD ORANINA GÖRE GEÇİCİ 32 YE GÖRE YD YAPILABİLİR | N194: 2025-12-31 | O194: =TRUNC(IF(N194=46022,'Aylık Yİ-ÜFE'!$N$251,IF(N194=46112,'Aylık Yİ-ÜFE'!$N$254,IF(N194=46203,'Aylık Yİ-ÜFE'!$N$257,IF(N194=46295,'Aylık Yİ-ÜFE'!$N$260, IF(N194=46387,'Aylık Yİ-ÜFE'!$N$263))))),5) -> 0.2549 | P194: ='GEÇİCİ 32'!AA181-1 -> 0
A195: 2014-10-03 | B195: 175 | I195: 2025 YD ORANINA GÖRE GEÇİCİ 32 YE GÖRE YD YAPILABİLİR | N195: 2025-12-31 | O195: =TRUNC(IF(N195=46022,'Aylık Yİ-ÜFE'!$N$251,IF(N195=46112,'Aylık Yİ-ÜFE'!$N$254,IF(N195=46203,'Aylık Yİ-ÜFE'!$N$257,IF(N195=46295,'Aylık Yİ-ÜFE'!$N$260, IF(N195=46387,'Aylık Yİ-ÜFE'!$N$263))))),5) -> 0.2549 | P195: ='GEÇİCİ 32'!AA182-1 -> 0
A196: 2014-10-03 | B196: 176 | I196: 2025 YD ORANINA GÖRE GEÇİCİ 32 YE GÖRE YD YAPILABİLİR | N196: 2025-12-31 | O196: =TRUNC(IF(N196=46022,'Aylık Yİ-ÜFE'!$N$251,IF(N196=46112,'Aylık Yİ-ÜFE'!$N$254,IF(N196=46203,'Aylık Yİ-ÜFE'!$N$257,IF(N196=46295,'Aylık Yİ-ÜFE'!$N$260, IF(N196=46387,'Aylık Yİ-ÜFE'!$N$263))))),5) -> 0.2549 | P196: ='GEÇİCİ 32'!AA183-1 -> 0
A197: 2014-10-03 | B197: 177 | I197: 2025 YD ORANINA GÖRE GEÇİCİ 32 YE GÖRE YD YAPILABİLİR | N197: 2025-12-31 | O197: =TRUNC(IF(N197=46022,'Aylık Yİ-ÜFE'!$N$251,IF(N197=46112,'Aylık Yİ-ÜFE'!$N$254,IF(N197=46203,'Aylık Yİ-ÜFE'!$N$257,IF(N197=46295,'Aylık Yİ-ÜFE'!$N$260, IF(N197=46387,'Aylık Yİ-ÜFE'!$N$263))))),5) -> 0.2549 | P197: ='GEÇİCİ 32'!AA184-1 -> 0
A198: 2014-10-03 | B198: 178 | I198: 2025 YD ORANINA GÖRE GEÇİCİ 32 YE GÖRE YD YAPILABİLİR | N198: 2025-12-31 | O198: =TRUNC(IF(N198=46022,'Aylık Yİ-ÜFE'!$N$251,IF(N198=46112,'Aylık Yİ-ÜFE'!$N$254,IF(N198=46203,'Aylık Yİ-ÜFE'!$N$257,IF(N198=46295,'Aylık Yİ-ÜFE'!$N$260, IF(N198=46387,'Aylık Yİ-ÜFE'!$N$263))))),5) -> 0.2549 | P198: ='GEÇİCİ 32'!AA185-1 -> 0
A199: 2014-10-03 | B199: 179 | I199: 2025 YD ORANINA GÖRE GEÇİCİ 32 YE GÖRE YD YAPILABİLİR | N199: 2025-12-31 | O199: =TRUNC(IF(N199=46022,'Aylık Yİ-ÜFE'!$N$251,IF(N199=46112,'Aylık Yİ-ÜFE'!$N$254,IF(N199=46203,'Aylık Yİ-ÜFE'!$N$257,IF(N199=46295,'Aylık Yİ-ÜFE'!$N$260, IF(N199=46387,'Aylık Yİ-ÜFE'!$N$263))))),5) -> 0.2549 | P199: ='GEÇİCİ 32'!AA186-1 -> 0
A200: 2014-10-03 | B200: 180 | I200: 2025 YD ORANINA GÖRE GEÇİCİ 32 YE GÖRE YD YAPILABİLİR | N200: 2025-12-31 | O200: =TRUNC(IF(N200=46022,'Aylık Yİ-ÜFE'!$N$251,IF(N200=46112,'Aylık Yİ-ÜFE'!$N$254,IF(N200=46203,'Aylık Yİ-ÜFE'!$N$257,IF(N200=46295,'Aylık Yİ-ÜFE'!$N$260, IF(N200=46387,'Aylık Yİ-ÜFE'!$N$263))))),5) -> 0.2549 | P200: ='GEÇİCİ 32'!AA187-1 -> 0
A201: 2014-10-03 | B201: 181 | I201: 2025 YD ORANINA GÖRE GEÇİCİ 32 YE GÖRE YD YAPILABİLİR | N201: 2025-12-31 | O201: =TRUNC(IF(N201=46022,'Aylık Yİ-ÜFE'!$N$251,IF(N201=46112,'Aylık Yİ-ÜFE'!$N$254,IF(N201=46203,'Aylık Yİ-ÜFE'!$N$257,IF(N201=46295,'Aylık Yİ-ÜFE'!$N$260, IF(N201=46387,'Aylık Yİ-ÜFE'!$N$263))))),5) -> 0.2549 | P201: ='GEÇİCİ 32'!AA188-1 -> 0
A202: 2014-10-03 | B202: 182 | I202: 2025 YD ORANINA GÖRE GEÇİCİ 32 YE GÖRE YD YAPILABİLİR | N202: 2025-12-31 | O202: =TRUNC(IF(N202=46022,'Aylık Yİ-ÜFE'!$N$251,IF(N202=46112,'Aylık Yİ-ÜFE'!$N$254,IF(N202=46203,'Aylık Yİ-ÜFE'!$N$257,IF(N202=46295,'Aylık Yİ-ÜFE'!$N$260, IF(N202=46387,'Aylık Yİ-ÜFE'!$N$263))))),5) -> 0.2549 | P202: ='GEÇİCİ 32'!AA189-1 -> 0
A203: 2014-10-03 | B203: 183 | I203: 2025 YD ORANINA GÖRE GEÇİCİ 32 YE GÖRE YD YAPILABİLİR | N203: 2025-12-31 | O203: =TRUNC(IF(N203=46022,'Aylık Yİ-ÜFE'!$N$251,IF(N203=46112,'Aylık Yİ-ÜFE'!$N$254,IF(N203=46203,'Aylık Yİ-ÜFE'!$N$257,IF(N203=46295,'Aylık Yİ-ÜFE'!$N$260, IF(N203=46387,'Aylık Yİ-ÜFE'!$N$263))))),5) -> 0.2549 | P203: ='GEÇİCİ 32'!AA190-1 -> 0
... 4297 more rows

Sheet GEÇİCİ 32
B2: GEÇİCİ 32 YE GÖRE YD YAPILACAK OLMASI DURUMUNDA BU TABLO DİKKATE ALINCAKTIR.
B4: ÖNEMLİ NOTLAR: * 31.12.2024 VE ÖNCESİNDE BİLANÇODA BULUNAN VARLIKLAR LİSTEYE ALINMALIDIR. / 2025 YILI İÇİN YAPILACAK YENİDEN DEĞERLEMELER AÇISINDAN 2025 YILINDA EDİNİLEN VARLIKLAR LİSTEYE ALINMAMALIDIR. ** 1.1.2025 TEN ÖNCE AMORTİSMAN SÜRESİNİ DOLDURMUŞ OLANLAR LİSTEYE ALINMAMALIDIR. *** GEÇİCİ 32 İÇİN; İLK YILDAN SONRAKİ VE MALİYETE EKLENMİŞ OLAN KREDİ FAİZLERİ İLE KUR FARKLARI PARÇALI YENİDEN DEĞERLEMEYE TABİ TUTULUR. İLGİLİ MALİYET UNSURU AKTİFLEŞTİRİLDİĞİ TARİH İKTİSAP TARİHİ ALANINA YAZILACAK VE AYRI BİR İKTİSADİ KIYMET OLARAK DEĞERLENDİRİLECEKTİR. MÜK.298 Ç İÇİN BU TÜR MALİYET UNSURLARI YENİDEN DEĞERLEMEYE TABİ TUTULMAYACAKTIR. **** GEÇİCİ 32 İÇİN : İNŞA OLUNAN BİNALARDA, ARSA MALİYETİ ARSANIN AKTİFLEŞTİRİLDİĞİ, DİĞER MALİYET UNSURLARI İSE BİNANIN AKTİFLEŞTİRİLDİĞİ TARİH İKTİSAP TARİHİ ALANINA AYRI AYRI YAZILACAKTIR. ****** GEÇİCİ VERGİ DÖNEMLERİNDE YAPILAN YENİDEN DEĞERLEME İŞLEMLERİNDE KÜMÜLATİF DÖNEMİ DİKAKTE ALARAK HESAPLANDIĞINDAN, 2026 / II, III ve IV. GEÇİCİ VERGİ DÖNEMİ İÇİN MÜK.298/Ç UYARINCA HESAPLANMIŞ VE MUHASEBE KAYDINA KONU EDİLMİŞ YENİDEN DEĞERLEME ARTIŞI TUTARI BULUNMASI HALİNDE, ÖNCEKİ DÖNEMLERDE HESAPLANAN 522-YENİDEN DEĞERLEME DEĞER ARTIŞI HESABI TUTARI, 2026 İZLEYEN GEÇİCİ DÖNEMLERİ İÇİN HESAPLANAN 522-YENİDEN DEĞERLEME DEĞER ARTIŞI TUTARINDAN TENZİL EDİLİP, KALAN TUTARIN 2026 İLGİLİ DÖNEMİ İÇİN 522 HESABA ALACAK OLARAK KAYDEDİLMESİ MÜKERRER HESAPLAMA YAPILMAMASI BAKIMINDAN ÖNEM ARZ ETMEKTEDİR. | K4: =SUM(K8:K10007) -> 5000000 | R4: =SUM(R8:R10007) -> 2370000 | S4: =SUM(S8:S10007) -> 5000000 | T4: =SUM(T8:T10007) -> 2370000 | U4: =SUM(U8:U10007) -> 2630000 | AB4: =SUM(AB8:AB10007) -> 6058160 | AC4: =SUM(AC8:AC10007) -> 2908651 | AD4: =SUM(AD8:AD10007) -> 3149509 | AE4: =SUM(AE8:AE3007) -> 1058160 | AF4: =SUM(AF8:AF10007) -> 538651 | AG4: =SUM(AG8:AG10007) -> 519509 | AH4: =SUM(AH8:AH10007) -> 10390.18 | AR4: =SUM(AR8:AR10007) -> 1360276
B5: GEÇİCİ 32 YE GÖRE YAPILAN YD SONUCU
B6: SIRA NO | C6: İKTİSADİ KIYMETİN ADI | D6: MUHASEBE ANA HESAP KODU | E6: İKTİSADİ KIYMETİN AKTİFLEŞTİRİLDİĞİ YILDAN SONRAKİ YILLARDA MALİYETE ATILAN KUR FARKI, KREDİ FAİZ NİTELİĞİNDE MİDİR? | F6: EKONOMİK ÖMRÜ (YIL) | G6: AMORTİSMAN ORANI YILIK | H6: İKTİSAP TARİHİ (31.12.2024 ÖNCESİNDE İKTİSAP OLUNAN KIYMETLER İÇİN BU TARİH 31.12.2024 OLARAK DİKKATE ALINACAKTIR.) | I6: HESAPLAMADA DİKKATE ALINACAK TARİH | J6: İKTİSAP TARİHİ KONTROLÜ (2025 YILINDAN ÖNCE AKTİFE ALINMIŞ OLMA DURUMU) | K6: TAŞINMAZ VEYA ATİK İN İKTİSAP DEĞERİ 31.12.2024 VE ÖNCESİNDE İKTİSAP OLUNAN İKTİSADİ KIYMETLER İÇİN 31.12.2024 TARİHLİ ENFLASYON DÜZELTMESİ SONRASI DÜZELTİLMİŞ DEĞER 2025 VE SONRASINDA İKTİSAP OLUNANLARDA İKTİSAP BEDELİ | L6: AMORTİSMAN YÖNTEMİ | M6: KIST AMORTİSMANA TABİ Mİ (SADECE BİNEK OTOMOBİLLER) | N6: AMORTİSMAN HESABI İÇİN GEÇEN SÜRE (GÜN) (HESAPLAMADA DİKKATE ALINACAK 31.12.2025 TARİHİNE KADAR) | O6: NORMAL AMORTİSMAN SÜRESİ (YIL OLARAK) | P6: KIST AMORTİSMAN SÜRESİ YIL OLARAK | Q6: HESAPLAMALARDA DİKKATE ALINAN AMORTİSMAN SÜRESİ YIL SÜRESİ | R6: HESAPLAMADA DİKKATE ALINACAK 31.12.2025 TARİHİ İTİBARİYLE AYRILMASI GEREKEN AMORTİSMAN TUTARI (AYRILMAMIŞ OLANLAR DAHİL) | S6: GEÇİCİ 32 YD ÖNCESİ | V6: GEÇİCİ 32 YE GÖRE YENİDEN DEĞERLEME YAPILACAK MIDIR? | W6: YENİDEN DEĞERLEME ORANININ HESABI | AB6: GEÇİCİ 32 YD SONRASI | AE6: MALİYET TE ORTAYA ÇIKAN ARTIŞ | AF6: AMORTİSMANDA ORTAYA ÇIKAN ARTIŞ | AG6: NET DEĞER ARTIŞI GEÇİCİ 32 NEDENİYLE FAZLA AYRILABİLECEK TOPLAM AMORTİSMAN TUTARI | AH6: GEÇİCİ 32 YD NEDENİYLE HESAPLANAN VERGİ TUTARI | AJ6: AMORTİSMAN HESABI İÇİN PARAMETRELER (2025 / 12 --2025/IV. GEÇİCİ DÖNEMİ İÇİN) | AR6: 2025 4. GEÇİCİ VERGİ DÖNEMİ İTİBARİYLE AYRILMASI GEREKEN AMORTİSMAN TUTARI)
S7: YD ÖNCESİ MALİYET BEDELİ | T7: HESAPLAMADA DİKKATE ALINACAK TARİH İTİBARİYLE AMORTİSMAN TUTARI | U7: NET AKTİF DEĞERİ | W7: BAŞLANGIÇ AYI | X7: BAŞLANGIÇ AYI ENDEKSİ | Y7: BİTİŞ AYI | Z7: BİTİŞ AYI ENDEKSİ | AA7: YD ORANI (KATSAYISI) | AB7: YD SONRASI MALİYET BEDELİ | AC7: HESAPLAMADA DİKKATE ALINACAK TARİH İTİBARİYLE AMORTİSMAN TUTARI | AD7: NET AKTİF DEĞERİ (YD SONRASI) | AJ7: İKTİSAP TARİHİ | AK7: YENİDEN DEĞERLEME TARİH | AL7: AMORTİSMAN YÖNTEMİ | AM7: KIST AMORTİSMANA TABİ Mİ (SADECE BİNEK OTOMOBİLLER) | AN7: AMORTİSMAN HESABI İÇİN GEÇEN SÜRE (GÜN) (HESAPLAMADA DİKKATE ALINACAK TARİHE KADAR) | AO7: NORMAL AMORTİSMAN SÜRESİ (YIL OLARAK) | AP7: KIST AMORTİSMAN SÜRESİ YIL OLARAK | AQ7: HESAPLAMALARDA DİKKATE ALINAN AMORTİSMAN SÜRESİ YIL SÜRESİ
B8: 1 | C8: ='DOLDURULMASI GEREKEN TABLO'!D21 -> A | D8: ='DOLDURULMASI GEREKEN TABLO'!E21 -> 253- Tesis Makine ve Cihazlar | E8: ='DOLDURULMASI GEREKEN TABLO'!F21 -> HAYIR | F8: ='DOLDURULMASI GEREKEN TABLO'!G21 -> 5 | G8: =IFERROR(IF(L8="AZALAN BAKİYELERE GÖRE AMORTİSMAN",MIN(1/F8,1/4),1/F8),0) -> 0.2 | H8: ='DOLDURULMASI GEREKEN TABLO'!H21 -> 2025-05-10 | I8: 2025-12-31 | J8: =IF(AND( H8>45657, H8<=46022),"2025 TE İKTİSAP EDİLEN KIYMETLER, İKTİSAP EDİLDİĞİ AYI İZLEYEN AYIN Yİ-ÜFE ENDEKSİ İLE DEĞERLEME YAPILACAK ARALIK/2025 AYININ Yİ-ÜFE'Sİ BAZ ALINARAK GEÇİCİ 32 YE GÖRE YD YAPILABİLECEKTİR.", "2025 YD ORANINA GÖRE GEÇİCİ 32 YE GÖRE YD YAPILABİLİR") -> 2025 TE İKTİSAP EDİLEN KIYMETLER, İKTİSAP EDİLDİĞİ AYI İZLEYEN AYIN Yİ-ÜFE ENDEKSİ İLE DEĞERLEME YAPILACAK ARALIK/2025 AYININ Yİ-ÜFE'Sİ BAZ ALINARAK GEÇİCİ 32 YE GÖRE YD YAPILABİLECEKTİR. | K8: ='DOLDURULMASI GEREKEN TABLO'!J21 -> 1000000 | L8: ='DOLDURULMASI GEREKEN TABLO'!K21 -> NORMAL AMORTİSMAN | M8: ='DOLDURULMASI GEREKEN TABLO'!L21 -> HAYIR | N8: =IFERROR(IF('DOLDURULMASI GEREKEN TABLO'!M21="EVET",(I8-H8)+1,0),0) -> 236 | O8: =IFERROR(MIN(YEAR(I8)-YEAR(H8)+1,F8),0) -> 1 | P8: =IFERROR(MIN(((YEAR(I8)-YEAR(H8))*12+(MONTH(I8)-MONTH(H8))+1)/12,F8),0) -> 0.6666666667 | Q8: =IFERROR(MIN(IF(M8="HAYIR",O8,P8),F8),0) -> 1 | R8: =IF(D8="250- Arazi ve Arsalar",0, IF(Q8=F8,K8, IF(AND(L8="NORMAL AMORTİSMAN",M8="HAYIR"),K8*G8*Q8, IF(AND(L8="NORMAL AMORTİSMAN",M8="EVET"),K8*G8*Q8, IF(AND(L8="AZALAN BAKİYELERE GÖRE AMORTİSMAN",M8="HAYIR",F8<=4),VDB(K8,0,4,0,O8,2,TRUE), IF(AND(L8="AZALAN BAKİYELERE GÖRE AMORTİSMAN",M8="HAYIR",AND(F8>4,Q8<F8)),VDB(K8,0,F8,0,Q8,2,TRUE), IF(AND(L8="AZALAN BAKİYELERE GÖRE AMORTİSMAN",M8="EVET",O8=1),(DDB(K8,0,IF(F8<=4,4,F8),1,2)/12)*(12-MONTH(H8)+1), IF(AND(L8="AZALAN BAKİYELERE GÖRE AMORTİSMAN",M8="EVET",O8=2),(DDB(K8,0,IF(F8<=4,4,F8),1,2)/12)*(12-MONTH(H8)+1)+DDB(K8,0,IF(F8<=4,4,F8),2,2), IF(AND(L8="AZALAN BAKİYELERE GÖRE AMORTİSMAN",M8="EVET",O8=3),(DDB(K8,0,IF(F8<=4,4,F8),1,2)/12)*(12-MONTH(H8)+1)+DDB(K8,0,IF(F8<=4,4,F8),2,2)+DDB(K8,0,IF(F8<=4,4,F8),3,2), IF(AND(L8="AZALAN BAKİYELERE GÖRE AMORTİSMAN",M8="EVET",AND(O8>3,O8<5)),(DDB(K8,0,IF(F8<=4,4,F8),1,2)/12)*(12-MONTH(H8)+1)+DDB(K8,0,IF(F8<=4,4,F8),2,2)+DDB(K8,0,IF(F8<=4,4,F8),3,2)+DDB(K8,0,IF(F8<=4,4,F8),Q8,2), IF(AND(L8="AZALAN BAKİYELERE GÖRE AMORTİSMAN",M8="EVET",O8=5),VDB(K8,0,F8,0,Q8,2,TRUE),0))))))))))) -> 200000 | S8: =K8 -> 1000000 | T8: =R8 -> 200000 | U8: =S8-T8 -> 800000 | V8: ='DOLDURULMASI GEREKEN TABLO'!M21 -> EVET | W8: =IF(H8<=45567,"2025-1",IF(AND(H8>=46022,MONTH(H8)+1=13),CONCATENATE(YEAR(H8)+1,"-",MONTH(H8)-11),CONCATENATE(YEAR(H8),"-",MONTH(H8)+1))) -> 2025-6 | X8: =VLOOKUP(W8,'Aylık Yİ-ÜFE'!$D$1:$E$500,2,0) -> 4334.94 | Y8: =CONCATENATE(YEAR('DOLDURULMASI GEREKEN TABLO'!N21),"-",MONTH('DOLDURULMASI GEREKEN TABLO'!N21)) -> 2025-12 | Z8: =VLOOKUP(Y8,'Aylık Yİ-ÜFE'!$D$1:$E$500,2,0) -> 4783.04 | AA8: =IFERROR(IF(V8="EVET",TRUNC(Z8/X8,5),1),0) -> 1.10336 | AB8: =IF('DOLDURULMASI GEREKEN TABLO'!M21="EVET",MAX(S8*AA8,S8),S8) -> 1103360 | AC8: =IF('DOLDURULMASI GEREKEN TABLO'!M21="EVET",MAX(T8*AA8,T8),T8) -> 220672 | AD8: =AB8-AC8 -> 882688 | AE8: =IFERROR(IF(AB8-S8<0,0,AB8-S8),0) -> 103360 | AF8: =IFERROR(IF(AC8-T8<0,0,AC8-T8),0) -> 20672 | AG8: =IFERROR(IF((AE8-AF8)<0,0,(AE8-AF8)),0) -> 82688 | AH8: =IFERROR(AG8*2/100,0) -> 1653.76 | AJ8: =H8 -> 2025-05-10 | AK8: ='DOLDURULMASI GEREKEN TABLO'!N21 -> 2025-12-31 | AL8: =L8 -> NORMAL AMORTİSMAN | AM8: =M8 -> HAYIR | AN8: =(AK8-AJ8) -> 235 | AO8: =YEAR(AK8)-YEAR(AJ8)+1 -> 1 | AP8: =(((YEAR(AK8)-YEAR(AJ8))*12)+(MONTH(AK8)-MONTH(AJ8)+1))/12 -> 0.6666666667 | AQ8: =IF(AL8="NORMAL AMORTİSMAN",AO8,AP8) -> 1 | AR8: =IF(AL8="NORMAL AMORTİSMAN",AB8*(1/F8), IF(AND(AL8="AZALAN BAKİYELERE GÖRE AMORTİSMAN",AP8<F8),DDB(AB8,0,IF(F8<=4,4,F8),ROUNDUP(AQ8,0),2), IF(AND(AL8="AZALAN BAKİYELERE GÖRE AMORTİSMAN",AQ8=F8),(AB8-AB8),0))) -> 220672
B9: 2 | C9: ='DOLDURULMASI GEREKEN TABLO'!D22 -> B | D9: ='DOLDURULMASI GEREKEN TABLO'!E22 -> 254- Taşıtlar | E9: ='DOLDURULMASI GEREKEN TABLO'!F22 -> HAYIR | F9: ='DOLDURULMASI GEREKEN TABLO'!G22 -> 5 | G9: =IFERROR(IF(L9="AZALAN BAKİYELERE GÖRE AMORTİSMAN",MIN(1/F9,1/4),1/F9),0) -> 0.2 | H9: ='DOLDURULMASI GEREKEN TABLO'!H22 -> 2024-04-10 | I9: 2025-12-31 | J9: =IF(AND( H9>45657, H9<=46022),"2025 TE İKTİSAP EDİLEN KIYMETLER, İKTİSAP EDİLDİĞİ AYI İZLEYEN AYIN Yİ-ÜFE ENDEKSİ İLE DEĞERLEME YAPILACAK ARALIK/2025 AYININ Yİ-ÜFE'Sİ BAZ ALINARAK GEÇİCİ 32 YE GÖRE YD YAPILABİLECEKTİR.", "2025 YD ORANINA GÖRE GEÇİCİ 32 YE GÖRE YD YAPILABİLİR") -> 2025 YD ORANINA GÖRE GEÇİCİ 32 YE GÖRE YD YAPILABİLİR | K9: ='DOLDURULMASI GEREKEN TABLO'!J22 -> 1000000 | L9: ='DOLDURULMASI GEREKEN TABLO'!K22 -> NORMAL AMORTİSMAN | M9: ='DOLDURULMASI GEREKEN TABLO'!L22 -> EVET | N9: =IFERROR(IF('DOLDURULMASI GEREKEN TABLO'!M22="EVET",(I9-H9)+1,0),0) -> 631 | O9: =IFERROR(MIN(YEAR(I9)-YEAR(H9)+1,F9),0) -> 2 | P9: =IFERROR(MIN(((YEAR(I9)-YEAR(H9))*12+(MONTH(I9)-MONTH(H9))+1)/12,F9),0) -> 1.75 | Q9: =IFERROR(MIN(IF(M9="HAYIR",O9,P9),F9),0) -> 1.75 | R9: =IF(D9="250- Arazi ve Arsalar",0, IF(Q9=F9,K9, IF(AND(L9="NORMAL AMORTİSMAN",M9="HAYIR"),K9*G9*Q9, IF(AND(L9="NORMAL AMORTİSMAN",M9="EVET"),K9*G9*Q9, IF(AND(L9="AZALAN BAKİYELERE GÖRE AMORTİSMAN",M9="HAYIR",F9<=4),VDB(K9,0,4,0,O9,2,TRUE), IF(AND(L9="AZALAN BAKİYELERE GÖRE AMORTİSMAN",M9="HAYIR",AND(F9>4,Q9<F9)),VDB(K9,0,F9,0,Q9,2,TRUE), IF(AND(L9="AZALAN BAKİYELERE GÖRE AMORTİSMAN",M9="EVET",O9=1),(DDB(K9,0,IF(F9<=4,4,F9),1,2)/12)*(12-MONTH(H9)+1), IF(AND(L9="AZALAN BAKİYELERE GÖRE AMORTİSMAN",M9="EVET",O9=2),(DDB(K9,0,IF(F9<=4,4,F9),1,2)/12)*(12-MONTH(H9)+1)+DDB(K9,0,IF(F9<=4,4,F9),2,2), IF(AND(L9="AZALAN BAKİYELERE GÖRE AMORTİSMAN",M9="EVET",O9=3),(DDB(K9,0,IF(F9<=4,4,F9),1,2)/12)*(12-MONTH(H9)+1)+DDB(K9,0,IF(F9<=4,4,F9),2,2)+DDB(K9,0,IF(F9<=4,4,F9),3,2), IF(AND(L9="AZALAN BAKİYELERE GÖRE AMORTİSMAN",M9="EVET",AND(O9>3,O9<5)),(DDB(K9,0,IF(F9<=4,4,F9),1,2)/12)*(12-MONTH(H9)+1)+DDB(K9,0,IF(F9<=4,4,F9),2,2)+DDB(K9,0,IF(F9<=4,4,F9),3,2)+DDB(K9,0,IF(F9<=4,4,F9),Q9,2), IF(AND(L9="AZALAN BAKİYELERE GÖRE AMORTİSMAN",M9="EVET",O9=5),VDB(K9,0,F9,0,Q9,2,TRUE),0))))))))))) -> 350000 | S9: =K9 -> 1000000 | T9: =R9 -> 350000 | U9: =S9-T9 -> 650000 | V9: ='DOLDURULMASI GEREKEN TABLO'!M22 -> EVET | W9: =IF(H9<=45567,"2025-1",IF(AND(H9>=46022,MONTH(H9)+1=13),CONCATENATE(YEAR(H9)+1,"-",MONTH(H9)-11),CONCATENATE(YEAR(H9),"-",MONTH(H9)+1))) -> 2025-1 | X9: =VLOOKUP(W9,'Aylık Yİ-ÜFE'!$D$1:$E$500,2,0) -> 3861.33 | Y9: =CONCATENATE(YEAR('DOLDURULMASI GEREKEN TABLO'!N22),"-",MONTH('DOLDURULMASI GEREKEN TABLO'!N22)) -> 2025-12 | Z9: =VLOOKUP(Y9,'Aylık Yİ-ÜFE'!$D$1:$E$500,2,0) -> 4783.04 | AA9: =IFERROR(IF(V9="EVET",TRUNC(Z9/X9,5),1),0) -> 1.2387 | AB9: =IF('DOLDURULMASI GEREKEN TABLO'!M22="EVET",MAX(S9*AA9,S9),S9) -> 1238700 | AC9: =IF('DOLDURULMASI GEREKEN TABLO'!M22="EVET",MAX(T9*AA9,T9),T9) -> 433545 | AD9: =AB9-AC9 -> 805155 | AE9: =IFERROR(IF(AB9-S9<0,0,AB9-S9),0) -> 238700 | AF9: =IFERROR(IF(AC9-T9<0,0,AC9-T9),0) -> 83545 | AG9: =IFERROR(IF((AE9-AF9)<0,0,(AE9-AF9)),0) -> 155155 | AH9: =IFERROR(AG9*2/100,0) -> 3103.1 | AJ9: =H9 -> 2024-04-10 | AK9: ='DOLDURULMASI GEREKEN TABLO'!N22 -> 2025-12-31 | AL9: =L9 -> NORMAL AMORTİSMAN | AM9: =M9 -> EVET | AN9: =(AK9-AJ9) -> 630 | AO9: =YEAR(AK9)-YEAR(AJ9)+1 -> 2 | AP9: =(((YEAR(AK9)-YEAR(AJ9))*12)+(MONTH(AK9)-MONTH(AJ9)+1))/12 -> 1.75 | AQ9: =IF(AL9="NORMAL AMORTİSMAN",AO9,AP9) -> 2 | AR9: =IF(AL9="NORMAL AMORTİSMAN",AB9*(1/F9), IF(AND(AL9="AZALAN BAKİYELERE GÖRE AMORTİSMAN",AP9<F9),DDB(AB9,0,IF(F9<=4,4,F9),ROUNDUP(AQ9,0),2), IF(AND(AL9="AZALAN BAKİYELERE GÖRE AMORTİSMAN",AQ9=F9),(AB9-AB9),0))) -> 247740
B10: 3 | C10: ='DOLDURULMASI GEREKEN TABLO'!D23 -> C | D10: ='DOLDURULMASI GEREKEN TABLO'!E23 -> 255- Demirbaşlar | E10: ='DOLDURULMASI GEREKEN TABLO'!F23 -> HAYIR | F10: ='DOLDURULMASI GEREKEN TABLO'!G23 -> 5 | G10: 0.2 | H10: ='DOLDURULMASI GEREKEN TABLO'!H23 -> 2024-04-10 | I10: 2025-12-31 | J10: =IF(AND( H10>45657, H10<=46022),"2025 TE İKTİSAP EDİLEN KIYMETLER, İKTİSAP EDİLDİĞİ AYI İZLEYEN AYIN Yİ-ÜFE ENDEKSİ İLE DEĞERLEME YAPILACAK ARALIK/2025 AYININ Yİ-ÜFE'Sİ BAZ ALINARAK GEÇİCİ 32 YE GÖRE YD YAPILABİLECEKTİR.", "2025 YD ORANINA GÖRE GEÇİCİ 32 YE GÖRE YD YAPILABİLİR") -> 2025 YD ORANINA GÖRE GEÇİCİ 32 YE GÖRE YD YAPILABİLİR | K10: ='DOLDURULMASI GEREKEN TABLO'!J23 -> 1000000 | L10: ='DOLDURULMASI GEREKEN TABLO'!K23 -> AZALAN BAKİYELERE GÖRE AMORTİSMAN | M10: ='DOLDURULMASI GEREKEN TABLO'!L23 -> HAYIR | N10: =IFERROR(IF('DOLDURULMASI GEREKEN TABLO'!M23="EVET",(I10-H10)+1,0),0) -> 631 | O10: =IFERROR(MIN(YEAR(I10)-YEAR(H10)+1,F10),0) -> 2 | P10: =IFERROR(MIN(((YEAR(I10)-YEAR(H10))*12+(MONTH(I10)-MONTH(H10))+1)/12,F10),0) -> 1.75 | Q10: =IFERROR(MIN(IF(M10="HAYIR",O10,P10),F10),0) -> 2 | R10: =IF(D10="250- Arazi ve Arsalar",0, IF(Q10=F10,K10, IF(AND(L10="NORMAL AMORTİSMAN",M10="HAYIR"),K10*G10*Q10, IF(AND(L10="NORMAL AMORTİSMAN",M10="EVET"),K10*G10*Q10, IF(AND(L10="AZALAN BAKİYELERE GÖRE AMORTİSMAN",M10="HAYIR",F10<=4),VDB(K10,0,4,0,O10,2,TRUE), IF(AND(L10="AZALAN BAKİYELERE GÖRE AMORTİSMAN",M10="HAYIR",AND(F10>4,Q10<F10)),VDB(K10,0,F10,0,Q10,2,TRUE), IF(AND(L10="AZALAN BAKİYELERE GÖRE AMORTİSMAN",M10="EVET",O10=1),(DDB(K10,0,IF(F10<=4,4,F10),1,2)/12)*(12-MONTH(H10)+1), IF(AND(L10="AZALAN BAKİYELERE GÖRE AMORTİSMAN",M10="EVET",O10=2),(DDB(K10,0,IF(F10<=4,4,F10),1,2)/12)*(12-MONTH(H10)+1)+DDB(K10,0,IF(F10<=4,4,F10),2,2), IF(AND(L10="AZALAN BAKİYELERE GÖRE AMORTİSMAN",M10="EVET",O10=3),(DDB(K10,0,IF(F10<=4,4,F10),1,2)/12)*(12-MONTH(H10)+1)+DDB(K10,0,IF(F10<=4,4,F10),2,2)+DDB(K10,0,IF(F10<=4,4,F10),3,2), IF(AND(L10="AZALAN BAKİYELERE GÖRE AMORTİSMAN",M10="EVET",AND(O10>3,O10<5)),(DDB(K10,0,IF(F10<=4,4,F10),1,2)/12)*(12-MONTH(H10)+1)+DDB(K10,0,IF(F10<=4,4,F10),2,2)+DDB(K10,0,IF(F10<=4,4,F10),3,2)+DDB(K10,0,IF(F10<=4,4,F10),Q10,2), IF(AND(L10="AZALAN BAKİYELERE GÖRE AMORTİSMAN",M10="EVET",O10=5),VDB(K10,0,F10,0,Q10,2,TRUE),0))))))))))) -> 640000 | S10: =K10 -> 1000000 | T10: =R10 -> 640000 | U10: =S10-T10 -> 360000 | V10: ='DOLDURULMASI GEREKEN TABLO'!M23 -> EVET | W10: 2025-1 | X10: =VLOOKUP(W10,'Aylık Yİ-ÜFE'!$D$1:$E$500,2,0) -> 3861.33 | Y10: =CONCATENATE(YEAR('DOLDURULMASI GEREKEN TABLO'!N23),"-",MONTH('DOLDURULMASI GEREKEN TABLO'!N23)) -> 2025-12 | Z10: =VLOOKUP(Y10,'Aylık Yİ-ÜFE'!$D$1:$E$500,2,0) -> 4783.04 | AA10: 1.2387 | AB10: =IF('DOLDURULMASI GEREKEN TABLO'!M23="EVET",MAX(S10*AA10,S10),S10) -> 1238700 | AC10: =IF('DOLDURULMASI GEREKEN TABLO'!M23="EVET",MAX(T10*AA10,T10),T10) -> 792768 | AD10: =AB10-AC10 -> 445932 | AE10: =IFERROR(IF(AB10-S10<0,0,AB10-S10),0) -> 238700 | AF10: =IFERROR(IF(AC10-T10<0,0,AC10-T10),0) -> 152768 | AG10: =IFERROR(IF((AE10-AF10)<0,0,(AE10-AF10)),0) -> 85932 | AH10: 1718.64 | AJ10: =H10 -> 2024-04-10 | AK10: ='DOLDURULMASI GEREKEN TABLO'!N23 -> 2025-12-31 | AL10: =L10 -> AZALAN BAKİYELERE GÖRE AMORTİSMAN | AM10: =M10 -> HAYIR | AN10: =(AK10-AJ10) -> 630 | AO10: =YEAR(AK10)-YEAR(AJ10)+1 -> 2 | AP10: =(((YEAR(AK10)-YEAR(AJ10))*12)+(MONTH(AK10)-MONTH(AJ10)+1))/12 -> 1.75 | AQ10: =IF(AL10="NORMAL AMORTİSMAN",AO10,AP10) -> 1.75 | AR10: =IF(AL10="NORMAL AMORTİSMAN",AB10*(1/F10), IF(AND(AL10="AZALAN BAKİYELERE GÖRE AMORTİSMAN",AP10<F10),DDB(AB10,0,IF(F10<=4,4,F10),ROUNDUP(AQ10,0),2), IF(AND(AL10="AZALAN BAKİYELERE GÖRE AMORTİSMAN",AQ10=F10),(AB10-AB10),0))) -> 297288
B11: 4 | C11: ='DOLDURULMASI GEREKEN TABLO'!D24 -> Ç | D11: ='DOLDURULMASI GEREKEN TABLO'!E24 -> 264- Özel Maliyetler | E11: ='DOLDURULMASI GEREKEN TABLO'!F24 -> HAYIR | F11: ='DOLDURULMASI GEREKEN TABLO'!G24 -> 5 | G11: 0.2 | H11: ='DOLDURULMASI GEREKEN TABLO'!H24 -> 2024-04-10 | I11: 2025-12-31 | J11: 2025 YD ORANINA GÖRE GEÇİCİ 32 YE GÖRE YD YAPILABİLİR | K11: ='DOLDURULMASI GEREKEN TABLO'!J24 -> 1000000 | L11: ='DOLDURULMASI GEREKEN TABLO'!K24 -> AZALAN BAKİYELERE GÖRE AMORTİSMAN | M11: ='DOLDURULMASI GEREKEN TABLO'!L24 -> HAYIR | N11: =IFERROR(IF('DOLDURULMASI GEREKEN TABLO'!M24="EVET",(I11-H11)+1,0),0) -> 631 | O11: 2 | P11: 1.75 | Q11: 2 | R11: 640000 | S11: 1000000 | T11: 640000 | U11: 360000 | V11: ='DOLDURULMASI GEREKEN TABLO'!M24 -> EVET | W11: 2025-1 | X11: =VLOOKUP(W11,'Aylık Yİ-ÜFE'!$D$1:$E$500,2,0) -> 3861.33 | Y11: =CONCATENATE(YEAR('DOLDURULMASI GEREKEN TABLO'!N24),"-",MONTH('DOLDURULMASI GEREKEN TABLO'!N24)) -> 2025-12 | Z11: =VLOOKUP(Y11,'Aylık Yİ-ÜFE'!$D$1:$E$500,2,0) -> 4783.04 | AA11: 1.2387 | AB11: =IF('DOLDURULMASI GEREKEN TABLO'!M24="EVET",MAX(S11*AA11,S11),S11) -> 1238700 | AC11: =IF('DOLDURULMASI GEREKEN TABLO'!M24="EVET",MAX(T11*AA11,T11),T11) -> 792768 | AD11: 445932 | AE11: 238700 | AF11: 152768 | AG11: 85932 | AH11: 1718.64 | AJ11: 2024-04-10 | AK11: ='DOLDURULMASI GEREKEN TABLO'!N24 -> 2025-12-31 | AL11: AZALAN BAKİYELERE GÖRE AMORTİSMAN | AM11: HAYIR | AN11: 630 | AO11: 2 | AP11: 1.75 | AQ11: 1.75 | AR11: 297288
B12: 5 | C12: ='DOLDURULMASI GEREKEN TABLO'!D25 -> D | D12: ='DOLDURULMASI GEREKEN TABLO'!E25 -> 254- Taşıtlar | E12: ='DOLDURULMASI GEREKEN TABLO'!F25 -> HAYIR | F12: ='DOLDURULMASI GEREKEN TABLO'!G25 -> 5 | G12: 0.2 | H12: ='DOLDURULMASI GEREKEN TABLO'!H25 -> 2024-04-10 | I12: 2025-12-31 | J12: 2025 YD ORANINA GÖRE GEÇİCİ 32 YE GÖRE YD YAPILABİLİR | K12: ='DOLDURULMASI GEREKEN TABLO'!J25 -> 1000000 | L12: ='DOLDURULMASI GEREKEN TABLO'!K25 -> AZALAN BAKİYELERE GÖRE AMORTİSMAN | M12: ='DOLDURULMASI GEREKEN TABLO'!L25 -> EVET | N12: =IFERROR(IF('DOLDURULMASI GEREKEN TABLO'!M25="EVET",(I12-H12)+1,0),0) -> 631 | O12: 2 | P12: 1.75 | Q12: 1.75 | R12: 540000 | S12: 1000000 | T12: 540000 | U12: 460000 | V12: ='DOLDURULMASI GEREKEN TABLO'!M25 -> EVET | W12: 2025-1 | X12: =VLOOKUP(W12,'Aylık Yİ-ÜFE'!$D$1:$E$500,2,0) -> 3861.33 | Y12: =CONCATENATE(YEAR('DOLDURULMASI GEREKEN TABLO'!N25),"-",MONTH('DOLDURULMASI GEREKEN TABLO'!N25)) -> 2025-12 | Z12: =VLOOKUP(Y12,'Aylık Yİ-ÜFE'!$D$1:$E$500,2,0) -> 4783.04 | AA12: 1.2387 | AB12: =IF('DOLDURULMASI GEREKEN TABLO'!M25="EVET",MAX(S12*AA12,S12),S12) -> 1238700 | AC12: =IF('DOLDURULMASI GEREKEN TABLO'!M25="EVET",MAX(T12*AA12,T12),T12) -> 668898 | AD12: 569802 | AE12: 238700 | AF12: 128898 | AG12: 109802 | AH12: 2196.04 | AJ12: 2024-04-10 | AK12: ='DOLDURULMASI GEREKEN TABLO'!N25 -> 2025-12-31 | AL12: AZALAN BAKİYELERE GÖRE AMORTİSMAN | AM12: EVET | AN12: 630 | AO12: 2 | AP12: 1.75 | AQ12: 1.75 | AR12: 297288
B13: 6 | C13: ='DOLDURULMASI GEREKEN TABLO'!D26 -> 0 | D13: ='DOLDURULMASI GEREKEN TABLO'!E26 -> 0 | E13: ='DOLDURULMASI GEREKEN TABLO'!F26 -> 0 | F13: ='DOLDURULMASI GEREKEN TABLO'!G26 -> 0 | G13: 0 | H13: ='DOLDURULMASI GEREKEN TABLO'!H26 -> 00:00:00 | I13: 2025-12-31 | J13: 2025 YD ORANINA GÖRE GEÇİCİ 32 YE GÖRE YD YAPILABİLİR | K13: ='DOLDURULMASI GEREKEN TABLO'!J26 -> 0 | L13: ='DOLDURULMASI GEREKEN TABLO'!K26 -> 0 | M13: ='DOLDURULMASI GEREKEN TABLO'!L26 -> 0 | N13: =IFERROR(IF('DOLDURULMASI GEREKEN TABLO'!M26="EVET",(I13-H13)+1,0),0) -> 0 | O13: 0 | P13: 0 | Q13: 0 | R13: 0 | S13: 0 | T13: 0 | U13: 0 | V13: ='DOLDURULMASI GEREKEN TABLO'!M26 -> 0 | W13: 2025-1 | X13: =VLOOKUP(W13,'Aylık Yİ-ÜFE'!$D$1:$E$500,2,0) -> 3861.33 | Y13: =CONCATENATE(YEAR('DOLDURULMASI GEREKEN TABLO'!N26),"-",MONTH('DOLDURULMASI GEREKEN TABLO'!N26)) -> 2025-12 | Z13: =VLOOKUP(Y13,'Aylık Yİ-ÜFE'!$D$1:$E$500,2,0) -> 4783.04 | AA13: 1 | AB13: =IF('DOLDURULMASI GEREKEN TABLO'!M26="EVET",MAX(S13*AA13,S13),S13) -> 0 | AC13: =IF('DOLDURULMASI GEREKEN TABLO'!M26="EVET",MAX(T13*AA13,T13),T13) -> 0 | AD13: 0 | AE13: 0 | AF13: 0 | AG13: 0 | AH13: 0 | AJ13: 00:00:00 | AK13: ='DOLDURULMASI GEREKEN TABLO'!N26 -> 2025-12-31 | AL13: 0 | AM13: 0 | AN13: 46022 | AO13: 126 | AP13: 126 | AQ13: 126 | AR13: 0
B14: 7 | C14: ='DOLDURULMASI GEREKEN TABLO'!D27 -> 0 | D14: ='DOLDURULMASI GEREKEN TABLO'!E27 -> 0 | E14: ='DOLDURULMASI GEREKEN TABLO'!F27 -> 0 | F14: ='DOLDURULMASI GEREKEN TABLO'!G27 -> 0 | G14: 0 | H14: ='DOLDURULMASI GEREKEN TABLO'!H27 -> 00:00:00 | I14: 2025-12-31 | J14: 2025 YD ORANINA GÖRE GEÇİCİ 32 YE GÖRE YD YAPILABİLİR | K14: ='DOLDURULMASI GEREKEN TABLO'!J27 -> 0 | L14: ='DOLDURULMASI GEREKEN TABLO'!K27 -> 0 | M14: ='DOLDURULMASI GEREKEN TABLO'!L27 -> 0 | N14: =IFERROR(IF('DOLDURULMASI GEREKEN TABLO'!M27="EVET",(I14-H14)+1,0),0) -> 0 | O14: 0 | P14: 0 | Q14: 0 | R14: 0 | S14: 0 | T14: 0 | U14: 0 | V14: ='DOLDURULMASI GEREKEN TABLO'!M27 -> 0 | W14: 2025-1 | X14: =VLOOKUP(W14,'Aylık Yİ-ÜFE'!$D$1:$E$500,2,0) -> 3861.33 | Y14: =CONCATENATE(YEAR('DOLDURULMASI GEREKEN TABLO'!N27),"-",MONTH('DOLDURULMASI GEREKEN TABLO'!N27)) -> 2025-12 | Z14: =VLOOKUP(Y14,'Aylık Yİ-ÜFE'!$D$1:$E$500,2,0) -> 4783.04 | AA14: 1 | AB14: =IF('DOLDURULMASI GEREKEN TABLO'!M27="EVET",MAX(S14*AA14,S14),S14) -> 0 | AC14: =IF('DOLDURULMASI GEREKEN TABLO'!M27="EVET",MAX(T14*AA14,T14),T14) -> 0 | AD14: 0 | AE14: 0 | AF14: 0 | AG14: 0 | AH14: 0 | AJ14: 00:00:00 | AK14: ='DOLDURULMASI GEREKEN TABLO'!N27 -> 2025-12-31 | AL14: 0 | AM14: 0 | AN14: 46022 | AO14: 126 | AP14: 126 | AQ14: 126 | AR14: 0
B15: 8 | C15: ='DOLDURULMASI GEREKEN TABLO'!D28 -> 0 | D15: ='DOLDURULMASI GEREKEN TABLO'!E28 -> 0 | E15: ='DOLDURULMASI GEREKEN TABLO'!F28 -> 0 | F15: ='DOLDURULMASI GEREKEN TABLO'!G28 -> 0 | G15: 0 | H15: ='DOLDURULMASI GEREKEN TABLO'!H28 -> 00:00:00 | I15: 2025-12-31 | J15: 2025 YD ORANINA GÖRE GEÇİCİ 32 YE GÖRE YD YAPILABİLİR | K15: ='DOLDURULMASI GEREKEN TABLO'!J28 -> 0 | L15: ='DOLDURULMASI GEREKEN TABLO'!K28 -> 0 | M15: ='DOLDURULMASI GEREKEN TABLO'!L28 -> 0 | N15: =IFERROR(IF('DOLDURULMASI GEREKEN TABLO'!M28="EVET",(I15-H15)+1,0),0) -> 0 | O15: 0 | P15: 0 | Q15: 0 | R15: 0 | S15: 0 | T15: 0 | U15: 0 | V15: ='DOLDURULMASI GEREKEN TABLO'!M28 -> 0 | W15: 2025-1 | X15: =VLOOKUP(W15,'Aylık Yİ-ÜFE'!$D$1:$E$500,2,0) -> 3861.33 | Y15: =CONCATENATE(YEAR('DOLDURULMASI GEREKEN TABLO'!N28),"-",MONTH('DOLDURULMASI GEREKEN TABLO'!N28)) -> 2025-12 | Z15: =VLOOKUP(Y15,'Aylık Yİ-ÜFE'!$D$1:$E$500,2,0) -> 4783.04 | AA15: 1 | AB15: =IF('DOLDURULMASI GEREKEN TABLO'!M28="EVET",MAX(S15*AA15,S15),S15) -> 0 | AC15: =IF('DOLDURULMASI GEREKEN TABLO'!M28="EVET",MAX(T15*AA15,T15),T15) -> 0 | AD15: 0 | AE15: 0 | AF15: 0 | AG15: 0 | AH15: 0 | AJ15: 00:00:00 | AK15: ='DOLDURULMASI GEREKEN TABLO'!N28 -> 2025-12-31 | AL15: 0 | AM15: 0 | AN15: 46022 | AO15: 126 | AP15: 126 | AQ15: 126 | AR15: 0
B16: 9 | C16: ='DOLDURULMASI GEREKEN TABLO'!D29 -> 0 | D16: ='DOLDURULMASI GEREKEN TABLO'!E29 -> 0 | E16: ='DOLDURULMASI GEREKEN TABLO'!F29 -> 0 | F16: ='DOLDURULMASI GEREKEN TABLO'!G29 -> 0 | G16: 0 | H16: ='DOLDURULMASI GEREKEN TABLO'!H29 -> 00:00:00 | I16: 2025-12-31 | J16: 2025 YD ORANINA GÖRE GEÇİCİ 32 YE GÖRE YD YAPILABİLİR | K16: ='DOLDURULMASI GEREKEN TABLO'!J29 -> 0 | L16: ='DOLDURULMASI GEREKEN TABLO'!K29 -> 0 | M16: ='DOLDURULMASI GEREKEN TABLO'!L29 -> 0 | N16: =IFERROR(IF('DOLDURULMASI GEREKEN TABLO'!M29="EVET",(I16-H16)+1,0),0) -> 0 | O16: 0 | P16: 0 | Q16: 0 | R16: 0 | S16: 0 | T16: 0 | U16: 0 | V16: ='DOLDURULMASI GEREKEN TABLO'!M29 -> 0 | W16: 2025-1 | X16: =VLOOKUP(W16,'Aylık Yİ-ÜFE'!$D$1:$E$500,2,0) -> 3861.33 | Y16: =CONCATENATE(YEAR('DOLDURULMASI GEREKEN TABLO'!N29),"-",MONTH('DOLDURULMASI GEREKEN TABLO'!N29)) -> 2025-12 | Z16: =VLOOKUP(Y16,'Aylık Yİ-ÜFE'!$D$1:$E$500,2,0) -> 4783.04 | AA16: 1 | AB16: =IF('DOLDURULMASI GEREKEN TABLO'!M29="EVET",MAX(S16*AA16,S16),S16) -> 0 | AC16: =IF('DOLDURULMASI GEREKEN TABLO'!M29="EVET",MAX(T16*AA16,T16),T16) -> 0 | AD16: 0 | AE16: 0 | AF16: 0 | AG16: 0 | AH16: 0 | AJ16: 00:00:00 | AK16: ='DOLDURULMASI GEREKEN TABLO'!N29 -> 2025-12-31 | AL16: 0 | AM16: 0 | AN16: 46022 | AO16: 126 | AP16: 126 | AQ16: 126 | AR16: 0
B17: 10 | C17: ='DOLDURULMASI GEREKEN TABLO'!D30 -> 0 | D17: ='DOLDURULMASI GEREKEN TABLO'!E30 -> 0 | E17: ='DOLDURULMASI GEREKEN TABLO'!F30 -> 0 | F17: ='DOLDURULMASI GEREKEN TABLO'!G30 -> 0 | G17: 0 | H17: ='DOLDURULMASI GEREKEN TABLO'!H30 -> 00:00:00 | I17: 2025-12-31 | J17: 2025 YD ORANINA GÖRE GEÇİCİ 32 YE GÖRE YD YAPILABİLİR | K17: ='DOLDURULMASI GEREKEN TABLO'!J30 -> 0 | L17: ='DOLDURULMASI GEREKEN TABLO'!K30 -> 0 | M17: ='DOLDURULMASI GEREKEN TABLO'!L30 -> 0 | N17: =IFERROR(IF('DOLDURULMASI GEREKEN TABLO'!M30="EVET",(I17-H17)+1,0),0) -> 0 | O17: 0 | P17: 0 | Q17: 0 | R17: 0 | S17: 0 | T17: 0 | U17: 0 | V17: ='DOLDURULMASI GEREKEN TABLO'!M30 -> 0 | W17: 2025-1 | X17: =VLOOKUP(W17,'Aylık Yİ-ÜFE'!$D$1:$E$500,2,0) -> 3861.33 | Y17: =CONCATENATE(YEAR('DOLDURULMASI GEREKEN TABLO'!N30),"-",MONTH('DOLDURULMASI GEREKEN TABLO'!N30)) -> 2025-12 | Z17: =VLOOKUP(Y17,'Aylık Yİ-ÜFE'!$D$1:$E$500,2,0) -> 4783.04 | AA17: 1 | AB17: =IF('DOLDURULMASI GEREKEN TABLO'!M30="EVET",MAX(S17*AA17,S17),S17) -> 0 | AC17: =IF('DOLDURULMASI GEREKEN TABLO'!M30="EVET",MAX(T17*AA17,T17),T17) -> 0 | AD17: 0 | AE17: 0 | AF17: 0 | AG17: 0 | AH17: 0 | AJ17: 00:00:00 | AK17: ='DOLDURULMASI GEREKEN TABLO'!N30 -> 2025-12-31 | AL17: 0 | AM17: 0 | AN17: 46022 | AO17: 126 | AP17: 126 | AQ17: 126 | AR17: 0
B18: 11 | C18: ='DOLDURULMASI GEREKEN TABLO'!D31 -> 0 | D18: ='DOLDURULMASI GEREKEN TABLO'!E31 -> 0 | E18: ='DOLDURULMASI GEREKEN TABLO'!F31 -> 0 | F18: ='DOLDURULMASI GEREKEN TABLO'!G31 -> 0 | G18: 0 | H18: ='DOLDURULMASI GEREKEN TABLO'!H31 -> 00:00:00 | I18: 2025-12-31 | J18: 2025 YD ORANINA GÖRE GEÇİCİ 32 YE GÖRE YD YAPILABİLİR | K18: ='DOLDURULMASI GEREKEN TABLO'!J31 -> 0 | L18: ='DOLDURULMASI GEREKEN TABLO'!K31 -> 0 | M18: ='DOLDURULMASI GEREKEN TABLO'!L31 -> 0 | N18: =IFERROR(IF('DOLDURULMASI GEREKEN TABLO'!M31="EVET",(I18-H18)+1,0),0) -> 0 | O18: 0 | P18: 0 | Q18: 0 | R18: 0 | S18: 0 | T18: 0 | U18: 0 | V18: ='DOLDURULMASI GEREKEN TABLO'!M31 -> 0 | W18: 2025-1 | X18: =VLOOKUP(W18,'Aylık Yİ-ÜFE'!$D$1:$E$500,2,0) -> 3861.33 | Y18: =CONCATENATE(YEAR('DOLDURULMASI GEREKEN TABLO'!N31),"-",MONTH('DOLDURULMASI GEREKEN TABLO'!N31)) -> 2025-12 | Z18: =VLOOKUP(Y18,'Aylık Yİ-ÜFE'!$D$1:$E$500,2,0) -> 4783.04 | AA18: 1 | AB18: =IF('DOLDURULMASI GEREKEN TABLO'!M31="EVET",MAX(S18*AA18,S18),S18) -> 0 | AC18: =IF('DOLDURULMASI GEREKEN TABLO'!M31="EVET",MAX(T18*AA18,T18),T18) -> 0 | AD18: 0 | AE18: 0 | AF18: 0 | AG18: 0 | AH18: 0 | AJ18: 00:00:00 | AK18: ='DOLDURULMASI GEREKEN TABLO'!N31 -> 2025-12-31 | AL18: 0 | AM18: 0 | AN18: 46022 | AO18: 126 | AP18: 126 | AQ18: 126 | AR18: 0
B19: 12 | C19: ='DOLDURULMASI GEREKEN TABLO'!D32 -> 0 | D19: ='DOLDURULMASI GEREKEN TABLO'!E32 -> 0 | E19: ='DOLDURULMASI GEREKEN TABLO'!F32 -> 0 | F19: ='DOLDURULMASI GEREKEN TABLO'!G32 -> 0 | G19: 0 | H19: ='DOLDURULMASI GEREKEN TABLO'!H32 -> 00:00:00 | I19: 2025-12-31 | J19: 2025 YD ORANINA GÖRE GEÇİCİ 32 YE GÖRE YD YAPILABİLİR | K19: ='DOLDURULMASI GEREKEN TABLO'!J32 -> 0 | L19: ='DOLDURULMASI GEREKEN TABLO'!K32 -> 0 | M19: ='DOLDURULMASI GEREKEN TABLO'!L32 -> 0 | N19: =IFERROR(IF('DOLDURULMASI GEREKEN TABLO'!M32="EVET",(I19-H19)+1,0),0) -> 0 | O19: 0 | P19: 0 | Q19: 0 | R19: 0 | S19: 0 | T19: 0 | U19: 0 | V19: ='DOLDURULMASI GEREKEN TABLO'!M32 -> 0 | W19: 2025-1 | X19: =VLOOKUP(W19,'Aylık Yİ-ÜFE'!$D$1:$E$500,2,0) -> 3861.33 | Y19: =CONCATENATE(YEAR('DOLDURULMASI GEREKEN TABLO'!N32),"-",MONTH('DOLDURULMASI GEREKEN TABLO'!N32)) -> 2025-12 | Z19: =VLOOKUP(Y19,'Aylık Yİ-ÜFE'!$D$1:$E$500,2,0) -> 4783.04 | AA19: 1 | AB19: =IF('DOLDURULMASI GEREKEN TABLO'!M32="EVET",MAX(S19*AA19,S19),S19) -> 0 | AC19: =IF('DOLDURULMASI GEREKEN TABLO'!M32="EVET",MAX(T19*AA19,T19),T19) -> 0 | AD19: 0 | AE19: 0 | AF19: 0 | AG19: 0 | AH19: 0 | AJ19: 00:00:00 | AK19: ='DOLDURULMASI GEREKEN TABLO'!N32 -> 2025-12-31 | AL19: 0 | AM19: 0 | AN19: 46022 | AO19: 126 | AP19: 126 | AQ19: 126 | AR19: 0
B20: 13 | C20: ='DOLDURULMASI GEREKEN TABLO'!D33 -> 0 | D20: ='DOLDURULMASI GEREKEN TABLO'!E33 -> 0 | E20: ='DOLDURULMASI GEREKEN TABLO'!F33 -> 0 | F20: ='DOLDURULMASI GEREKEN TABLO'!G33 -> 0 | G20: 0 | H20: ='DOLDURULMASI GEREKEN TABLO'!H33 -> 00:00:00 | I20: 2025-12-31 | J20: 2025 YD ORANINA GÖRE GEÇİCİ 32 YE GÖRE YD YAPILABİLİR | K20: ='DOLDURULMASI GEREKEN TABLO'!J33 -> 0 | L20: ='DOLDURULMASI GEREKEN TABLO'!K33 -> 0 | M20: ='DOLDURULMASI GEREKEN TABLO'!L33 -> 0 | N20: =IFERROR(IF('DOLDURULMASI GEREKEN TABLO'!M33="EVET",(I20-H20)+1,0),0) -> 0 | O20: 0 | P20: 0 | Q20: 0 | R20: 0 | S20: 0 | T20: 0 | U20: 0 | V20: ='DOLDURULMASI GEREKEN TABLO'!M33 -> 0 | W20: 2025-1 | X20: =VLOOKUP(W20,'Aylık Yİ-ÜFE'!$D$1:$E$500,2,0) -> 3861.33 | Y20: =CONCATENATE(YEAR('DOLDURULMASI GEREKEN TABLO'!N33),"-",MONTH('DOLDURULMASI GEREKEN TABLO'!N33)) -> 2025-12 | Z20: =VLOOKUP(Y20,'Aylık Yİ-ÜFE'!$D$1:$E$500,2,0) -> 4783.04 | AA20: 1 | AB20: =IF('DOLDURULMASI GEREKEN TABLO'!M33="EVET",MAX(S20*AA20,S20),S20) -> 0 | AC20: =IF('DOLDURULMASI GEREKEN TABLO'!M33="EVET",MAX(T20*AA20,T20),T20) -> 0 | AD20: 0 | AE20: 0 | AF20: 0 | AG20: 0 | AH20: 0 | AJ20: 00:00:00 | AK20: ='DOLDURULMASI GEREKEN TABLO'!N33 -> 2025-12-31 | AL20: 0 | AM20: 0 | AN20: 46022 | AO20: 126 | AP20: 126 | AQ20: 126 | AR20: 0
B21: 14 | C21: ='DOLDURULMASI GEREKEN TABLO'!D34 -> 0 | D21: ='DOLDURULMASI GEREKEN TABLO'!E34 -> 0 | E21: ='DOLDURULMASI GEREKEN TABLO'!F34 -> 0 | F21: ='DOLDURULMASI GEREKEN TABLO'!G34 -> 0 | G21: 0 | H21: ='DOLDURULMASI GEREKEN TABLO'!H34 -> 00:00:00 | I21: 2025-12-31 | J21: 2025 YD ORANINA GÖRE GEÇİCİ 32 YE GÖRE YD YAPILABİLİR | K21: ='DOLDURULMASI GEREKEN TABLO'!J34 -> 0 | L21: ='DOLDURULMASI GEREKEN TABLO'!K34 -> 0 | M21: ='DOLDURULMASI GEREKEN TABLO'!L34 -> 0 | N21: =IFERROR(IF('DOLDURULMASI GEREKEN TABLO'!M34="EVET",(I21-H21)+1,0),0) -> 0 | O21: 0 | P21: 0 | Q21: 0 | R21: 0 | S21: 0 | T21: 0 | U21: 0 | V21: ='DOLDURULMASI GEREKEN TABLO'!M34 -> 0 | W21: 2025-1 | X21: =VLOOKUP(W21,'Aylık Yİ-ÜFE'!$D$1:$E$500,2,0) -> 3861.33 | Y21: =CONCATENATE(YEAR('DOLDURULMASI GEREKEN TABLO'!N34),"-",MONTH('DOLDURULMASI GEREKEN TABLO'!N34)) -> 2025-12 | Z21: =VLOOKUP(Y21,'Aylık Yİ-ÜFE'!$D$1:$E$500,2,0) -> 4783.04 | AA21: 1 | AB21: =IF('DOLDURULMASI GEREKEN TABLO'!M34="EVET",MAX(S21*AA21,S21),S21) -> 0 | AC21: =IF('DOLDURULMASI GEREKEN TABLO'!M34="EVET",MAX(T21*AA21,T21),T21) -> 0 | AD21: 0 | AE21: 0 | AF21: 0 | AG21: 0 | AH21: 0 | AJ21: 00:00:00 | AK21: ='DOLDURULMASI GEREKEN TABLO'!N34 -> 2025-12-31 | AL21: 0 | AM21: 0 | AN21: 46022 | AO21: 126 | AP21: 126 | AQ21: 126 | AR21: 0
B22: 15 | C22: ='DOLDURULMASI GEREKEN TABLO'!D35 -> 0 | D22: ='DOLDURULMASI GEREKEN TABLO'!E35 -> 0 | E22: ='DOLDURULMASI GEREKEN TABLO'!F35 -> 0 | F22: ='DOLDURULMASI GEREKEN TABLO'!G35 -> 0 | G22: 0 | H22: ='DOLDURULMASI GEREKEN TABLO'!H35 -> 00:00:00 | I22: 2025-12-31 | J22: 2025 YD ORANINA GÖRE GEÇİCİ 32 YE GÖRE YD YAPILABİLİR | K22: ='DOLDURULMASI GEREKEN TABLO'!J35 -> 0 | L22: ='DOLDURULMASI GEREKEN TABLO'!K35 -> 0 | M22: ='DOLDURULMASI GEREKEN TABLO'!L35 -> 0 | N22: =IFERROR(IF('DOLDURULMASI GEREKEN TABLO'!M35="EVET",(I22-H22)+1,0),0) -> 0 | O22: 0 | P22: 0 | Q22: 0 | R22: 0 | S22: 0 | T22: 0 | U22: 0 | V22: ='DOLDURULMASI GEREKEN TABLO'!M35 -> 0 | W22: 2025-1 | X22: =VLOOKUP(W22,'Aylık Yİ-ÜFE'!$D$1:$E$500,2,0) -> 3861.33 | Y22: =CONCATENATE(YEAR('DOLDURULMASI GEREKEN TABLO'!N35),"-",MONTH('DOLDURULMASI GEREKEN TABLO'!N35)) -> 2025-12 | Z22: =VLOOKUP(Y22,'Aylık Yİ-ÜFE'!$D$1:$E$500,2,0) -> 4783.04 | AA22: 1 | AB22: =IF('DOLDURULMASI GEREKEN TABLO'!M35="EVET",MAX(S22*AA22,S22),S22) -> 0 | AC22: =IF('DOLDURULMASI GEREKEN TABLO'!M35="EVET",MAX(T22*AA22,T22),T22) -> 0 | AD22: 0 | AE22: 0 | AF22: 0 | AG22: 0 | AH22: 0 | AJ22: 00:00:00 | AK22: ='DOLDURULMASI GEREKEN TABLO'!N35 -> 2025-12-31 | AL22: 0 | AM22: 0 | AN22: 46022 | AO22: 126 | AP22: 126 | AQ22: 126 | AR22: 0
B23: 16 | C23: ='DOLDURULMASI GEREKEN TABLO'!D36 -> 0 | D23: ='DOLDURULMASI GEREKEN TABLO'!E36 -> 0 | E23: ='DOLDURULMASI GEREKEN TABLO'!F36 -> 0 | F23: ='DOLDURULMASI GEREKEN TABLO'!G36 -> 0 | G23: 0 | H23: ='DOLDURULMASI GEREKEN TABLO'!H36 -> 00:00:00 | I23: 2025-12-31 | J23: 2025 YD ORANINA GÖRE GEÇİCİ 32 YE GÖRE YD YAPILABİLİR | K23: ='DOLDURULMASI GEREKEN TABLO'!J36 -> 0 | L23: ='DOLDURULMASI GEREKEN TABLO'!K36 -> 0 | M23: ='DOLDURULMASI GEREKEN TABLO'!L36 -> 0 | N23: =IFERROR(IF('DOLDURULMASI GEREKEN TABLO'!M36="EVET",(I23-H23)+1,0),0) -> 0 | O23: 0 | P23: 0 | Q23: 0 | R23: 0 | S23: 0 | T23: 0 | U23: 0 | V23: ='DOLDURULMASI GEREKEN TABLO'!M36 -> 0 | W23: 2025-1 | X23: =VLOOKUP(W23,'Aylık Yİ-ÜFE'!$D$1:$E$500,2,0) -> 3861.33 | Y23: =CONCATENATE(YEAR('DOLDURULMASI GEREKEN TABLO'!N36),"-",MONTH('DOLDURULMASI GEREKEN TABLO'!N36)) -> 2025-12 | Z23: =VLOOKUP(Y23,'Aylık Yİ-ÜFE'!$D$1:$E$500,2,0) -> 4783.04 | AA23: 1 | AB23: =IF('DOLDURULMASI GEREKEN TABLO'!M36="EVET",MAX(S23*AA23,S23),S23) -> 0 | AC23: =IF('DOLDURULMASI GEREKEN TABLO'!M36="EVET",MAX(T23*AA23,T23),T23) -> 0 | AD23: 0 | AE23: 0 | AF23: 0 | AG23: 0 | AH23: 0 | AJ23: 00:00:00 | AK23: ='DOLDURULMASI GEREKEN TABLO'!N36 -> 2025-12-31 | AL23: 0 | AM23: 0 | AN23: 46022 | AO23: 126 | AP23: 126 | AQ23: 126 | AR23: 0
B24: 17 | C24: ='DOLDURULMASI GEREKEN TABLO'!D37 -> 0 | D24: ='DOLDURULMASI GEREKEN TABLO'!E37 -> 0 | E24: ='DOLDURULMASI GEREKEN TABLO'!F37 -> 0 | F24: ='DOLDURULMASI GEREKEN TABLO'!G37 -> 0 | G24: 0 | H24: ='DOLDURULMASI GEREKEN TABLO'!H37 -> 00:00:00 | I24: 2025-12-31 | J24: 2025 YD ORANINA GÖRE GEÇİCİ 32 YE GÖRE YD YAPILABİLİR | K24: ='DOLDURULMASI GEREKEN TABLO'!J37 -> 0 | L24: ='DOLDURULMASI GEREKEN TABLO'!K37 -> 0 | M24: ='DOLDURULMASI GEREKEN TABLO'!L37 -> 0 | N24: =IFERROR(IF('DOLDURULMASI GEREKEN TABLO'!M37="EVET",(I24-H24)+1,0),0) -> 0 | O24: 0 | P24: 0 | Q24: 0 | R24: 0 | S24: 0 | T24: 0 | U24: 0 | V24: ='DOLDURULMASI GEREKEN TABLO'!M37 -> 0 | W24: 2025-1 | X24: =VLOOKUP(W24,'Aylık Yİ-ÜFE'!$D$1:$E$500,2,0) -> 3861.33 | Y24: =CONCATENATE(YEAR('DOLDURULMASI GEREKEN TABLO'!N37),"-",MONTH('DOLDURULMASI GEREKEN TABLO'!N37)) -> 2025-12 | Z24: =VLOOKUP(Y24,'Aylık Yİ-ÜFE'!$D$1:$E$500,2,0) -> 4783.04 | AA24: 1 | AB24: =IF('DOLDURULMASI GEREKEN TABLO'!M37="EVET",MAX(S24*AA24,S24),S24) -> 0 | AC24: =IF('DOLDURULMASI GEREKEN TABLO'!M37="EVET",MAX(T24*AA24,T24),T24) -> 0 | AD24: 0 | AE24: 0 | AF24: 0 | AG24: 0 | AH24: 0 | AJ24: 00:00:00 | AK24: ='DOLDURULMASI GEREKEN TABLO'!N37 -> 2025-12-31 | AL24: 0 | AM24: 0 | AN24: 46022 | AO24: 126 | AP24: 126 | AQ24: 126 | AR24: 0
B25: 18 | C25: ='DOLDURULMASI GEREKEN TABLO'!D38 -> 0 | D25: ='DOLDURULMASI GEREKEN TABLO'!E38 -> 0 | E25: ='DOLDURULMASI GEREKEN TABLO'!F38 -> 0 | F25: ='DOLDURULMASI GEREKEN TABLO'!G38 -> 0 | G25: 0 | H25: ='DOLDURULMASI GEREKEN TABLO'!H38 -> 00:00:00 | I25: 2025-12-31 | J25: 2025 YD ORANINA GÖRE GEÇİCİ 32 YE GÖRE YD YAPILABİLİR | K25: ='DOLDURULMASI GEREKEN TABLO'!J38 -> 0 | L25: ='DOLDURULMASI GEREKEN TABLO'!K38 -> 0 | M25: ='DOLDURULMASI GEREKEN TABLO'!L38 -> 0 | N25: =IFERROR(IF('DOLDURULMASI GEREKEN TABLO'!M38="EVET",(I25-H25)+1,0),0) -> 0 | O25: 0 | P25: 0 | Q25: 0 | R25: 0 | S25: 0 | T25: 0 | U25: 0 | V25: ='DOLDURULMASI GEREKEN TABLO'!M38 -> 0 | W25: 2025-1 | X25: =VLOOKUP(W25,'Aylık Yİ-ÜFE'!$D$1:$E$500,2,0) -> 3861.33 | Y25: =CONCATENATE(YEAR('DOLDURULMASI GEREKEN TABLO'!N38),"-",MONTH('DOLDURULMASI GEREKEN TABLO'!N38)) -> 2025-12 | Z25: =VLOOKUP(Y25,'Aylık Yİ-ÜFE'!$D$1:$E$500,2,0) -> 4783.04 | AA25: 1 | AB25: =IF('DOLDURULMASI GEREKEN TABLO'!M38="EVET",MAX(S25*AA25,S25),S25) -> 0 | AC25: =IF('DOLDURULMASI GEREKEN TABLO'!M38="EVET",MAX(T25*AA25,T25),T25) -> 0 | AD25: 0 | AE25: 0 | AF25: 0 | AG25: 0 | AH25: 0 | AJ25: 00:00:00 | AK25: ='DOLDURULMASI GEREKEN TABLO'!N38 -> 2025-12-31 | AL25: 0 | AM25: 0 | AN25: 46022 | AO25: 126 | AP25: 126 | AQ25: 126 | AR25: 0
B26: 19 | C26: ='DOLDURULMASI GEREKEN TABLO'!D39 -> 0 | D26: ='DOLDURULMASI GEREKEN TABLO'!E39 -> 0 | E26: ='DOLDURULMASI GEREKEN TABLO'!F39 -> 0 | F26: ='DOLDURULMASI GEREKEN TABLO'!G39 -> 0 | G26: 0 | H26: ='DOLDURULMASI GEREKEN TABLO'!H39 -> 00:00:00 | I26: 2025-12-31 | J26: 2025 YD ORANINA GÖRE GEÇİCİ 32 YE GÖRE YD YAPILABİLİR | K26: ='DOLDURULMASI GEREKEN TABLO'!J39 -> 0 | L26: ='DOLDURULMASI GEREKEN TABLO'!K39 -> 0 | M26: ='DOLDURULMASI GEREKEN TABLO'!L39 -> 0 | N26: =IFERROR(IF('DOLDURULMASI GEREKEN TABLO'!M39="EVET",(I26-H26)+1,0),0) -> 0 | O26: 0 | P26: 0 | Q26: 0 | R26: 0 | S26: 0 | T26: 0 | U26: 0 | V26: ='DOLDURULMASI GEREKEN TABLO'!M39 -> 0 | W26: 2025-1 | X26: =VLOOKUP(W26,'Aylık Yİ-ÜFE'!$D$1:$E$500,2,0) -> 3861.33 | Y26: =CONCATENATE(YEAR('DOLDURULMASI GEREKEN TABLO'!N39),"-",MONTH('DOLDURULMASI GEREKEN TABLO'!N39)) -> 2025-12 | Z26: =VLOOKUP(Y26,'Aylık Yİ-ÜFE'!$D$1:$E$500,2,0) -> 4783.04 | AA26: 1 | AB26: =IF('DOLDURULMASI GEREKEN TABLO'!M39="EVET",MAX(S26*AA26,S26),S26) -> 0 | AC26: =IF('DOLDURULMASI GEREKEN TABLO'!M39="EVET",MAX(T26*AA26,T26),T26) -> 0 | AD26: 0 | AE26: 0 | AF26: 0 | AG26: 0 | AH26: 0 | AJ26: 00:00:00 | AK26: ='DOLDURULMASI GEREKEN TABLO'!N39 -> 2025-12-31 | AL26: 0 | AM26: 0 | AN26: 46022 | AO26: 126 | AP26: 126 | AQ26: 126 | AR26: 0
B27: 20 | C27: ='DOLDURULMASI GEREKEN TABLO'!D40 -> 0 | D27: ='DOLDURULMASI GEREKEN TABLO'!E40 -> 0 | E27: ='DOLDURULMASI GEREKEN TABLO'!F40 -> 0 | F27: ='DOLDURULMASI GEREKEN TABLO'!G40 -> 0 | G27: 0 | H27: ='DOLDURULMASI GEREKEN TABLO'!H40 -> 00:00:00 | I27: 2025-12-31 | J27: 2025 YD ORANINA GÖRE GEÇİCİ 32 YE GÖRE YD YAPILABİLİR | K27: ='DOLDURULMASI GEREKEN TABLO'!J40 -> 0 | L27: ='DOLDURULMASI GEREKEN TABLO'!K40 -> 0 | M27: ='DOLDURULMASI GEREKEN TABLO'!L40 -> 0 | N27: =IFERROR(IF('DOLDURULMASI GEREKEN TABLO'!M40="EVET",(I27-H27)+1,0),0) -> 0 | O27: 0 | P27: 0 | Q27: 0 | R27: 0 | S27: 0 | T27: 0 | U27: 0 | V27: ='DOLDURULMASI GEREKEN TABLO'!M40 -> 0 | W27: 2025-1 | X27: =VLOOKUP(W27,'Aylık Yİ-ÜFE'!$D$1:$E$500,2,0) -> 3861.33 | Y27: =CONCATENATE(YEAR('DOLDURULMASI GEREKEN TABLO'!N40),"-",MONTH('DOLDURULMASI GEREKEN TABLO'!N40)) -> 2025-12 | Z27: =VLOOKUP(Y27,'Aylık Yİ-ÜFE'!$D$1:$E$500,2,0) -> 4783.04 | AA27: 1 | AB27: =IF('DOLDURULMASI GEREKEN TABLO'!M40="EVET",MAX(S27*AA27,S27),S27) -> 0 | AC27: =IF('DOLDURULMASI GEREKEN TABLO'!M40="EVET",MAX(T27*AA27,T27),T27) -> 0 | AD27: 0 | AE27: 0 | AF27: 0 | AG27: 0 | AH27: 0 | AJ27: 00:00:00 | AK27: ='DOLDURULMASI GEREKEN TABLO'!N40 -> 2025-12-31 | AL27: 0 | AM27: 0 | AN27: 46022 | AO27: 126 | AP27: 126 | AQ27: 126 | AR27: 0
B28: 21 | C28: ='DOLDURULMASI GEREKEN TABLO'!D41 -> 0 | D28: ='DOLDURULMASI GEREKEN TABLO'!E41 -> 0 | E28: ='DOLDURULMASI GEREKEN TABLO'!F41 -> 0 | F28: ='DOLDURULMASI GEREKEN TABLO'!G41 -> 0 | G28: 0 | H28: ='DOLDURULMASI GEREKEN TABLO'!H41 -> 00:00:00 | I28: 2025-12-31 | J28: 2025 YD ORANINA GÖRE GEÇİCİ 32 YE GÖRE YD YAPILABİLİR | K28: ='DOLDURULMASI GEREKEN TABLO'!J41 -> 0 | L28: ='DOLDURULMASI GEREKEN TABLO'!K41 -> 0 | M28: ='DOLDURULMASI GEREKEN TABLO'!L41 -> 0 | N28: =IFERROR(IF('DOLDURULMASI GEREKEN TABLO'!M41="EVET",(I28-H28)+1,0),0) -> 0 | O28: 0 | P28: 0 | Q28: 0 | R28: 0 | S28: 0 | T28: 0 | U28: 0 | V28: ='DOLDURULMASI GEREKEN TABLO'!M41 -> 0 | W28: 2025-1 | X28: =VLOOKUP(W28,'Aylık Yİ-ÜFE'!$D$1:$E$500,2,0) -> 3861.33 | Y28: =CONCATENATE(YEAR('DOLDURULMASI GEREKEN TABLO'!N41),"-",MONTH('DOLDURULMASI GEREKEN TABLO'!N41)) -> 2025-12 | Z28: =VLOOKUP(Y28,'Aylık Yİ-ÜFE'!$D$1:$E$500,2,0) -> 4783.04 | AA28: 1 | AB28: =IF('DOLDURULMASI GEREKEN TABLO'!M41="EVET",MAX(S28*AA28,S28),S28) -> 0 | AC28: =IF('DOLDURULMASI GEREKEN TABLO'!M41="EVET",MAX(T28*AA28,T28),T28) -> 0 | AD28: 0 | AE28: 0 | AF28: 0 | AG28: 0 | AH28: 0 | AJ28: 00:00:00 | AK28: ='DOLDURULMASI GEREKEN TABLO'!N41 -> 2025-12-31 | AL28: 0 | AM28: 0 | AN28: 46022 | AO28: 126 | AP28: 126 | AQ28: 126 | AR28: 0
B29: 22 | C29: ='DOLDURULMASI GEREKEN TABLO'!D42 -> 0 | D29: ='DOLDURULMASI GEREKEN TABLO'!E42 -> 0 | E29: ='DOLDURULMASI GEREKEN TABLO'!F42 -> 0 | F29: ='DOLDURULMASI GEREKEN TABLO'!G42 -> 0 | G29: 0 | H29: ='DOLDURULMASI GEREKEN TABLO'!H42 -> 00:00:00 | I29: 2025-12-31 | J29: 2025 YD ORANINA GÖRE GEÇİCİ 32 YE GÖRE YD YAPILABİLİR | K29: ='DOLDURULMASI GEREKEN TABLO'!J42 -> 0 | L29: ='DOLDURULMASI GEREKEN TABLO'!K42 -> 0 | M29: ='DOLDURULMASI GEREKEN TABLO'!L42 -> 0 | N29: =IFERROR(IF('DOLDURULMASI GEREKEN TABLO'!M42="EVET",(I29-H29)+1,0),0) -> 0 | O29: 0 | P29: 0 | Q29: 0 | R29: 0 | S29: 0 | T29: 0 | U29: 0 | V29: ='DOLDURULMASI GEREKEN TABLO'!M42 -> 0 | W29: 2025-1 | X29: =VLOOKUP(W29,'Aylık Yİ-ÜFE'!$D$1:$E$500,2,0) -> 3861.33 | Y29: =CONCATENATE(YEAR('DOLDURULMASI GEREKEN TABLO'!N42),"-",MONTH('DOLDURULMASI GEREKEN TABLO'!N42)) -> 2025-12 | Z29: =VLOOKUP(Y29,'Aylık Yİ-ÜFE'!$D$1:$E$500,2,0) -> 4783.04 | AA29: 1 | AB29: =IF('DOLDURULMASI GEREKEN TABLO'!M42="EVET",MAX(S29*AA29,S29),S29) -> 0 | AC29: =IF('DOLDURULMASI GEREKEN TABLO'!M42="EVET",MAX(T29*AA29,T29),T29) -> 0 | AD29: 0 | AE29: 0 | AF29: 0 | AG29: 0 | AH29: 0 | AJ29: 00:00:00 | AK29: ='DOLDURULMASI GEREKEN TABLO'!N42 -> 2025-12-31 | AL29: 0 | AM29: 0 | AN29: 46022 | AO29: 126 | AP29: 126 | AQ29: 126 | AR29: 0
B30: 23 | C30: ='DOLDURULMASI GEREKEN TABLO'!D43 -> 0 | D30: ='DOLDURULMASI GEREKEN TABLO'!E43 -> 0 | E30: ='DOLDURULMASI GEREKEN TABLO'!F43 -> 0 | F30: ='DOLDURULMASI GEREKEN TABLO'!G43 -> 0 | G30: 0 | H30: ='DOLDURULMASI GEREKEN TABLO'!H43 -> 00:00:00 | I30: 2025-12-31 | J30: 2025 YD ORANINA GÖRE GEÇİCİ 32 YE GÖRE YD YAPILABİLİR | K30: ='DOLDURULMASI GEREKEN TABLO'!J43 -> 0 | L30: ='DOLDURULMASI GEREKEN TABLO'!K43 -> 0 | M30: ='DOLDURULMASI GEREKEN TABLO'!L43 -> 0 | N30: =IFERROR(IF('DOLDURULMASI GEREKEN TABLO'!M43="EVET",(I30-H30)+1,0),0) -> 0 | O30: 0 | P30: 0 | Q30: 0 | R30: 0 | S30: 0 | T30: 0 | U30: 0 | V30: ='DOLDURULMASI GEREKEN TABLO'!M43 -> 0 | W30: 2025-1 | X30: =VLOOKUP(W30,'Aylık Yİ-ÜFE'!$D$1:$E$500,2,0) -> 3861.33 | Y30: =CONCATENATE(YEAR('DOLDURULMASI GEREKEN TABLO'!N43),"-",MONTH('DOLDURULMASI GEREKEN TABLO'!N43)) -> 2025-12 | Z30: =VLOOKUP(Y30,'Aylık Yİ-ÜFE'!$D$1:$E$500,2,0) -> 4783.04 | AA30: 1 | AB30: =IF('DOLDURULMASI GEREKEN TABLO'!M43="EVET",MAX(S30*AA30,S30),S30) -> 0 | AC30: =IF('DOLDURULMASI GEREKEN TABLO'!M43="EVET",MAX(T30*AA30,T30),T30) -> 0 | AD30: 0 | AE30: 0 | AF30: 0 | AG30: 0 | AH30: 0 | AJ30: 00:00:00 | AK30: ='DOLDURULMASI GEREKEN TABLO'!N43 -> 2025-12-31 | AL30: 0 | AM30: 0 | AN30: 46022 | AO30: 126 | AP30: 126 | AQ30: 126 | AR30: 0
B31: 24 | C31: ='DOLDURULMASI GEREKEN TABLO'!D44 -> 0 | D31: ='DOLDURULMASI GEREKEN TABLO'!E44 -> 0 | E31: ='DOLDURULMASI GEREKEN TABLO'!F44 -> 0 | F31: ='DOLDURULMASI GEREKEN TABLO'!G44 -> 0 | G31: 0 | H31: ='DOLDURULMASI GEREKEN TABLO'!H44 -> 00:00:00 | I31: 2025-12-31 | J31: 2025 YD ORANINA GÖRE GEÇİCİ 32 YE GÖRE YD YAPILABİLİR | K31: ='DOLDURULMASI GEREKEN TABLO'!J44 -> 0 | L31: ='DOLDURULMASI GEREKEN TABLO'!K44 -> 0 | M31: ='DOLDURULMASI GEREKEN TABLO'!L44 -> 0 | N31: =IFERROR(IF('DOLDURULMASI GEREKEN TABLO'!M44="EVET",(I31-H31)+1,0),0) -> 0 | O31: 0 | P31: 0 | Q31: 0 | R31: 0 | S31: 0 | T31: 0 | U31: 0 | V31: ='DOLDURULMASI GEREKEN TABLO'!M44 -> 0 | W31: 2025-1 | X31: =VLOOKUP(W31,'Aylık Yİ-ÜFE'!$D$1:$E$500,2,0) -> 3861.33 | Y31: =CONCATENATE(YEAR('DOLDURULMASI GEREKEN TABLO'!N44),"-",MONTH('DOLDURULMASI GEREKEN TABLO'!N44)) -> 2025-12 | Z31: =VLOOKUP(Y31,'Aylık Yİ-ÜFE'!$D$1:$E$500,2,0) -> 4783.04 | AA31: 1 | AB31: =IF('DOLDURULMASI GEREKEN TABLO'!M44="EVET",MAX(S31*AA31,S31),S31) -> 0 | AC31: =IF('DOLDURULMASI GEREKEN TABLO'!M44="EVET",MAX(T31*AA31,T31),T31) -> 0 | AD31: 0 | AE31: 0 | AF31: 0 | AG31: 0 | AH31: 0 | AJ31: 00:00:00 | AK31: ='DOLDURULMASI GEREKEN TABLO'!N44 -> 2025-12-31 | AL31: 0 | AM31: 0 | AN31: 46022 | AO31: 126 | AP31: 126 | AQ31: 126 | AR31: 0
B32: 25 | C32: ='DOLDURULMASI GEREKEN TABLO'!D45 -> 0 | D32: ='DOLDURULMASI GEREKEN TABLO'!E45 -> 0 | E32: ='DOLDURULMASI GEREKEN TABLO'!F45 -> 0 | F32: ='DOLDURULMASI GEREKEN TABLO'!G45 -> 0 | G32: 0 | H32: ='DOLDURULMASI GEREKEN TABLO'!H45 -> 00:00:00 | I32: 2025-12-31 | J32: 2025 YD ORANINA GÖRE GEÇİCİ 32 YE GÖRE YD YAPILABİLİR | K32: ='DOLDURULMASI GEREKEN TABLO'!J45 -> 0 | L32: ='DOLDURULMASI GEREKEN TABLO'!K45 -> 0 | M32: ='DOLDURULMASI GEREKEN TABLO'!L45 -> 0 | N32: =IFERROR(IF('DOLDURULMASI GEREKEN TABLO'!M45="EVET",(I32-H32)+1,0),0) -> 0 | O32: 0 | P32: 0 | Q32: 0 | R32: 0 | S32: 0 | T32: 0 | U32: 0 | V32: ='DOLDURULMASI GEREKEN TABLO'!M45 -> 0 | W32: 2025-1 | X32: =VLOOKUP(W32,'Aylık Yİ-ÜFE'!$D$1:$E$500,2,0) -> 3861.33 | Y32: =CONCATENATE(YEAR('DOLDURULMASI GEREKEN TABLO'!N45),"-",MONTH('DOLDURULMASI GEREKEN TABLO'!N45)) -> 2025-12 | Z32: =VLOOKUP(Y32,'Aylık Yİ-ÜFE'!$D$1:$E$500,2,0) -> 4783.04 | AA32: 1 | AB32: =IF('DOLDURULMASI GEREKEN TABLO'!M45="EVET",MAX(S32*AA32,S32),S32) -> 0 | AC32: =IF('DOLDURULMASI GEREKEN TABLO'!M45="EVET",MAX(T32*AA32,T32),T32) -> 0 | AD32: 0 | AE32: 0 | AF32: 0 | AG32: 0 | AH32: 0 | AJ32: 00:00:00 | AK32: ='DOLDURULMASI GEREKEN TABLO'!N45 -> 2025-12-31 | AL32: 0 | AM32: 0 | AN32: 46022 | AO32: 126 | AP32: 126 | AQ32: 126 | AR32: 0
B33: 26 | C33: ='DOLDURULMASI GEREKEN TABLO'!D46 -> 0 | D33: ='DOLDURULMASI GEREKEN TABLO'!E46 -> 0 | E33: ='DOLDURULMASI GEREKEN TABLO'!F46 -> 0 | F33: ='DOLDURULMASI GEREKEN TABLO'!G46 -> 0 | G33: 0 | H33: ='DOLDURULMASI GEREKEN TABLO'!H46 -> 00:00:00 | I33: 2025-12-31 | J33: 2025 YD ORANINA GÖRE GEÇİCİ 32 YE GÖRE YD YAPILABİLİR | K33: ='DOLDURULMASI GEREKEN TABLO'!J46 -> 0 | L33: ='DOLDURULMASI GEREKEN TABLO'!K46 -> 0 | M33: ='DOLDURULMASI GEREKEN TABLO'!L46 -> 0 | N33: =IFERROR(IF('DOLDURULMASI GEREKEN TABLO'!M46="EVET",(I33-H33)+1,0),0) -> 0 | O33: 0 | P33: 0 | Q33: 0 | R33: 0 | S33: 0 | T33: 0 | U33: 0 | V33: ='DOLDURULMASI GEREKEN TABLO'!M46 -> 0 | W33: 2025-1 | X33: =VLOOKUP(W33,'Aylık Yİ-ÜFE'!$D$1:$E$500,2,0) -> 3861.33 | Y33: =CONCATENATE(YEAR('DOLDURULMASI GEREKEN TABLO'!N46),"-",MONTH('DOLDURULMASI GEREKEN TABLO'!N46)) -> 2025-12 | Z33: =VLOOKUP(Y33,'Aylık Yİ-ÜFE'!$D$1:$E$500,2,0) -> 4783.04 | AA33: 1 | AB33: =IF('DOLDURULMASI GEREKEN TABLO'!M46="EVET",MAX(S33*AA33,S33),S33) -> 0 | AC33: =IF('DOLDURULMASI GEREKEN TABLO'!M46="EVET",MAX(T33*AA33,T33),T33) -> 0 | AD33: 0 | AE33: 0 | AF33: 0 | AG33: 0 | AH33: 0 | AJ33: 00:00:00 | AK33: ='DOLDURULMASI GEREKEN TABLO'!N46 -> 2025-12-31 | AL33: 0 | AM33: 0 | AN33: 46022 | AO33: 126 | AP33: 126 | AQ33: 126 | AR33: 0
B34: 27 | C34: ='DOLDURULMASI GEREKEN TABLO'!D47 -> 0 | D34: ='DOLDURULMASI GEREKEN TABLO'!E47 -> 0 | E34: ='DOLDURULMASI GEREKEN TABLO'!F47 -> 0 | F34: ='DOLDURULMASI GEREKEN TABLO'!G47 -> 0 | G34: 0 | H34: ='DOLDURULMASI GEREKEN TABLO'!H47 -> 00:00:00 | I34: 2025-12-31 | J34: 2025 YD ORANINA GÖRE GEÇİCİ 32 YE GÖRE YD YAPILABİLİR | K34: ='DOLDURULMASI GEREKEN TABLO'!J47 -> 0 | L34: ='DOLDURULMASI GEREKEN TABLO'!K47 -> 0 | M34: ='DOLDURULMASI GEREKEN TABLO'!L47 -> 0 | N34: =IFERROR(IF('DOLDURULMASI GEREKEN TABLO'!M47="EVET",(I34-H34)+1,0),0) -> 0 | O34: 0 | P34: 0 | Q34: 0 | R34: 0 | S34: 0 | T34: 0 | U34: 0 | V34: ='DOLDURULMASI GEREKEN TABLO'!M47 -> 0 | W34: 2025-1 | X34: =VLOOKUP(W34,'Aylık Yİ-ÜFE'!$D$1:$E$500,2,0) -> 3861.33 | Y34: =CONCATENATE(YEAR('DOLDURULMASI GEREKEN TABLO'!N47),"-",MONTH('DOLDURULMASI GEREKEN TABLO'!N47)) -> 2025-12 | Z34: =VLOOKUP(Y34,'Aylık Yİ-ÜFE'!$D$1:$E$500,2,0) -> 4783.04 | AA34: 1 | AB34: =IF('DOLDURULMASI GEREKEN TABLO'!M47="EVET",MAX(S34*AA34,S34),S34) -> 0 | AC34: =IF('DOLDURULMASI GEREKEN TABLO'!M47="EVET",MAX(T34*AA34,T34),T34) -> 0 | AD34: 0 | AE34: 0 | AF34: 0 | AG34: 0 | AH34: 0 | AJ34: 00:00:00 | AK34: ='DOLDURULMASI GEREKEN TABLO'!N47 -> 2025-12-31 | AL34: 0 | AM34: 0 | AN34: 46022 | AO34: 126 | AP34: 126 | AQ34: 126 | AR34: 0
B35: 28 | C35: ='DOLDURULMASI GEREKEN TABLO'!D48 -> 0 | D35: ='DOLDURULMASI GEREKEN TABLO'!E48 -> 0 | E35: ='DOLDURULMASI GEREKEN TABLO'!F48 -> 0 | F35: ='DOLDURULMASI GEREKEN TABLO'!G48 -> 0 | G35: 0 | H35: ='DOLDURULMASI GEREKEN TABLO'!H48 -> 00:00:00 | I35: 2025-12-31 | J35: 2025 YD ORANINA GÖRE GEÇİCİ 32 YE GÖRE YD YAPILABİLİR | K35: ='DOLDURULMASI GEREKEN TABLO'!J48 -> 0 | L35: ='DOLDURULMASI GEREKEN TABLO'!K48 -> 0 | M35: ='DOLDURULMASI GEREKEN TABLO'!L48 -> 0 | N35: =IFERROR(IF('DOLDURULMASI GEREKEN TABLO'!M48="EVET",(I35-H35)+1,0),0) -> 0 | O35: 0 | P35: 0 | Q35: 0 | R35: 0 | S35: 0 | T35: 0 | U35: 0 | V35: ='DOLDURULMASI GEREKEN TABLO'!M48 -> 0 | W35: 2025-1 | X35: =VLOOKUP(W35,'Aylık Yİ-ÜFE'!$D$1:$E$500,2,0) -> 3861.33 | Y35: =CONCATENATE(YEAR('DOLDURULMASI GEREKEN TABLO'!N48),"-",MONTH('DOLDURULMASI GEREKEN TABLO'!N48)) -> 2025-12 | Z35: =VLOOKUP(Y35,'Aylık Yİ-ÜFE'!$D$1:$E$500,2,0) -> 4783.04 | AA35: 1 | AB35: =IF('DOLDURULMASI GEREKEN TABLO'!M48="EVET",MAX(S35*AA35,S35),S35) -> 0 | AC35: =IF('DOLDURULMASI GEREKEN TABLO'!M48="EVET",MAX(T35*AA35,T35),T35) -> 0 | AD35: 0 | AE35: 0 | AF35: 0 | AG35: 0 | AH35: 0 | AJ35: 00:00:00 | AK35: ='DOLDURULMASI GEREKEN TABLO'!N48 -> 2025-12-31 | AL35: 0 | AM35: 0 | AN35: 46022 | AO35: 126 | AP35: 126 | AQ35: 126 | AR35: 0
B36: 29 | C36: ='DOLDURULMASI GEREKEN TABLO'!D49 -> 0 | D36: ='DOLDURULMASI GEREKEN TABLO'!E49 -> 0 | E36: ='DOLDURULMASI GEREKEN TABLO'!F49 -> 0 | F36: ='DOLDURULMASI GEREKEN TABLO'!G49 -> 0 | G36: 0 | H36: ='DOLDURULMASI GEREKEN TABLO'!H49 -> 00:00:00 | I36: 2025-12-31 | J36: 2025 YD ORANINA GÖRE GEÇİCİ 32 YE GÖRE YD YAPILABİLİR | K36: ='DOLDURULMASI GEREKEN TABLO'!J49 -> 0 | L36: ='DOLDURULMASI GEREKEN TABLO'!K49 -> 0 | M36: ='DOLDURULMASI GEREKEN TABLO'!L49 -> 0 | N36: =IFERROR(IF('DOLDURULMASI GEREKEN TABLO'!M49="EVET",(I36-H36)+1,0),0) -> 0 | O36: 0 | P36: 0 | Q36: 0 | R36: 0 | S36: 0 | T36: 0 | U36: 0 | V36: ='DOLDURULMASI GEREKEN TABLO'!M49 -> 0 | W36: 2025-1 | X36: =VLOOKUP(W36,'Aylık Yİ-ÜFE'!$D$1:$E$500,2,0) -> 3861.33 | Y36: =CONCATENATE(YEAR('DOLDURULMASI GEREKEN TABLO'!N49),"-",MONTH('DOLDURULMASI GEREKEN TABLO'!N49)) -> 2025-12 | Z36: =VLOOKUP(Y36,'Aylık Yİ-ÜFE'!$D$1:$E$500,2,0) -> 4783.04 | AA36: 1 | AB36: =IF('DOLDURULMASI GEREKEN TABLO'!M49="EVET",MAX(S36*AA36,S36),S36) -> 0 | AC36: =IF('DOLDURULMASI GEREKEN TABLO'!M49="EVET",MAX(T36*AA36,T36),T36) -> 0 | AD36: 0 | AE36: 0 | AF36: 0 | AG36: 0 | AH36: 0 | AJ36: 00:00:00 | AK36: ='DOLDURULMASI GEREKEN TABLO'!N49 -> 2025-12-31 | AL36: 0 | AM36: 0 | AN36: 46022 | AO36: 126 | AP36: 126 | AQ36: 126 | AR36: 0
B37: 30 | C37: ='DOLDURULMASI GEREKEN TABLO'!D50 -> 0 | D37: ='DOLDURULMASI GEREKEN TABLO'!E50 -> 0 | E37: ='DOLDURULMASI GEREKEN TABLO'!F50 -> 0 | F37: ='DOLDURULMASI GEREKEN TABLO'!G50 -> 0 | G37: 0 | H37: ='DOLDURULMASI GEREKEN TABLO'!H50 -> 00:00:00 | I37: 2025-12-31 | J37: 2025 YD ORANINA GÖRE GEÇİCİ 32 YE GÖRE YD YAPILABİLİR | K37: ='DOLDURULMASI GEREKEN TABLO'!J50 -> 0 | L37: ='DOLDURULMASI GEREKEN TABLO'!K50 -> 0 | M37: ='DOLDURULMASI GEREKEN TABLO'!L50 -> 0 | N37: =IFERROR(IF('DOLDURULMASI GEREKEN TABLO'!M50="EVET",(I37-H37)+1,0),0) -> 0 | O37: 0 | P37: 0 | Q37: 0 | R37: 0 | S37: 0 | T37: 0 | U37: 0 | V37: ='DOLDURULMASI GEREKEN TABLO'!M50 -> 0 | W37: 2025-1 | X37: =VLOOKUP(W37,'Aylık Yİ-ÜFE'!$D$1:$E$500,2,0) -> 3861.33 | Y37: =CONCATENATE(YEAR('DOLDURULMASI GEREKEN TABLO'!N50),"-",MONTH('DOLDURULMASI GEREKEN TABLO'!N50)) -> 2025-12 | Z37: =VLOOKUP(Y37,'Aylık Yİ-ÜFE'!$D$1:$E$500,2,0) -> 4783.04 | AA37: 1 | AB37: =IF('DOLDURULMASI GEREKEN TABLO'!M50="EVET",MAX(S37*AA37,S37),S37) -> 0 | AC37: =IF('DOLDURULMASI GEREKEN TABLO'!M50="EVET",MAX(T37*AA37,T37),T37) -> 0 | AD37: 0 | AE37: 0 | AF37: 0 | AG37: 0 | AH37: 0 | AJ37: 00:00:00 | AK37: ='DOLDURULMASI GEREKEN TABLO'!N50 -> 2025-12-31 | AL37: 0 | AM37: 0 | AN37: 46022 | AO37: 126 | AP37: 126 | AQ37: 126 | AR37: 0
B38: 31 | C38: ='DOLDURULMASI GEREKEN TABLO'!D51 -> 0 | D38: ='DOLDURULMASI GEREKEN TABLO'!E51 -> 0 | E38: ='DOLDURULMASI GEREKEN TABLO'!F51 -> 0 | F38: ='DOLDURULMASI GEREKEN TABLO'!G51 -> 0 | G38: 0 | H38: ='DOLDURULMASI GEREKEN TABLO'!H51 -> 00:00:00 | I38: 2025-12-31 | J38: 2025 YD ORANINA GÖRE GEÇİCİ 32 YE GÖRE YD YAPILABİLİR | K38: ='DOLDURULMASI GEREKEN TABLO'!J51 -> 0 | L38: ='DOLDURULMASI GEREKEN TABLO'!K51 -> 0 | M38: ='DOLDURULMASI GEREKEN TABLO'!L51 -> 0 | N38: =IFERROR(IF('DOLDURULMASI GEREKEN TABLO'!M51="EVET",(I38-H38)+1,0),0) -> 0 | O38: 0 | P38: 0 | Q38: 0 | R38: 0 | S38: 0 | T38: 0 | U38: 0 | V38: ='DOLDURULMASI GEREKEN TABLO'!M51 -> 0 | W38: 2025-1 | X38: =VLOOKUP(W38,'Aylık Yİ-ÜFE'!$D$1:$E$500,2,0) -> 3861.33 | Y38: =CONCATENATE(YEAR('DOLDURULMASI GEREKEN TABLO'!N51),"-",MONTH('DOLDURULMASI GEREKEN TABLO'!N51)) -> 2025-12 | Z38: =VLOOKUP(Y38,'Aylık Yİ-ÜFE'!$D$1:$E$500,2,0) -> 4783.04 | AA38: 1 | AB38: =IF('DOLDURULMASI GEREKEN TABLO'!M51="EVET",MAX(S38*AA38,S38),S38) -> 0 | AC38: =IF('DOLDURULMASI GEREKEN TABLO'!M51="EVET",MAX(T38*AA38,T38),T38) -> 0 | AD38: 0 | AE38: 0 | AF38: 0 | AG38: 0 | AH38: 0 | AJ38: 00:00:00 | AK38: ='DOLDURULMASI GEREKEN TABLO'!N51 -> 2025-12-31 | AL38: 0 | AM38: 0 | AN38: 46022 | AO38: 126 | AP38: 126 | AQ38: 126 | AR38: 0
B39: 32 | C39: ='DOLDURULMASI GEREKEN TABLO'!D52 -> 0 | D39: ='DOLDURULMASI GEREKEN TABLO'!E52 -> 0 | E39: ='DOLDURULMASI GEREKEN TABLO'!F52 -> 0 | F39: ='DOLDURULMASI GEREKEN TABLO'!G52 -> 0 | G39: 0 | H39: ='DOLDURULMASI GEREKEN TABLO'!H52 -> 00:00:00 | I39: 2025-12-31 | J39: 2025 YD ORANINA GÖRE GEÇİCİ 32 YE GÖRE YD YAPILABİLİR | K39: ='DOLDURULMASI GEREKEN TABLO'!J52 -> 0 | L39: ='DOLDURULMASI GEREKEN TABLO'!K52 -> 0 | M39: ='DOLDURULMASI GEREKEN TABLO'!L52 -> 0 | N39: =IFERROR(IF('DOLDURULMASI GEREKEN TABLO'!M52="EVET",(I39-H39)+1,0),0) -> 0 | O39: 0 | P39: 0 | Q39: 0 | R39: 0 | S39: 0 | T39: 0 | U39: 0 | V39: ='DOLDURULMASI GEREKEN TABLO'!M52 -> 0 | W39: 2025-1 | X39: =VLOOKUP(W39,'Aylık Yİ-ÜFE'!$D$1:$E$500,2,0) -> 3861.33 | Y39: =CONCATENATE(YEAR('DOLDURULMASI GEREKEN TABLO'!N52),"-",MONTH('DOLDURULMASI GEREKEN TABLO'!N52)) -> 2025-12 | Z39: =VLOOKUP(Y39,'Aylık Yİ-ÜFE'!$D$1:$E$500,2,0) -> 4783.04 | AA39: 1 | AB39: =IF('DOLDURULMASI GEREKEN TABLO'!M52="EVET",MAX(S39*AA39,S39),S39) -> 0 | AC39: =IF('DOLDURULMASI GEREKEN TABLO'!M52="EVET",MAX(T39*AA39,T39),T39) -> 0 | AD39: 0 | AE39: 0 | AF39: 0 | AG39: 0 | AH39: 0 | AJ39: 00:00:00 | AK39: ='DOLDURULMASI GEREKEN TABLO'!N52 -> 2025-12-31 | AL39: 0 | AM39: 0 | AN39: 46022 | AO39: 126 | AP39: 126 | AQ39: 126 | AR39: 0
B40: 33 | C40: ='DOLDURULMASI GEREKEN TABLO'!D53 -> 0 | D40: ='DOLDURULMASI GEREKEN TABLO'!E53 -> 0 | E40: ='DOLDURULMASI GEREKEN TABLO'!F53 -> 0 | F40: ='DOLDURULMASI GEREKEN TABLO'!G53 -> 0 | G40: 0 | H40: ='DOLDURULMASI GEREKEN TABLO'!H53 -> 00:00:00 | I40: 2025-12-31 | J40: 2025 YD ORANINA GÖRE GEÇİCİ 32 YE GÖRE YD YAPILABİLİR | K40: ='DOLDURULMASI GEREKEN TABLO'!J53 -> 0 | L40: ='DOLDURULMASI GEREKEN TABLO'!K53 -> 0 | M40: ='DOLDURULMASI GEREKEN TABLO'!L53 -> 0 | N40: =IFERROR(IF('DOLDURULMASI GEREKEN TABLO'!M53="EVET",(I40-H40)+1,0),0) -> 0 | O40: 0 | P40: 0 | Q40: 0 | R40: 0 | S40: 0 | T40: 0 | U40: 0 | V40: ='DOLDURULMASI GEREKEN TABLO'!M53 -> 0 | W40: 2025-1 | X40: =VLOOKUP(W40,'Aylık Yİ-ÜFE'!$D$1:$E$500,2,0) -> 3861.33 | Y40: =CONCATENATE(YEAR('DOLDURULMASI GEREKEN TABLO'!N53),"-",MONTH('DOLDURULMASI GEREKEN TABLO'!N53)) -> 2025-12 | Z40: =VLOOKUP(Y40,'Aylık Yİ-ÜFE'!$D$1:$E$500,2,0) -> 4783.04 | AA40: 1 | AB40: =IF('DOLDURULMASI GEREKEN TABLO'!M53="EVET",MAX(S40*AA40,S40),S40) -> 0 | AC40: =IF('DOLDURULMASI GEREKEN TABLO'!M53="EVET",MAX(T40*AA40,T40),T40) -> 0 | AD40: 0 | AE40: 0 | AF40: 0 | AG40: 0 | AH40: 0 | AJ40: 00:00:00 | AK40: ='DOLDURULMASI GEREKEN TABLO'!N53 -> 2025-12-31 | AL40: 0 | AM40: 0 | AN40: 46022 | AO40: 126 | AP40: 126 | AQ40: 126 | AR40: 0
B41: 34 | C41: ='DOLDURULMASI GEREKEN TABLO'!D54 -> 0 | D41: ='DOLDURULMASI GEREKEN TABLO'!E54 -> 0 | E41: ='DOLDURULMASI GEREKEN TABLO'!F54 -> 0 | F41: ='DOLDURULMASI GEREKEN TABLO'!G54 -> 0 | G41: 0 | H41: ='DOLDURULMASI GEREKEN TABLO'!H54 -> 00:00:00 | I41: 2025-12-31 | J41: 2025 YD ORANINA GÖRE GEÇİCİ 32 YE GÖRE YD YAPILABİLİR | K41: ='DOLDURULMASI GEREKEN TABLO'!J54 -> 0 | L41: ='DOLDURULMASI GEREKEN TABLO'!K54 -> 0 | M41: ='DOLDURULMASI GEREKEN TABLO'!L54 -> 0 | N41: =IFERROR(IF('DOLDURULMASI GEREKEN TABLO'!M54="EVET",(I41-H41)+1,0),0) -> 0 | O41: 0 | P41: 0 | Q41: 0 | R41: 0 | S41: 0 | T41: 0 | U41: 0 | V41: ='DOLDURULMASI GEREKEN TABLO'!M54 -> 0 | W41: 2025-1 | X41: =VLOOKUP(W41,'Aylık Yİ-ÜFE'!$D$1:$E$500,2,0) -> 3861.33 | Y41: =CONCATENATE(YEAR('DOLDURULMASI GEREKEN TABLO'!N54),"-",MONTH('DOLDURULMASI GEREKEN TABLO'!N54)) -> 2025-12 | Z41: =VLOOKUP(Y41,'Aylık Yİ-ÜFE'!$D$1:$E$500,2,0) -> 4783.04 | AA41: 1 | AB41: =IF('DOLDURULMASI GEREKEN TABLO'!M54="EVET",MAX(S41*AA41,S41),S41) -> 0 | AC41: =IF('DOLDURULMASI GEREKEN TABLO'!M54="EVET",MAX(T41*AA41,T41),T41) -> 0 | AD41: 0 | AE41: 0 | AF41: 0 | AG41: 0 | AH41: 0 | AJ41: 00:00:00 | AK41: ='DOLDURULMASI GEREKEN TABLO'!N54 -> 2025-12-31 | AL41: 0 | AM41: 0 | AN41: 46022 | AO41: 126 | AP41: 126 | AQ41: 126 | AR41: 0
B42: 35 | C42: ='DOLDURULMASI GEREKEN TABLO'!D55 -> 0 | D42: ='DOLDURULMASI GEREKEN TABLO'!E55 -> 0 | E42: ='DOLDURULMASI GEREKEN TABLO'!F55 -> 0 | F42: ='DOLDURULMASI GEREKEN TABLO'!G55 -> 0 | G42: 0 | H42: ='DOLDURULMASI GEREKEN TABLO'!H55 -> 00:00:00 | I42: 2025-12-31 | J42: 2025 YD ORANINA GÖRE GEÇİCİ 32 YE GÖRE YD YAPILABİLİR | K42: ='DOLDURULMASI GEREKEN TABLO'!J55 -> 0 | L42: ='DOLDURULMASI GEREKEN TABLO'!K55 -> 0 | M42: ='DOLDURULMASI GEREKEN TABLO'!L55 -> 0 | N42: =IFERROR(IF('DOLDURULMASI GEREKEN TABLO'!M55="EVET",(I42-H42)+1,0),0) -> 0 | O42: 0 | P42: 0 | Q42: 0 | R42: 0 | S42: 0 | T42: 0 | U42: 0 | V42: ='DOLDURULMASI GEREKEN TABLO'!M55 -> 0 | W42: 2025-1 | X42: =VLOOKUP(W42,'Aylık Yİ-ÜFE'!$D$1:$E$500,2,0) -> 3861.33 | Y42: =CONCATENATE(YEAR('DOLDURULMASI GEREKEN TABLO'!N55),"-",MONTH('DOLDURULMASI GEREKEN TABLO'!N55)) -> 2025-12 | Z42: =VLOOKUP(Y42,'Aylık Yİ-ÜFE'!$D$1:$E$500,2,0) -> 4783.04 | AA42: 1 | AB42: =IF('DOLDURULMASI GEREKEN TABLO'!M55="EVET",MAX(S42*AA42,S42),S42) -> 0 | AC42: =IF('DOLDURULMASI GEREKEN TABLO'!M55="EVET",MAX(T42*AA42,T42),T42) -> 0 | AD42: 0 | AE42: 0 | AF42: 0 | AG42: 0 | AH42: 0 | AJ42: 00:00:00 | AK42: ='DOLDURULMASI GEREKEN TABLO'!N55 -> 2025-12-31 | AL42: 0 | AM42: 0 | AN42: 46022 | AO42: 126 | AP42: 126 | AQ42: 126 | AR42: 0
B43: 36 | C43: ='DOLDURULMASI GEREKEN TABLO'!D56 -> 0 | D43: ='DOLDURULMASI GEREKEN TABLO'!E56 -> 0 | E43: ='DOLDURULMASI GEREKEN TABLO'!F56 -> 0 | F43: ='DOLDURULMASI GEREKEN TABLO'!G56 -> 0 | G43: 0 | H43: ='DOLDURULMASI GEREKEN TABLO'!H56 -> 00:00:00 | I43: 2025-12-31 | J43: 2025 YD ORANINA GÖRE GEÇİCİ 32 YE GÖRE YD YAPILABİLİR | K43: ='DOLDURULMASI GEREKEN TABLO'!J56 -> 0 | L43: ='DOLDURULMASI GEREKEN TABLO'!K56 -> 0 | M43: ='DOLDURULMASI GEREKEN TABLO'!L56 -> 0 | N43: =IFERROR(IF('DOLDURULMASI GEREKEN TABLO'!M56="EVET",(I43-H43)+1,0),0) -> 0 | O43: 0 | P43: 0 | Q43: 0 | R43: 0 | S43: 0 | T43: 0 | U43: 0 | V43: ='DOLDURULMASI GEREKEN TABLO'!M56 -> 0 | W43: 2025-1 | X43: =VLOOKUP(W43,'Aylık Yİ-ÜFE'!$D$1:$E$500,2,0) -> 3861.33 | Y43: =CONCATENATE(YEAR('DOLDURULMASI GEREKEN TABLO'!N56),"-",MONTH('DOLDURULMASI GEREKEN TABLO'!N56)) -> 2025-12 | Z43: =VLOOKUP(Y43,'Aylık Yİ-ÜFE'!$D$1:$E$500,2,0) -> 4783.04 | AA43: 1 | AB43: =IF('DOLDURULMASI GEREKEN TABLO'!M56="EVET",MAX(S43*AA43,S43),S43) -> 0 | AC43: =IF('DOLDURULMASI GEREKEN TABLO'!M56="EVET",MAX(T43*AA43,T43),T43) -> 0 | AD43: 0 | AE43: 0 | AF43: 0 | AG43: 0 | AH43: 0 | AJ43: 00:00:00 | AK43: ='DOLDURULMASI GEREKEN TABLO'!N56 -> 2025-12-31 | AL43: 0 | AM43: 0 | AN43: 46022 | AO43: 126 | AP43: 126 | AQ43: 126 | AR43: 0
B44: 37 | C44: ='DOLDURULMASI GEREKEN TABLO'!D57 -> 0 | D44: ='DOLDURULMASI GEREKEN TABLO'!E57 -> 0 | E44: ='DOLDURULMASI GEREKEN TABLO'!F57 -> 0 | F44: ='DOLDURULMASI GEREKEN TABLO'!G57 -> 0 | G44: 0 | H44: ='DOLDURULMASI GEREKEN TABLO'!H57 -> 00:00:00 | I44: 2025-12-31 | J44: 2025 YD ORANINA GÖRE GEÇİCİ 32 YE GÖRE YD YAPILABİLİR | K44: ='DOLDURULMASI GEREKEN TABLO'!J57 -> 0 | L44: ='DOLDURULMASI GEREKEN TABLO'!K57 -> 0 | M44: ='DOLDURULMASI GEREKEN TABLO'!L57 -> 0 | N44: =IFERROR(IF('DOLDURULMASI GEREKEN TABLO'!M57="EVET",(I44-H44)+1,0),0) -> 0 | O44: 0 | P44: 0 | Q44: 0 | R44: 0 | S44: 0 | T44: 0 | U44: 0 | V44: ='DOLDURULMASI GEREKEN TABLO'!M57 -> 0 | W44: 2025-1 | X44: =VLOOKUP(W44,'Aylık Yİ-ÜFE'!$D$1:$E$500,2,0) -> 3861.33 | Y44: =CONCATENATE(YEAR('DOLDURULMASI GEREKEN TABLO'!N57),"-",MONTH('DOLDURULMASI GEREKEN TABLO'!N57)) -> 2025-12 | Z44: =VLOOKUP(Y44,'Aylık Yİ-ÜFE'!$D$1:$E$500,2,0) -> 4783.04 | AA44: 1 | AB44: =IF('DOLDURULMASI GEREKEN TABLO'!M57="EVET",MAX(S44*AA44,S44),S44) -> 0 | AC44: =IF('DOLDURULMASI GEREKEN TABLO'!M57="EVET",MAX(T44*AA44,T44),T44) -> 0 | AD44: 0 | AE44: 0 | AF44: 0 | AG44: 0 | AH44: 0 | AJ44: 00:00:00 | AK44: ='DOLDURULMASI GEREKEN TABLO'!N57 -> 2025-12-31 | AL44: 0 | AM44: 0 | AN44: 46022 | AO44: 126 | AP44: 126 | AQ44: 126 | AR44: 0
B45: 38 | C45: ='DOLDURULMASI GEREKEN TABLO'!D58 -> 0 | D45: ='DOLDURULMASI GEREKEN TABLO'!E58 -> 0 | E45: ='DOLDURULMASI GEREKEN TABLO'!F58 -> 0 | F45: ='DOLDURULMASI GEREKEN TABLO'!G58 -> 0 | G45: 0 | H45: ='DOLDURULMASI GEREKEN TABLO'!H58 -> 00:00:00 | I45: 2025-12-31 | J45: 2025 YD ORANINA GÖRE GEÇİCİ 32 YE GÖRE YD YAPILABİLİR | K45: ='DOLDURULMASI GEREKEN TABLO'!J58 -> 0 | L45: ='DOLDURULMASI GEREKEN TABLO'!K58 -> 0 | M45: ='DOLDURULMASI GEREKEN TABLO'!L58 -> 0 | N45: =IFERROR(IF('DOLDURULMASI GEREKEN TABLO'!M58="EVET",(I45-H45)+1,0),0) -> 0 | O45: 0 | P45: 0 | Q45: 0 | R45: 0 | S45: 0 | T45: 0 | U45: 0 | V45: ='DOLDURULMASI GEREKEN TABLO'!M58 -> 0 | W45: 2025-1 | X45: =VLOOKUP(W45,'Aylık Yİ-ÜFE'!$D$1:$E$500,2,0) -> 3861.33 | Y45: =CONCATENATE(YEAR('DOLDURULMASI GEREKEN TABLO'!N58),"-",MONTH('DOLDURULMASI GEREKEN TABLO'!N58)) -> 2025-12 | Z45: =VLOOKUP(Y45,'Aylık Yİ-ÜFE'!$D$1:$E$500,2,0) -> 4783.04 | AA45: 1 | AB45: =IF('DOLDURULMASI GEREKEN TABLO'!M58="EVET",MAX(S45*AA45,S45),S45) -> 0 | AC45: =IF('DOLDURULMASI GEREKEN TABLO'!M58="EVET",MAX(T45*AA45,T45),T45) -> 0 | AD45: 0 | AE45: 0 | AF45: 0 | AG45: 0 | AH45: 0 | AJ45: 00:00:00 | AK45: ='DOLDURULMASI GEREKEN TABLO'!N58 -> 2025-12-31 | AL45: 0 | AM45: 0 | AN45: 46022 | AO45: 126 | AP45: 126 | AQ45: 126 | AR45: 0
B46: 39 | C46: ='DOLDURULMASI GEREKEN TABLO'!D59 -> 0 | D46: ='DOLDURULMASI GEREKEN TABLO'!E59 -> 0 | E46: ='DOLDURULMASI GEREKEN TABLO'!F59 -> 0 | F46: ='DOLDURULMASI GEREKEN TABLO'!G59 -> 0 | G46: 0 | H46: ='DOLDURULMASI GEREKEN TABLO'!H59 -> 00:00:00 | I46: 2025-12-31 | J46: 2025 YD ORANINA GÖRE GEÇİCİ 32 YE GÖRE YD YAPILABİLİR | K46: ='DOLDURULMASI GEREKEN TABLO'!J59 -> 0 | L46: ='DOLDURULMASI GEREKEN TABLO'!K59 -> 0 | M46: ='DOLDURULMASI GEREKEN TABLO'!L59 -> 0 | N46: =IFERROR(IF('DOLDURULMASI GEREKEN TABLO'!M59="EVET",(I46-H46)+1,0),0) -> 0 | O46: 0 | P46: 0 | Q46: 0 | R46: 0 | S46: 0 | T46: 0 | U46: 0 | V46: ='DOLDURULMASI GEREKEN TABLO'!M59 -> 0 | W46: 2025-1 | X46: =VLOOKUP(W46,'Aylık Yİ-ÜFE'!$D$1:$E$500,2,0) -> 3861.33 | Y46: =CONCATENATE(YEAR('DOLDURULMASI GEREKEN TABLO'!N59),"-",MONTH('DOLDURULMASI GEREKEN TABLO'!N59)) -> 2025-12 | Z46: =VLOOKUP(Y46,'Aylık Yİ-ÜFE'!$D$1:$E$500,2,0) -> 4783.04 | AA46: 1 | AB46: =IF('DOLDURULMASI GEREKEN TABLO'!M59="EVET",MAX(S46*AA46,S46),S46) -> 0 | AC46: =IF('DOLDURULMASI GEREKEN TABLO'!M59="EVET",MAX(T46*AA46,T46),T46) -> 0 | AD46: 0 | AE46: 0 | AF46: 0 | AG46: 0 | AH46: 0 | AJ46: 00:00:00 | AK46: ='DOLDURULMASI GEREKEN TABLO'!N59 -> 2025-12-31 | AL46: 0 | AM46: 0 | AN46: 46022 | AO46: 126 | AP46: 126 | AQ46: 126 | AR46: 0
B47: 40 | C47: ='DOLDURULMASI GEREKEN TABLO'!D60 -> 0 | D47: ='DOLDURULMASI GEREKEN TABLO'!E60 -> 0 | E47: ='DOLDURULMASI GEREKEN TABLO'!F60 -> 0 | F47: ='DOLDURULMASI GEREKEN TABLO'!G60 -> 0 | G47: 0 | H47: ='DOLDURULMASI GEREKEN TABLO'!H60 -> 00:00:00 | I47: 2025-12-31 | J47: 2025 YD ORANINA GÖRE GEÇİCİ 32 YE GÖRE YD YAPILABİLİR | K47: ='DOLDURULMASI GEREKEN TABLO'!J60 -> 0 | L47: ='DOLDURULMASI GEREKEN TABLO'!K60 -> 0 | M47: ='DOLDURULMASI GEREKEN TABLO'!L60 -> 0 | N47: =IFERROR(IF('DOLDURULMASI GEREKEN TABLO'!M60="EVET",(I47-H47)+1,0),0) -> 0 | O47: 0 | P47: 0 | Q47: 0 | R47: 0 | S47: 0 | T47: 0 | U47: 0 | V47: ='DOLDURULMASI GEREKEN TABLO'!M60 -> 0 | W47: 2025-1 | X47: =VLOOKUP(W47,'Aylık Yİ-ÜFE'!$D$1:$E$500,2,0) -> 3861.33 | Y47: =CONCATENATE(YEAR('DOLDURULMASI GEREKEN TABLO'!N60),"-",MONTH('DOLDURULMASI GEREKEN TABLO'!N60)) -> 2025-12 | Z47: =VLOOKUP(Y47,'Aylık Yİ-ÜFE'!$D$1:$E$500,2,0) -> 4783.04 | AA47: 1 | AB47: =IF('DOLDURULMASI GEREKEN TABLO'!M60="EVET",MAX(S47*AA47,S47),S47) -> 0 | AC47: =IF('DOLDURULMASI GEREKEN TABLO'!M60="EVET",MAX(T47*AA47,T47),T47) -> 0 | AD47: 0 | AE47: 0 | AF47: 0 | AG47: 0 | AH47: 0 | AJ47: 00:00:00 | AK47: ='DOLDURULMASI GEREKEN TABLO'!N60 -> 2025-12-31 | AL47: 0 | AM47: 0 | AN47: 46022 | AO47: 126 | AP47: 126 | AQ47: 126 | AR47: 0
B48: 41 | C48: ='DOLDURULMASI GEREKEN TABLO'!D61 -> 0 | D48: ='DOLDURULMASI GEREKEN TABLO'!E61 -> 0 | E48: ='DOLDURULMASI GEREKEN TABLO'!F61 -> 0 | F48: ='DOLDURULMASI GEREKEN TABLO'!G61 -> 0 | G48: 0 | H48: ='DOLDURULMASI GEREKEN TABLO'!H61 -> 00:00:00 | I48: 2025-12-31 | J48: 2025 YD ORANINA GÖRE GEÇİCİ 32 YE GÖRE YD YAPILABİLİR | K48: ='DOLDURULMASI GEREKEN TABLO'!J61 -> 0 | L48: ='DOLDURULMASI GEREKEN TABLO'!K61 -> 0 | M48: ='DOLDURULMASI GEREKEN TABLO'!L61 -> 0 | N48: =IFERROR(IF('DOLDURULMASI GEREKEN TABLO'!M61="EVET",(I48-H48)+1,0),0) -> 0 | O48: 0 | P48: 0 | Q48: 0 | R48: 0 | S48: 0 | T48: 0 | U48: 0 | V48: ='DOLDURULMASI GEREKEN TABLO'!M61 -> 0 | W48: 2025-1 | X48: =VLOOKUP(W48,'Aylık Yİ-ÜFE'!$D$1:$E$500,2,0) -> 3861.33 | Y48: =CONCATENATE(YEAR('DOLDURULMASI GEREKEN TABLO'!N61),"-",MONTH('DOLDURULMASI GEREKEN TABLO'!N61)) -> 2025-12 | Z48: =VLOOKUP(Y48,'Aylık Yİ-ÜFE'!$D$1:$E$500,2,0) -> 4783.04 | AA48: 1 | AB48: =IF('DOLDURULMASI GEREKEN TABLO'!M61="EVET",MAX(S48*AA48,S48),S48) -> 0 | AC48: =IF('DOLDURULMASI GEREKEN TABLO'!M61="EVET",MAX(T48*AA48,T48),T48) -> 0 | AD48: 0 | AE48: 0 | AF48: 0 | AG48: 0 | AH48: 0 | AJ48: 00:00:00 | AK48: ='DOLDURULMASI GEREKEN TABLO'!N61 -> 2025-12-31 | AL48: 0 | AM48: 0 | AN48: 46022 | AO48: 126 | AP48: 126 | AQ48: 126 | AR48: 0
B49: 42 | C49: ='DOLDURULMASI GEREKEN TABLO'!D62 -> 0 | D49: ='DOLDURULMASI GEREKEN TABLO'!E62 -> 0 | E49: ='DOLDURULMASI GEREKEN TABLO'!F62 -> 0 | F49: ='DOLDURULMASI GEREKEN TABLO'!G62 -> 0 | G49: 0 | H49: ='DOLDURULMASI GEREKEN TABLO'!H62 -> 00:00:00 | I49: 2025-12-31 | J49: 2025 YD ORANINA GÖRE GEÇİCİ 32 YE GÖRE YD YAPILABİLİR | K49: ='DOLDURULMASI GEREKEN TABLO'!J62 -> 0 | L49: ='DOLDURULMASI GEREKEN TABLO'!K62 -> 0 | M49: ='DOLDURULMASI GEREKEN TABLO'!L62 -> 0 | N49: =IFERROR(IF('DOLDURULMASI GEREKEN TABLO'!M62="EVET",(I49-H49)+1,0),0) -> 0 | O49: 0 | P49: 0 | Q49: 0 | R49: 0 | S49: 0 | T49: 0 | U49: 0 | V49: ='DOLDURULMASI GEREKEN TABLO'!M62 -> 0 | W49: 2025-1 | X49: =VLOOKUP(W49,'Aylık Yİ-ÜFE'!$D$1:$E$500,2,0) -> 3861.33 | Y49: =CONCATENATE(YEAR('DOLDURULMASI GEREKEN TABLO'!N62),"-",MONTH('DOLDURULMASI GEREKEN TABLO'!N62)) -> 2025-12 | Z49: =VLOOKUP(Y49,'Aylık Yİ-ÜFE'!$D$1:$E$500,2,0) -> 4783.04 | AA49: 1 | AB49: =IF('DOLDURULMASI GEREKEN TABLO'!M62="EVET",MAX(S49*AA49,S49),S49) -> 0 | AC49: =IF('DOLDURULMASI GEREKEN TABLO'!M62="EVET",MAX(T49*AA49,T49),T49) -> 0 | AD49: 0 | AE49: 0 | AF49: 0 | AG49: 0 | AH49: 0 | AJ49: 00:00:00 | AK49: ='DOLDURULMASI GEREKEN TABLO'!N62 -> 2025-12-31 | AL49: 0 | AM49: 0 | AN49: 46022 | AO49: 126 | AP49: 126 | AQ49: 126 | AR49: 0
B50: 43 | C50: ='DOLDURULMASI GEREKEN TABLO'!D63 -> 0 | D50: ='DOLDURULMASI GEREKEN TABLO'!E63 -> 0 | E50: ='DOLDURULMASI GEREKEN TABLO'!F63 -> 0 | F50: ='DOLDURULMASI GEREKEN TABLO'!G63 -> 0 | G50: 0 | H50: ='DOLDURULMASI GEREKEN TABLO'!H63 -> 00:00:00 | I50: 2025-12-31 | J50: 2025 YD ORANINA GÖRE GEÇİCİ 32 YE GÖRE YD YAPILABİLİR | K50: ='DOLDURULMASI GEREKEN TABLO'!J63 -> 0 | L50: ='DOLDURULMASI GEREKEN TABLO'!K63 -> 0 | M50: ='DOLDURULMASI GEREKEN TABLO'!L63 -> 0 | N50: =IFERROR(IF('DOLDURULMASI GEREKEN TABLO'!M63="EVET",(I50-H50)+1,0),0) -> 0 | O50: 0 | P50: 0 | Q50: 0 | R50: 0 | S50: 0 | T50: 0 | U50: 0 | V50: ='DOLDURULMASI GEREKEN TABLO'!M63 -> 0 | W50: 2025-1 | X50: =VLOOKUP(W50,'Aylık Yİ-ÜFE'!$D$1:$E$500,2,0) -> 3861.33 | Y50: =CONCATENATE(YEAR('DOLDURULMASI GEREKEN TABLO'!N63),"-",MONTH('DOLDURULMASI GEREKEN TABLO'!N63)) -> 2025-12 | Z50: =VLOOKUP(Y50,'Aylık Yİ-ÜFE'!$D$1:$E$500,2,0) -> 4783.04 | AA50: 1 | AB50: =IF('DOLDURULMASI GEREKEN TABLO'!M63="EVET",MAX(S50*AA50,S50),S50) -> 0 | AC50: =IF('DOLDURULMASI GEREKEN TABLO'!M63="EVET",MAX(T50*AA50,T50),T50) -> 0 | AD50: 0 | AE50: 0 | AF50: 0 | AG50: 0 | AH50: 0 | AJ50: 00:00:00 | AK50: ='DOLDURULMASI GEREKEN TABLO'!N63 -> 2025-12-31 | AL50: 0 | AM50: 0 | AN50: 46022 | AO50: 126 | AP50: 126 | AQ50: 126 | AR50: 0
B51: 44 | C51: ='DOLDURULMASI GEREKEN TABLO'!D64 -> 0 | D51: ='DOLDURULMASI GEREKEN TABLO'!E64 -> 0 | E51: ='DOLDURULMASI GEREKEN TABLO'!F64 -> 0 | F51: ='DOLDURULMASI GEREKEN TABLO'!G64 -> 0 | G51: 0 | H51: ='DOLDURULMASI GEREKEN TABLO'!H64 -> 00:00:00 | I51: 2025-12-31 | J51: 2025 YD ORANINA GÖRE GEÇİCİ 32 YE GÖRE YD YAPILABİLİR | K51: ='DOLDURULMASI GEREKEN TABLO'!J64 -> 0 | L51: ='DOLDURULMASI GEREKEN TABLO'!K64 -> 0 | M51: ='DOLDURULMASI GEREKEN TABLO'!L64 -> 0 | N51: =IFERROR(IF('DOLDURULMASI GEREKEN TABLO'!M64="EVET",(I51-H51)+1,0),0) -> 0 | O51: 0 | P51: 0 | Q51: 0 | R51: 0 | S51: 0 | T51: 0 | U51: 0 | V51: ='DOLDURULMASI GEREKEN TABLO'!M64 -> 0 | W51: 2025-1 | X51: =VLOOKUP(W51,'Aylık Yİ-ÜFE'!$D$1:$E$500,2,0) -> 3861.33 | Y51: =CONCATENATE(YEAR('DOLDURULMASI GEREKEN TABLO'!N64),"-",MONTH('DOLDURULMASI GEREKEN TABLO'!N64)) -> 2025-12 | Z51: =VLOOKUP(Y51,'Aylık Yİ-ÜFE'!$D$1:$E$500,2,0) -> 4783.04 | AA51: 1 | AB51: =IF('DOLDURULMASI GEREKEN TABLO'!M64="EVET",MAX(S51*AA51,S51),S51) -> 0 | AC51: =IF('DOLDURULMASI GEREKEN TABLO'!M64="EVET",MAX(T51*AA51,T51),T51) -> 0 | AD51: 0 | AE51: 0 | AF51: 0 | AG51: 0 | AH51: 0 | AJ51: 00:00:00 | AK51: ='DOLDURULMASI GEREKEN TABLO'!N64 -> 2025-12-31 | AL51: 0 | AM51: 0 | AN51: 46022 | AO51: 126 | AP51: 126 | AQ51: 126 | AR51: 0
B52: 45 | C52: ='DOLDURULMASI GEREKEN TABLO'!D65 -> 0 | D52: ='DOLDURULMASI GEREKEN TABLO'!E65 -> 0 | E52: ='DOLDURULMASI GEREKEN TABLO'!F65 -> 0 | F52: ='DOLDURULMASI GEREKEN TABLO'!G65 -> 0 | G52: 0 | H52: ='DOLDURULMASI GEREKEN TABLO'!H65 -> 00:00:00 | I52: 2025-12-31 | J52: 2025 YD ORANINA GÖRE GEÇİCİ 32 YE GÖRE YD YAPILABİLİR | K52: ='DOLDURULMASI GEREKEN TABLO'!J65 -> 0 | L52: ='DOLDURULMASI GEREKEN TABLO'!K65 -> 0 | M52: ='DOLDURULMASI GEREKEN TABLO'!L65 -> 0 | N52: =IFERROR(IF('DOLDURULMASI GEREKEN TABLO'!M65="EVET",(I52-H52)+1,0),0) -> 0 | O52: 0 | P52: 0 | Q52: 0 | R52: 0 | S52: 0 | T52: 0 | U52: 0 | V52: ='DOLDURULMASI GEREKEN TABLO'!M65 -> 0 | W52: 2025-1 | X52: =VLOOKUP(W52,'Aylık Yİ-ÜFE'!$D$1:$E$500,2,0) -> 3861.33 | Y52: =CONCATENATE(YEAR('DOLDURULMASI GEREKEN TABLO'!N65),"-",MONTH('DOLDURULMASI GEREKEN TABLO'!N65)) -> 2025-12 | Z52: =VLOOKUP(Y52,'Aylık Yİ-ÜFE'!$D$1:$E$500,2,0) -> 4783.04 | AA52: 1 | AB52: =IF('DOLDURULMASI GEREKEN TABLO'!M65="EVET",MAX(S52*AA52,S52),S52) -> 0 | AC52: =IF('DOLDURULMASI GEREKEN TABLO'!M65="EVET",MAX(T52*AA52,T52),T52) -> 0 | AD52: 0 | AE52: 0 | AF52: 0 | AG52: 0 | AH52: 0 | AJ52: 00:00:00 | AK52: ='DOLDURULMASI GEREKEN TABLO'!N65 -> 2025-12-31 | AL52: 0 | AM52: 0 | AN52: 46022 | AO52: 126 | AP52: 126 | AQ52: 126 | AR52: 0
B53: 46 | C53: ='DOLDURULMASI GEREKEN TABLO'!D66 -> 0 | D53: ='DOLDURULMASI GEREKEN TABLO'!E66 -> 0 | E53: ='DOLDURULMASI GEREKEN TABLO'!F66 -> 0 | F53: ='DOLDURULMASI GEREKEN TABLO'!G66 -> 0 | G53: 0 | H53: ='DOLDURULMASI GEREKEN TABLO'!H66 -> 00:00:00 | I53: 2025-12-31 | J53: 2025 YD ORANINA GÖRE GEÇİCİ 32 YE GÖRE YD YAPILABİLİR | K53: ='DOLDURULMASI GEREKEN TABLO'!J66 -> 0 | L53: ='DOLDURULMASI GEREKEN TABLO'!K66 -> 0 | M53: ='DOLDURULMASI GEREKEN TABLO'!L66 -> 0 | N53: =IFERROR(IF('DOLDURULMASI GEREKEN TABLO'!M66="EVET",(I53-H53)+1,0),0) -> 0 | O53: 0 | P53: 0 | Q53: 0 | R53: 0 | S53: 0 | T53: 0 | U53: 0 | V53: ='DOLDURULMASI GEREKEN TABLO'!M66 -> 0 | W53: 2025-1 | X53: =VLOOKUP(W53,'Aylık Yİ-ÜFE'!$D$1:$E$500,2,0) -> 3861.33 | Y53: =CONCATENATE(YEAR('DOLDURULMASI GEREKEN TABLO'!N66),"-",MONTH('DOLDURULMASI GEREKEN TABLO'!N66)) -> 2025-12 | Z53: =VLOOKUP(Y53,'Aylık Yİ-ÜFE'!$D$1:$E$500,2,0) -> 4783.04 | AA53: 1 | AB53: =IF('DOLDURULMASI GEREKEN TABLO'!M66="EVET",MAX(S53*AA53,S53),S53) -> 0 | AC53: =IF('DOLDURULMASI GEREKEN TABLO'!M66="EVET",MAX(T53*AA53,T53),T53) -> 0 | AD53: 0 | AE53: 0 | AF53: 0 | AG53: 0 | AH53: 0 | AJ53: 00:00:00 | AK53: ='DOLDURULMASI GEREKEN TABLO'!N66 -> 2025-12-31 | AL53: 0 | AM53: 0 | AN53: 46022 | AO53: 126 | AP53: 126 | AQ53: 126 | AR53: 0
B54: 47 | C54: ='DOLDURULMASI GEREKEN TABLO'!D67 -> 0 | D54: ='DOLDURULMASI GEREKEN TABLO'!E67 -> 0 | E54: ='DOLDURULMASI GEREKEN TABLO'!F67 -> 0 | F54: ='DOLDURULMASI GEREKEN TABLO'!G67 -> 0 | G54: 0 | H54: ='DOLDURULMASI GEREKEN TABLO'!H67 -> 00:00:00 | I54: 2025-12-31 | J54: 2025 YD ORANINA GÖRE GEÇİCİ 32 YE GÖRE YD YAPILABİLİR | K54: ='DOLDURULMASI GEREKEN TABLO'!J67 -> 0 | L54: ='DOLDURULMASI GEREKEN TABLO'!K67 -> 0 | M54: ='DOLDURULMASI GEREKEN TABLO'!L67 -> 0 | N54: =IFERROR(IF('DOLDURULMASI GEREKEN TABLO'!M67="EVET",(I54-H54)+1,0),0) -> 0 | O54: 0 | P54: 0 | Q54: 0 | R54: 0 | S54: 0 | T54: 0 | U54: 0 | V54: ='DOLDURULMASI GEREKEN TABLO'!M67 -> 0 | W54: 2025-1 | X54: =VLOOKUP(W54,'Aylık Yİ-ÜFE'!$D$1:$E$500,2,0) -> 3861.33 | Y54: =CONCATENATE(YEAR('DOLDURULMASI GEREKEN TABLO'!N67),"-",MONTH('DOLDURULMASI GEREKEN TABLO'!N67)) -> 2025-12 | Z54: =VLOOKUP(Y54,'Aylık Yİ-ÜFE'!$D$1:$E$500,2,0) -> 4783.04 | AA54: 1 | AB54: =IF('DOLDURULMASI GEREKEN TABLO'!M67="EVET",MAX(S54*AA54,S54),S54) -> 0 | AC54: =IF('DOLDURULMASI GEREKEN TABLO'!M67="EVET",MAX(T54*AA54,T54),T54) -> 0 | AD54: 0 | AE54: 0 | AF54: 0 | AG54: 0 | AH54: 0 | AJ54: 00:00:00 | AK54: ='DOLDURULMASI GEREKEN TABLO'!N67 -> 2025-12-31 | AL54: 0 | AM54: 0 | AN54: 46022 | AO54: 126 | AP54: 126 | AQ54: 126 | AR54: 0
B55: 48 | C55: ='DOLDURULMASI GEREKEN TABLO'!D68 -> 0 | D55: ='DOLDURULMASI GEREKEN TABLO'!E68 -> 0 | E55: ='DOLDURULMASI GEREKEN TABLO'!F68 -> 0 | F55: ='DOLDURULMASI GEREKEN TABLO'!G68 -> 0 | G55: 0 | H55: ='DOLDURULMASI GEREKEN TABLO'!H68 -> 00:00:00 | I55: 2025-12-31 | J55: 2025 YD ORANINA GÖRE GEÇİCİ 32 YE GÖRE YD YAPILABİLİR | K55: ='DOLDURULMASI GEREKEN TABLO'!J68 -> 0 | L55: ='DOLDURULMASI GEREKEN TABLO'!K68 -> 0 | M55: ='DOLDURULMASI GEREKEN TABLO'!L68 -> 0 | N55: =IFERROR(IF('DOLDURULMASI GEREKEN TABLO'!M68="EVET",(I55-H55)+1,0),0) -> 0 | O55: 0 | P55: 0 | Q55: 0 | R55: 0 | S55: 0 | T55: 0 | U55: 0 | V55: ='DOLDURULMASI GEREKEN TABLO'!M68 -> 0 | W55: 2025-1 | X55: =VLOOKUP(W55,'Aylık Yİ-ÜFE'!$D$1:$E$500,2,0) -> 3861.33 | Y55: =CONCATENATE(YEAR('DOLDURULMASI GEREKEN TABLO'!N68),"-",MONTH('DOLDURULMASI GEREKEN TABLO'!N68)) -> 2025-12 | Z55: =VLOOKUP(Y55,'Aylık Yİ-ÜFE'!$D$1:$E$500,2,0) -> 4783.04 | AA55: 1 | AB55: =IF('DOLDURULMASI GEREKEN TABLO'!M68="EVET",MAX(S55*AA55,S55),S55) -> 0 | AC55: =IF('DOLDURULMASI GEREKEN TABLO'!M68="EVET",MAX(T55*AA55,T55),T55) -> 0 | AD55: 0 | AE55: 0 | AF55: 0 | AG55: 0 | AH55: 0 | AJ55: 00:00:00 | AK55: ='DOLDURULMASI GEREKEN TABLO'!N68 -> 2025-12-31 | AL55: 0 | AM55: 0 | AN55: 46022 | AO55: 126 | AP55: 126 | AQ55: 126 | AR55: 0
B56: 49 | C56: ='DOLDURULMASI GEREKEN TABLO'!D69 -> 0 | D56: ='DOLDURULMASI GEREKEN TABLO'!E69 -> 0 | E56: ='DOLDURULMASI GEREKEN TABLO'!F69 -> 0 | F56: ='DOLDURULMASI GEREKEN TABLO'!G69 -> 0 | G56: 0 | H56: ='DOLDURULMASI GEREKEN TABLO'!H69 -> 00:00:00 | I56: 2025-12-31 | J56: 2025 YD ORANINA GÖRE GEÇİCİ 32 YE GÖRE YD YAPILABİLİR | K56: ='DOLDURULMASI GEREKEN TABLO'!J69 -> 0 | L56: ='DOLDURULMASI GEREKEN TABLO'!K69 -> 0 | M56: ='DOLDURULMASI GEREKEN TABLO'!L69 -> 0 | N56: =IFERROR(IF('DOLDURULMASI GEREKEN TABLO'!M69="EVET",(I56-H56)+1,0),0) -> 0 | O56: 0 | P56: 0 | Q56: 0 | R56: 0 | S56: 0 | T56: 0 | U56: 0 | V56: ='DOLDURULMASI GEREKEN TABLO'!M69 -> 0 | W56: 2025-1 | X56: =VLOOKUP(W56,'Aylık Yİ-ÜFE'!$D$1:$E$500,2,0) -> 3861.33 | Y56: =CONCATENATE(YEAR('DOLDURULMASI GEREKEN TABLO'!N69),"-",MONTH('DOLDURULMASI GEREKEN TABLO'!N69)) -> 2025-12 | Z56: =VLOOKUP(Y56,'Aylık Yİ-ÜFE'!$D$1:$E$500,2,0) -> 4783.04 | AA56: 1 | AB56: =IF('DOLDURULMASI GEREKEN TABLO'!M69="EVET",MAX(S56*AA56,S56),S56) -> 0 | AC56: =IF('DOLDURULMASI GEREKEN TABLO'!M69="EVET",MAX(T56*AA56,T56),T56) -> 0 | AD56: 0 | AE56: 0 | AF56: 0 | AG56: 0 | AH56: 0 | AJ56: 00:00:00 | AK56: ='DOLDURULMASI GEREKEN TABLO'!N69 -> 2025-12-31 | AL56: 0 | AM56: 0 | AN56: 46022 | AO56: 126 | AP56: 126 | AQ56: 126 | AR56: 0
B57: 50 | C57: ='DOLDURULMASI GEREKEN TABLO'!D70 -> 0 | D57: ='DOLDURULMASI GEREKEN TABLO'!E70 -> 0 | E57: ='DOLDURULMASI GEREKEN TABLO'!F70 -> 0 | F57: ='DOLDURULMASI GEREKEN TABLO'!G70 -> 0 | G57: 0 | H57: ='DOLDURULMASI GEREKEN TABLO'!H70 -> 00:00:00 | I57: 2025-12-31 | J57: 2025 YD ORANINA GÖRE GEÇİCİ 32 YE GÖRE YD YAPILABİLİR | K57: ='DOLDURULMASI GEREKEN TABLO'!J70 -> 0 | L57: ='DOLDURULMASI GEREKEN TABLO'!K70 -> 0 | M57: ='DOLDURULMASI GEREKEN TABLO'!L70 -> 0 | N57: =IFERROR(IF('DOLDURULMASI GEREKEN TABLO'!M70="EVET",(I57-H57)+1,0),0) -> 0 | O57: 0 | P57: 0 | Q57: 0 | R57: 0 | S57: 0 | T57: 0 | U57: 0 | V57: ='DOLDURULMASI GEREKEN TABLO'!M70 -> 0 | W57: 2025-1 | X57: =VLOOKUP(W57,'Aylık Yİ-ÜFE'!$D$1:$E$500,2,0) -> 3861.33 | Y57: =CONCATENATE(YEAR('DOLDURULMASI GEREKEN TABLO'!N70),"-",MONTH('DOLDURULMASI GEREKEN TABLO'!N70)) -> 2025-12 | Z57: =VLOOKUP(Y57,'Aylık Yİ-ÜFE'!$D$1:$E$500,2,0) -> 4783.04 | AA57: 1 | AB57: =IF('DOLDURULMASI GEREKEN TABLO'!M70="EVET",MAX(S57*AA57,S57),S57) -> 0 | AC57: =IF('DOLDURULMASI GEREKEN TABLO'!M70="EVET",MAX(T57*AA57,T57),T57) -> 0 | AD57: 0 | AE57: 0 | AF57: 0 | AG57: 0 | AH57: 0 | AJ57: 00:00:00 | AK57: ='DOLDURULMASI GEREKEN TABLO'!N70 -> 2025-12-31 | AL57: 0 | AM57: 0 | AN57: 46022 | AO57: 126 | AP57: 126 | AQ57: 126 | AR57: 0
B58: 51 | C58: ='DOLDURULMASI GEREKEN TABLO'!D71 -> 0 | D58: ='DOLDURULMASI GEREKEN TABLO'!E71 -> 0 | E58: ='DOLDURULMASI GEREKEN TABLO'!F71 -> 0 | F58: ='DOLDURULMASI GEREKEN TABLO'!G71 -> 0 | G58: 0 | H58: ='DOLDURULMASI GEREKEN TABLO'!H71 -> 00:00:00 | I58: 2025-12-31 | J58: 2025 YD ORANINA GÖRE GEÇİCİ 32 YE GÖRE YD YAPILABİLİR | K58: ='DOLDURULMASI GEREKEN TABLO'!J71 -> 0 | L58: ='DOLDURULMASI GEREKEN TABLO'!K71 -> 0 | M58: ='DOLDURULMASI GEREKEN TABLO'!L71 -> 0 | N58: =IFERROR(IF('DOLDURULMASI GEREKEN TABLO'!M71="EVET",(I58-H58)+1,0),0) -> 0 | O58: 0 | P58: 0 | Q58: 0 | R58: 0 | S58: 0 | T58: 0 | U58: 0 | V58: ='DOLDURULMASI GEREKEN TABLO'!M71 -> 0 | W58: 2025-1 | X58: =VLOOKUP(W58,'Aylık Yİ-ÜFE'!$D$1:$E$500,2,0) -> 3861.33 | Y58: =CONCATENATE(YEAR('DOLDURULMASI GEREKEN TABLO'!N71),"-",MONTH('DOLDURULMASI GEREKEN TABLO'!N71)) -> 2025-12 | Z58: =VLOOKUP(Y58,'Aylık Yİ-ÜFE'!$D$1:$E$500,2,0) -> 4783.04 | AA58: 1 | AB58: =IF('DOLDURULMASI GEREKEN TABLO'!M71="EVET",MAX(S58*AA58,S58),S58) -> 0 | AC58: =IF('DOLDURULMASI GEREKEN TABLO'!M71="EVET",MAX(T58*AA58,T58),T58) -> 0 | AD58: 0 | AE58: 0 | AF58: 0 | AG58: 0 | AH58: 0 | AJ58: 00:00:00 | AK58: ='DOLDURULMASI GEREKEN TABLO'!N71 -> 2025-12-31 | AL58: 0 | AM58: 0 | AN58: 46022 | AO58: 126 | AP58: 126 | AQ58: 126 | AR58: 0
B59: 52 | C59: ='DOLDURULMASI GEREKEN TABLO'!D72 -> 0 | D59: ='DOLDURULMASI GEREKEN TABLO'!E72 -> 0 | E59: ='DOLDURULMASI GEREKEN TABLO'!F72 -> 0 | F59: ='DOLDURULMASI GEREKEN TABLO'!G72 -> 0 | G59: 0 | H59: ='DOLDURULMASI GEREKEN TABLO'!H72 -> 00:00:00 | I59: 2025-12-31 | J59: 2025 YD ORANINA GÖRE GEÇİCİ 32 YE GÖRE YD YAPILABİLİR | K59: ='DOLDURULMASI GEREKEN TABLO'!J72 -> 0 | L59: ='DOLDURULMASI GEREKEN TABLO'!K72 -> 0 | M59: ='DOLDURULMASI GEREKEN TABLO'!L72 -> 0 | N59: =IFERROR(IF('DOLDURULMASI GEREKEN TABLO'!M72="EVET",(I59-H59)+1,0),0) -> 0 | O59: 0 | P59: 0 | Q59: 0 | R59: 0 | S59: 0 | T59: 0 | U59: 0 | V59: ='DOLDURULMASI GEREKEN TABLO'!M72 -> 0 | W59: 2025-1 | X59: =VLOOKUP(W59,'Aylık Yİ-ÜFE'!$D$1:$E$500,2,0) -> 3861.33 | Y59: =CONCATENATE(YEAR('DOLDURULMASI GEREKEN TABLO'!N72),"-",MONTH('DOLDURULMASI GEREKEN TABLO'!N72)) -> 2025-12 | Z59: =VLOOKUP(Y59,'Aylık Yİ-ÜFE'!$D$1:$E$500,2,0) -> 4783.04 | AA59: 1 | AB59: =IF('DOLDURULMASI GEREKEN TABLO'!M72="EVET",MAX(S59*AA59,S59),S59) -> 0 | AC59: =IF('DOLDURULMASI GEREKEN TABLO'!M72="EVET",MAX(T59*AA59,T59),T59) -> 0 | AD59: 0 | AE59: 0 | AF59: 0 | AG59: 0 | AH59: 0 | AJ59: 00:00:00 | AK59: ='DOLDURULMASI GEREKEN TABLO'!N72 -> 2025-12-31 | AL59: 0 | AM59: 0 | AN59: 46022 | AO59: 126 | AP59: 126 | AQ59: 126 | AR59: 0
B60: 53 | C60: ='DOLDURULMASI GEREKEN TABLO'!D73 -> 0 | D60: ='DOLDURULMASI GEREKEN TABLO'!E73 -> 0 | E60: ='DOLDURULMASI GEREKEN TABLO'!F73 -> 0 | F60: ='DOLDURULMASI GEREKEN TABLO'!G73 -> 0 | G60: 0 | H60: ='DOLDURULMASI GEREKEN TABLO'!H73 -> 00:00:00 | I60: 2025-12-31 | J60: 2025 YD ORANINA GÖRE GEÇİCİ 32 YE GÖRE YD YAPILABİLİR | K60: ='DOLDURULMASI GEREKEN TABLO'!J73 -> 0 | L60: ='DOLDURULMASI GEREKEN TABLO'!K73 -> 0 | M60: ='DOLDURULMASI GEREKEN TABLO'!L73 -> 0 | N60: =IFERROR(IF('DOLDURULMASI GEREKEN TABLO'!M73="EVET",(I60-H60)+1,0),0) -> 0 | O60: 0 | P60: 0 | Q60: 0 | R60: 0 | S60: 0 | T60: 0 | U60: 0 | V60: ='DOLDURULMASI GEREKEN TABLO'!M73 -> 0 | W60: 2025-1 | X60: =VLOOKUP(W60,'Aylık Yİ-ÜFE'!$D$1:$E$500,2,0) -> 3861.33 | Y60: =CONCATENATE(YEAR('DOLDURULMASI GEREKEN TABLO'!N73),"-",MONTH('DOLDURULMASI GEREKEN TABLO'!N73)) -> 2025-12 | Z60: =VLOOKUP(Y60,'Aylık Yİ-ÜFE'!$D$1:$E$500,2,0) -> 4783.04 | AA60: 1 | AB60: =IF('DOLDURULMASI GEREKEN TABLO'!M73="EVET",MAX(S60*AA60,S60),S60) -> 0 | AC60: =IF('DOLDURULMASI GEREKEN TABLO'!M73="EVET",MAX(T60*AA60,T60),T60) -> 0 | AD60: 0 | AE60: 0 | AF60: 0 | AG60: 0 | AH60: 0 | AJ60: 00:00:00 | AK60: ='DOLDURULMASI GEREKEN TABLO'!N73 -> 2025-12-31 | AL60: 0 | AM60: 0 | AN60: 46022 | AO60: 126 | AP60: 126 | AQ60: 126 | AR60: 0
B61: 54 | C61: ='DOLDURULMASI GEREKEN TABLO'!D74 -> 0 | D61: ='DOLDURULMASI GEREKEN TABLO'!E74 -> 0 | E61: ='DOLDURULMASI GEREKEN TABLO'!F74 -> 0 | F61: ='DOLDURULMASI GEREKEN TABLO'!G74 -> 0 | G61: 0 | H61: ='DOLDURULMASI GEREKEN TABLO'!H74 -> 00:00:00 | I61: 2025-12-31 | J61: 2025 YD ORANINA GÖRE GEÇİCİ 32 YE GÖRE YD YAPILABİLİR | K61: ='DOLDURULMASI GEREKEN TABLO'!J74 -> 0 | L61: ='DOLDURULMASI GEREKEN TABLO'!K74 -> 0 | M61: ='DOLDURULMASI GEREKEN TABLO'!L74 -> 0 | N61: =IFERROR(IF('DOLDURULMASI GEREKEN TABLO'!M74="EVET",(I61-H61)+1,0),0) -> 0 | O61: 0 | P61: 0 | Q61: 0 | R61: 0 | S61: 0 | T61: 0 | U61: 0 | V61: ='DOLDURULMASI GEREKEN TABLO'!M74 -> 0 | W61: 2025-1 | X61: =VLOOKUP(W61,'Aylık Yİ-ÜFE'!$D$1:$E$500,2,0) -> 3861.33 | Y61: =CONCATENATE(YEAR('DOLDURULMASI GEREKEN TABLO'!N74),"-",MONTH('DOLDURULMASI GEREKEN TABLO'!N74)) -> 2025-12 | Z61: =VLOOKUP(Y61,'Aylık Yİ-ÜFE'!$D$1:$E$500,2,0) -> 4783.04 | AA61: 1 | AB61: =IF('DOLDURULMASI GEREKEN TABLO'!M74="EVET",MAX(S61*AA61,S61),S61) -> 0 | AC61: =IF('DOLDURULMASI GEREKEN TABLO'!M74="EVET",MAX(T61*AA61,T61),T61) -> 0 | AD61: 0 | AE61: 0 | AF61: 0 | AG61: 0 | AH61: 0 | AJ61: 00:00:00 | AK61: ='DOLDURULMASI GEREKEN TABLO'!N74 -> 2025-12-31 | AL61: 0 | AM61: 0 | AN61: 46022 | AO61: 126 | AP61: 126 | AQ61: 126 | AR61: 0
B62: 55 | C62: ='DOLDURULMASI GEREKEN TABLO'!D75 -> 0 | D62: ='DOLDURULMASI GEREKEN TABLO'!E75 -> 0 | E62: ='DOLDURULMASI GEREKEN TABLO'!F75 -> 0 | F62: ='DOLDURULMASI GEREKEN TABLO'!G75 -> 0 | G62: 0 | H62: ='DOLDURULMASI GEREKEN TABLO'!H75 -> 00:00:00 | I62: 2025-12-31 | J62: 2025 YD ORANINA GÖRE GEÇİCİ 32 YE GÖRE YD YAPILABİLİR | K62: ='DOLDURULMASI GEREKEN TABLO'!J75 -> 0 | L62: ='DOLDURULMASI GEREKEN TABLO'!K75 -> 0 | M62: ='DOLDURULMASI GEREKEN TABLO'!L75 -> 0 | N62: =IFERROR(IF('DOLDURULMASI GEREKEN TABLO'!M75="EVET",(I62-H62)+1,0),0) -> 0 | O62: 0 | P62: 0 | Q62: 0 | R62: 0 | S62: 0 | T62: 0 | U62: 0 | V62: ='DOLDURULMASI GEREKEN TABLO'!M75 -> 0 | W62: 2025-1 | X62: =VLOOKUP(W62,'Aylık Yİ-ÜFE'!$D$1:$E$500,2,0) -> 3861.33 | Y62: =CONCATENATE(YEAR('DOLDURULMASI GEREKEN TABLO'!N75),"-",MONTH('DOLDURULMASI GEREKEN TABLO'!N75)) -> 2025-12 | Z62: =VLOOKUP(Y62,'Aylık Yİ-ÜFE'!$D$1:$E$500,2,0) -> 4783.04 | AA62: 1 | AB62: =IF('DOLDURULMASI GEREKEN TABLO'!M75="EVET",MAX(S62*AA62,S62),S62) -> 0 | AC62: =IF('DOLDURULMASI GEREKEN TABLO'!M75="EVET",MAX(T62*AA62,T62),T62) -> 0 | AD62: 0 | AE62: 0 | AF62: 0 | AG62: 0 | AH62: 0 | AJ62: 00:00:00 | AK62: ='DOLDURULMASI GEREKEN TABLO'!N75 -> 2025-12-31 | AL62: 0 | AM62: 0 | AN62: 46022 | AO62: 126 | AP62: 126 | AQ62: 126 | AR62: 0
B63: 56 | C63: ='DOLDURULMASI GEREKEN TABLO'!D76 -> 0 | D63: ='DOLDURULMASI GEREKEN TABLO'!E76 -> 0 | E63: ='DOLDURULMASI GEREKEN TABLO'!F76 -> 0 | F63: ='DOLDURULMASI GEREKEN TABLO'!G76 -> 0 | G63: 0 | H63: ='DOLDURULMASI GEREKEN TABLO'!H76 -> 00:00:00 | I63: 2025-12-31 | J63: 2025 YD ORANINA GÖRE GEÇİCİ 32 YE GÖRE YD YAPILABİLİR | K63: ='DOLDURULMASI GEREKEN TABLO'!J76 -> 0 | L63: ='DOLDURULMASI GEREKEN TABLO'!K76 -> 0 | M63: ='DOLDURULMASI GEREKEN TABLO'!L76 -> 0 | N63: =IFERROR(IF('DOLDURULMASI GEREKEN TABLO'!M76="EVET",(I63-H63)+1,0),0) -> 0 | O63: 0 | P63: 0 | Q63: 0 | R63: 0 | S63: 0 | T63: 0 | U63: 0 | V63: ='DOLDURULMASI GEREKEN TABLO'!M76 -> 0 | W63: 2025-1 | X63: =VLOOKUP(W63,'Aylık Yİ-ÜFE'!$D$1:$E$500,2,0) -> 3861.33 | Y63: =CONCATENATE(YEAR('DOLDURULMASI GEREKEN TABLO'!N76),"-",MONTH('DOLDURULMASI GEREKEN TABLO'!N76)) -> 2025-12 | Z63: =VLOOKUP(Y63,'Aylık Yİ-ÜFE'!$D$1:$E$500,2,0) -> 4783.04 | AA63: 1 | AB63: =IF('DOLDURULMASI GEREKEN TABLO'!M76="EVET",MAX(S63*AA63,S63),S63) -> 0 | AC63: =IF('DOLDURULMASI GEREKEN TABLO'!M76="EVET",MAX(T63*AA63,T63),T63) -> 0 | AD63: 0 | AE63: 0 | AF63: 0 | AG63: 0 | AH63: 0 | AJ63: 00:00:00 | AK63: ='DOLDURULMASI GEREKEN TABLO'!N76 -> 2025-12-31 | AL63: 0 | AM63: 0 | AN63: 46022 | AO63: 126 | AP63: 126 | AQ63: 126 | AR63: 0
B64: 57 | C64: ='DOLDURULMASI GEREKEN TABLO'!D77 -> 0 | D64: ='DOLDURULMASI GEREKEN TABLO'!E77 -> 0 | E64: ='DOLDURULMASI GEREKEN TABLO'!F77 -> 0 | F64: ='DOLDURULMASI GEREKEN TABLO'!G77 -> 0 | G64: 0 | H64: ='DOLDURULMASI GEREKEN TABLO'!H77 -> 00:00:00 | I64: 2025-12-31 | J64: 2025 YD ORANINA GÖRE GEÇİCİ 32 YE GÖRE YD YAPILABİLİR | K64: ='DOLDURULMASI GEREKEN TABLO'!J77 -> 0 | L64: ='DOLDURULMASI GEREKEN TABLO'!K77 -> 0 | M64: ='DOLDURULMASI GEREKEN TABLO'!L77 -> 0 | N64: =IFERROR(IF('DOLDURULMASI GEREKEN TABLO'!M77="EVET",(I64-H64)+1,0),0) -> 0 | O64: 0 | P64: 0 | Q64: 0 | R64: 0 | S64: 0 | T64: 0 | U64: 0 | V64: ='DOLDURULMASI GEREKEN TABLO'!M77 -> 0 | W64: 2025-1 | X64: =VLOOKUP(W64,'Aylık Yİ-ÜFE'!$D$1:$E$500,2,0) -> 3861.33 | Y64: =CONCATENATE(YEAR('DOLDURULMASI GEREKEN TABLO'!N77),"-",MONTH('DOLDURULMASI GEREKEN TABLO'!N77)) -> 2025-12 | Z64: =VLOOKUP(Y64,'Aylık Yİ-ÜFE'!$D$1:$E$500,2,0) -> 4783.04 | AA64: 1 | AB64: =IF('DOLDURULMASI GEREKEN TABLO'!M77="EVET",MAX(S64*AA64,S64),S64) -> 0 | AC64: =IF('DOLDURULMASI GEREKEN TABLO'!M77="EVET",MAX(T64*AA64,T64),T64) -> 0 | AD64: 0 | AE64: 0 | AF64: 0 | AG64: 0 | AH64: 0 | AJ64: 00:00:00 | AK64: ='DOLDURULMASI GEREKEN TABLO'!N77 -> 2025-12-31 | AL64: 0 | AM64: 0 | AN64: 46022 | AO64: 126 | AP64: 126 | AQ64: 126 | AR64: 0
B65: 58 | C65: ='DOLDURULMASI GEREKEN TABLO'!D78 -> 0 | D65: ='DOLDURULMASI GEREKEN TABLO'!E78 -> 0 | E65: ='DOLDURULMASI GEREKEN TABLO'!F78 -> 0 | F65: ='DOLDURULMASI GEREKEN TABLO'!G78 -> 0 | G65: 0 | H65: ='DOLDURULMASI GEREKEN TABLO'!H78 -> 00:00:00 | I65: 2025-12-31 | J65: 2025 YD ORANINA GÖRE GEÇİCİ 32 YE GÖRE YD YAPILABİLİR | K65: ='DOLDURULMASI GEREKEN TABLO'!J78 -> 0 | L65: ='DOLDURULMASI GEREKEN TABLO'!K78 -> 0 | M65: ='DOLDURULMASI GEREKEN TABLO'!L78 -> 0 | N65: =IFERROR(IF('DOLDURULMASI GEREKEN TABLO'!M78="EVET",(I65-H65)+1,0),0) -> 0 | O65: 0 | P65: 0 | Q65: 0 | R65: 0 | S65: 0 | T65: 0 | U65: 0 | V65: ='DOLDURULMASI GEREKEN TABLO'!M78 -> 0 | W65: 2025-1 | X65: =VLOOKUP(W65,'Aylık Yİ-ÜFE'!$D$1:$E$500,2,0) -> 3861.33 | Y65: =CONCATENATE(YEAR('DOLDURULMASI GEREKEN TABLO'!N78),"-",MONTH('DOLDURULMASI GEREKEN TABLO'!N78)) -> 2025-12 | Z65: =VLOOKUP(Y65,'Aylık Yİ-ÜFE'!$D$1:$E$500,2,0) -> 4783.04 | AA65: 1 | AB65: =IF('DOLDURULMASI GEREKEN TABLO'!M78="EVET",MAX(S65*AA65,S65),S65) -> 0 | AC65: =IF('DOLDURULMASI GEREKEN TABLO'!M78="EVET",MAX(T65*AA65,T65),T65) -> 0 | AD65: 0 | AE65: 0 | AF65: 0 | AG65: 0 | AH65: 0 | AJ65: 00:00:00 | AK65: ='DOLDURULMASI GEREKEN TABLO'!N78 -> 2025-12-31 | AL65: 0 | AM65: 0 | AN65: 46022 | AO65: 126 | AP65: 126 | AQ65: 126 | AR65: 0
B66: 59 | C66: ='DOLDURULMASI GEREKEN TABLO'!D79 -> 0 | D66: ='DOLDURULMASI GEREKEN TABLO'!E79 -> 0 | E66: ='DOLDURULMASI GEREKEN TABLO'!F79 -> 0 | F66: ='DOLDURULMASI GEREKEN TABLO'!G79 -> 0 | G66: 0 | H66: ='DOLDURULMASI GEREKEN TABLO'!H79 -> 00:00:00 | I66: 2025-12-31 | J66: 2025 YD ORANINA GÖRE GEÇİCİ 32 YE GÖRE YD YAPILABİLİR | K66: ='DOLDURULMASI GEREKEN TABLO'!J79 -> 0 | L66: ='DOLDURULMASI GEREKEN TABLO'!K79 -> 0 | M66: ='DOLDURULMASI GEREKEN TABLO'!L79 -> 0 | N66: =IFERROR(IF('DOLDURULMASI GEREKEN TABLO'!M79="EVET",(I66-H66)+1,0),0) -> 0 | O66: 0 | P66: 0 | Q66: 0 | R66: 0 | S66: 0 | T66: 0 | U66: 0 | V66: ='DOLDURULMASI GEREKEN TABLO'!M79 -> 0 | W66: 2025-1 | X66: =VLOOKUP(W66,'Aylık Yİ-ÜFE'!$D$1:$E$500,2,0) -> 3861.33 | Y66: =CONCATENATE(YEAR('DOLDURULMASI GEREKEN TABLO'!N79),"-",MONTH('DOLDURULMASI GEREKEN TABLO'!N79)) -> 2025-12 | Z66: =VLOOKUP(Y66,'Aylık Yİ-ÜFE'!$D$1:$E$500,2,0) -> 4783.04 | AA66: 1 | AB66: =IF('DOLDURULMASI GEREKEN TABLO'!M79="EVET",MAX(S66*AA66,S66),S66) -> 0 | AC66: =IF('DOLDURULMASI GEREKEN TABLO'!M79="EVET",MAX(T66*AA66,T66),T66) -> 0 | AD66: 0 | AE66: 0 | AF66: 0 | AG66: 0 | AH66: 0 | AJ66: 00:00:00 | AK66: ='DOLDURULMASI GEREKEN TABLO'!N79 -> 2025-12-31 | AL66: 0 | AM66: 0 | AN66: 46022 | AO66: 126 | AP66: 126 | AQ66: 126 | AR66: 0
B67: 60 | C67: ='DOLDURULMASI GEREKEN TABLO'!D80 -> 0 | D67: ='DOLDURULMASI GEREKEN TABLO'!E80 -> 0 | E67: ='DOLDURULMASI GEREKEN TABLO'!F80 -> 0 | F67: ='DOLDURULMASI GEREKEN TABLO'!G80 -> 0 | G67: 0 | H67: ='DOLDURULMASI GEREKEN TABLO'!H80 -> 00:00:00 | I67: 2025-12-31 | J67: 2025 YD ORANINA GÖRE GEÇİCİ 32 YE GÖRE YD YAPILABİLİR | K67: ='DOLDURULMASI GEREKEN TABLO'!J80 -> 0 | L67: ='DOLDURULMASI GEREKEN TABLO'!K80 -> 0 | M67: ='DOLDURULMASI GEREKEN TABLO'!L80 -> 0 | N67: =IFERROR(IF('DOLDURULMASI GEREKEN TABLO'!M80="EVET",(I67-H67)+1,0),0) -> 0 | O67: 0 | P67: 0 | Q67: 0 | R67: 0 | S67: 0 | T67: 0 | U67: 0 | V67: ='DOLDURULMASI GEREKEN TABLO'!M80 -> 0 | W67: 2025-1 | X67: =VLOOKUP(W67,'Aylık Yİ-ÜFE'!$D$1:$E$500,2,0) -> 3861.33 | Y67: =CONCATENATE(YEAR('DOLDURULMASI GEREKEN TABLO'!N80),"-",MONTH('DOLDURULMASI GEREKEN TABLO'!N80)) -> 2025-12 | Z67: =VLOOKUP(Y67,'Aylık Yİ-ÜFE'!$D$1:$E$500,2,0) -> 4783.04 | AA67: 1 | AB67: =IF('DOLDURULMASI GEREKEN TABLO'!M80="EVET",MAX(S67*AA67,S67),S67) -> 0 | AC67: =IF('DOLDURULMASI GEREKEN TABLO'!M80="EVET",MAX(T67*AA67,T67),T67) -> 0 | AD67: 0 | AE67: 0 | AF67: 0 | AG67: 0 | AH67: 0 | AJ67: 00:00:00 | AK67: ='DOLDURULMASI GEREKEN TABLO'!N80 -> 2025-12-31 | AL67: 0 | AM67: 0 | AN67: 46022 | AO67: 126 | AP67: 126 | AQ67: 126 | AR67: 0
B68: 61 | C68: ='DOLDURULMASI GEREKEN TABLO'!D81 -> 0 | D68: ='DOLDURULMASI GEREKEN TABLO'!E81 -> 0 | E68: ='DOLDURULMASI GEREKEN TABLO'!F81 -> 0 | F68: ='DOLDURULMASI GEREKEN TABLO'!G81 -> 0 | G68: 0 | H68: ='DOLDURULMASI GEREKEN TABLO'!H81 -> 00:00:00 | I68: 2025-12-31 | J68: 2025 YD ORANINA GÖRE GEÇİCİ 32 YE GÖRE YD YAPILABİLİR | K68: ='DOLDURULMASI GEREKEN TABLO'!J81 -> 0 | L68: ='DOLDURULMASI GEREKEN TABLO'!K81 -> 0 | M68: ='DOLDURULMASI GEREKEN TABLO'!L81 -> 0 | N68: =IFERROR(IF('DOLDURULMASI GEREKEN TABLO'!M81="EVET",(I68-H68)+1,0),0) -> 0 | O68: 0 | P68: 0 | Q68: 0 | R68: 0 | S68: 0 | T68: 0 | U68: 0 | V68: ='DOLDURULMASI GEREKEN TABLO'!M81 -> 0 | W68: 2025-1 | X68: =VLOOKUP(W68,'Aylık Yİ-ÜFE'!$D$1:$E$500,2,0) -> 3861.33 | Y68: =CONCATENATE(YEAR('DOLDURULMASI GEREKEN TABLO'!N81),"-",MONTH('DOLDURULMASI GEREKEN TABLO'!N81)) -> 2025-12 | Z68: =VLOOKUP(Y68,'Aylık Yİ-ÜFE'!$D$1:$E$500,2,0) -> 4783.04 | AA68: 1 | AB68: =IF('DOLDURULMASI GEREKEN TABLO'!M81="EVET",MAX(S68*AA68,S68),S68) -> 0 | AC68: =IF('DOLDURULMASI GEREKEN TABLO'!M81="EVET",MAX(T68*AA68,T68),T68) -> 0 | AD68: 0 | AE68: 0 | AF68: 0 | AG68: 0 | AH68: 0 | AJ68: 00:00:00 | AK68: ='DOLDURULMASI GEREKEN TABLO'!N81 -> 2025-12-31 | AL68: 0 | AM68: 0 | AN68: 46022 | AO68: 126 | AP68: 126 | AQ68: 126 | AR68: 0
B69: 62 | C69: ='DOLDURULMASI GEREKEN TABLO'!D82 -> 0 | D69: ='DOLDURULMASI GEREKEN TABLO'!E82 -> 0 | E69: ='DOLDURULMASI GEREKEN TABLO'!F82 -> 0 | F69: ='DOLDURULMASI GEREKEN TABLO'!G82 -> 0 | G69: 0 | H69: ='DOLDURULMASI GEREKEN TABLO'!H82 -> 00:00:00 | I69: 2025-12-31 | J69: 2025 YD ORANINA GÖRE GEÇİCİ 32 YE GÖRE YD YAPILABİLİR | K69: ='DOLDURULMASI GEREKEN TABLO'!J82 -> 0 | L69: ='DOLDURULMASI GEREKEN TABLO'!K82 -> 0 | M69: ='DOLDURULMASI GEREKEN TABLO'!L82 -> 0 | N69: =IFERROR(IF('DOLDURULMASI GEREKEN TABLO'!M82="EVET",(I69-H69)+1,0),0) -> 0 | O69: 0 | P69: 0 | Q69: 0 | R69: 0 | S69: 0 | T69: 0 | U69: 0 | V69: ='DOLDURULMASI GEREKEN TABLO'!M82 -> 0 | W69: 2025-1 | X69: =VLOOKUP(W69,'Aylık Yİ-ÜFE'!$D$1:$E$500,2,0) -> 3861.33 | Y69: =CONCATENATE(YEAR('DOLDURULMASI GEREKEN TABLO'!N82),"-",MONTH('DOLDURULMASI GEREKEN TABLO'!N82)) -> 2025-12 | Z69: =VLOOKUP(Y69,'Aylık Yİ-ÜFE'!$D$1:$E$500,2,0) -> 4783.04 | AA69: 1 | AB69: =IF('DOLDURULMASI GEREKEN TABLO'!M82="EVET",MAX(S69*AA69,S69),S69) -> 0 | AC69: =IF('DOLDURULMASI GEREKEN TABLO'!M82="EVET",MAX(T69*AA69,T69),T69) -> 0 | AD69: 0 | AE69: 0 | AF69: 0 | AG69: 0 | AH69: 0 | AJ69: 00:00:00 | AK69: ='DOLDURULMASI GEREKEN TABLO'!N82 -> 2025-12-31 | AL69: 0 | AM69: 0 | AN69: 46022 | AO69: 126 | AP69: 126 | AQ69: 126 | AR69: 0
B70: 63 | C70: ='DOLDURULMASI GEREKEN TABLO'!D83 -> 0 | D70: ='DOLDURULMASI GEREKEN TABLO'!E83 -> 0 | E70: ='DOLDURULMASI GEREKEN TABLO'!F83 -> 0 | F70: ='DOLDURULMASI GEREKEN TABLO'!G83 -> 0 | G70: 0 | H70: ='DOLDURULMASI GEREKEN TABLO'!H83 -> 00:00:00 | I70: 2025-12-31 | J70: 2025 YD ORANINA GÖRE GEÇİCİ 32 YE GÖRE YD YAPILABİLİR | K70: ='DOLDURULMASI GEREKEN TABLO'!J83 -> 0 | L70: ='DOLDURULMASI GEREKEN TABLO'!K83 -> 0 | M70: ='DOLDURULMASI GEREKEN TABLO'!L83 -> 0 | N70: =IFERROR(IF('DOLDURULMASI GEREKEN TABLO'!M83="EVET",(I70-H70)+1,0),0) -> 0 | O70: 0 | P70: 0 | Q70: 0 | R70: 0 | S70: 0 | T70: 0 | U70: 0 | V70: ='DOLDURULMASI GEREKEN TABLO'!M83 -> 0 | W70: 2025-1 | X70: =VLOOKUP(W70,'Aylık Yİ-ÜFE'!$D$1:$E$500,2,0) -> 3861.33 | Y70: =CONCATENATE(YEAR('DOLDURULMASI GEREKEN TABLO'!N83),"-",MONTH('DOLDURULMASI GEREKEN TABLO'!N83)) -> 2025-12 | Z70: =VLOOKUP(Y70,'Aylık Yİ-ÜFE'!$D$1:$E$500,2,0) -> 4783.04 | AA70: 1 | AB70: =IF('DOLDURULMASI GEREKEN TABLO'!M83="EVET",MAX(S70*AA70,S70),S70) -> 0 | AC70: =IF('DOLDURULMASI GEREKEN TABLO'!M83="EVET",MAX(T70*AA70,T70),T70) -> 0 | AD70: 0 | AE70: 0 | AF70: 0 | AG70: 0 | AH70: 0 | AJ70: 00:00:00 | AK70: ='DOLDURULMASI GEREKEN TABLO'!N83 -> 2025-12-31 | AL70: 0 | AM70: 0 | AN70: 46022 | AO70: 126 | AP70: 126 | AQ70: 126 | AR70: 0
B71: 64 | C71: ='DOLDURULMASI GEREKEN TABLO'!D84 -> 0 | D71: ='DOLDURULMASI GEREKEN TABLO'!E84 -> 0 | E71: ='DOLDURULMASI GEREKEN TABLO'!F84 -> 0 | F71: ='DOLDURULMASI GEREKEN TABLO'!G84 -> 0 | G71: 0 | H71: ='DOLDURULMASI GEREKEN TABLO'!H84 -> 00:00:00 | I71: 2025-12-31 | J71: 2025 YD ORANINA GÖRE GEÇİCİ 32 YE GÖRE YD YAPILABİLİR | K71: ='DOLDURULMASI GEREKEN TABLO'!J84 -> 0 | L71: ='DOLDURULMASI GEREKEN TABLO'!K84 -> 0 | M71: ='DOLDURULMASI GEREKEN TABLO'!L84 -> 0 | N71: =IFERROR(IF('DOLDURULMASI GEREKEN TABLO'!M84="EVET",(I71-H71)+1,0),0) -> 0 | O71: 0 | P71: 0 | Q71: 0 | R71: 0 | S71: 0 | T71: 0 | U71: 0 | V71: ='DOLDURULMASI GEREKEN TABLO'!M84 -> 0 | W71: 2025-1 | X71: =VLOOKUP(W71,'Aylık Yİ-ÜFE'!$D$1:$E$500,2,0) -> 3861.33 | Y71: =CONCATENATE(YEAR('DOLDURULMASI GEREKEN TABLO'!N84),"-",MONTH('DOLDURULMASI GEREKEN TABLO'!N84)) -> 2025-12 | Z71: =VLOOKUP(Y71,'Aylık Yİ-ÜFE'!$D$1:$E$500,2,0) -> 4783.04 | AA71: 1 | AB71: =IF('DOLDURULMASI GEREKEN TABLO'!M84="EVET",MAX(S71*AA71,S71),S71) -> 0 | AC71: =IF('DOLDURULMASI GEREKEN TABLO'!M84="EVET",MAX(T71*AA71,T71),T71) -> 0 | AD71: 0 | AE71: 0 | AF71: 0 | AG71: 0 | AH71: 0 | AJ71: 00:00:00 | AK71: ='DOLDURULMASI GEREKEN TABLO'!N84 -> 2025-12-31 | AL71: 0 | AM71: 0 | AN71: 46022 | AO71: 126 | AP71: 126 | AQ71: 126 | AR71: 0
B72: 65 | C72: ='DOLDURULMASI GEREKEN TABLO'!D85 -> 0 | D72: ='DOLDURULMASI GEREKEN TABLO'!E85 -> 0 | E72: ='DOLDURULMASI GEREKEN TABLO'!F85 -> 0 | F72: ='DOLDURULMASI GEREKEN TABLO'!G85 -> 0 | G72: 0 | H72: ='DOLDURULMASI GEREKEN TABLO'!H85 -> 00:00:00 | I72: 2025-12-31 | J72: 2025 YD ORANINA GÖRE GEÇİCİ 32 YE GÖRE YD YAPILABİLİR | K72: ='DOLDURULMASI GEREKEN TABLO'!J85 -> 0 | L72: ='DOLDURULMASI GEREKEN TABLO'!K85 -> 0 | M72: ='DOLDURULMASI GEREKEN TABLO'!L85 -> 0 | N72: =IFERROR(IF('DOLDURULMASI GEREKEN TABLO'!M85="EVET",(I72-H72)+1,0),0) -> 0 | O72: 0 | P72: 0 | Q72: 0 | R72: 0 | S72: 0 | T72: 0 | U72: 0 | V72: ='DOLDURULMASI GEREKEN TABLO'!M85 -> 0 | W72: 2025-1 | X72: =VLOOKUP(W72,'Aylık Yİ-ÜFE'!$D$1:$E$500,2,0) -> 3861.33 | Y72: =CONCATENATE(YEAR('DOLDURULMASI GEREKEN TABLO'!N85),"-",MONTH('DOLDURULMASI GEREKEN TABLO'!N85)) -> 2025-12 | Z72: =VLOOKUP(Y72,'Aylık Yİ-ÜFE'!$D$1:$E$500,2,0) -> 4783.04 | AA72: 1 | AB72: =IF('DOLDURULMASI GEREKEN TABLO'!M85="EVET",MAX(S72*AA72,S72),S72) -> 0 | AC72: =IF('DOLDURULMASI GEREKEN TABLO'!M85="EVET",MAX(T72*AA72,T72),T72) -> 0 | AD72: 0 | AE72: 0 | AF72: 0 | AG72: 0 | AH72: 0 | AJ72: 00:00:00 | AK72: ='DOLDURULMASI GEREKEN TABLO'!N85 -> 2025-12-31 | AL72: 0 | AM72: 0 | AN72: 46022 | AO72: 126 | AP72: 126 | AQ72: 126 | AR72: 0
B73: 66 | C73: ='DOLDURULMASI GEREKEN TABLO'!D86 -> 0 | D73: ='DOLDURULMASI GEREKEN TABLO'!E86 -> 0 | E73: ='DOLDURULMASI GEREKEN TABLO'!F86 -> 0 | F73: ='DOLDURULMASI GEREKEN TABLO'!G86 -> 0 | G73: =IFERROR(IF(L73="AZALAN BAKİYELERE GÖRE AMORTİSMAN",MIN(1/F73,1/4),1/F73),0) -> 0 | H73: ='DOLDURULMASI GEREKEN TABLO'!H86 -> 00:00:00 | I73: 2025-12-31 | J73: 2025 YD ORANINA GÖRE GEÇİCİ 32 YE GÖRE YD YAPILABİLİR | K73: ='DOLDURULMASI GEREKEN TABLO'!J86 -> 0 | L73: ='DOLDURULMASI GEREKEN TABLO'!K86 -> 0 | M73: ='DOLDURULMASI GEREKEN TABLO'!L86 -> 0 | N73: =IFERROR(IF('DOLDURULMASI GEREKEN TABLO'!M86="EVET",(I73-H73)+1,0),0) -> 0 | O73: 0 | P73: 0 | Q73: 0 | R73: 0 | S73: 0 | T73: 0 | U73: 0 | V73: ='DOLDURULMASI GEREKEN TABLO'!M86 -> 0 | W73: =IF(H73<=45567,"2025-1",IF(AND(H73>=46022,MONTH(H73)+1=13),CONCATENATE(YEAR(H73)+1,"-",MONTH(H73)-11),CONCATENATE(YEAR(H73),"-",MONTH(H73)+1))) -> 2025-1 | X73: =VLOOKUP(W73,'Aylık Yİ-ÜFE'!$D$1:$E$500,2,0) -> 3861.33 | Y73: =CONCATENATE(YEAR('DOLDURULMASI GEREKEN TABLO'!N86),"-",MONTH('DOLDURULMASI GEREKEN TABLO'!N86)) -> 2025-12 | Z73: =VLOOKUP(Y73,'Aylık Yİ-ÜFE'!$D$1:$E$500,2,0) -> 4783.04 | AA73: =IFERROR(IF(V73="EVET",TRUNC(Z73/X73,5),1),0) -> 1 | AB73: =IF('DOLDURULMASI GEREKEN TABLO'!M86="EVET",MAX(S73*AA73,S73),S73) -> 0 | AC73: =IF('DOLDURULMASI GEREKEN TABLO'!M86="EVET",MAX(T73*AA73,T73),T73) -> 0 | AD73: 0 | AE73: 0 | AF73: 0 | AG73: 0 | AH73: =IFERROR(AG73*2/100,0) -> 0 | AJ73: 00:00:00 | AK73: ='DOLDURULMASI GEREKEN TABLO'!N86 -> 2025-12-31 | AL73: 0 | AM73: 0 | AN73: 46022 | AO73: 126 | AP73: 126 | AQ73: 126 | AR73: 0
B74: 67 | C74: ='DOLDURULMASI GEREKEN TABLO'!D87 -> 0 | D74: ='DOLDURULMASI GEREKEN TABLO'!E87 -> 0 | E74: ='DOLDURULMASI GEREKEN TABLO'!F87 -> 0 | F74: ='DOLDURULMASI GEREKEN TABLO'!G87 -> 0 | G74: 0 | H74: ='DOLDURULMASI GEREKEN TABLO'!H87 -> 00:00:00 | I74: 2025-12-31 | J74: =IF(AND( H74>45657, H74<=46022),"2025 TE İKTİSAP EDİLEN KIYMETLER, İKTİSAP EDİLDİĞİ AYI İZLEYEN AYIN Yİ-ÜFE ENDEKSİ İLE DEĞERLEME YAPILACAK ARALIK/2025 AYININ Yİ-ÜFE'Sİ BAZ ALINARAK GEÇİCİ 32 YE GÖRE YD YAPILABİLECEKTİR.", "2025 YD ORANINA GÖRE GEÇİCİ 32 YE GÖRE YD YAPILABİLİR") -> 2025 YD ORANINA GÖRE GEÇİCİ 32 YE GÖRE YD YAPILABİLİR | K74: ='DOLDURULMASI GEREKEN TABLO'!J87 -> 0 | L74: ='DOLDURULMASI GEREKEN TABLO'!K87 -> 0 | M74: ='DOLDURULMASI GEREKEN TABLO'!L87 -> 0 | N74: =IFERROR(IF('DOLDURULMASI GEREKEN TABLO'!M87="EVET",(I74-H74)+1,0),0) -> 0 | O74: =IFERROR(MIN(YEAR(I74)-YEAR(H74)+1,F74),0) -> 0 | P74: =IFERROR(MIN(((YEAR(I74)-YEAR(H74))*12+(MONTH(I74)-MONTH(H74))+1)/12,F74),0) -> 0 | Q74: =IFERROR(MIN(IF(M74="HAYIR",O74,P74),F74),0) -> 0 | R74: =IF(D74="250- Arazi ve Arsalar",0, IF(Q74=F74,K74, IF(AND(L74="NORMAL AMORTİSMAN",M74="HAYIR"),K74*G74*Q74, IF(AND(L74="NORMAL AMORTİSMAN",M74="EVET"),K74*G74*Q74, IF(AND(L74="AZALAN BAKİYELERE GÖRE AMORTİSMAN",M74="HAYIR",F74<=4),VDB(K74,0,4,0,O74,2,TRUE), IF(AND(L74="AZALAN BAKİYELERE GÖRE AMORTİSMAN",M74="HAYIR",AND(F74>4,Q74<F74)),VDB(K74,0,F74,0,Q74,2,TRUE), IF(AND(L74="AZALAN BAKİYELERE GÖRE AMORTİSMAN",M74="EVET",O74=1),(DDB(K74,0,IF(F74<=4,4,F74),1,2)/12)*(12-MONTH(H74)+1), IF(AND(L74="AZALAN BAKİYELERE GÖRE AMORTİSMAN",M74="EVET",O74=2),(DDB(K74,0,IF(F74<=4,4,F74),1,2)/12)*(12-MONTH(H74)+1)+DDB(K74,0,IF(F74<=4,4,F74),2,2), IF(AND(L74="AZALAN BAKİYELERE GÖRE AMORTİSMAN",M74="EVET",O74=3),(DDB(K74,0,IF(F74<=4,4,F74),1,2)/12)*(12-MONTH(H74)+1)+DDB(K74,0,IF(F74<=4,4,F74),2,2)+DDB(K74,0,IF(F74<=4,4,F74),3,2), IF(AND(L74="AZALAN BAKİYELERE GÖRE AMORTİSMAN",M74="EVET",AND(O74>3,O74<5)),(DDB(K74,0,IF(F74<=4,4,F74),1,2)/12)*(12-MONTH(H74)+1)+DDB(K74,0,IF(F74<=4,4,F74),2,2)+DDB(K74,0,IF(F74<=4,4,F74),3,2)+DDB(K74,0,IF(F74<=4,4,F74),Q74,2), IF(AND(L74="AZALAN BAKİYELERE GÖRE AMORTİSMAN",M74="EVET",O74=5),VDB(K74,0,F74,0,Q74,2,TRUE),0))))))))))) -> 0 | S74: =K74 -> 0 | T74: =R74 -> 0 | U74: =S74-T74 -> 0 | V74: ='DOLDURULMASI GEREKEN TABLO'!M87 -> 0 | W74: 2025-1 | X74: =VLOOKUP(W74,'Aylık Yİ-ÜFE'!$D$1:$E$500,2,0) -> 3861.33 | Y74: =CONCATENATE(YEAR('DOLDURULMASI GEREKEN TABLO'!N87),"-",MONTH('DOLDURULMASI GEREKEN TABLO'!N87)) -> 2025-12 | Z74: =VLOOKUP(Y74,'Aylık Yİ-ÜFE'!$D$1:$E$500,2,0) -> 4783.04 | AA74: 1 | AB74: =IF('DOLDURULMASI GEREKEN TABLO'!M87="EVET",MAX(S74*AA74,S74),S74) -> 0 | AC74: =IF('DOLDURULMASI GEREKEN TABLO'!M87="EVET",MAX(T74*AA74,T74),T74) -> 0 | AD74: =AB74-AC74 -> 0 | AE74: =IFERROR(IF(AB74-S74<0,0,AB74-S74),0) -> 0 | AF74: =IFERROR(IF(AC74-T74<0,0,AC74-T74),0) -> 0 | AG74: =IFERROR(IF((AE74-AF74)<0,0,(AE74-AF74)),0) -> 0 | AH74: 0 | AJ74: =H74 -> 00:00:00 | AK74: ='DOLDURULMASI GEREKEN TABLO'!N87 -> 2025-12-31 | AL74: =L74 -> 0 | AM74: =M74 -> 0 | AN74: =(AK74-AJ74) -> 46022 | AO74: =YEAR(AK74)-YEAR(AJ74)+1 -> 126 | AP74: =(((YEAR(AK74)-YEAR(AJ74))*12)+(MONTH(AK74)-MONTH(AJ74)+1))/12 -> 126 | AQ74: =IF(AL74="NORMAL AMORTİSMAN",AO74,AP74) -> 126 | AR74: =IF(AL74="NORMAL AMORTİSMAN",AB74*(1/F74), IF(AND(AL74="AZALAN BAKİYELERE GÖRE AMORTİSMAN",AP74<F74),DDB(AB74,0,IF(F74<=4,4,F74),ROUNDUP(AQ74,0),2), IF(AND(AL74="AZALAN BAKİYELERE GÖRE AMORTİSMAN",AQ74=F74),(AB74-AB74),0))) -> 0
B75: 68 | C75: ='DOLDURULMASI GEREKEN TABLO'!D88 -> 0 | D75: ='DOLDURULMASI GEREKEN TABLO'!E88 -> 0 | E75: ='DOLDURULMASI GEREKEN TABLO'!F88 -> 0 | F75: ='DOLDURULMASI GEREKEN TABLO'!G88 -> 0 | G75: 0 | H75: ='DOLDURULMASI GEREKEN TABLO'!H88 -> 00:00:00 | I75: 2025-12-31 | J75: 2025 YD ORANINA GÖRE GEÇİCİ 32 YE GÖRE YD YAPILABİLİR | K75: ='DOLDURULMASI GEREKEN TABLO'!J88 -> 0 | L75: ='DOLDURULMASI GEREKEN TABLO'!K88 -> 0 | M75: ='DOLDURULMASI GEREKEN TABLO'!L88 -> 0 | N75: =IFERROR(IF('DOLDURULMASI GEREKEN TABLO'!M88="EVET",(I75-H75)+1,0),0) -> 0 | O75: 0 | P75: 0 | Q75: 0 | R75: 0 | S75: 0 | T75: 0 | U75: 0 | V75: ='DOLDURULMASI GEREKEN TABLO'!M88 -> 0 | W75: 2025-1 | X75: =VLOOKUP(W75,'Aylık Yİ-ÜFE'!$D$1:$E$500,2,0) -> 3861.33 | Y75: =CONCATENATE(YEAR('DOLDURULMASI GEREKEN TABLO'!N88),"-",MONTH('DOLDURULMASI GEREKEN TABLO'!N88)) -> 2025-12 | Z75: =VLOOKUP(Y75,'Aylık Yİ-ÜFE'!$D$1:$E$500,2,0) -> 4783.04 | AA75: 1 | AB75: =IF('DOLDURULMASI GEREKEN TABLO'!M88="EVET",MAX(S75*AA75,S75),S75) -> 0 | AC75: =IF('DOLDURULMASI GEREKEN TABLO'!M88="EVET",MAX(T75*AA75,T75),T75) -> 0 | AD75: 0 | AE75: 0 | AF75: 0 | AG75: 0 | AH75: 0 | AJ75: 00:00:00 | AK75: ='DOLDURULMASI GEREKEN TABLO'!N88 -> 2025-12-31 | AL75: 0 | AM75: 0 | AN75: 46022 | AO75: 126 | AP75: 126 | AQ75: 126 | AR75: 0
B76: 69 | C76: ='DOLDURULMASI GEREKEN TABLO'!D89 -> 0 | D76: ='DOLDURULMASI GEREKEN TABLO'!E89 -> 0 | E76: ='DOLDURULMASI GEREKEN TABLO'!F89 -> 0 | F76: ='DOLDURULMASI GEREKEN TABLO'!G89 -> 0 | G76: 0 | H76: ='DOLDURULMASI GEREKEN TABLO'!H89 -> 00:00:00 | I76: 2025-12-31 | J76: 2025 YD ORANINA GÖRE GEÇİCİ 32 YE GÖRE YD YAPILABİLİR | K76: ='DOLDURULMASI GEREKEN TABLO'!J89 -> 0 | L76: ='DOLDURULMASI GEREKEN TABLO'!K89 -> 0 | M76: ='DOLDURULMASI GEREKEN TABLO'!L89 -> 0 | N76: =IFERROR(IF('DOLDURULMASI GEREKEN TABLO'!M89="EVET",(I76-H76)+1,0),0) -> 0 | O76: 0 | P76: 0 | Q76: 0 | R76: 0 | S76: 0 | T76: 0 | U76: 0 | V76: ='DOLDURULMASI GEREKEN TABLO'!M89 -> 0 | W76: 2025-1 | X76: =VLOOKUP(W76,'Aylık Yİ-ÜFE'!$D$1:$E$500,2,0) -> 3861.33 | Y76: =CONCATENATE(YEAR('DOLDURULMASI GEREKEN TABLO'!N89),"-",MONTH('DOLDURULMASI GEREKEN TABLO'!N89)) -> 2025-12 | Z76: =VLOOKUP(Y76,'Aylık Yİ-ÜFE'!$D$1:$E$500,2,0) -> 4783.04 | AA76: 1 | AB76: =IF('DOLDURULMASI GEREKEN TABLO'!M89="EVET",MAX(S76*AA76,S76),S76) -> 0 | AC76: =IF('DOLDURULMASI GEREKEN TABLO'!M89="EVET",MAX(T76*AA76,T76),T76) -> 0 | AD76: 0 | AE76: 0 | AF76: 0 | AG76: 0 | AH76: 0 | AJ76: 00:00:00 | AK76: ='DOLDURULMASI GEREKEN TABLO'!N89 -> 2025-12-31 | AL76: 0 | AM76: 0 | AN76: 46022 | AO76: 126 | AP76: 126 | AQ76: 126 | AR76: 0
B77: 70 | C77: ='DOLDURULMASI GEREKEN TABLO'!D90 -> 0 | D77: ='DOLDURULMASI GEREKEN TABLO'!E90 -> 0 | E77: ='DOLDURULMASI GEREKEN TABLO'!F90 -> 0 | F77: ='DOLDURULMASI GEREKEN TABLO'!G90 -> 0 | G77: 0 | H77: ='DOLDURULMASI GEREKEN TABLO'!H90 -> 00:00:00 | I77: 2025-12-31 | J77: 2025 YD ORANINA GÖRE GEÇİCİ 32 YE GÖRE YD YAPILABİLİR | K77: ='DOLDURULMASI GEREKEN TABLO'!J90 -> 0 | L77: ='DOLDURULMASI GEREKEN TABLO'!K90 -> 0 | M77: ='DOLDURULMASI GEREKEN TABLO'!L90 -> 0 | N77: =IFERROR(IF('DOLDURULMASI GEREKEN TABLO'!M90="EVET",(I77-H77)+1,0),0) -> 0 | O77: 0 | P77: 0 | Q77: 0 | R77: 0 | S77: 0 | T77: 0 | U77: 0 | V77: ='DOLDURULMASI GEREKEN TABLO'!M90 -> 0 | W77: 2025-1 | X77: =VLOOKUP(W77,'Aylık Yİ-ÜFE'!$D$1:$E$500,2,0) -> 3861.33 | Y77: =CONCATENATE(YEAR('DOLDURULMASI GEREKEN TABLO'!N90),"-",MONTH('DOLDURULMASI GEREKEN TABLO'!N90)) -> 2025-12 | Z77: =VLOOKUP(Y77,'Aylık Yİ-ÜFE'!$D$1:$E$500,2,0) -> 4783.04 | AA77: 1 | AB77: =IF('DOLDURULMASI GEREKEN TABLO'!M90="EVET",MAX(S77*AA77,S77),S77) -> 0 | AC77: =IF('DOLDURULMASI GEREKEN TABLO'!M90="EVET",MAX(T77*AA77,T77),T77) -> 0 | AD77: 0 | AE77: 0 | AF77: 0 | AG77: 0 | AH77: 0 | AJ77: 00:00:00 | AK77: ='DOLDURULMASI GEREKEN TABLO'!N90 -> 2025-12-31 | AL77: 0 | AM77: 0 | AN77: 46022 | AO77: 126 | AP77: 126 | AQ77: 126 | AR77: 0
B78: 71 | C78: ='DOLDURULMASI GEREKEN TABLO'!D91 -> 0 | D78: ='DOLDURULMASI GEREKEN TABLO'!E91 -> 0 | E78: ='DOLDURULMASI GEREKEN TABLO'!F91 -> 0 | F78: ='DOLDURULMASI GEREKEN TABLO'!G91 -> 0 | G78: 0 | H78: ='DOLDURULMASI GEREKEN TABLO'!H91 -> 00:00:00 | I78: 2025-12-31 | J78: 2025 YD ORANINA GÖRE GEÇİCİ 32 YE GÖRE YD YAPILABİLİR | K78: ='DOLDURULMASI GEREKEN TABLO'!J91 -> 0 | L78: ='DOLDURULMASI GEREKEN TABLO'!K91 -> 0 | M78: ='DOLDURULMASI GEREKEN TABLO'!L91 -> 0 | N78: =IFERROR(IF('DOLDURULMASI GEREKEN TABLO'!M91="EVET",(I78-H78)+1,0),0) -> 0 | O78: 0 | P78: 0 | Q78: 0 | R78: 0 | S78: 0 | T78: 0 | U78: 0 | V78: ='DOLDURULMASI GEREKEN TABLO'!M91 -> 0 | W78: 2025-1 | X78: =VLOOKUP(W78,'Aylık Yİ-ÜFE'!$D$1:$E$500,2,0) -> 3861.33 | Y78: =CONCATENATE(YEAR('DOLDURULMASI GEREKEN TABLO'!N91),"-",MONTH('DOLDURULMASI GEREKEN TABLO'!N91)) -> 2025-12 | Z78: =VLOOKUP(Y78,'Aylık Yİ-ÜFE'!$D$1:$E$500,2,0) -> 4783.04 | AA78: 1 | AB78: =IF('DOLDURULMASI GEREKEN TABLO'!M91="EVET",MAX(S78*AA78,S78),S78) -> 0 | AC78: =IF('DOLDURULMASI GEREKEN TABLO'!M91="EVET",MAX(T78*AA78,T78),T78) -> 0 | AD78: 0 | AE78: 0 | AF78: 0 | AG78: 0 | AH78: 0 | AJ78: 00:00:00 | AK78: ='DOLDURULMASI GEREKEN TABLO'!N91 -> 2025-12-31 | AL78: 0 | AM78: 0 | AN78: 46022 | AO78: 126 | AP78: 126 | AQ78: 126 | AR78: 0
B79: 72 | C79: ='DOLDURULMASI GEREKEN TABLO'!D92 -> 0 | D79: ='DOLDURULMASI GEREKEN TABLO'!E92 -> 0 | E79: ='DOLDURULMASI GEREKEN TABLO'!F92 -> 0 | F79: ='DOLDURULMASI GEREKEN TABLO'!G92 -> 0 | G79: 0 | H79: ='DOLDURULMASI GEREKEN TABLO'!H92 -> 00:00:00 | I79: 2025-12-31 | J79: 2025 YD ORANINA GÖRE GEÇİCİ 32 YE GÖRE YD YAPILABİLİR | K79: ='DOLDURULMASI GEREKEN TABLO'!J92 -> 0 | L79: ='DOLDURULMASI GEREKEN TABLO'!K92 -> 0 | M79: ='DOLDURULMASI GEREKEN TABLO'!L92 -> 0 | N79: =IFERROR(IF('DOLDURULMASI GEREKEN TABLO'!M92="EVET",(I79-H79)+1,0),0) -> 0 | O79: 0 | P79: 0 | Q79: 0 | R79: 0 | S79: 0 | T79: 0 | U79: 0 | V79: ='DOLDURULMASI GEREKEN TABLO'!M92 -> 0 | W79: 2025-1 | X79: =VLOOKUP(W79,'Aylık Yİ-ÜFE'!$D$1:$E$500,2,0) -> 3861.33 | Y79: =CONCATENATE(YEAR('DOLDURULMASI GEREKEN TABLO'!N92),"-",MONTH('DOLDURULMASI GEREKEN TABLO'!N92)) -> 2025-12 | Z79: =VLOOKUP(Y79,'Aylık Yİ-ÜFE'!$D$1:$E$500,2,0) -> 4783.04 | AA79: 1 | AB79: =IF('DOLDURULMASI GEREKEN TABLO'!M92="EVET",MAX(S79*AA79,S79),S79) -> 0 | AC79: =IF('DOLDURULMASI GEREKEN TABLO'!M92="EVET",MAX(T79*AA79,T79),T79) -> 0 | AD79: 0 | AE79: 0 | AF79: 0 | AG79: 0 | AH79: 0 | AJ79: 00:00:00 | AK79: ='DOLDURULMASI GEREKEN TABLO'!N92 -> 2025-12-31 | AL79: 0 | AM79: 0 | AN79: 46022 | AO79: 126 | AP79: 126 | AQ79: 126 | AR79: 0
B80: 73 | C80: ='DOLDURULMASI GEREKEN TABLO'!D93 -> 0 | D80: ='DOLDURULMASI GEREKEN TABLO'!E93 -> 0 | E80: ='DOLDURULMASI GEREKEN TABLO'!F93 -> 0 | F80: ='DOLDURULMASI GEREKEN TABLO'!G93 -> 0 | G80: 0 | H80: ='DOLDURULMASI GEREKEN TABLO'!H93 -> 00:00:00 | I80: 2025-12-31 | J80: 2025 YD ORANINA GÖRE GEÇİCİ 32 YE GÖRE YD YAPILABİLİR | K80: ='DOLDURULMASI GEREKEN TABLO'!J93 -> 0 | L80: ='DOLDURULMASI GEREKEN TABLO'!K93 -> 0 | M80: ='DOLDURULMASI GEREKEN TABLO'!L93 -> 0 | N80: =IFERROR(IF('DOLDURULMASI GEREKEN TABLO'!M93="EVET",(I80-H80)+1,0),0) -> 0 | O80: 0 | P80: 0 | Q80: 0 | R80: 0 | S80: 0 | T80: 0 | U80: 0 | V80: ='DOLDURULMASI GEREKEN TABLO'!M93 -> 0 | W80: 2025-1 | X80: =VLOOKUP(W80,'Aylık Yİ-ÜFE'!$D$1:$E$500,2,0) -> 3861.33 | Y80: =CONCATENATE(YEAR('DOLDURULMASI GEREKEN TABLO'!N93),"-",MONTH('DOLDURULMASI GEREKEN TABLO'!N93)) -> 2025-12 | Z80: =VLOOKUP(Y80,'Aylık Yİ-ÜFE'!$D$1:$E$500,2,0) -> 4783.04 | AA80: 1 | AB80: =IF('DOLDURULMASI GEREKEN TABLO'!M93="EVET",MAX(S80*AA80,S80),S80) -> 0 | AC80: =IF('DOLDURULMASI GEREKEN TABLO'!M93="EVET",MAX(T80*AA80,T80),T80) -> 0 | AD80: 0 | AE80: 0 | AF80: 0 | AG80: 0 | AH80: 0 | AJ80: 00:00:00 | AK80: ='DOLDURULMASI GEREKEN TABLO'!N93 -> 2025-12-31 | AL80: 0 | AM80: 0 | AN80: 46022 | AO80: 126 | AP80: 126 | AQ80: 126 | AR80: 0
B81: 74 | C81: ='DOLDURULMASI GEREKEN TABLO'!D94 -> 0 | D81: ='DOLDURULMASI GEREKEN TABLO'!E94 -> 0 | E81: ='DOLDURULMASI GEREKEN TABLO'!F94 -> 0 | F81: ='DOLDURULMASI GEREKEN TABLO'!G94 -> 0 | G81: 0 | H81: ='DOLDURULMASI GEREKEN TABLO'!H94 -> 00:00:00 | I81: 2025-12-31 | J81: 2025 YD ORANINA GÖRE GEÇİCİ 32 YE GÖRE YD YAPILABİLİR | K81: ='DOLDURULMASI GEREKEN TABLO'!J94 -> 0 | L81: ='DOLDURULMASI GEREKEN TABLO'!K94 -> 0 | M81: ='DOLDURULMASI GEREKEN TABLO'!L94 -> 0 | N81: =IFERROR(IF('DOLDURULMASI GEREKEN TABLO'!M94="EVET",(I81-H81)+1,0),0) -> 0 | O81: 0 | P81: 0 | Q81: 0 | R81: 0 | S81: 0 | T81: 0 | U81: 0 | V81: ='DOLDURULMASI GEREKEN TABLO'!M94 -> 0 | W81: 2025-1 | X81: =VLOOKUP(W81,'Aylık Yİ-ÜFE'!$D$1:$E$500,2,0) -> 3861.33 | Y81: =CONCATENATE(YEAR('DOLDURULMASI GEREKEN TABLO'!N94),"-",MONTH('DOLDURULMASI GEREKEN TABLO'!N94)) -> 2025-12 | Z81: =VLOOKUP(Y81,'Aylık Yİ-ÜFE'!$D$1:$E$500,2,0) -> 4783.04 | AA81: 1 | AB81: =IF('DOLDURULMASI GEREKEN TABLO'!M94="EVET",MAX(S81*AA81,S81),S81) -> 0 | AC81: =IF('DOLDURULMASI GEREKEN TABLO'!M94="EVET",MAX(T81*AA81,T81),T81) -> 0 | AD81: 0 | AE81: 0 | AF81: 0 | AG81: 0 | AH81: 0 | AJ81: 00:00:00 | AK81: ='DOLDURULMASI GEREKEN TABLO'!N94 -> 2025-12-31 | AL81: 0 | AM81: 0 | AN81: 46022 | AO81: 126 | AP81: 126 | AQ81: 126 | AR81: 0
B82: 75 | C82: ='DOLDURULMASI GEREKEN TABLO'!D95 -> 0 | D82: ='DOLDURULMASI GEREKEN TABLO'!E95 -> 0 | E82: ='DOLDURULMASI GEREKEN TABLO'!F95 -> 0 | F82: ='DOLDURULMASI GEREKEN TABLO'!G95 -> 0 | G82: 0 | H82: ='DOLDURULMASI GEREKEN TABLO'!H95 -> 00:00:00 | I82: 2025-12-31 | J82: 2025 YD ORANINA GÖRE GEÇİCİ 32 YE GÖRE YD YAPILABİLİR | K82: ='DOLDURULMASI GEREKEN TABLO'!J95 -> 0 | L82: ='DOLDURULMASI GEREKEN TABLO'!K95 -> 0 | M82: ='DOLDURULMASI GEREKEN TABLO'!L95 -> 0 | N82: =IFERROR(IF('DOLDURULMASI GEREKEN TABLO'!M95="EVET",(I82-H82)+1,0),0) -> 0 | O82: 0 | P82: 0 | Q82: 0 | R82: 0 | S82: 0 | T82: 0 | U82: 0 | V82: ='DOLDURULMASI GEREKEN TABLO'!M95 -> 0 | W82: 2025-1 | X82: =VLOOKUP(W82,'Aylık Yİ-ÜFE'!$D$1:$E$500,2,0) -> 3861.33 | Y82: =CONCATENATE(YEAR('DOLDURULMASI GEREKEN TABLO'!N95),"-",MONTH('DOLDURULMASI GEREKEN TABLO'!N95)) -> 2025-12 | Z82: =VLOOKUP(Y82,'Aylık Yİ-ÜFE'!$D$1:$E$500,2,0) -> 4783.04 | AA82: 1 | AB82: =IF('DOLDURULMASI GEREKEN TABLO'!M95="EVET",MAX(S82*AA82,S82),S82) -> 0 | AC82: =IF('DOLDURULMASI GEREKEN TABLO'!M95="EVET",MAX(T82*AA82,T82),T82) -> 0 | AD82: 0 | AE82: 0 | AF82: 0 | AG82: 0 | AH82: 0 | AJ82: 00:00:00 | AK82: ='DOLDURULMASI GEREKEN TABLO'!N95 -> 2025-12-31 | AL82: 0 | AM82: 0 | AN82: 46022 | AO82: 126 | AP82: 126 | AQ82: 126 | AR82: 0
B83: 76 | C83: ='DOLDURULMASI GEREKEN TABLO'!D96 -> 0 | D83: ='DOLDURULMASI GEREKEN TABLO'!E96 -> 0 | E83: ='DOLDURULMASI GEREKEN TABLO'!F96 -> 0 | F83: ='DOLDURULMASI GEREKEN TABLO'!G96 -> 0 | G83: 0 | H83: ='DOLDURULMASI GEREKEN TABLO'!H96 -> 00:00:00 | I83: 2025-12-31 | J83: 2025 YD ORANINA GÖRE GEÇİCİ 32 YE GÖRE YD YAPILABİLİR | K83: ='DOLDURULMASI GEREKEN TABLO'!J96 -> 0 | L83: ='DOLDURULMASI GEREKEN TABLO'!K96 -> 0 | M83: ='DOLDURULMASI GEREKEN TABLO'!L96 -> 0 | N83: =IFERROR(IF('DOLDURULMASI GEREKEN TABLO'!M96="EVET",(I83-H83)+1,0),0) -> 0 | O83: 0 | P83: 0 | Q83: 0 | R83: 0 | S83: 0 | T83: 0 | U83: 0 | V83: ='DOLDURULMASI GEREKEN TABLO'!M96 -> 0 | W83: 2025-1 | X83: =VLOOKUP(W83,'Aylık Yİ-ÜFE'!$D$1:$E$500,2,0) -> 3861.33 | Y83: =CONCATENATE(YEAR('DOLDURULMASI GEREKEN TABLO'!N96),"-",MONTH('DOLDURULMASI GEREKEN TABLO'!N96)) -> 2025-12 | Z83: =VLOOKUP(Y83,'Aylık Yİ-ÜFE'!$D$1:$E$500,2,0) -> 4783.04 | AA83: 1 | AB83: =IF('DOLDURULMASI GEREKEN TABLO'!M96="EVET",MAX(S83*AA83,S83),S83) -> 0 | AC83: =IF('DOLDURULMASI GEREKEN TABLO'!M96="EVET",MAX(T83*AA83,T83),T83) -> 0 | AD83: 0 | AE83: 0 | AF83: 0 | AG83: 0 | AH83: 0 | AJ83: 00:00:00 | AK83: ='DOLDURULMASI GEREKEN TABLO'!N96 -> 2025-12-31 | AL83: 0 | AM83: 0 | AN83: 46022 | AO83: 126 | AP83: 126 | AQ83: 126 | AR83: 0
B84: 77 | C84: ='DOLDURULMASI GEREKEN TABLO'!D97 -> 0 | D84: ='DOLDURULMASI GEREKEN TABLO'!E97 -> 0 | E84: ='DOLDURULMASI GEREKEN TABLO'!F97 -> 0 | F84: ='DOLDURULMASI GEREKEN TABLO'!G97 -> 0 | G84: 0 | H84: ='DOLDURULMASI GEREKEN TABLO'!H97 -> 00:00:00 | I84: 2025-12-31 | J84: 2025 YD ORANINA GÖRE GEÇİCİ 32 YE GÖRE YD YAPILABİLİR | K84: ='DOLDURULMASI GEREKEN TABLO'!J97 -> 0 | L84: ='DOLDURULMASI GEREKEN TABLO'!K97 -> 0 | M84: ='DOLDURULMASI GEREKEN TABLO'!L97 -> 0 | N84: =IFERROR(IF('DOLDURULMASI GEREKEN TABLO'!M97="EVET",(I84-H84)+1,0),0) -> 0 | O84: 0 | P84: 0 | Q84: 0 | R84: 0 | S84: 0 | T84: 0 | U84: 0 | V84: ='DOLDURULMASI GEREKEN TABLO'!M97 -> 0 | W84: 2025-1 | X84: =VLOOKUP(W84,'Aylık Yİ-ÜFE'!$D$1:$E$500,2,0) -> 3861.33 | Y84: =CONCATENATE(YEAR('DOLDURULMASI GEREKEN TABLO'!N97),"-",MONTH('DOLDURULMASI GEREKEN TABLO'!N97)) -> 2025-12 | Z84: =VLOOKUP(Y84,'Aylık Yİ-ÜFE'!$D$1:$E$500,2,0) -> 4783.04 | AA84: 1 | AB84: =IF('DOLDURULMASI GEREKEN TABLO'!M97="EVET",MAX(S84*AA84,S84),S84) -> 0 | AC84: =IF('DOLDURULMASI GEREKEN TABLO'!M97="EVET",MAX(T84*AA84,T84),T84) -> 0 | AD84: 0 | AE84: 0 | AF84: 0 | AG84: 0 | AH84: 0 | AJ84: 00:00:00 | AK84: ='DOLDURULMASI GEREKEN TABLO'!N97 -> 2025-12-31 | AL84: 0 | AM84: 0 | AN84: 46022 | AO84: 126 | AP84: 126 | AQ84: 126 | AR84: 0
B85: 78 | C85: ='DOLDURULMASI GEREKEN TABLO'!D98 -> 0 | D85: ='DOLDURULMASI GEREKEN TABLO'!E98 -> 0 | E85: ='DOLDURULMASI GEREKEN TABLO'!F98 -> 0 | F85: ='DOLDURULMASI GEREKEN TABLO'!G98 -> 0 | G85: 0 | H85: ='DOLDURULMASI GEREKEN TABLO'!H98 -> 00:00:00 | I85: 2025-12-31 | J85: 2025 YD ORANINA GÖRE GEÇİCİ 32 YE GÖRE YD YAPILABİLİR | K85: ='DOLDURULMASI GEREKEN TABLO'!J98 -> 0 | L85: ='DOLDURULMASI GEREKEN TABLO'!K98 -> 0 | M85: ='DOLDURULMASI GEREKEN TABLO'!L98 -> 0 | N85: =IFERROR(IF('DOLDURULMASI GEREKEN TABLO'!M98="EVET",(I85-H85)+1,0),0) -> 0 | O85: 0 | P85: 0 | Q85: 0 | R85: 0 | S85: 0 | T85: 0 | U85: 0 | V85: ='DOLDURULMASI GEREKEN TABLO'!M98 -> 0 | W85: 2025-1 | X85: =VLOOKUP(W85,'Aylık Yİ-ÜFE'!$D$1:$E$500,2,0) -> 3861.33 | Y85: =CONCATENATE(YEAR('DOLDURULMASI GEREKEN TABLO'!N98),"-",MONTH('DOLDURULMASI GEREKEN TABLO'!N98)) -> 2025-12 | Z85: =VLOOKUP(Y85,'Aylık Yİ-ÜFE'!$D$1:$E$500,2,0) -> 4783.04 | AA85: 1 | AB85: =IF('DOLDURULMASI GEREKEN TABLO'!M98="EVET",MAX(S85*AA85,S85),S85) -> 0 | AC85: =IF('DOLDURULMASI GEREKEN TABLO'!M98="EVET",MAX(T85*AA85,T85),T85) -> 0 | AD85: 0 | AE85: 0 | AF85: 0 | AG85: 0 | AH85: 0 | AJ85: 00:00:00 | AK85: ='DOLDURULMASI GEREKEN TABLO'!N98 -> 2025-12-31 | AL85: 0 | AM85: 0 | AN85: 46022 | AO85: 126 | AP85: 126 | AQ85: 126 | AR85: 0
B86: 79 | C86: ='DOLDURULMASI GEREKEN TABLO'!D99 -> 0 | D86: ='DOLDURULMASI GEREKEN TABLO'!E99 -> 0 | E86: ='DOLDURULMASI GEREKEN TABLO'!F99 -> 0 | F86: ='DOLDURULMASI GEREKEN TABLO'!G99 -> 0 | G86: 0 | H86: ='DOLDURULMASI GEREKEN TABLO'!H99 -> 00:00:00 | I86: 2025-12-31 | J86: 2025 YD ORANINA GÖRE GEÇİCİ 32 YE GÖRE YD YAPILABİLİR | K86: ='DOLDURULMASI GEREKEN TABLO'!J99 -> 0 | L86: ='DOLDURULMASI GEREKEN TABLO'!K99 -> 0 | M86: ='DOLDURULMASI GEREKEN TABLO'!L99 -> 0 | N86: =IFERROR(IF('DOLDURULMASI GEREKEN TABLO'!M99="EVET",(I86-H86)+1,0),0) -> 0 | O86: 0 | P86: 0 | Q86: 0 | R86: 0 | S86: 0 | T86: 0 | U86: 0 | V86: ='DOLDURULMASI GEREKEN TABLO'!M99 -> 0 | W86: 2025-1 | X86: =VLOOKUP(W86,'Aylık Yİ-ÜFE'!$D$1:$E$500,2,0) -> 3861.33 | Y86: =CONCATENATE(YEAR('DOLDURULMASI GEREKEN TABLO'!N99),"-",MONTH('DOLDURULMASI GEREKEN TABLO'!N99)) -> 2025-12 | Z86: =VLOOKUP(Y86,'Aylık Yİ-ÜFE'!$D$1:$E$500,2,0) -> 4783.04 | AA86: 1 | AB86: =IF('DOLDURULMASI GEREKEN TABLO'!M99="EVET",MAX(S86*AA86,S86),S86) -> 0 | AC86: =IF('DOLDURULMASI GEREKEN TABLO'!M99="EVET",MAX(T86*AA86,T86),T86) -> 0 | AD86: 0 | AE86: 0 | AF86: 0 | AG86: 0 | AH86: 0 | AJ86: 00:00:00 | AK86: ='DOLDURULMASI GEREKEN TABLO'!N99 -> 2025-12-31 | AL86: 0 | AM86: 0 | AN86: 46022 | AO86: 126 | AP86: 126 | AQ86: 126 | AR86: 0
B87: 80 | C87: ='DOLDURULMASI GEREKEN TABLO'!D100 -> 0 | D87: ='DOLDURULMASI GEREKEN TABLO'!E100 -> 0 | E87: ='DOLDURULMASI GEREKEN TABLO'!F100 -> 0 | F87: ='DOLDURULMASI GEREKEN TABLO'!G100 -> 0 | G87: 0 | H87: ='DOLDURULMASI GEREKEN TABLO'!H100 -> 00:00:00 | I87: 2025-12-31 | J87: 2025 YD ORANINA GÖRE GEÇİCİ 32 YE GÖRE YD YAPILABİLİR | K87: ='DOLDURULMASI GEREKEN TABLO'!J100 -> 0 | L87: ='DOLDURULMASI GEREKEN TABLO'!K100 -> 0 | M87: ='DOLDURULMASI GEREKEN TABLO'!L100 -> 0 | N87: =IFERROR(IF('DOLDURULMASI GEREKEN TABLO'!M100="EVET",(I87-H87)+1,0),0) -> 0 | O87: 0 | P87: 0 | Q87: 0 | R87: 0 | S87: 0 | T87: 0 | U87: 0 | V87: ='DOLDURULMASI GEREKEN TABLO'!M100 -> 0 | W87: 2025-1 | X87: =VLOOKUP(W87,'Aylık Yİ-ÜFE'!$D$1:$E$500,2,0) -> 3861.33 | Y87: =CONCATENATE(YEAR('DOLDURULMASI GEREKEN TABLO'!N100),"-",MONTH('DOLDURULMASI GEREKEN TABLO'!N100)) -> 2025-12 | Z87: =VLOOKUP(Y87,'Aylık Yİ-ÜFE'!$D$1:$E$500,2,0) -> 4783.04 | AA87: 1 | AB87: =IF('DOLDURULMASI GEREKEN TABLO'!M100="EVET",MAX(S87*AA87,S87),S87) -> 0 | AC87: =IF('DOLDURULMASI GEREKEN TABLO'!M100="EVET",MAX(T87*AA87,T87),T87) -> 0 | AD87: 0 | AE87: 0 | AF87: 0 | AG87: 0 | AH87: 0 | AJ87: 00:00:00 | AK87: ='DOLDURULMASI GEREKEN TABLO'!N100 -> 2025-12-31 | AL87: 0 | AM87: 0 | AN87: 46022 | AO87: 126 | AP87: 126 | AQ87: 126 | AR87: 0
B88: 81 | C88: ='DOLDURULMASI GEREKEN TABLO'!D101 -> 0 | D88: ='DOLDURULMASI GEREKEN TABLO'!E101 -> 0 | E88: ='DOLDURULMASI GEREKEN TABLO'!F101 -> 0 | F88: ='DOLDURULMASI GEREKEN TABLO'!G101 -> 0 | G88: 0 | H88: ='DOLDURULMASI GEREKEN TABLO'!H101 -> 00:00:00 | I88: 2025-12-31 | J88: 2025 YD ORANINA GÖRE GEÇİCİ 32 YE GÖRE YD YAPILABİLİR | K88: ='DOLDURULMASI GEREKEN TABLO'!J101 -> 0 | L88: ='DOLDURULMASI GEREKEN TABLO'!K101 -> 0 | M88: ='DOLDURULMASI GEREKEN TABLO'!L101 -> 0 | N88: =IFERROR(IF('DOLDURULMASI GEREKEN TABLO'!M101="EVET",(I88-H88)+1,0),0) -> 0 | O88: 0 | P88: 0 | Q88: 0 | R88: 0 | S88: 0 | T88: 0 | U88: 0 | V88: ='DOLDURULMASI GEREKEN TABLO'!M101 -> 0 | W88: 2025-1 | X88: =VLOOKUP(W88,'Aylık Yİ-ÜFE'!$D$1:$E$500,2,0) -> 3861.33 | Y88: =CONCATENATE(YEAR('DOLDURULMASI GEREKEN TABLO'!N101),"-",MONTH('DOLDURULMASI GEREKEN TABLO'!N101)) -> 2025-12 | Z88: =VLOOKUP(Y88,'Aylık Yİ-ÜFE'!$D$1:$E$500,2,0) -> 4783.04 | AA88: 1 | AB88: =IF('DOLDURULMASI GEREKEN TABLO'!M101="EVET",MAX(S88*AA88,S88),S88) -> 0 | AC88: =IF('DOLDURULMASI GEREKEN TABLO'!M101="EVET",MAX(T88*AA88,T88),T88) -> 0 | AD88: 0 | AE88: 0 | AF88: 0 | AG88: 0 | AH88: 0 | AJ88: 00:00:00 | AK88: ='DOLDURULMASI GEREKEN TABLO'!N101 -> 2025-12-31 | AL88: 0 | AM88: 0 | AN88: 46022 | AO88: 126 | AP88: 126 | AQ88: 126 | AR88: 0
B89: 82 | C89: ='DOLDURULMASI GEREKEN TABLO'!D102 -> 0 | D89: ='DOLDURULMASI GEREKEN TABLO'!E102 -> 0 | E89: ='DOLDURULMASI GEREKEN TABLO'!F102 -> 0 | F89: ='DOLDURULMASI GEREKEN TABLO'!G102 -> 0 | G89: 0 | H89: ='DOLDURULMASI GEREKEN TABLO'!H102 -> 00:00:00 | I89: 2025-12-31 | J89: 2025 YD ORANINA GÖRE GEÇİCİ 32 YE GÖRE YD YAPILABİLİR | K89: ='DOLDURULMASI GEREKEN TABLO'!J102 -> 0 | L89: ='DOLDURULMASI GEREKEN TABLO'!K102 -> 0 | M89: ='DOLDURULMASI GEREKEN TABLO'!L102 -> 0 | N89: =IFERROR(IF('DOLDURULMASI GEREKEN TABLO'!M102="EVET",(I89-H89)+1,0),0) -> 0 | O89: 0 | P89: 0 | Q89: 0 | R89: 0 | S89: 0 | T89: 0 | U89: 0 | V89: ='DOLDURULMASI GEREKEN TABLO'!M102 -> 0 | W89: 2025-1 | X89: =VLOOKUP(W89,'Aylık Yİ-ÜFE'!$D$1:$E$500,2,0) -> 3861.33 | Y89: =CONCATENATE(YEAR('DOLDURULMASI GEREKEN TABLO'!N102),"-",MONTH('DOLDURULMASI GEREKEN TABLO'!N102)) -> 2025-12 | Z89: =VLOOKUP(Y89,'Aylık Yİ-ÜFE'!$D$1:$E$500,2,0) -> 4783.04 | AA89: 1 | AB89: =IF('DOLDURULMASI GEREKEN TABLO'!M102="EVET",MAX(S89*AA89,S89),S89) -> 0 | AC89: =IF('DOLDURULMASI GEREKEN TABLO'!M102="EVET",MAX(T89*AA89,T89),T89) -> 0 | AD89: 0 | AE89: 0 | AF89: 0 | AG89: 0 | AH89: 0 | AJ89: 00:00:00 | AK89: ='DOLDURULMASI GEREKEN TABLO'!N102 -> 2025-12-31 | AL89: 0 | AM89: 0 | AN89: 46022 | AO89: 126 | AP89: 126 | AQ89: 126 | AR89: 0
B90: 83 | C90: ='DOLDURULMASI GEREKEN TABLO'!D103 -> 0 | D90: ='DOLDURULMASI GEREKEN TABLO'!E103 -> 0 | E90: ='DOLDURULMASI GEREKEN TABLO'!F103 -> 0 | F90: ='DOLDURULMASI GEREKEN TABLO'!G103 -> 0 | G90: 0 | H90: ='DOLDURULMASI GEREKEN TABLO'!H103 -> 00:00:00 | I90: 2025-12-31 | J90: 2025 YD ORANINA GÖRE GEÇİCİ 32 YE GÖRE YD YAPILABİLİR | K90: ='DOLDURULMASI GEREKEN TABLO'!J103 -> 0 | L90: ='DOLDURULMASI GEREKEN TABLO'!K103 -> 0 | M90: ='DOLDURULMASI GEREKEN TABLO'!L103 -> 0 | N90: =IFERROR(IF('DOLDURULMASI GEREKEN TABLO'!M103="EVET",(I90-H90)+1,0),0) -> 0 | O90: 0 | P90: 0 | Q90: 0 | R90: 0 | S90: 0 | T90: 0 | U90: 0 | V90: ='DOLDURULMASI GEREKEN TABLO'!M103 -> 0 | W90: 2025-1 | X90: =VLOOKUP(W90,'Aylık Yİ-ÜFE'!$D$1:$E$500,2,0) -> 3861.33 | Y90: =CONCATENATE(YEAR('DOLDURULMASI GEREKEN TABLO'!N103),"-",MONTH('DOLDURULMASI GEREKEN TABLO'!N103)) -> 2025-12 | Z90: =VLOOKUP(Y90,'Aylık Yİ-ÜFE'!$D$1:$E$500,2,0) -> 4783.04 | AA90: 1 | AB90: =IF('DOLDURULMASI GEREKEN TABLO'!M103="EVET",MAX(S90*AA90,S90),S90) -> 0 | AC90: =IF('DOLDURULMASI GEREKEN TABLO'!M103="EVET",MAX(T90*AA90,T90),T90) -> 0 | AD90: 0 | AE90: 0 | AF90: 0 | AG90: 0 | AH90: 0 | AJ90: 00:00:00 | AK90: ='DOLDURULMASI GEREKEN TABLO'!N103 -> 2025-12-31 | AL90: 0 | AM90: 0 | AN90: 46022 | AO90: 126 | AP90: 126 | AQ90: 126 | AR90: 0
B91: 84 | C91: ='DOLDURULMASI GEREKEN TABLO'!D104 -> 0 | D91: ='DOLDURULMASI GEREKEN TABLO'!E104 -> 0 | E91: ='DOLDURULMASI GEREKEN TABLO'!F104 -> 0 | F91: ='DOLDURULMASI GEREKEN TABLO'!G104 -> 0 | G91: 0 | H91: ='DOLDURULMASI GEREKEN TABLO'!H104 -> 00:00:00 | I91: 2025-12-31 | J91: 2025 YD ORANINA GÖRE GEÇİCİ 32 YE GÖRE YD YAPILABİLİR | K91: ='DOLDURULMASI GEREKEN TABLO'!J104 -> 0 | L91: ='DOLDURULMASI GEREKEN TABLO'!K104 -> 0 | M91: ='DOLDURULMASI GEREKEN TABLO'!L104 -> 0 | N91: =IFERROR(IF('DOLDURULMASI GEREKEN TABLO'!M104="EVET",(I91-H91)+1,0),0) -> 0 | O91: 0 | P91: 0 | Q91: 0 | R91: 0 | S91: 0 | T91: 0 | U91: 0 | V91: ='DOLDURULMASI GEREKEN TABLO'!M104 -> 0 | W91: 2025-1 | X91: =VLOOKUP(W91,'Aylık Yİ-ÜFE'!$D$1:$E$500,2,0) -> 3861.33 | Y91: =CONCATENATE(YEAR('DOLDURULMASI GEREKEN TABLO'!N104),"-",MONTH('DOLDURULMASI GEREKEN TABLO'!N104)) -> 2025-12 | Z91: =VLOOKUP(Y91,'Aylık Yİ-ÜFE'!$D$1:$E$500,2,0) -> 4783.04 | AA91: 1 | AB91: =IF('DOLDURULMASI GEREKEN TABLO'!M104="EVET",MAX(S91*AA91,S91),S91) -> 0 | AC91: =IF('DOLDURULMASI GEREKEN TABLO'!M104="EVET",MAX(T91*AA91,T91),T91) -> 0 | AD91: 0 | AE91: 0 | AF91: 0 | AG91: 0 | AH91: 0 | AJ91: 00:00:00 | AK91: ='DOLDURULMASI GEREKEN TABLO'!N104 -> 2025-12-31 | AL91: 0 | AM91: 0 | AN91: 46022 | AO91: 126 | AP91: 126 | AQ91: 126 | AR91: 0
B92: 85 | C92: ='DOLDURULMASI GEREKEN TABLO'!D105 -> 0 | D92: ='DOLDURULMASI GEREKEN TABLO'!E105 -> 0 | E92: ='DOLDURULMASI GEREKEN TABLO'!F105 -> 0 | F92: ='DOLDURULMASI GEREKEN TABLO'!G105 -> 0 | G92: 0 | H92: ='DOLDURULMASI GEREKEN TABLO'!H105 -> 00:00:00 | I92: 2025-12-31 | J92: 2025 YD ORANINA GÖRE GEÇİCİ 32 YE GÖRE YD YAPILABİLİR | K92: ='DOLDURULMASI GEREKEN TABLO'!J105 -> 0 | L92: ='DOLDURULMASI GEREKEN TABLO'!K105 -> 0 | M92: ='DOLDURULMASI GEREKEN TABLO'!L105 -> 0 | N92: =IFERROR(IF('DOLDURULMASI GEREKEN TABLO'!M105="EVET",(I92-H92)+1,0),0) -> 0 | O92: 0 | P92: 0 | Q92: 0 | R92: 0 | S92: 0 | T92: 0 | U92: 0 | V92: ='DOLDURULMASI GEREKEN TABLO'!M105 -> 0 | W92: 2025-1 | X92: =VLOOKUP(W92,'Aylık Yİ-ÜFE'!$D$1:$E$500,2,0) -> 3861.33 | Y92: =CONCATENATE(YEAR('DOLDURULMASI GEREKEN TABLO'!N105),"-",MONTH('DOLDURULMASI GEREKEN TABLO'!N105)) -> 2025-12 | Z92: =VLOOKUP(Y92,'Aylık Yİ-ÜFE'!$D$1:$E$500,2,0) -> 4783.04 | AA92: 1 | AB92: =IF('DOLDURULMASI GEREKEN TABLO'!M105="EVET",MAX(S92*AA92,S92),S92) -> 0 | AC92: =IF('DOLDURULMASI GEREKEN TABLO'!M105="EVET",MAX(T92*AA92,T92),T92) -> 0 | AD92: 0 | AE92: 0 | AF92: 0 | AG92: 0 | AH92: 0 | AJ92: 00:00:00 | AK92: ='DOLDURULMASI GEREKEN TABLO'!N105 -> 2025-12-31 | AL92: 0 | AM92: 0 | AN92: 46022 | AO92: 126 | AP92: 126 | AQ92: 126 | AR92: 0
B93: 86 | C93: ='DOLDURULMASI GEREKEN TABLO'!D106 -> 0 | D93: ='DOLDURULMASI GEREKEN TABLO'!E106 -> 0 | E93: ='DOLDURULMASI GEREKEN TABLO'!F106 -> 0 | F93: ='DOLDURULMASI GEREKEN TABLO'!G106 -> 0 | G93: 0 | H93: ='DOLDURULMASI GEREKEN TABLO'!H106 -> 00:00:00 | I93: 2025-12-31 | J93: 2025 YD ORANINA GÖRE GEÇİCİ 32 YE GÖRE YD YAPILABİLİR | K93: ='DOLDURULMASI GEREKEN TABLO'!J106 -> 0 | L93: ='DOLDURULMASI GEREKEN TABLO'!K106 -> 0 | M93: ='DOLDURULMASI GEREKEN TABLO'!L106 -> 0 | N93: =IFERROR(IF('DOLDURULMASI GEREKEN TABLO'!M106="EVET",(I93-H93)+1,0),0) -> 0 | O93: 0 | P93: 0 | Q93: 0 | R93: 0 | S93: 0 | T93: 0 | U93: 0 | V93: ='DOLDURULMASI GEREKEN TABLO'!M106 -> 0 | W93: 2025-1 | X93: =VLOOKUP(W93,'Aylık Yİ-ÜFE'!$D$1:$E$500,2,0) -> 3861.33 | Y93: =CONCATENATE(YEAR('DOLDURULMASI GEREKEN TABLO'!N106),"-",MONTH('DOLDURULMASI GEREKEN TABLO'!N106)) -> 2025-12 | Z93: =VLOOKUP(Y93,'Aylık Yİ-ÜFE'!$D$1:$E$500,2,0) -> 4783.04 | AA93: 1 | AB93: =IF('DOLDURULMASI GEREKEN TABLO'!M106="EVET",MAX(S93*AA93,S93),S93) -> 0 | AC93: =IF('DOLDURULMASI GEREKEN TABLO'!M106="EVET",MAX(T93*AA93,T93),T93) -> 0 | AD93: 0 | AE93: 0 | AF93: 0 | AG93: 0 | AH93: 0 | AJ93: 00:00:00 | AK93: ='DOLDURULMASI GEREKEN TABLO'!N106 -> 2025-12-31 | AL93: 0 | AM93: 0 | AN93: 46022 | AO93: 126 | AP93: 126 | AQ93: 126 | AR93: 0
B94: 87 | C94: ='DOLDURULMASI GEREKEN TABLO'!D107 -> 0 | D94: ='DOLDURULMASI GEREKEN TABLO'!E107 -> 0 | E94: ='DOLDURULMASI GEREKEN TABLO'!F107 -> 0 | F94: ='DOLDURULMASI GEREKEN TABLO'!G107 -> 0 | G94: 0 | H94: ='DOLDURULMASI GEREKEN TABLO'!H107 -> 00:00:00 | I94: 2025-12-31 | J94: 2025 YD ORANINA GÖRE GEÇİCİ 32 YE GÖRE YD YAPILABİLİR | K94: ='DOLDURULMASI GEREKEN TABLO'!J107 -> 0 | L94: ='DOLDURULMASI GEREKEN TABLO'!K107 -> 0 | M94: ='DOLDURULMASI GEREKEN TABLO'!L107 -> 0 | N94: =IFERROR(IF('DOLDURULMASI GEREKEN TABLO'!M107="EVET",(I94-H94)+1,0),0) -> 0 | O94: 0 | P94: 0 | Q94: 0 | R94: 0 | S94: 0 | T94: 0 | U94: 0 | V94: ='DOLDURULMASI GEREKEN TABLO'!M107 -> 0 | W94: 2025-1 | X94: =VLOOKUP(W94,'Aylık Yİ-ÜFE'!$D$1:$E$500,2,0) -> 3861.33 | Y94: =CONCATENATE(YEAR('DOLDURULMASI GEREKEN TABLO'!N107),"-",MONTH('DOLDURULMASI GEREKEN TABLO'!N107)) -> 2025-12 | Z94: =VLOOKUP(Y94,'Aylık Yİ-ÜFE'!$D$1:$E$500,2,0) -> 4783.04 | AA94: 1 | AB94: =IF('DOLDURULMASI GEREKEN TABLO'!M107="EVET",MAX(S94*AA94,S94),S94) -> 0 | AC94: =IF('DOLDURULMASI GEREKEN TABLO'!M107="EVET",MAX(T94*AA94,T94),T94) -> 0 | AD94: 0 | AE94: 0 | AF94: 0 | AG94: 0 | AH94: 0 | AJ94: 00:00:00 | AK94: ='DOLDURULMASI GEREKEN TABLO'!N107 -> 2025-12-31 | AL94: 0 | AM94: 0 | AN94: 46022 | AO94: 126 | AP94: 126 | AQ94: 126 | AR94: 0
B95: 88 | C95: ='DOLDURULMASI GEREKEN TABLO'!D108 -> 0 | D95: ='DOLDURULMASI GEREKEN TABLO'!E108 -> 0 | E95: ='DOLDURULMASI GEREKEN TABLO'!F108 -> 0 | F95: ='DOLDURULMASI GEREKEN TABLO'!G108 -> 0 | G95: 0 | H95: ='DOLDURULMASI GEREKEN TABLO'!H108 -> 00:00:00 | I95: 2025-12-31 | J95: 2025 YD ORANINA GÖRE GEÇİCİ 32 YE GÖRE YD YAPILABİLİR | K95: ='DOLDURULMASI GEREKEN TABLO'!J108 -> 0 | L95: ='DOLDURULMASI GEREKEN TABLO'!K108 -> 0 | M95: ='DOLDURULMASI GEREKEN TABLO'!L108 -> 0 | N95: =IFERROR(IF('DOLDURULMASI GEREKEN TABLO'!M108="EVET",(I95-H95)+1,0),0) -> 0 | O95: 0 | P95: 0 | Q95: 0 | R95: 0 | S95: 0 | T95: 0 | U95: 0 | V95: ='DOLDURULMASI GEREKEN TABLO'!M108 -> 0 | W95: 2025-1 | X95: =VLOOKUP(W95,'Aylık Yİ-ÜFE'!$D$1:$E$500,2,0) -> 3861.33 | Y95: =CONCATENATE(YEAR('DOLDURULMASI GEREKEN TABLO'!N108),"-",MONTH('DOLDURULMASI GEREKEN TABLO'!N108)) -> 2025-12 | Z95: =VLOOKUP(Y95,'Aylık Yİ-ÜFE'!$D$1:$E$500,2,0) -> 4783.04 | AA95: 1 | AB95: =IF('DOLDURULMASI GEREKEN TABLO'!M108="EVET",MAX(S95*AA95,S95),S95) -> 0 | AC95: =IF('DOLDURULMASI GEREKEN TABLO'!M108="EVET",MAX(T95*AA95,T95),T95) -> 0 | AD95: 0 | AE95: 0 | AF95: 0 | AG95: 0 | AH95: 0 | AJ95: 00:00:00 | AK95: ='DOLDURULMASI GEREKEN TABLO'!N108 -> 2025-12-31 | AL95: 0 | AM95: 0 | AN95: 46022 | AO95: 126 | AP95: 126 | AQ95: 126 | AR95: 0
B96: 89 | C96: ='DOLDURULMASI GEREKEN TABLO'!D109 -> 0 | D96: ='DOLDURULMASI GEREKEN TABLO'!E109 -> 0 | E96: ='DOLDURULMASI GEREKEN TABLO'!F109 -> 0 | F96: ='DOLDURULMASI GEREKEN TABLO'!G109 -> 0 | G96: 0 | H96: ='DOLDURULMASI GEREKEN TABLO'!H109 -> 00:00:00 | I96: 2025-12-31 | J96: 2025 YD ORANINA GÖRE GEÇİCİ 32 YE GÖRE YD YAPILABİLİR | K96: ='DOLDURULMASI GEREKEN TABLO'!J109 -> 0 | L96: ='DOLDURULMASI GEREKEN TABLO'!K109 -> 0 | M96: ='DOLDURULMASI GEREKEN TABLO'!L109 -> 0 | N96: =IFERROR(IF('DOLDURULMASI GEREKEN TABLO'!M109="EVET",(I96-H96)+1,0),0) -> 0 | O96: 0 | P96: 0 | Q96: 0 | R96: 0 | S96: 0 | T96: 0 | U96: 0 | V96: ='DOLDURULMASI GEREKEN TABLO'!M109 -> 0 | W96: 2025-1 | X96: =VLOOKUP(W96,'Aylık Yİ-ÜFE'!$D$1:$E$500,2,0) -> 3861.33 | Y96: =CONCATENATE(YEAR('DOLDURULMASI GEREKEN TABLO'!N109),"-",MONTH('DOLDURULMASI GEREKEN TABLO'!N109)) -> 2025-12 | Z96: =VLOOKUP(Y96,'Aylık Yİ-ÜFE'!$D$1:$E$500,2,0) -> 4783.04 | AA96: 1 | AB96: =IF('DOLDURULMASI GEREKEN TABLO'!M109="EVET",MAX(S96*AA96,S96),S96) -> 0 | AC96: =IF('DOLDURULMASI GEREKEN TABLO'!M109="EVET",MAX(T96*AA96,T96),T96) -> 0 | AD96: 0 | AE96: 0 | AF96: 0 | AG96: 0 | AH96: 0 | AJ96: 00:00:00 | AK96: ='DOLDURULMASI GEREKEN TABLO'!N109 -> 2025-12-31 | AL96: 0 | AM96: 0 | AN96: 46022 | AO96: 126 | AP96: 126 | AQ96: 126 | AR96: 0
B97: 90 | C97: ='DOLDURULMASI GEREKEN TABLO'!D110 -> 0 | D97: ='DOLDURULMASI GEREKEN TABLO'!E110 -> 0 | E97: ='DOLDURULMASI GEREKEN TABLO'!F110 -> 0 | F97: ='DOLDURULMASI GEREKEN TABLO'!G110 -> 0 | G97: 0 | H97: ='DOLDURULMASI GEREKEN TABLO'!H110 -> 00:00:00 | I97: 2025-12-31 | J97: 2025 YD ORANINA GÖRE GEÇİCİ 32 YE GÖRE YD YAPILABİLİR | K97: ='DOLDURULMASI GEREKEN TABLO'!J110 -> 0 | L97: ='DOLDURULMASI GEREKEN TABLO'!K110 -> 0 | M97: ='DOLDURULMASI GEREKEN TABLO'!L110 -> 0 | N97: =IFERROR(IF('DOLDURULMASI GEREKEN TABLO'!M110="EVET",(I97-H97)+1,0),0) -> 0 | O97: 0 | P97: 0 | Q97: 0 | R97: 0 | S97: 0 | T97: 0 | U97: 0 | V97: ='DOLDURULMASI GEREKEN TABLO'!M110 -> 0 | W97: 2025-1 | X97: =VLOOKUP(W97,'Aylık Yİ-ÜFE'!$D$1:$E$500,2,0) -> 3861.33 | Y97: =CONCATENATE(YEAR('DOLDURULMASI GEREKEN TABLO'!N110),"-",MONTH('DOLDURULMASI GEREKEN TABLO'!N110)) -> 2025-12 | Z97: =VLOOKUP(Y97,'Aylık Yİ-ÜFE'!$D$1:$E$500,2,0) -> 4783.04 | AA97: 1 | AB97: =IF('DOLDURULMASI GEREKEN TABLO'!M110="EVET",MAX(S97*AA97,S97),S97) -> 0 | AC97: =IF('DOLDURULMASI GEREKEN TABLO'!M110="EVET",MAX(T97*AA97,T97),T97) -> 0 | AD97: 0 | AE97: 0 | AF97: 0 | AG97: 0 | AH97: 0 | AJ97: 00:00:00 | AK97: ='DOLDURULMASI GEREKEN TABLO'!N110 -> 2025-12-31 | AL97: 0 | AM97: 0 | AN97: 46022 | AO97: 126 | AP97: 126 | AQ97: 126 | AR97: 0
B98: 91 | C98: ='DOLDURULMASI GEREKEN TABLO'!D111 -> 0 | D98: ='DOLDURULMASI GEREKEN TABLO'!E111 -> 0 | E98: ='DOLDURULMASI GEREKEN TABLO'!F111 -> 0 | F98: ='DOLDURULMASI GEREKEN TABLO'!G111 -> 0 | G98: 0 | H98: ='DOLDURULMASI GEREKEN TABLO'!H111 -> 00:00:00 | I98: 2025-12-31 | J98: 2025 YD ORANINA GÖRE GEÇİCİ 32 YE GÖRE YD YAPILABİLİR | K98: ='DOLDURULMASI GEREKEN TABLO'!J111 -> 0 | L98: ='DOLDURULMASI GEREKEN TABLO'!K111 -> 0 | M98: ='DOLDURULMASI GEREKEN TABLO'!L111 -> 0 | N98: =IFERROR(IF('DOLDURULMASI GEREKEN TABLO'!M111="EVET",(I98-H98)+1,0),0) -> 0 | O98: 0 | P98: 0 | Q98: 0 | R98: 0 | S98: 0 | T98: 0 | U98: 0 | V98: ='DOLDURULMASI GEREKEN TABLO'!M111 -> 0 | W98: 2025-1 | X98: =VLOOKUP(W98,'Aylık Yİ-ÜFE'!$D$1:$E$500,2,0) -> 3861.33 | Y98: =CONCATENATE(YEAR('DOLDURULMASI GEREKEN TABLO'!N111),"-",MONTH('DOLDURULMASI GEREKEN TABLO'!N111)) -> 2025-12 | Z98: =VLOOKUP(Y98,'Aylık Yİ-ÜFE'!$D$1:$E$500,2,0) -> 4783.04 | AA98: 1 | AB98: =IF('DOLDURULMASI GEREKEN TABLO'!M111="EVET",MAX(S98*AA98,S98),S98) -> 0 | AC98: =IF('DOLDURULMASI GEREKEN TABLO'!M111="EVET",MAX(T98*AA98,T98),T98) -> 0 | AD98: 0 | AE98: 0 | AF98: 0 | AG98: 0 | AH98: 0 | AJ98: 00:00:00 | AK98: ='DOLDURULMASI GEREKEN TABLO'!N111 -> 2025-12-31 | AL98: 0 | AM98: 0 | AN98: 46022 | AO98: 126 | AP98: 126 | AQ98: 126 | AR98: 0
B99: 92 | C99: ='DOLDURULMASI GEREKEN TABLO'!D112 -> 0 | D99: ='DOLDURULMASI GEREKEN TABLO'!E112 -> 0 | E99: ='DOLDURULMASI GEREKEN TABLO'!F112 -> 0 | F99: ='DOLDURULMASI GEREKEN TABLO'!G112 -> 0 | G99: 0 | H99: ='DOLDURULMASI GEREKEN TABLO'!H112 -> 00:00:00 | I99: 2025-12-31 | J99: 2025 YD ORANINA GÖRE GEÇİCİ 32 YE GÖRE YD YAPILABİLİR | K99: ='DOLDURULMASI GEREKEN TABLO'!J112 -> 0 | L99: ='DOLDURULMASI GEREKEN TABLO'!K112 -> 0 | M99: ='DOLDURULMASI GEREKEN TABLO'!L112 -> 0 | N99: =IFERROR(IF('DOLDURULMASI GEREKEN TABLO'!M112="EVET",(I99-H99)+1,0),0) -> 0 | O99: 0 | P99: 0 | Q99: 0 | R99: 0 | S99: 0 | T99: 0 | U99: 0 | V99: ='DOLDURULMASI GEREKEN TABLO'!M112 -> 0 | W99: 2025-1 | X99: =VLOOKUP(W99,'Aylık Yİ-ÜFE'!$D$1:$E$500,2,0) -> 3861.33 | Y99: =CONCATENATE(YEAR('DOLDURULMASI GEREKEN TABLO'!N112),"-",MONTH('DOLDURULMASI GEREKEN TABLO'!N112)) -> 2025-12 | Z99: =VLOOKUP(Y99,'Aylık Yİ-ÜFE'!$D$1:$E$500,2,0) -> 4783.04 | AA99: 1 | AB99: =IF('DOLDURULMASI GEREKEN TABLO'!M112="EVET",MAX(S99*AA99,S99),S99) -> 0 | AC99: =IF('DOLDURULMASI GEREKEN TABLO'!M112="EVET",MAX(T99*AA99,T99),T99) -> 0 | AD99: 0 | AE99: 0 | AF99: 0 | AG99: 0 | AH99: 0 | AJ99: 00:00:00 | AK99: ='DOLDURULMASI GEREKEN TABLO'!N112 -> 2025-12-31 | AL99: 0 | AM99: 0 | AN99: 46022 | AO99: 126 | AP99: 126 | AQ99: 126 | AR99: 0
B100: 93 | C100: ='DOLDURULMASI GEREKEN TABLO'!D113 -> 0 | D100: ='DOLDURULMASI GEREKEN TABLO'!E113 -> 0 | E100: ='DOLDURULMASI GEREKEN TABLO'!F113 -> 0 | F100: ='DOLDURULMASI GEREKEN TABLO'!G113 -> 0 | G100: 0 | H100: ='DOLDURULMASI GEREKEN TABLO'!H113 -> 00:00:00 | I100: 2025-12-31 | J100: 2025 YD ORANINA GÖRE GEÇİCİ 32 YE GÖRE YD YAPILABİLİR | K100: ='DOLDURULMASI GEREKEN TABLO'!J113 -> 0 | L100: ='DOLDURULMASI GEREKEN TABLO'!K113 -> 0 | M100: ='DOLDURULMASI GEREKEN TABLO'!L113 -> 0 | N100: =IFERROR(IF('DOLDURULMASI GEREKEN TABLO'!M113="EVET",(I100-H100)+1,0),0) -> 0 | O100: 0 | P100: 0 | Q100: 0 | R100: 0 | S100: 0 | T100: 0 | U100: 0 | V100: ='DOLDURULMASI GEREKEN TABLO'!M113 -> 0 | W100: 2025-1 | X100: =VLOOKUP(W100,'Aylık Yİ-ÜFE'!$D$1:$E$500,2,0) -> 3861.33 | Y100: =CONCATENATE(YEAR('DOLDURULMASI GEREKEN TABLO'!N113),"-",MONTH('DOLDURULMASI GEREKEN TABLO'!N113)) -> 2025-12 | Z100: =VLOOKUP(Y100,'Aylık Yİ-ÜFE'!$D$1:$E$500,2,0) -> 4783.04 | AA100: 1 | AB100: =IF('DOLDURULMASI GEREKEN TABLO'!M113="EVET",MAX(S100*AA100,S100),S100) -> 0 | AC100: =IF('DOLDURULMASI GEREKEN TABLO'!M113="EVET",MAX(T100*AA100,T100),T100) -> 0 | AD100: 0 | AE100: 0 | AF100: 0 | AG100: 0 | AH100: 0 | AJ100: 00:00:00 | AK100: ='DOLDURULMASI GEREKEN TABLO'!N113 -> 2025-12-31 | AL100: 0 | AM100: 0 | AN100: 46022 | AO100: 126 | AP100: 126 | AQ100: 126 | AR100: 0
B101: 94 | C101: ='DOLDURULMASI GEREKEN TABLO'!D114 -> 0 | D101: ='DOLDURULMASI GEREKEN TABLO'!E114 -> 0 | E101: ='DOLDURULMASI GEREKEN TABLO'!F114 -> 0 | F101: ='DOLDURULMASI GEREKEN TABLO'!G114 -> 0 | G101: 0 | H101: ='DOLDURULMASI GEREKEN TABLO'!H114 -> 00:00:00 | I101: 2025-12-31 | J101: 2025 YD ORANINA GÖRE GEÇİCİ 32 YE GÖRE YD YAPILABİLİR | K101: ='DOLDURULMASI GEREKEN TABLO'!J114 -> 0 | L101: ='DOLDURULMASI GEREKEN TABLO'!K114 -> 0 | M101: ='DOLDURULMASI GEREKEN TABLO'!L114 -> 0 | N101: =IFERROR(IF('DOLDURULMASI GEREKEN TABLO'!M114="EVET",(I101-H101)+1,0),0) -> 0 | O101: 0 | P101: 0 | Q101: 0 | R101: 0 | S101: 0 | T101: 0 | U101: 0 | V101: ='DOLDURULMASI GEREKEN TABLO'!M114 -> 0 | W101: 2025-1 | X101: =VLOOKUP(W101,'Aylık Yİ-ÜFE'!$D$1:$E$500,2,0) -> 3861.33 | Y101: =CONCATENATE(YEAR('DOLDURULMASI GEREKEN TABLO'!N114),"-",MONTH('DOLDURULMASI GEREKEN TABLO'!N114)) -> 2025-12 | Z101: =VLOOKUP(Y101,'Aylık Yİ-ÜFE'!$D$1:$E$500,2,0) -> 4783.04 | AA101: 1 | AB101: =IF('DOLDURULMASI GEREKEN TABLO'!M114="EVET",MAX(S101*AA101,S101),S101) -> 0 | AC101: =IF('DOLDURULMASI GEREKEN TABLO'!M114="EVET",MAX(T101*AA101,T101),T101) -> 0 | AD101: 0 | AE101: 0 | AF101: 0 | AG101: 0 | AH101: 0 | AJ101: 00:00:00 | AK101: ='DOLDURULMASI GEREKEN TABLO'!N114 -> 2025-12-31 | AL101: 0 | AM101: 0 | AN101: 46022 | AO101: 126 | AP101: 126 | AQ101: 126 | AR101: 0
B102: 95 | C102: ='DOLDURULMASI GEREKEN TABLO'!D115 -> 0 | D102: ='DOLDURULMASI GEREKEN TABLO'!E115 -> 0 | E102: ='DOLDURULMASI GEREKEN TABLO'!F115 -> 0 | F102: ='DOLDURULMASI GEREKEN TABLO'!G115 -> 0 | G102: 0 | H102: ='DOLDURULMASI GEREKEN TABLO'!H115 -> 00:00:00 | I102: 2025-12-31 | J102: 2025 YD ORANINA GÖRE GEÇİCİ 32 YE GÖRE YD YAPILABİLİR | K102: ='DOLDURULMASI GEREKEN TABLO'!J115 -> 0 | L102: ='DOLDURULMASI GEREKEN TABLO'!K115 -> 0 | M102: ='DOLDURULMASI GEREKEN TABLO'!L115 -> 0 | N102: =IFERROR(IF('DOLDURULMASI GEREKEN TABLO'!M115="EVET",(I102-H102)+1,0),0) -> 0 | O102: 0 | P102: 0 | Q102: 0 | R102: 0 | S102: 0 | T102: 0 | U102: 0 | V102: ='DOLDURULMASI GEREKEN TABLO'!M115 -> 0 | W102: 2025-1 | X102: =VLOOKUP(W102,'Aylık Yİ-ÜFE'!$D$1:$E$500,2,0) -> 3861.33 | Y102: =CONCATENATE(YEAR('DOLDURULMASI GEREKEN TABLO'!N115),"-",MONTH('DOLDURULMASI GEREKEN TABLO'!N115)) -> 2025-12 | Z102: =VLOOKUP(Y102,'Aylık Yİ-ÜFE'!$D$1:$E$500,2,0) -> 4783.04 | AA102: 1 | AB102: =IF('DOLDURULMASI GEREKEN TABLO'!M115="EVET",MAX(S102*AA102,S102),S102) -> 0 | AC102: =IF('DOLDURULMASI GEREKEN TABLO'!M115="EVET",MAX(T102*AA102,T102),T102) -> 0 | AD102: 0 | AE102: 0 | AF102: 0 | AG102: 0 | AH102: 0 | AJ102: 00:00:00 | AK102: ='DOLDURULMASI GEREKEN TABLO'!N115 -> 2025-12-31 | AL102: 0 | AM102: 0 | AN102: 46022 | AO102: 126 | AP102: 126 | AQ102: 126 | AR102: 0
B103: 96 | C103: ='DOLDURULMASI GEREKEN TABLO'!D116 -> 0 | D103: ='DOLDURULMASI GEREKEN TABLO'!E116 -> 0 | E103: ='DOLDURULMASI GEREKEN TABLO'!F116 -> 0 | F103: ='DOLDURULMASI GEREKEN TABLO'!G116 -> 0 | G103: 0 | H103: ='DOLDURULMASI GEREKEN TABLO'!H116 -> 00:00:00 | I103: 2025-12-31 | J103: 2025 YD ORANINA GÖRE GEÇİCİ 32 YE GÖRE YD YAPILABİLİR | K103: ='DOLDURULMASI GEREKEN TABLO'!J116 -> 0 | L103: ='DOLDURULMASI GEREKEN TABLO'!K116 -> 0 | M103: ='DOLDURULMASI GEREKEN TABLO'!L116 -> 0 | N103: =IFERROR(IF('DOLDURULMASI GEREKEN TABLO'!M116="EVET",(I103-H103)+1,0),0) -> 0 | O103: 0 | P103: 0 | Q103: 0 | R103: 0 | S103: 0 | T103: 0 | U103: 0 | V103: ='DOLDURULMASI GEREKEN TABLO'!M116 -> 0 | W103: 2025-1 | X103: =VLOOKUP(W103,'Aylık Yİ-ÜFE'!$D$1:$E$500,2,0) -> 3861.33 | Y103: =CONCATENATE(YEAR('DOLDURULMASI GEREKEN TABLO'!N116),"-",MONTH('DOLDURULMASI GEREKEN TABLO'!N116)) -> 2025-12 | Z103: =VLOOKUP(Y103,'Aylık Yİ-ÜFE'!$D$1:$E$500,2,0) -> 4783.04 | AA103: 1 | AB103: =IF('DOLDURULMASI GEREKEN TABLO'!M116="EVET",MAX(S103*AA103,S103),S103) -> 0 | AC103: =IF('DOLDURULMASI GEREKEN TABLO'!M116="EVET",MAX(T103*AA103,T103),T103) -> 0 | AD103: 0 | AE103: 0 | AF103: 0 | AG103: 0 | AH103: 0 | AJ103: 00:00:00 | AK103: ='DOLDURULMASI GEREKEN TABLO'!N116 -> 2025-12-31 | AL103: 0 | AM103: 0 | AN103: 46022 | AO103: 126 | AP103: 126 | AQ103: 126 | AR103: 0
B104: 97 | C104: ='DOLDURULMASI GEREKEN TABLO'!D117 -> 0 | D104: ='DOLDURULMASI GEREKEN TABLO'!E117 -> 0 | E104: ='DOLDURULMASI GEREKEN TABLO'!F117 -> 0 | F104: ='DOLDURULMASI GEREKEN TABLO'!G117 -> 0 | G104: 0 | H104: ='DOLDURULMASI GEREKEN TABLO'!H117 -> 00:00:00 | I104: 2025-12-31 | J104: 2025 YD ORANINA GÖRE GEÇİCİ 32 YE GÖRE YD YAPILABİLİR | K104: ='DOLDURULMASI GEREKEN TABLO'!J117 -> 0 | L104: ='DOLDURULMASI GEREKEN TABLO'!K117 -> 0 | M104: ='DOLDURULMASI GEREKEN TABLO'!L117 -> 0 | N104: =IFERROR(IF('DOLDURULMASI GEREKEN TABLO'!M117="EVET",(I104-H104)+1,0),0) -> 0 | O104: 0 | P104: 0 | Q104: 0 | R104: 0 | S104: 0 | T104: 0 | U104: 0 | V104: ='DOLDURULMASI GEREKEN TABLO'!M117 -> 0 | W104: 2025-1 | X104: =VLOOKUP(W104,'Aylık Yİ-ÜFE'!$D$1:$E$500,2,0) -> 3861.33 | Y104: =CONCATENATE(YEAR('DOLDURULMASI GEREKEN TABLO'!N117),"-",MONTH('DOLDURULMASI GEREKEN TABLO'!N117)) -> 2025-12 | Z104: =VLOOKUP(Y104,'Aylık Yİ-ÜFE'!$D$1:$E$500,2,0) -> 4783.04 | AA104: 1 | AB104: =IF('DOLDURULMASI GEREKEN TABLO'!M117="EVET",MAX(S104*AA104,S104),S104) -> 0 | AC104: =IF('DOLDURULMASI GEREKEN TABLO'!M117="EVET",MAX(T104*AA104,T104),T104) -> 0 | AD104: 0 | AE104: 0 | AF104: 0 | AG104: 0 | AH104: 0 | AJ104: 00:00:00 | AK104: ='DOLDURULMASI GEREKEN TABLO'!N117 -> 2025-12-31 | AL104: 0 | AM104: 0 | AN104: 46022 | AO104: 126 | AP104: 126 | AQ104: 126 | AR104: 0
B105: 98 | C105: ='DOLDURULMASI GEREKEN TABLO'!D118 -> 0 | D105: ='DOLDURULMASI GEREKEN TABLO'!E118 -> 0 | E105: ='DOLDURULMASI GEREKEN TABLO'!F118 -> 0 | F105: ='DOLDURULMASI GEREKEN TABLO'!G118 -> 0 | G105: 0 | H105: ='DOLDURULMASI GEREKEN TABLO'!H118 -> 00:00:00 | I105: 2025-12-31 | J105: 2025 YD ORANINA GÖRE GEÇİCİ 32 YE GÖRE YD YAPILABİLİR | K105: ='DOLDURULMASI GEREKEN TABLO'!J118 -> 0 | L105: ='DOLDURULMASI GEREKEN TABLO'!K118 -> 0 | M105: ='DOLDURULMASI GEREKEN TABLO'!L118 -> 0 | N105: =IFERROR(IF('DOLDURULMASI GEREKEN TABLO'!M118="EVET",(I105-H105)+1,0),0) -> 0 | O105: 0 | P105: 0 | Q105: 0 | R105: 0 | S105: 0 | T105: 0 | U105: 0 | V105: ='DOLDURULMASI GEREKEN TABLO'!M118 -> 0 | W105: 2025-1 | X105: =VLOOKUP(W105,'Aylık Yİ-ÜFE'!$D$1:$E$500,2,0) -> 3861.33 | Y105: =CONCATENATE(YEAR('DOLDURULMASI GEREKEN TABLO'!N118),"-",MONTH('DOLDURULMASI GEREKEN TABLO'!N118)) -> 2025-12 | Z105: =VLOOKUP(Y105,'Aylık Yİ-ÜFE'!$D$1:$E$500,2,0) -> 4783.04 | AA105: 1 | AB105: =IF('DOLDURULMASI GEREKEN TABLO'!M118="EVET",MAX(S105*AA105,S105),S105) -> 0 | AC105: =IF('DOLDURULMASI GEREKEN TABLO'!M118="EVET",MAX(T105*AA105,T105),T105) -> 0 | AD105: 0 | AE105: 0 | AF105: 0 | AG105: 0 | AH105: 0 | AJ105: 00:00:00 | AK105: ='DOLDURULMASI GEREKEN TABLO'!N118 -> 2025-12-31 | AL105: 0 | AM105: 0 | AN105: 46022 | AO105: 126 | AP105: 126 | AQ105: 126 | AR105: 0
B106: 99 | C106: ='DOLDURULMASI GEREKEN TABLO'!D119 -> 0 | D106: ='DOLDURULMASI GEREKEN TABLO'!E119 -> 0 | E106: ='DOLDURULMASI GEREKEN TABLO'!F119 -> 0 | F106: ='DOLDURULMASI GEREKEN TABLO'!G119 -> 0 | G106: 0 | H106: ='DOLDURULMASI GEREKEN TABLO'!H119 -> 00:00:00 | I106: 2025-12-31 | J106: 2025 YD ORANINA GÖRE GEÇİCİ 32 YE GÖRE YD YAPILABİLİR | K106: ='DOLDURULMASI GEREKEN TABLO'!J119 -> 0 | L106: ='DOLDURULMASI GEREKEN TABLO'!K119 -> 0 | M106: ='DOLDURULMASI GEREKEN TABLO'!L119 -> 0 | N106: =IFERROR(IF('DOLDURULMASI GEREKEN TABLO'!M119="EVET",(I106-H106)+1,0),0) -> 0 | O106: 0 | P106: 0 | Q106: 0 | R106: 0 | S106: 0 | T106: 0 | U106: 0 | V106: ='DOLDURULMASI GEREKEN TABLO'!M119 -> 0 | W106: 2025-1 | X106: =VLOOKUP(W106,'Aylık Yİ-ÜFE'!$D$1:$E$500,2,0) -> 3861.33 | Y106: =CONCATENATE(YEAR('DOLDURULMASI GEREKEN TABLO'!N119),"-",MONTH('DOLDURULMASI GEREKEN TABLO'!N119)) -> 2025-12 | Z106: =VLOOKUP(Y106,'Aylık Yİ-ÜFE'!$D$1:$E$500,2,0) -> 4783.04 | AA106: 1 | AB106: =IF('DOLDURULMASI GEREKEN TABLO'!M119="EVET",MAX(S106*AA106,S106),S106) -> 0 | AC106: =IF('DOLDURULMASI GEREKEN TABLO'!M119="EVET",MAX(T106*AA106,T106),T106) -> 0 | AD106: 0 | AE106: 0 | AF106: 0 | AG106: 0 | AH106: 0 | AJ106: 00:00:00 | AK106: ='DOLDURULMASI GEREKEN TABLO'!N119 -> 2025-12-31 | AL106: 0 | AM106: 0 | AN106: 46022 | AO106: 126 | AP106: 126 | AQ106: 126 | AR106: 0
B107: 100 | C107: ='DOLDURULMASI GEREKEN TABLO'!D120 -> 0 | D107: ='DOLDURULMASI GEREKEN TABLO'!E120 -> 0 | E107: ='DOLDURULMASI GEREKEN TABLO'!F120 -> 0 | F107: ='DOLDURULMASI GEREKEN TABLO'!G120 -> 0 | G107: 0 | H107: ='DOLDURULMASI GEREKEN TABLO'!H120 -> 00:00:00 | I107: 2025-12-31 | J107: 2025 YD ORANINA GÖRE GEÇİCİ 32 YE GÖRE YD YAPILABİLİR | K107: ='DOLDURULMASI GEREKEN TABLO'!J120 -> 0 | L107: ='DOLDURULMASI GEREKEN TABLO'!K120 -> 0 | M107: ='DOLDURULMASI GEREKEN TABLO'!L120 -> 0 | N107: =IFERROR(IF('DOLDURULMASI GEREKEN TABLO'!M120="EVET",(I107-H107)+1,0),0) -> 0 | O107: 0 | P107: 0 | Q107: 0 | R107: 0 | S107: 0 | T107: 0 | U107: 0 | V107: ='DOLDURULMASI GEREKEN TABLO'!M120 -> 0 | W107: 2025-1 | X107: =VLOOKUP(W107,'Aylık Yİ-ÜFE'!$D$1:$E$500,2,0) -> 3861.33 | Y107: =CONCATENATE(YEAR('DOLDURULMASI GEREKEN TABLO'!N120),"-",MONTH('DOLDURULMASI GEREKEN TABLO'!N120)) -> 2025-12 | Z107: =VLOOKUP(Y107,'Aylık Yİ-ÜFE'!$D$1:$E$500,2,0) -> 4783.04 | AA107: 1 | AB107: =IF('DOLDURULMASI GEREKEN TABLO'!M120="EVET",MAX(S107*AA107,S107),S107) -> 0 | AC107: =IF('DOLDURULMASI GEREKEN TABLO'!M120="EVET",MAX(T107*AA107,T107),T107) -> 0 | AD107: 0 | AE107: 0 | AF107: 0 | AG107: 0 | AH107: 0 | AJ107: 00:00:00 | AK107: ='DOLDURULMASI GEREKEN TABLO'!N120 -> 2025-12-31 | AL107: 0 | AM107: 0 | AN107: 46022 | AO107: 126 | AP107: 126 | AQ107: 126 | AR107: 0
B108: 101 | C108: ='DOLDURULMASI GEREKEN TABLO'!D121 -> 0 | D108: ='DOLDURULMASI GEREKEN TABLO'!E121 -> 0 | E108: ='DOLDURULMASI GEREKEN TABLO'!F121 -> 0 | F108: ='DOLDURULMASI GEREKEN TABLO'!G121 -> 0 | G108: 0 | H108: ='DOLDURULMASI GEREKEN TABLO'!H121 -> 00:00:00 | I108: 2025-12-31 | J108: 2025 YD ORANINA GÖRE GEÇİCİ 32 YE GÖRE YD YAPILABİLİR | K108: ='DOLDURULMASI GEREKEN TABLO'!J121 -> 0 | L108: ='DOLDURULMASI GEREKEN TABLO'!K121 -> 0 | M108: ='DOLDURULMASI GEREKEN TABLO'!L121 -> 0 | N108: =IFERROR(IF('DOLDURULMASI GEREKEN TABLO'!M121="EVET",(I108-H108)+1,0),0) -> 0 | O108: 0 | P108: 0 | Q108: 0 | R108: 0 | S108: 0 | T108: 0 | U108: 0 | V108: ='DOLDURULMASI GEREKEN TABLO'!M121 -> 0 | W108: 2025-1 | X108: =VLOOKUP(W108,'Aylık Yİ-ÜFE'!$D$1:$E$500,2,0) -> 3861.33 | Y108: =CONCATENATE(YEAR('DOLDURULMASI GEREKEN TABLO'!N121),"-",MONTH('DOLDURULMASI GEREKEN TABLO'!N121)) -> 2025-12 | Z108: =VLOOKUP(Y108,'Aylık Yİ-ÜFE'!$D$1:$E$500,2,0) -> 4783.04 | AA108: 1 | AB108: =IF('DOLDURULMASI GEREKEN TABLO'!M121="EVET",MAX(S108*AA108,S108),S108) -> 0 | AC108: =IF('DOLDURULMASI GEREKEN TABLO'!M121="EVET",MAX(T108*AA108,T108),T108) -> 0 | AD108: 0 | AE108: 0 | AF108: 0 | AG108: 0 | AH108: 0 | AJ108: 00:00:00 | AK108: ='DOLDURULMASI GEREKEN TABLO'!N121 -> 2025-12-31 | AL108: 0 | AM108: 0 | AN108: 46022 | AO108: 126 | AP108: 126 | AQ108: 126 | AR108: 0
B109: 102 | C109: ='DOLDURULMASI GEREKEN TABLO'!D122 -> 0 | D109: ='DOLDURULMASI GEREKEN TABLO'!E122 -> 0 | E109: ='DOLDURULMASI GEREKEN TABLO'!F122 -> 0 | F109: ='DOLDURULMASI GEREKEN TABLO'!G122 -> 0 | G109: 0 | H109: ='DOLDURULMASI GEREKEN TABLO'!H122 -> 00:00:00 | I109: 2025-12-31 | J109: 2025 YD ORANINA GÖRE GEÇİCİ 32 YE GÖRE YD YAPILABİLİR | K109: ='DOLDURULMASI GEREKEN TABLO'!J122 -> 0 | L109: ='DOLDURULMASI GEREKEN TABLO'!K122 -> 0 | M109: ='DOLDURULMASI GEREKEN TABLO'!L122 -> 0 | N109: =IFERROR(IF('DOLDURULMASI GEREKEN TABLO'!M122="EVET",(I109-H109)+1,0),0) -> 0 | O109: 0 | P109: 0 | Q109: 0 | R109: 0 | S109: 0 | T109: 0 | U109: 0 | V109: ='DOLDURULMASI GEREKEN TABLO'!M122 -> 0 | W109: 2025-1 | X109: =VLOOKUP(W109,'Aylık Yİ-ÜFE'!$D$1:$E$500,2,0) -> 3861.33 | Y109: =CONCATENATE(YEAR('DOLDURULMASI GEREKEN TABLO'!N122),"-",MONTH('DOLDURULMASI GEREKEN TABLO'!N122)) -> 2025-12 | Z109: =VLOOKUP(Y109,'Aylık Yİ-ÜFE'!$D$1:$E$500,2,0) -> 4783.04 | AA109: 1 | AB109: =IF('DOLDURULMASI GEREKEN TABLO'!M122="EVET",MAX(S109*AA109,S109),S109) -> 0 | AC109: =IF('DOLDURULMASI GEREKEN TABLO'!M122="EVET",MAX(T109*AA109,T109),T109) -> 0 | AD109: 0 | AE109: 0 | AF109: 0 | AG109: 0 | AH109: 0 | AJ109: 00:00:00 | AK109: ='DOLDURULMASI GEREKEN TABLO'!N122 -> 2025-12-31 | AL109: 0 | AM109: 0 | AN109: 46022 | AO109: 126 | AP109: 126 | AQ109: 126 | AR109: 0
B110: 103 | C110: ='DOLDURULMASI GEREKEN TABLO'!D123 -> 0 | D110: ='DOLDURULMASI GEREKEN TABLO'!E123 -> 0 | E110: ='DOLDURULMASI GEREKEN TABLO'!F123 -> 0 | F110: ='DOLDURULMASI GEREKEN TABLO'!G123 -> 0 | G110: 0 | H110: ='DOLDURULMASI GEREKEN TABLO'!H123 -> 00:00:00 | I110: 2025-12-31 | J110: 2025 YD ORANINA GÖRE GEÇİCİ 32 YE GÖRE YD YAPILABİLİR | K110: ='DOLDURULMASI GEREKEN TABLO'!J123 -> 0 | L110: ='DOLDURULMASI GEREKEN TABLO'!K123 -> 0 | M110: ='DOLDURULMASI GEREKEN TABLO'!L123 -> 0 | N110: =IFERROR(IF('DOLDURULMASI GEREKEN TABLO'!M123="EVET",(I110-H110)+1,0),0) -> 0 | O110: 0 | P110: 0 | Q110: 0 | R110: 0 | S110: 0 | T110: 0 | U110: 0 | V110: ='DOLDURULMASI GEREKEN TABLO'!M123 -> 0 | W110: 2025-1 | X110: =VLOOKUP(W110,'Aylık Yİ-ÜFE'!$D$1:$E$500,2,0) -> 3861.33 | Y110: =CONCATENATE(YEAR('DOLDURULMASI GEREKEN TABLO'!N123),"-",MONTH('DOLDURULMASI GEREKEN TABLO'!N123)) -> 2025-12 | Z110: =VLOOKUP(Y110,'Aylık Yİ-ÜFE'!$D$1:$E$500,2,0) -> 4783.04 | AA110: 1 | AB110: =IF('DOLDURULMASI GEREKEN TABLO'!M123="EVET",MAX(S110*AA110,S110),S110) -> 0 | AC110: =IF('DOLDURULMASI GEREKEN TABLO'!M123="EVET",MAX(T110*AA110,T110),T110) -> 0 | AD110: 0 | AE110: 0 | AF110: 0 | AG110: 0 | AH110: 0 | AJ110: 00:00:00 | AK110: ='DOLDURULMASI GEREKEN TABLO'!N123 -> 2025-12-31 | AL110: 0 | AM110: 0 | AN110: 46022 | AO110: 126 | AP110: 126 | AQ110: 126 | AR110: 0
B111: 104 | C111: ='DOLDURULMASI GEREKEN TABLO'!D124 -> 0 | D111: ='DOLDURULMASI GEREKEN TABLO'!E124 -> 0 | E111: ='DOLDURULMASI GEREKEN TABLO'!F124 -> 0 | F111: ='DOLDURULMASI GEREKEN TABLO'!G124 -> 0 | G111: 0 | H111: ='DOLDURULMASI GEREKEN TABLO'!H124 -> 00:00:00 | I111: 2025-12-31 | J111: 2025 YD ORANINA GÖRE GEÇİCİ 32 YE GÖRE YD YAPILABİLİR | K111: ='DOLDURULMASI GEREKEN TABLO'!J124 -> 0 | L111: ='DOLDURULMASI GEREKEN TABLO'!K124 -> 0 | M111: ='DOLDURULMASI GEREKEN TABLO'!L124 -> 0 | N111: =IFERROR(IF('DOLDURULMASI GEREKEN TABLO'!M124="EVET",(I111-H111)+1,0),0) -> 0 | O111: 0 | P111: 0 | Q111: 0 | R111: 0 | S111: 0 | T111: 0 | U111: 0 | V111: ='DOLDURULMASI GEREKEN TABLO'!M124 -> 0 | W111: 2025-1 | X111: =VLOOKUP(W111,'Aylık Yİ-ÜFE'!$D$1:$E$500,2,0) -> 3861.33 | Y111: =CONCATENATE(YEAR('DOLDURULMASI GEREKEN TABLO'!N124),"-",MONTH('DOLDURULMASI GEREKEN TABLO'!N124)) -> 2025-12 | Z111: =VLOOKUP(Y111,'Aylık Yİ-ÜFE'!$D$1:$E$500,2,0) -> 4783.04 | AA111: 1 | AB111: =IF('DOLDURULMASI GEREKEN TABLO'!M124="EVET",MAX(S111*AA111,S111),S111) -> 0 | AC111: =IF('DOLDURULMASI GEREKEN TABLO'!M124="EVET",MAX(T111*AA111,T111),T111) -> 0 | AD111: 0 | AE111: 0 | AF111: 0 | AG111: 0 | AH111: 0 | AJ111: 00:00:00 | AK111: ='DOLDURULMASI GEREKEN TABLO'!N124 -> 2025-12-31 | AL111: 0 | AM111: 0 | AN111: 46022 | AO111: 126 | AP111: 126 | AQ111: 126 | AR111: 0
B112: 105 | C112: ='DOLDURULMASI GEREKEN TABLO'!D125 -> 0 | D112: ='DOLDURULMASI GEREKEN TABLO'!E125 -> 0 | E112: ='DOLDURULMASI GEREKEN TABLO'!F125 -> 0 | F112: ='DOLDURULMASI GEREKEN TABLO'!G125 -> 0 | G112: 0 | H112: ='DOLDURULMASI GEREKEN TABLO'!H125 -> 00:00:00 | I112: 2025-12-31 | J112: 2025 YD ORANINA GÖRE GEÇİCİ 32 YE GÖRE YD YAPILABİLİR | K112: ='DOLDURULMASI GEREKEN TABLO'!J125 -> 0 | L112: ='DOLDURULMASI GEREKEN TABLO'!K125 -> 0 | M112: ='DOLDURULMASI GEREKEN TABLO'!L125 -> 0 | N112: =IFERROR(IF('DOLDURULMASI GEREKEN TABLO'!M125="EVET",(I112-H112)+1,0),0) -> 0 | O112: 0 | P112: 0 | Q112: 0 | R112: 0 | S112: 0 | T112: 0 | U112: 0 | V112: ='DOLDURULMASI GEREKEN TABLO'!M125 -> 0 | W112: 2025-1 | X112: =VLOOKUP(W112,'Aylık Yİ-ÜFE'!$D$1:$E$500,2,0) -> 3861.33 | Y112: =CONCATENATE(YEAR('DOLDURULMASI GEREKEN TABLO'!N125),"-",MONTH('DOLDURULMASI GEREKEN TABLO'!N125)) -> 2025-12 | Z112: =VLOOKUP(Y112,'Aylık Yİ-ÜFE'!$D$1:$E$500,2,0) -> 4783.04 | AA112: 1 | AB112: =IF('DOLDURULMASI GEREKEN TABLO'!M125="EVET",MAX(S112*AA112,S112),S112) -> 0 | AC112: =IF('DOLDURULMASI GEREKEN TABLO'!M125="EVET",MAX(T112*AA112,T112),T112) -> 0 | AD112: 0 | AE112: 0 | AF112: 0 | AG112: 0 | AH112: 0 | AJ112: 00:00:00 | AK112: ='DOLDURULMASI GEREKEN TABLO'!N125 -> 2025-12-31 | AL112: 0 | AM112: 0 | AN112: 46022 | AO112: 126 | AP112: 126 | AQ112: 126 | AR112: 0
B113: 106 | C113: ='DOLDURULMASI GEREKEN TABLO'!D126 -> 0 | D113: ='DOLDURULMASI GEREKEN TABLO'!E126 -> 0 | E113: ='DOLDURULMASI GEREKEN TABLO'!F126 -> 0 | F113: ='DOLDURULMASI GEREKEN TABLO'!G126 -> 0 | G113: 0 | H113: ='DOLDURULMASI GEREKEN TABLO'!H126 -> 00:00:00 | I113: 2025-12-31 | J113: 2025 YD ORANINA GÖRE GEÇİCİ 32 YE GÖRE YD YAPILABİLİR | K113: ='DOLDURULMASI GEREKEN TABLO'!J126 -> 0 | L113: ='DOLDURULMASI GEREKEN TABLO'!K126 -> 0 | M113: ='DOLDURULMASI GEREKEN TABLO'!L126 -> 0 | N113: =IFERROR(IF('DOLDURULMASI GEREKEN TABLO'!M126="EVET",(I113-H113)+1,0),0) -> 0 | O113: 0 | P113: 0 | Q113: 0 | R113: 0 | S113: 0 | T113: 0 | U113: 0 | V113: ='DOLDURULMASI GEREKEN TABLO'!M126 -> 0 | W113: 2025-1 | X113: =VLOOKUP(W113,'Aylık Yİ-ÜFE'!$D$1:$E$500,2,0) -> 3861.33 | Y113: =CONCATENATE(YEAR('DOLDURULMASI GEREKEN TABLO'!N126),"-",MONTH('DOLDURULMASI GEREKEN TABLO'!N126)) -> 2025-12 | Z113: =VLOOKUP(Y113,'Aylık Yİ-ÜFE'!$D$1:$E$500,2,0) -> 4783.04 | AA113: 1 | AB113: =IF('DOLDURULMASI GEREKEN TABLO'!M126="EVET",MAX(S113*AA113,S113),S113) -> 0 | AC113: =IF('DOLDURULMASI GEREKEN TABLO'!M126="EVET",MAX(T113*AA113,T113),T113) -> 0 | AD113: 0 | AE113: 0 | AF113: 0 | AG113: 0 | AH113: 0 | AJ113: 00:00:00 | AK113: ='DOLDURULMASI GEREKEN TABLO'!N126 -> 2025-12-31 | AL113: 0 | AM113: 0 | AN113: 46022 | AO113: 126 | AP113: 126 | AQ113: 126 | AR113: 0
B114: 107 | C114: ='DOLDURULMASI GEREKEN TABLO'!D127 -> 0 | D114: ='DOLDURULMASI GEREKEN TABLO'!E127 -> 0 | E114: ='DOLDURULMASI GEREKEN TABLO'!F127 -> 0 | F114: ='DOLDURULMASI GEREKEN TABLO'!G127 -> 0 | G114: 0 | H114: ='DOLDURULMASI GEREKEN TABLO'!H127 -> 00:00:00 | I114: 2025-12-31 | J114: 2025 YD ORANINA GÖRE GEÇİCİ 32 YE GÖRE YD YAPILABİLİR | K114: ='DOLDURULMASI GEREKEN TABLO'!J127 -> 0 | L114: ='DOLDURULMASI GEREKEN TABLO'!K127 -> 0 | M114: ='DOLDURULMASI GEREKEN TABLO'!L127 -> 0 | N114: =IFERROR(IF('DOLDURULMASI GEREKEN TABLO'!M127="EVET",(I114-H114)+1,0),0) -> 0 | O114: 0 | P114: 0 | Q114: 0 | R114: 0 | S114: 0 | T114: 0 | U114: 0 | V114: ='DOLDURULMASI GEREKEN TABLO'!M127 -> 0 | W114: 2025-1 | X114: =VLOOKUP(W114,'Aylık Yİ-ÜFE'!$D$1:$E$500,2,0) -> 3861.33 | Y114: =CONCATENATE(YEAR('DOLDURULMASI GEREKEN TABLO'!N127),"-",MONTH('DOLDURULMASI GEREKEN TABLO'!N127)) -> 2025-12 | Z114: =VLOOKUP(Y114,'Aylık Yİ-ÜFE'!$D$1:$E$500,2,0) -> 4783.04 | AA114: 1 | AB114: =IF('DOLDURULMASI GEREKEN TABLO'!M127="EVET",MAX(S114*AA114,S114),S114) -> 0 | AC114: =IF('DOLDURULMASI GEREKEN TABLO'!M127="EVET",MAX(T114*AA114,T114),T114) -> 0 | AD114: 0 | AE114: 0 | AF114: 0 | AG114: 0 | AH114: 0 | AJ114: 00:00:00 | AK114: ='DOLDURULMASI GEREKEN TABLO'!N127 -> 2025-12-31 | AL114: 0 | AM114: 0 | AN114: 46022 | AO114: 126 | AP114: 126 | AQ114: 126 | AR114: 0
B115: 108 | C115: ='DOLDURULMASI GEREKEN TABLO'!D128 -> 0 | D115: ='DOLDURULMASI GEREKEN TABLO'!E128 -> 0 | E115: ='DOLDURULMASI GEREKEN TABLO'!F128 -> 0 | F115: ='DOLDURULMASI GEREKEN TABLO'!G128 -> 0 | G115: 0 | H115: ='DOLDURULMASI GEREKEN TABLO'!H128 -> 00:00:00 | I115: 2025-12-31 | J115: 2025 YD ORANINA GÖRE GEÇİCİ 32 YE GÖRE YD YAPILABİLİR | K115: ='DOLDURULMASI GEREKEN TABLO'!J128 -> 0 | L115: ='DOLDURULMASI GEREKEN TABLO'!K128 -> 0 | M115: ='DOLDURULMASI GEREKEN TABLO'!L128 -> 0 | N115: =IFERROR(IF('DOLDURULMASI GEREKEN TABLO'!M128="EVET",(I115-H115)+1,0),0) -> 0 | O115: 0 | P115: 0 | Q115: 0 | R115: 0 | S115: 0 | T115: 0 | U115: 0 | V115: ='DOLDURULMASI GEREKEN TABLO'!M128 -> 0 | W115: 2025-1 | X115: =VLOOKUP(W115,'Aylık Yİ-ÜFE'!$D$1:$E$500,2,0) -> 3861.33 | Y115: =CONCATENATE(YEAR('DOLDURULMASI GEREKEN TABLO'!N128),"-",MONTH('DOLDURULMASI GEREKEN TABLO'!N128)) -> 2025-12 | Z115: =VLOOKUP(Y115,'Aylık Yİ-ÜFE'!$D$1:$E$500,2,0) -> 4783.04 | AA115: 1 | AB115: =IF('DOLDURULMASI GEREKEN TABLO'!M128="EVET",MAX(S115*AA115,S115),S115) -> 0 | AC115: =IF('DOLDURULMASI GEREKEN TABLO'!M128="EVET",MAX(T115*AA115,T115),T115) -> 0 | AD115: 0 | AE115: 0 | AF115: 0 | AG115: 0 | AH115: 0 | AJ115: 00:00:00 | AK115: ='DOLDURULMASI GEREKEN TABLO'!N128 -> 2025-12-31 | AL115: 0 | AM115: 0 | AN115: 46022 | AO115: 126 | AP115: 126 | AQ115: 126 | AR115: 0
B116: 109 | C116: ='DOLDURULMASI GEREKEN TABLO'!D129 -> 0 | D116: ='DOLDURULMASI GEREKEN TABLO'!E129 -> 0 | E116: ='DOLDURULMASI GEREKEN TABLO'!F129 -> 0 | F116: ='DOLDURULMASI GEREKEN TABLO'!G129 -> 0 | G116: 0 | H116: ='DOLDURULMASI GEREKEN TABLO'!H129 -> 00:00:00 | I116: 2025-12-31 | J116: 2025 YD ORANINA GÖRE GEÇİCİ 32 YE GÖRE YD YAPILABİLİR | K116: ='DOLDURULMASI GEREKEN TABLO'!J129 -> 0 | L116: ='DOLDURULMASI GEREKEN TABLO'!K129 -> 0 | M116: ='DOLDURULMASI GEREKEN TABLO'!L129 -> 0 | N116: =IFERROR(IF('DOLDURULMASI GEREKEN TABLO'!M129="EVET",(I116-H116)+1,0),0) -> 0 | O116: 0 | P116: 0 | Q116: 0 | R116: 0 | S116: 0 | T116: 0 | U116: 0 | V116: ='DOLDURULMASI GEREKEN TABLO'!M129 -> 0 | W116: 2025-1 | X116: =VLOOKUP(W116,'Aylık Yİ-ÜFE'!$D$1:$E$500,2,0) -> 3861.33 | Y116: =CONCATENATE(YEAR('DOLDURULMASI GEREKEN TABLO'!N129),"-",MONTH('DOLDURULMASI GEREKEN TABLO'!N129)) -> 2025-12 | Z116: =VLOOKUP(Y116,'Aylık Yİ-ÜFE'!$D$1:$E$500,2,0) -> 4783.04 | AA116: 1 | AB116: =IF('DOLDURULMASI GEREKEN TABLO'!M129="EVET",MAX(S116*AA116,S116),S116) -> 0 | AC116: =IF('DOLDURULMASI GEREKEN TABLO'!M129="EVET",MAX(T116*AA116,T116),T116) -> 0 | AD116: 0 | AE116: 0 | AF116: 0 | AG116: 0 | AH116: 0 | AJ116: 00:00:00 | AK116: ='DOLDURULMASI GEREKEN TABLO'!N129 -> 2025-12-31 | AL116: 0 | AM116: 0 | AN116: 46022 | AO116: 126 | AP116: 126 | AQ116: 126 | AR116: 0
B117: 110 | C117: ='DOLDURULMASI GEREKEN TABLO'!D130 -> 0 | D117: ='DOLDURULMASI GEREKEN TABLO'!E130 -> 0 | E117: ='DOLDURULMASI GEREKEN TABLO'!F130 -> 0 | F117: ='DOLDURULMASI GEREKEN TABLO'!G130 -> 0 | G117: 0 | H117: ='DOLDURULMASI GEREKEN TABLO'!H130 -> 00:00:00 | I117: 2025-12-31 | J117: 2025 YD ORANINA GÖRE GEÇİCİ 32 YE GÖRE YD YAPILABİLİR | K117: ='DOLDURULMASI GEREKEN TABLO'!J130 -> 0 | L117: ='DOLDURULMASI GEREKEN TABLO'!K130 -> 0 | M117: ='DOLDURULMASI GEREKEN TABLO'!L130 -> 0 | N117: =IFERROR(IF('DOLDURULMASI GEREKEN TABLO'!M130="EVET",(I117-H117)+1,0),0) -> 0 | O117: 0 | P117: 0 | Q117: 0 | R117: 0 | S117: 0 | T117: 0 | U117: 0 | V117: ='DOLDURULMASI GEREKEN TABLO'!M130 -> 0 | W117: 2025-1 | X117: =VLOOKUP(W117,'Aylık Yİ-ÜFE'!$D$1:$E$500,2,0) -> 3861.33 | Y117: =CONCATENATE(YEAR('DOLDURULMASI GEREKEN TABLO'!N130),"-",MONTH('DOLDURULMASI GEREKEN TABLO'!N130)) -> 2025-12 | Z117: =VLOOKUP(Y117,'Aylık Yİ-ÜFE'!$D$1:$E$500,2,0) -> 4783.04 | AA117: 1 | AB117: =IF('DOLDURULMASI GEREKEN TABLO'!M130="EVET",MAX(S117*AA117,S117),S117) -> 0 | AC117: =IF('DOLDURULMASI GEREKEN TABLO'!M130="EVET",MAX(T117*AA117,T117),T117) -> 0 | AD117: 0 | AE117: 0 | AF117: 0 | AG117: 0 | AH117: 0 | AJ117: 00:00:00 | AK117: ='DOLDURULMASI GEREKEN TABLO'!N130 -> 2025-12-31 | AL117: 0 | AM117: 0 | AN117: 46022 | AO117: 126 | AP117: 126 | AQ117: 126 | AR117: 0
B118: 111 | C118: ='DOLDURULMASI GEREKEN TABLO'!D131 -> 0 | D118: ='DOLDURULMASI GEREKEN TABLO'!E131 -> 0 | E118: ='DOLDURULMASI GEREKEN TABLO'!F131 -> 0 | F118: ='DOLDURULMASI GEREKEN TABLO'!G131 -> 0 | G118: 0 | H118: ='DOLDURULMASI GEREKEN TABLO'!H131 -> 00:00:00 | I118: 2025-12-31 | J118: 2025 YD ORANINA GÖRE GEÇİCİ 32 YE GÖRE YD YAPILABİLİR | K118: ='DOLDURULMASI GEREKEN TABLO'!J131 -> 0 | L118: ='DOLDURULMASI GEREKEN TABLO'!K131 -> 0 | M118: ='DOLDURULMASI GEREKEN TABLO'!L131 -> 0 | N118: =IFERROR(IF('DOLDURULMASI GEREKEN TABLO'!M131="EVET",(I118-H118)+1,0),0) -> 0 | O118: 0 | P118: 0 | Q118: 0 | R118: 0 | S118: 0 | T118: 0 | U118: 0 | V118: ='DOLDURULMASI GEREKEN TABLO'!M131 -> 0 | W118: 2025-1 | X118: =VLOOKUP(W118,'Aylık Yİ-ÜFE'!$D$1:$E$500,2,0) -> 3861.33 | Y118: =CONCATENATE(YEAR('DOLDURULMASI GEREKEN TABLO'!N131),"-",MONTH('DOLDURULMASI GEREKEN TABLO'!N131)) -> 2025-12 | Z118: =VLOOKUP(Y118,'Aylık Yİ-ÜFE'!$D$1:$E$500,2,0) -> 4783.04 | AA118: 1 | AB118: =IF('DOLDURULMASI GEREKEN TABLO'!M131="EVET",MAX(S118*AA118,S118),S118) -> 0 | AC118: =IF('DOLDURULMASI GEREKEN TABLO'!M131="EVET",MAX(T118*AA118,T118),T118) -> 0 | AD118: 0 | AE118: 0 | AF118: 0 | AG118: 0 | AH118: 0 | AJ118: 00:00:00 | AK118: ='DOLDURULMASI GEREKEN TABLO'!N131 -> 2025-12-31 | AL118: 0 | AM118: 0 | AN118: 46022 | AO118: 126 | AP118: 126 | AQ118: 126 | AR118: 0
B119: 112 | C119: ='DOLDURULMASI GEREKEN TABLO'!D132 -> 0 | D119: ='DOLDURULMASI GEREKEN TABLO'!E132 -> 0 | E119: ='DOLDURULMASI GEREKEN TABLO'!F132 -> 0 | F119: ='DOLDURULMASI GEREKEN TABLO'!G132 -> 0 | G119: 0 | H119: ='DOLDURULMASI GEREKEN TABLO'!H132 -> 00:00:00 | I119: 2025-12-31 | J119: 2025 YD ORANINA GÖRE GEÇİCİ 32 YE GÖRE YD YAPILABİLİR | K119: ='DOLDURULMASI GEREKEN TABLO'!J132 -> 0 | L119: ='DOLDURULMASI GEREKEN TABLO'!K132 -> 0 | M119: ='DOLDURULMASI GEREKEN TABLO'!L132 -> 0 | N119: =IFERROR(IF('DOLDURULMASI GEREKEN TABLO'!M132="EVET",(I119-H119)+1,0),0) -> 0 | O119: 0 | P119: 0 | Q119: 0 | R119: 0 | S119: 0 | T119: 0 | U119: 0 | V119: ='DOLDURULMASI GEREKEN TABLO'!M132 -> 0 | W119: 2025-1 | X119: =VLOOKUP(W119,'Aylık Yİ-ÜFE'!$D$1:$E$500,2,0) -> 3861.33 | Y119: =CONCATENATE(YEAR('DOLDURULMASI GEREKEN TABLO'!N132),"-",MONTH('DOLDURULMASI GEREKEN TABLO'!N132)) -> 2025-12 | Z119: =VLOOKUP(Y119,'Aylık Yİ-ÜFE'!$D$1:$E$500,2,0) -> 4783.04 | AA119: 1 | AB119: =IF('DOLDURULMASI GEREKEN TABLO'!M132="EVET",MAX(S119*AA119,S119),S119) -> 0 | AC119: =IF('DOLDURULMASI GEREKEN TABLO'!M132="EVET",MAX(T119*AA119,T119),T119) -> 0 | AD119: 0 | AE119: 0 | AF119: 0 | AG119: 0 | AH119: 0 | AJ119: 00:00:00 | AK119: ='DOLDURULMASI GEREKEN TABLO'!N132 -> 2025-12-31 | AL119: 0 | AM119: 0 | AN119: 46022 | AO119: 126 | AP119: 126 | AQ119: 126 | AR119: 0
B120: 113 | C120: ='DOLDURULMASI GEREKEN TABLO'!D133 -> 0 | D120: ='DOLDURULMASI GEREKEN TABLO'!E133 -> 0 | E120: ='DOLDURULMASI GEREKEN TABLO'!F133 -> 0 | F120: ='DOLDURULMASI GEREKEN TABLO'!G133 -> 0 | G120: 0 | H120: ='DOLDURULMASI GEREKEN TABLO'!H133 -> 00:00:00 | I120: 2025-12-31 | J120: 2025 YD ORANINA GÖRE GEÇİCİ 32 YE GÖRE YD YAPILABİLİR | K120: ='DOLDURULMASI GEREKEN TABLO'!J133 -> 0 | L120: ='DOLDURULMASI GEREKEN TABLO'!K133 -> 0 | M120: ='DOLDURULMASI GEREKEN TABLO'!L133 -> 0 | N120: =IFERROR(IF('DOLDURULMASI GEREKEN TABLO'!M133="EVET",(I120-H120)+1,0),0) -> 0 | O120: 0 | P120: 0 | Q120: 0 | R120: 0 | S120: 0 | T120: 0 | U120: 0 | V120: ='DOLDURULMASI GEREKEN TABLO'!M133 -> 0 | W120: 2025-1 | X120: =VLOOKUP(W120,'Aylık Yİ-ÜFE'!$D$1:$E$500,2,0) -> 3861.33 | Y120: =CONCATENATE(YEAR('DOLDURULMASI GEREKEN TABLO'!N133),"-",MONTH('DOLDURULMASI GEREKEN TABLO'!N133)) -> 2025-12 | Z120: =VLOOKUP(Y120,'Aylık Yİ-ÜFE'!$D$1:$E$500,2,0) -> 4783.04 | AA120: 1 | AB120: =IF('DOLDURULMASI GEREKEN TABLO'!M133="EVET",MAX(S120*AA120,S120),S120) -> 0 | AC120: =IF('DOLDURULMASI GEREKEN TABLO'!M133="EVET",MAX(T120*AA120,T120),T120) -> 0 | AD120: 0 | AE120: 0 | AF120: 0 | AG120: 0 | AH120: 0 | AJ120: 00:00:00 | AK120: ='DOLDURULMASI GEREKEN TABLO'!N133 -> 2025-12-31 | AL120: 0 | AM120: 0 | AN120: 46022 | AO120: 126 | AP120: 126 | AQ120: 126 | AR120: 0
B121: 114 | C121: ='DOLDURULMASI GEREKEN TABLO'!D134 -> 0 | D121: ='DOLDURULMASI GEREKEN TABLO'!E134 -> 0 | E121: ='DOLDURULMASI GEREKEN TABLO'!F134 -> 0 | F121: ='DOLDURULMASI GEREKEN TABLO'!G134 -> 0 | G121: 0 | H121: ='DOLDURULMASI GEREKEN TABLO'!H134 -> 00:00:00 | I121: 2025-12-31 | J121: 2025 YD ORANINA GÖRE GEÇİCİ 32 YE GÖRE YD YAPILABİLİR | K121: ='DOLDURULMASI GEREKEN TABLO'!J134 -> 0 | L121: ='DOLDURULMASI GEREKEN TABLO'!K134 -> 0 | M121: ='DOLDURULMASI GEREKEN TABLO'!L134 -> 0 | N121: =IFERROR(IF('DOLDURULMASI GEREKEN TABLO'!M134="EVET",(I121-H121)+1,0),0) -> 0 | O121: 0 | P121: 0 | Q121: 0 | R121: 0 | S121: 0 | T121: 0 | U121: 0 | V121: ='DOLDURULMASI GEREKEN TABLO'!M134 -> 0 | W121: 2025-1 | X121: =VLOOKUP(W121,'Aylık Yİ-ÜFE'!$D$1:$E$500,2,0) -> 3861.33 | Y121: =CONCATENATE(YEAR('DOLDURULMASI GEREKEN TABLO'!N134),"-",MONTH('DOLDURULMASI GEREKEN TABLO'!N134)) -> 2025-12 | Z121: =VLOOKUP(Y121,'Aylık Yİ-ÜFE'!$D$1:$E$500,2,0) -> 4783.04 | AA121: 1 | AB121: =IF('DOLDURULMASI GEREKEN TABLO'!M134="EVET",MAX(S121*AA121,S121),S121) -> 0 | AC121: =IF('DOLDURULMASI GEREKEN TABLO'!M134="EVET",MAX(T121*AA121,T121),T121) -> 0 | AD121: 0 | AE121: 0 | AF121: 0 | AG121: 0 | AH121: 0 | AJ121: 00:00:00 | AK121: ='DOLDURULMASI GEREKEN TABLO'!N134 -> 2025-12-31 | AL121: 0 | AM121: 0 | AN121: 46022 | AO121: 126 | AP121: 126 | AQ121: 126 | AR121: 0
B122: 115 | C122: ='DOLDURULMASI GEREKEN TABLO'!D135 -> 0 | D122: ='DOLDURULMASI GEREKEN TABLO'!E135 -> 0 | E122: ='DOLDURULMASI GEREKEN TABLO'!F135 -> 0 | F122: ='DOLDURULMASI GEREKEN TABLO'!G135 -> 0 | G122: 0 | H122: ='DOLDURULMASI GEREKEN TABLO'!H135 -> 00:00:00 | I122: 2025-12-31 | J122: 2025 YD ORANINA GÖRE GEÇİCİ 32 YE GÖRE YD YAPILABİLİR | K122: ='DOLDURULMASI GEREKEN TABLO'!J135 -> 0 | L122: ='DOLDURULMASI GEREKEN TABLO'!K135 -> 0 | M122: ='DOLDURULMASI GEREKEN TABLO'!L135 -> 0 | N122: =IFERROR(IF('DOLDURULMASI GEREKEN TABLO'!M135="EVET",(I122-H122)+1,0),0) -> 0 | O122: 0 | P122: 0 | Q122: 0 | R122: 0 | S122: 0 | T122: 0 | U122: 0 | V122: ='DOLDURULMASI GEREKEN TABLO'!M135 -> 0 | W122: 2025-1 | X122: =VLOOKUP(W122,'Aylık Yİ-ÜFE'!$D$1:$E$500,2,0) -> 3861.33 | Y122: =CONCATENATE(YEAR('DOLDURULMASI GEREKEN TABLO'!N135),"-",MONTH('DOLDURULMASI GEREKEN TABLO'!N135)) -> 2025-12 | Z122: =VLOOKUP(Y122,'Aylık Yİ-ÜFE'!$D$1:$E$500,2,0) -> 4783.04 | AA122: 1 | AB122: =IF('DOLDURULMASI GEREKEN TABLO'!M135="EVET",MAX(S122*AA122,S122),S122) -> 0 | AC122: =IF('DOLDURULMASI GEREKEN TABLO'!M135="EVET",MAX(T122*AA122,T122),T122) -> 0 | AD122: 0 | AE122: 0 | AF122: 0 | AG122: 0 | AH122: 0 | AJ122: 00:00:00 | AK122: ='DOLDURULMASI GEREKEN TABLO'!N135 -> 2025-12-31 | AL122: 0 | AM122: 0 | AN122: 46022 | AO122: 126 | AP122: 126 | AQ122: 126 | AR122: 0
B123: 116 | C123: ='DOLDURULMASI GEREKEN TABLO'!D136 -> 0 | D123: ='DOLDURULMASI GEREKEN TABLO'!E136 -> 0 | E123: ='DOLDURULMASI GEREKEN TABLO'!F136 -> 0 | F123: ='DOLDURULMASI GEREKEN TABLO'!G136 -> 0 | G123: 0 | H123: ='DOLDURULMASI GEREKEN TABLO'!H136 -> 00:00:00 | I123: 2025-12-31 | J123: 2025 YD ORANINA GÖRE GEÇİCİ 32 YE GÖRE YD YAPILABİLİR | K123: ='DOLDURULMASI GEREKEN TABLO'!J136 -> 0 | L123: ='DOLDURULMASI GEREKEN TABLO'!K136 -> 0 | M123: ='DOLDURULMASI GEREKEN TABLO'!L136 -> 0 | N123: =IFERROR(IF('DOLDURULMASI GEREKEN TABLO'!M136="EVET",(I123-H123)+1,0),0) -> 0 | O123: 0 | P123: 0 | Q123: 0 | R123: 0 | S123: 0 | T123: 0 | U123: 0 | V123: ='DOLDURULMASI GEREKEN TABLO'!M136 -> 0 | W123: 2025-1 | X123: =VLOOKUP(W123,'Aylık Yİ-ÜFE'!$D$1:$E$500,2,0) -> 3861.33 | Y123: =CONCATENATE(YEAR('DOLDURULMASI GEREKEN TABLO'!N136),"-",MONTH('DOLDURULMASI GEREKEN TABLO'!N136)) -> 2025-12 | Z123: =VLOOKUP(Y123,'Aylık Yİ-ÜFE'!$D$1:$E$500,2,0) -> 4783.04 | AA123: 1 | AB123: =IF('DOLDURULMASI GEREKEN TABLO'!M136="EVET",MAX(S123*AA123,S123),S123) -> 0 | AC123: =IF('DOLDURULMASI GEREKEN TABLO'!M136="EVET",MAX(T123*AA123,T123),T123) -> 0 | AD123: 0 | AE123: 0 | AF123: 0 | AG123: 0 | AH123: 0 | AJ123: 00:00:00 | AK123: ='DOLDURULMASI GEREKEN TABLO'!N136 -> 2025-12-31 | AL123: 0 | AM123: 0 | AN123: 46022 | AO123: 126 | AP123: 126 | AQ123: 126 | AR123: 0
B124: 117 | C124: ='DOLDURULMASI GEREKEN TABLO'!D137 -> 0 | D124: ='DOLDURULMASI GEREKEN TABLO'!E137 -> 0 | E124: ='DOLDURULMASI GEREKEN TABLO'!F137 -> 0 | F124: ='DOLDURULMASI GEREKEN TABLO'!G137 -> 0 | G124: 0 | H124: ='DOLDURULMASI GEREKEN TABLO'!H137 -> 00:00:00 | I124: 2025-12-31 | J124: 2025 YD ORANINA GÖRE GEÇİCİ 32 YE GÖRE YD YAPILABİLİR | K124: ='DOLDURULMASI GEREKEN TABLO'!J137 -> 0 | L124: ='DOLDURULMASI GEREKEN TABLO'!K137 -> 0 | M124: ='DOLDURULMASI GEREKEN TABLO'!L137 -> 0 | N124: =IFERROR(IF('DOLDURULMASI GEREKEN TABLO'!M137="EVET",(I124-H124)+1,0),0) -> 0 | O124: 0 | P124: 0 | Q124: 0 | R124: 0 | S124: 0 | T124: 0 | U124: 0 | V124: ='DOLDURULMASI GEREKEN TABLO'!M137 -> 0 | W124: 2025-1 | X124: =VLOOKUP(W124,'Aylık Yİ-ÜFE'!$D$1:$E$500,2,0) -> 3861.33 | Y124: =CONCATENATE(YEAR('DOLDURULMASI GEREKEN TABLO'!N137),"-",MONTH('DOLDURULMASI GEREKEN TABLO'!N137)) -> 2025-12 | Z124: =VLOOKUP(Y124,'Aylık Yİ-ÜFE'!$D$1:$E$500,2,0) -> 4783.04 | AA124: 1 | AB124: =IF('DOLDURULMASI GEREKEN TABLO'!M137="EVET",MAX(S124*AA124,S124),S124) -> 0 | AC124: =IF('DOLDURULMASI GEREKEN TABLO'!M137="EVET",MAX(T124*AA124,T124),T124) -> 0 | AD124: 0 | AE124: 0 | AF124: 0 | AG124: 0 | AH124: 0 | AJ124: 00:00:00 | AK124: ='DOLDURULMASI GEREKEN TABLO'!N137 -> 2025-12-31 | AL124: 0 | AM124: 0 | AN124: 46022 | AO124: 126 | AP124: 126 | AQ124: 126 | AR124: 0
B125: 118 | C125: ='DOLDURULMASI GEREKEN TABLO'!D138 -> 0 | D125: ='DOLDURULMASI GEREKEN TABLO'!E138 -> 0 | E125: ='DOLDURULMASI GEREKEN TABLO'!F138 -> 0 | F125: ='DOLDURULMASI GEREKEN TABLO'!G138 -> 0 | G125: 0 | H125: ='DOLDURULMASI GEREKEN TABLO'!H138 -> 00:00:00 | I125: 2025-12-31 | J125: 2025 YD ORANINA GÖRE GEÇİCİ 32 YE GÖRE YD YAPILABİLİR | K125: ='DOLDURULMASI GEREKEN TABLO'!J138 -> 0 | L125: ='DOLDURULMASI GEREKEN TABLO'!K138 -> 0 | M125: ='DOLDURULMASI GEREKEN TABLO'!L138 -> 0 | N125: =IFERROR(IF('DOLDURULMASI GEREKEN TABLO'!M138="EVET",(I125-H125)+1,0),0) -> 0 | O125: 0 | P125: 0 | Q125: 0 | R125: 0 | S125: 0 | T125: 0 | U125: 0 | V125: ='DOLDURULMASI GEREKEN TABLO'!M138 -> 0 | W125: 2025-1 | X125: =VLOOKUP(W125,'Aylık Yİ-ÜFE'!$D$1:$E$500,2,0) -> 3861.33 | Y125: =CONCATENATE(YEAR('DOLDURULMASI GEREKEN TABLO'!N138),"-",MONTH('DOLDURULMASI GEREKEN TABLO'!N138)) -> 2025-12 | Z125: =VLOOKUP(Y125,'Aylık Yİ-ÜFE'!$D$1:$E$500,2,0) -> 4783.04 | AA125: 1 | AB125: =IF('DOLDURULMASI GEREKEN TABLO'!M138="EVET",MAX(S125*AA125,S125),S125) -> 0 | AC125: =IF('DOLDURULMASI GEREKEN TABLO'!M138="EVET",MAX(T125*AA125,T125),T125) -> 0 | AD125: 0 | AE125: 0 | AF125: 0 | AG125: 0 | AH125: 0 | AJ125: 00:00:00 | AK125: ='DOLDURULMASI GEREKEN TABLO'!N138 -> 2025-12-31 | AL125: 0 | AM125: 0 | AN125: 46022 | AO125: 126 | AP125: 126 | AQ125: 126 | AR125: 0
B126: 119 | C126: ='DOLDURULMASI GEREKEN TABLO'!D139 -> 0 | D126: ='DOLDURULMASI GEREKEN TABLO'!E139 -> 0 | E126: ='DOLDURULMASI GEREKEN TABLO'!F139 -> 0 | F126: ='DOLDURULMASI GEREKEN TABLO'!G139 -> 0 | G126: 0 | H126: ='DOLDURULMASI GEREKEN TABLO'!H139 -> 00:00:00 | I126: 2025-12-31 | J126: 2025 YD ORANINA GÖRE GEÇİCİ 32 YE GÖRE YD YAPILABİLİR | K126: ='DOLDURULMASI GEREKEN TABLO'!J139 -> 0 | L126: ='DOLDURULMASI GEREKEN TABLO'!K139 -> 0 | M126: ='DOLDURULMASI GEREKEN TABLO'!L139 -> 0 | N126: =IFERROR(IF('DOLDURULMASI GEREKEN TABLO'!M139="EVET",(I126-H126)+1,0),0) -> 0 | O126: 0 | P126: 0 | Q126: 0 | R126: 0 | S126: 0 | T126: 0 | U126: 0 | V126: ='DOLDURULMASI GEREKEN TABLO'!M139 -> 0 | W126: 2025-1 | X126: =VLOOKUP(W126,'Aylık Yİ-ÜFE'!$D$1:$E$500,2,0) -> 3861.33 | Y126: =CONCATENATE(YEAR('DOLDURULMASI GEREKEN TABLO'!N139),"-",MONTH('DOLDURULMASI GEREKEN TABLO'!N139)) -> 2025-12 | Z126: =VLOOKUP(Y126,'Aylık Yİ-ÜFE'!$D$1:$E$500,2,0) -> 4783.04 | AA126: 1 | AB126: =IF('DOLDURULMASI GEREKEN TABLO'!M139="EVET",MAX(S126*AA126,S126),S126) -> 0 | AC126: =IF('DOLDURULMASI GEREKEN TABLO'!M139="EVET",MAX(T126*AA126,T126),T126) -> 0 | AD126: 0 | AE126: 0 | AF126: 0 | AG126: 0 | AH126: 0 | AJ126: 00:00:00 | AK126: ='DOLDURULMASI GEREKEN TABLO'!N139 -> 2025-12-31 | AL126: 0 | AM126: 0 | AN126: 46022 | AO126: 126 | AP126: 126 | AQ126: 126 | AR126: 0
B127: 120 | C127: ='DOLDURULMASI GEREKEN TABLO'!D140 -> 0 | D127: ='DOLDURULMASI GEREKEN TABLO'!E140 -> 0 | E127: ='DOLDURULMASI GEREKEN TABLO'!F140 -> 0 | F127: ='DOLDURULMASI GEREKEN TABLO'!G140 -> 0 | G127: 0 | H127: ='DOLDURULMASI GEREKEN TABLO'!H140 -> 00:00:00 | I127: 2025-12-31 | J127: 2025 YD ORANINA GÖRE GEÇİCİ 32 YE GÖRE YD YAPILABİLİR | K127: ='DOLDURULMASI GEREKEN TABLO'!J140 -> 0 | L127: ='DOLDURULMASI GEREKEN TABLO'!K140 -> 0 | M127: ='DOLDURULMASI GEREKEN TABLO'!L140 -> 0 | N127: =IFERROR(IF('DOLDURULMASI GEREKEN TABLO'!M140="EVET",(I127-H127)+1,0),0) -> 0 | O127: 0 | P127: 0 | Q127: 0 | R127: 0 | S127: 0 | T127: 0 | U127: 0 | V127: ='DOLDURULMASI GEREKEN TABLO'!M140 -> 0 | W127: 2025-1 | X127: =VLOOKUP(W127,'Aylık Yİ-ÜFE'!$D$1:$E$500,2,0) -> 3861.33 | Y127: =CONCATENATE(YEAR('DOLDURULMASI GEREKEN TABLO'!N140),"-",MONTH('DOLDURULMASI GEREKEN TABLO'!N140)) -> 2025-12 | Z127: =VLOOKUP(Y127,'Aylık Yİ-ÜFE'!$D$1:$E$500,2,0) -> 4783.04 | AA127: 1 | AB127: =IF('DOLDURULMASI GEREKEN TABLO'!M140="EVET",MAX(S127*AA127,S127),S127) -> 0 | AC127: =IF('DOLDURULMASI GEREKEN TABLO'!M140="EVET",MAX(T127*AA127,T127),T127) -> 0 | AD127: 0 | AE127: 0 | AF127: 0 | AG127: 0 | AH127: 0 | AJ127: 00:00:00 | AK127: ='DOLDURULMASI GEREKEN TABLO'!N140 -> 2025-12-31 | AL127: 0 | AM127: 0 | AN127: 46022 | AO127: 126 | AP127: 126 | AQ127: 126 | AR127: 0
B128: 121 | C128: ='DOLDURULMASI GEREKEN TABLO'!D141 -> 0 | D128: ='DOLDURULMASI GEREKEN TABLO'!E141 -> 0 | E128: ='DOLDURULMASI GEREKEN TABLO'!F141 -> 0 | F128: ='DOLDURULMASI GEREKEN TABLO'!G141 -> 0 | G128: 0 | H128: ='DOLDURULMASI GEREKEN TABLO'!H141 -> 00:00:00 | I128: 2025-12-31 | J128: 2025 YD ORANINA GÖRE GEÇİCİ 32 YE GÖRE YD YAPILABİLİR | K128: ='DOLDURULMASI GEREKEN TABLO'!J141 -> 0 | L128: ='DOLDURULMASI GEREKEN TABLO'!K141 -> 0 | M128: ='DOLDURULMASI GEREKEN TABLO'!L141 -> 0 | N128: =IFERROR(IF('DOLDURULMASI GEREKEN TABLO'!M141="EVET",(I128-H128)+1,0),0) -> 0 | O128: 0 | P128: 0 | Q128: 0 | R128: 0 | S128: 0 | T128: 0 | U128: 0 | V128: ='DOLDURULMASI GEREKEN TABLO'!M141 -> 0 | W128: 2025-1 | X128: =VLOOKUP(W128,'Aylık Yİ-ÜFE'!$D$1:$E$500,2,0) -> 3861.33 | Y128: =CONCATENATE(YEAR('DOLDURULMASI GEREKEN TABLO'!N141),"-",MONTH('DOLDURULMASI GEREKEN TABLO'!N141)) -> 2025-12 | Z128: =VLOOKUP(Y128,'Aylık Yİ-ÜFE'!$D$1:$E$500,2,0) -> 4783.04 | AA128: 1 | AB128: =IF('DOLDURULMASI GEREKEN TABLO'!M141="EVET",MAX(S128*AA128,S128),S128) -> 0 | AC128: =IF('DOLDURULMASI GEREKEN TABLO'!M141="EVET",MAX(T128*AA128,T128),T128) -> 0 | AD128: 0 | AE128: 0 | AF128: 0 | AG128: 0 | AH128: 0 | AJ128: 00:00:00 | AK128: ='DOLDURULMASI GEREKEN TABLO'!N141 -> 2025-12-31 | AL128: 0 | AM128: 0 | AN128: 46022 | AO128: 126 | AP128: 126 | AQ128: 126 | AR128: 0
B129: 122 | C129: ='DOLDURULMASI GEREKEN TABLO'!D142 -> 0 | D129: ='DOLDURULMASI GEREKEN TABLO'!E142 -> 0 | E129: ='DOLDURULMASI GEREKEN TABLO'!F142 -> 0 | F129: ='DOLDURULMASI GEREKEN TABLO'!G142 -> 0 | G129: 0 | H129: ='DOLDURULMASI GEREKEN TABLO'!H142 -> 00:00:00 | I129: 2025-12-31 | J129: 2025 YD ORANINA GÖRE GEÇİCİ 32 YE GÖRE YD YAPILABİLİR | K129: ='DOLDURULMASI GEREKEN TABLO'!J142 -> 0 | L129: ='DOLDURULMASI GEREKEN TABLO'!K142 -> 0 | M129: ='DOLDURULMASI GEREKEN TABLO'!L142 -> 0 | N129: =IFERROR(IF('DOLDURULMASI GEREKEN TABLO'!M142="EVET",(I129-H129)+1,0),0) -> 0 | O129: 0 | P129: 0 | Q129: 0 | R129: 0 | S129: 0 | T129: 0 | U129: 0 | V129: ='DOLDURULMASI GEREKEN TABLO'!M142 -> 0 | W129: 2025-1 | X129: =VLOOKUP(W129,'Aylık Yİ-ÜFE'!$D$1:$E$500,2,0) -> 3861.33 | Y129: =CONCATENATE(YEAR('DOLDURULMASI GEREKEN TABLO'!N142),"-",MONTH('DOLDURULMASI GEREKEN TABLO'!N142)) -> 2025-12 | Z129: =VLOOKUP(Y129,'Aylık Yİ-ÜFE'!$D$1:$E$500,2,0) -> 4783.04 | AA129: 1 | AB129: =IF('DOLDURULMASI GEREKEN TABLO'!M142="EVET",MAX(S129*AA129,S129),S129) -> 0 | AC129: =IF('DOLDURULMASI GEREKEN TABLO'!M142="EVET",MAX(T129*AA129,T129),T129) -> 0 | AD129: 0 | AE129: 0 | AF129: 0 | AG129: 0 | AH129: 0 | AJ129: 00:00:00 | AK129: ='DOLDURULMASI GEREKEN TABLO'!N142 -> 2025-12-31 | AL129: 0 | AM129: 0 | AN129: 46022 | AO129: 126 | AP129: 126 | AQ129: 126 | AR129: 0
B130: 123 | C130: ='DOLDURULMASI GEREKEN TABLO'!D143 -> 0 | D130: ='DOLDURULMASI GEREKEN TABLO'!E143 -> 0 | E130: ='DOLDURULMASI GEREKEN TABLO'!F143 -> 0 | F130: ='DOLDURULMASI GEREKEN TABLO'!G143 -> 0 | G130: 0 | H130: ='DOLDURULMASI GEREKEN TABLO'!H143 -> 00:00:00 | I130: 2025-12-31 | J130: 2025 YD ORANINA GÖRE GEÇİCİ 32 YE GÖRE YD YAPILABİLİR | K130: ='DOLDURULMASI GEREKEN TABLO'!J143 -> 0 | L130: ='DOLDURULMASI GEREKEN TABLO'!K143 -> 0 | M130: ='DOLDURULMASI GEREKEN TABLO'!L143 -> 0 | N130: =IFERROR(IF('DOLDURULMASI GEREKEN TABLO'!M143="EVET",(I130-H130)+1,0),0) -> 0 | O130: 0 | P130: 0 | Q130: 0 | R130: 0 | S130: 0 | T130: 0 | U130: 0 | V130: ='DOLDURULMASI GEREKEN TABLO'!M143 -> 0 | W130: 2025-1 | X130: =VLOOKUP(W130,'Aylık Yİ-ÜFE'!$D$1:$E$500,2,0) -> 3861.33 | Y130: =CONCATENATE(YEAR('DOLDURULMASI GEREKEN TABLO'!N143),"-",MONTH('DOLDURULMASI GEREKEN TABLO'!N143)) -> 2025-12 | Z130: =VLOOKUP(Y130,'Aylık Yİ-ÜFE'!$D$1:$E$500,2,0) -> 4783.04 | AA130: 1 | AB130: =IF('DOLDURULMASI GEREKEN TABLO'!M143="EVET",MAX(S130*AA130,S130),S130) -> 0 | AC130: =IF('DOLDURULMASI GEREKEN TABLO'!M143="EVET",MAX(T130*AA130,T130),T130) -> 0 | AD130: 0 | AE130: 0 | AF130: 0 | AG130: 0 | AH130: 0 | AJ130: 00:00:00 | AK130: ='DOLDURULMASI GEREKEN TABLO'!N143 -> 2025-12-31 | AL130: 0 | AM130: 0 | AN130: 46022 | AO130: 126 | AP130: 126 | AQ130: 126 | AR130: 0
B131: 124 | C131: ='DOLDURULMASI GEREKEN TABLO'!D144 -> 0 | D131: ='DOLDURULMASI GEREKEN TABLO'!E144 -> 0 | E131: ='DOLDURULMASI GEREKEN TABLO'!F144 -> 0 | F131: ='DOLDURULMASI GEREKEN TABLO'!G144 -> 0 | G131: 0 | H131: ='DOLDURULMASI GEREKEN TABLO'!H144 -> 00:00:00 | I131: 2025-12-31 | J131: 2025 YD ORANINA GÖRE GEÇİCİ 32 YE GÖRE YD YAPILABİLİR | K131: ='DOLDURULMASI GEREKEN TABLO'!J144 -> 0 | L131: ='DOLDURULMASI GEREKEN TABLO'!K144 -> 0 | M131: ='DOLDURULMASI GEREKEN TABLO'!L144 -> 0 | N131: =IFERROR(IF('DOLDURULMASI GEREKEN TABLO'!M144="EVET",(I131-H131)+1,0),0) -> 0 | O131: 0 | P131: 0 | Q131: 0 | R131: 0 | S131: 0 | T131: 0 | U131: 0 | V131: ='DOLDURULMASI GEREKEN TABLO'!M144 -> 0 | W131: 2025-1 | X131: =VLOOKUP(W131,'Aylık Yİ-ÜFE'!$D$1:$E$500,2,0) -> 3861.33 | Y131: =CONCATENATE(YEAR('DOLDURULMASI GEREKEN TABLO'!N144),"-",MONTH('DOLDURULMASI GEREKEN TABLO'!N144)) -> 2025-12 | Z131: =VLOOKUP(Y131,'Aylık Yİ-ÜFE'!$D$1:$E$500,2,0) -> 4783.04 | AA131: 1 | AB131: =IF('DOLDURULMASI GEREKEN TABLO'!M144="EVET",MAX(S131*AA131,S131),S131) -> 0 | AC131: =IF('DOLDURULMASI GEREKEN TABLO'!M144="EVET",MAX(T131*AA131,T131),T131) -> 0 | AD131: 0 | AE131: 0 | AF131: 0 | AG131: 0 | AH131: 0 | AJ131: 00:00:00 | AK131: ='DOLDURULMASI GEREKEN TABLO'!N144 -> 2025-12-31 | AL131: 0 | AM131: 0 | AN131: 46022 | AO131: 126 | AP131: 126 | AQ131: 126 | AR131: 0
B132: 125 | C132: ='DOLDURULMASI GEREKEN TABLO'!D145 -> 0 | D132: ='DOLDURULMASI GEREKEN TABLO'!E145 -> 0 | E132: ='DOLDURULMASI GEREKEN TABLO'!F145 -> 0 | F132: ='DOLDURULMASI GEREKEN TABLO'!G145 -> 0 | G132: 0 | H132: ='DOLDURULMASI GEREKEN TABLO'!H145 -> 00:00:00 | I132: 2025-12-31 | J132: 2025 YD ORANINA GÖRE GEÇİCİ 32 YE GÖRE YD YAPILABİLİR | K132: ='DOLDURULMASI GEREKEN TABLO'!J145 -> 0 | L132: ='DOLDURULMASI GEREKEN TABLO'!K145 -> 0 | M132: ='DOLDURULMASI GEREKEN TABLO'!L145 -> 0 | N132: =IFERROR(IF('DOLDURULMASI GEREKEN TABLO'!M145="EVET",(I132-H132)+1,0),0) -> 0 | O132: 0 | P132: 0 | Q132: 0 | R132: 0 | S132: 0 | T132: 0 | U132: 0 | V132: ='DOLDURULMASI GEREKEN TABLO'!M145 -> 0 | W132: 2025-1 | X132: =VLOOKUP(W132,'Aylık Yİ-ÜFE'!$D$1:$E$500,2,0) -> 3861.33 | Y132: =CONCATENATE(YEAR('DOLDURULMASI GEREKEN TABLO'!N145),"-",MONTH('DOLDURULMASI GEREKEN TABLO'!N145)) -> 2025-12 | Z132: =VLOOKUP(Y132,'Aylık Yİ-ÜFE'!$D$1:$E$500,2,0) -> 4783.04 | AA132: 1 | AB132: =IF('DOLDURULMASI GEREKEN TABLO'!M145="EVET",MAX(S132*AA132,S132),S132) -> 0 | AC132: =IF('DOLDURULMASI GEREKEN TABLO'!M145="EVET",MAX(T132*AA132,T132),T132) -> 0 | AD132: 0 | AE132: 0 | AF132: 0 | AG132: 0 | AH132: 0 | AJ132: 00:00:00 | AK132: ='DOLDURULMASI GEREKEN TABLO'!N145 -> 2025-12-31 | AL132: 0 | AM132: 0 | AN132: 46022 | AO132: 126 | AP132: 126 | AQ132: 126 | AR132: 0
B133: 126 | C133: ='DOLDURULMASI GEREKEN TABLO'!D146 -> 0 | D133: ='DOLDURULMASI GEREKEN TABLO'!E146 -> 0 | E133: ='DOLDURULMASI GEREKEN TABLO'!F146 -> 0 | F133: ='DOLDURULMASI GEREKEN TABLO'!G146 -> 0 | G133: 0 | H133: ='DOLDURULMASI GEREKEN TABLO'!H146 -> 00:00:00 | I133: 2025-12-31 | J133: 2025 YD ORANINA GÖRE GEÇİCİ 32 YE GÖRE YD YAPILABİLİR | K133: ='DOLDURULMASI GEREKEN TABLO'!J146 -> 0 | L133: ='DOLDURULMASI GEREKEN TABLO'!K146 -> 0 | M133: ='DOLDURULMASI GEREKEN TABLO'!L146 -> 0 | N133: =IFERROR(IF('DOLDURULMASI GEREKEN TABLO'!M146="EVET",(I133-H133)+1,0),0) -> 0 | O133: 0 | P133: 0 | Q133: 0 | R133: 0 | S133: 0 | T133: 0 | U133: 0 | V133: ='DOLDURULMASI GEREKEN TABLO'!M146 -> 0 | W133: 2025-1 | X133: =VLOOKUP(W133,'Aylık Yİ-ÜFE'!$D$1:$E$500,2,0) -> 3861.33 | Y133: =CONCATENATE(YEAR('DOLDURULMASI GEREKEN TABLO'!N146),"-",MONTH('DOLDURULMASI GEREKEN TABLO'!N146)) -> 2025-12 | Z133: =VLOOKUP(Y133,'Aylık Yİ-ÜFE'!$D$1:$E$500,2,0) -> 4783.04 | AA133: 1 | AB133: =IF('DOLDURULMASI GEREKEN TABLO'!M146="EVET",MAX(S133*AA133,S133),S133) -> 0 | AC133: =IF('DOLDURULMASI GEREKEN TABLO'!M146="EVET",MAX(T133*AA133,T133),T133) -> 0 | AD133: 0 | AE133: 0 | AF133: 0 | AG133: 0 | AH133: 0 | AJ133: 00:00:00 | AK133: ='DOLDURULMASI GEREKEN TABLO'!N146 -> 2025-12-31 | AL133: 0 | AM133: 0 | AN133: 46022 | AO133: 126 | AP133: 126 | AQ133: 126 | AR133: 0
B134: 127 | C134: ='DOLDURULMASI GEREKEN TABLO'!D147 -> 0 | D134: ='DOLDURULMASI GEREKEN TABLO'!E147 -> 0 | E134: ='DOLDURULMASI GEREKEN TABLO'!F147 -> 0 | F134: ='DOLDURULMASI GEREKEN TABLO'!G147 -> 0 | G134: 0 | H134: ='DOLDURULMASI GEREKEN TABLO'!H147 -> 00:00:00 | I134: 2025-12-31 | J134: 2025 YD ORANINA GÖRE GEÇİCİ 32 YE GÖRE YD YAPILABİLİR | K134: ='DOLDURULMASI GEREKEN TABLO'!J147 -> 0 | L134: ='DOLDURULMASI GEREKEN TABLO'!K147 -> 0 | M134: ='DOLDURULMASI GEREKEN TABLO'!L147 -> 0 | N134: =IFERROR(IF('DOLDURULMASI GEREKEN TABLO'!M147="EVET",(I134-H134)+1,0),0) -> 0 | O134: 0 | P134: 0 | Q134: 0 | R134: 0 | S134: 0 | T134: 0 | U134: 0 | V134: ='DOLDURULMASI GEREKEN TABLO'!M147 -> 0 | W134: 2025-1 | X134: =VLOOKUP(W134,'Aylık Yİ-ÜFE'!$D$1:$E$500,2,0) -> 3861.33 | Y134: =CONCATENATE(YEAR('DOLDURULMASI GEREKEN TABLO'!N147),"-",MONTH('DOLDURULMASI GEREKEN TABLO'!N147)) -> 2025-12 | Z134: =VLOOKUP(Y134,'Aylık Yİ-ÜFE'!$D$1:$E$500,2,0) -> 4783.04 | AA134: 1 | AB134: =IF('DOLDURULMASI GEREKEN TABLO'!M147="EVET",MAX(S134*AA134,S134),S134) -> 0 | AC134: =IF('DOLDURULMASI GEREKEN TABLO'!M147="EVET",MAX(T134*AA134,T134),T134) -> 0 | AD134: 0 | AE134: 0 | AF134: 0 | AG134: 0 | AH134: 0 | AJ134: 00:00:00 | AK134: ='DOLDURULMASI GEREKEN TABLO'!N147 -> 2025-12-31 | AL134: 0 | AM134: 0 | AN134: 46022 | AO134: 126 | AP134: 126 | AQ134: 126 | AR134: 0
B135: 128 | C135: ='DOLDURULMASI GEREKEN TABLO'!D148 -> 0 | D135: ='DOLDURULMASI GEREKEN TABLO'!E148 -> 0 | E135: ='DOLDURULMASI GEREKEN TABLO'!F148 -> 0 | F135: ='DOLDURULMASI GEREKEN TABLO'!G148 -> 0 | G135: 0 | H135: ='DOLDURULMASI GEREKEN TABLO'!H148 -> 00:00:00 | I135: 2025-12-31 | J135: 2025 YD ORANINA GÖRE GEÇİCİ 32 YE GÖRE YD YAPILABİLİR | K135: ='DOLDURULMASI GEREKEN TABLO'!J148 -> 0 | L135: ='DOLDURULMASI GEREKEN TABLO'!K148 -> 0 | M135: ='DOLDURULMASI GEREKEN TABLO'!L148 -> 0 | N135: =IFERROR(IF('DOLDURULMASI GEREKEN TABLO'!M148="EVET",(I135-H135)+1,0),0) -> 0 | O135: 0 | P135: 0 | Q135: 0 | R135: 0 | S135: 0 | T135: 0 | U135: 0 | V135: ='DOLDURULMASI GEREKEN TABLO'!M148 -> 0 | W135: 2025-1 | X135: =VLOOKUP(W135,'Aylık Yİ-ÜFE'!$D$1:$E$500,2,0) -> 3861.33 | Y135: =CONCATENATE(YEAR('DOLDURULMASI GEREKEN TABLO'!N148),"-",MONTH('DOLDURULMASI GEREKEN TABLO'!N148)) -> 2025-12 | Z135: =VLOOKUP(Y135,'Aylık Yİ-ÜFE'!$D$1:$E$500,2,0) -> 4783.04 | AA135: 1 | AB135: =IF('DOLDURULMASI GEREKEN TABLO'!M148="EVET",MAX(S135*AA135,S135),S135) -> 0 | AC135: =IF('DOLDURULMASI GEREKEN TABLO'!M148="EVET",MAX(T135*AA135,T135),T135) -> 0 | AD135: 0 | AE135: 0 | AF135: 0 | AG135: 0 | AH135: 0 | AJ135: 00:00:00 | AK135: ='DOLDURULMASI GEREKEN TABLO'!N148 -> 2025-12-31 | AL135: 0 | AM135: 0 | AN135: 46022 | AO135: 126 | AP135: 126 | AQ135: 126 | AR135: 0
B136: 129 | C136: ='DOLDURULMASI GEREKEN TABLO'!D149 -> 0 | D136: ='DOLDURULMASI GEREKEN TABLO'!E149 -> 0 | E136: ='DOLDURULMASI GEREKEN TABLO'!F149 -> 0 | F136: ='DOLDURULMASI GEREKEN TABLO'!G149 -> 0 | G136: 0 | H136: ='DOLDURULMASI GEREKEN TABLO'!H149 -> 00:00:00 | I136: 2025-12-31 | J136: 2025 YD ORANINA GÖRE GEÇİCİ 32 YE GÖRE YD YAPILABİLİR | K136: ='DOLDURULMASI GEREKEN TABLO'!J149 -> 0 | L136: ='DOLDURULMASI GEREKEN TABLO'!K149 -> 0 | M136: ='DOLDURULMASI GEREKEN TABLO'!L149 -> 0 | N136: =IFERROR(IF('DOLDURULMASI GEREKEN TABLO'!M149="EVET",(I136-H136)+1,0),0) -> 0 | O136: 0 | P136: 0 | Q136: 0 | R136: 0 | S136: 0 | T136: 0 | U136: 0 | V136: ='DOLDURULMASI GEREKEN TABLO'!M149 -> 0 | W136: 2025-1 | X136: =VLOOKUP(W136,'Aylık Yİ-ÜFE'!$D$1:$E$500,2,0) -> 3861.33 | Y136: =CONCATENATE(YEAR('DOLDURULMASI GEREKEN TABLO'!N149),"-",MONTH('DOLDURULMASI GEREKEN TABLO'!N149)) -> 2025-12 | Z136: =VLOOKUP(Y136,'Aylık Yİ-ÜFE'!$D$1:$E$500,2,0) -> 4783.04 | AA136: 1 | AB136: =IF('DOLDURULMASI GEREKEN TABLO'!M149="EVET",MAX(S136*AA136,S136),S136) -> 0 | AC136: =IF('DOLDURULMASI GEREKEN TABLO'!M149="EVET",MAX(T136*AA136,T136),T136) -> 0 | AD136: 0 | AE136: 0 | AF136: 0 | AG136: 0 | AH136: 0 | AJ136: 00:00:00 | AK136: ='DOLDURULMASI GEREKEN TABLO'!N149 -> 2025-12-31 | AL136: 0 | AM136: 0 | AN136: 46022 | AO136: 126 | AP136: 126 | AQ136: 126 | AR136: 0
B137: 130 | C137: ='DOLDURULMASI GEREKEN TABLO'!D150 -> 0 | D137: ='DOLDURULMASI GEREKEN TABLO'!E150 -> 0 | E137: ='DOLDURULMASI GEREKEN TABLO'!F150 -> 0 | F137: ='DOLDURULMASI GEREKEN TABLO'!G150 -> 0 | G137: =IFERROR(IF(L137="AZALAN BAKİYELERE GÖRE AMORTİSMAN",MIN(1/F137,1/4),1/F137),0) -> 0 | H137: ='DOLDURULMASI GEREKEN TABLO'!H150 -> 00:00:00 | I137: 2025-12-31 | J137: 2025 YD ORANINA GÖRE GEÇİCİ 32 YE GÖRE YD YAPILABİLİR | K137: ='DOLDURULMASI GEREKEN TABLO'!J150 -> 0 | L137: ='DOLDURULMASI GEREKEN TABLO'!K150 -> 0 | M137: ='DOLDURULMASI GEREKEN TABLO'!L150 -> 0 | N137: =IFERROR(IF('DOLDURULMASI GEREKEN TABLO'!M150="EVET",(I137-H137)+1,0),0) -> 0 | O137: 0 | P137: 0 | Q137: 0 | R137: 0 | S137: 0 | T137: 0 | U137: 0 | V137: ='DOLDURULMASI GEREKEN TABLO'!M150 -> 0 | W137: =IF(H137<=45567,"2025-1",IF(AND(H137>=46022,MONTH(H137)+1=13),CONCATENATE(YEAR(H137)+1,"-",MONTH(H137)-11),CONCATENATE(YEAR(H137),"-",MONTH(H137)+1))) -> 2025-1 | X137: =VLOOKUP(W137,'Aylık Yİ-ÜFE'!$D$1:$E$500,2,0) -> 3861.33 | Y137: =CONCATENATE(YEAR('DOLDURULMASI GEREKEN TABLO'!N150),"-",MONTH('DOLDURULMASI GEREKEN TABLO'!N150)) -> 2025-12 | Z137: =VLOOKUP(Y137,'Aylık Yİ-ÜFE'!$D$1:$E$500,2,0) -> 4783.04 | AA137: =IFERROR(IF(V137="EVET",TRUNC(Z137/X137,5),1),0) -> 1 | AB137: =IF('DOLDURULMASI GEREKEN TABLO'!M150="EVET",MAX(S137*AA137,S137),S137) -> 0 | AC137: =IF('DOLDURULMASI GEREKEN TABLO'!M150="EVET",MAX(T137*AA137,T137),T137) -> 0 | AD137: 0 | AE137: 0 | AF137: 0 | AG137: 0 | AH137: =IFERROR(AG137*2/100,0) -> 0 | AJ137: 00:00:00 | AK137: ='DOLDURULMASI GEREKEN TABLO'!N150 -> 2025-12-31 | AL137: 0 | AM137: 0 | AN137: 46022 | AO137: 126 | AP137: 126 | AQ137: 126 | AR137: 0
B138: 131 | C138: ='DOLDURULMASI GEREKEN TABLO'!D151 -> 0 | D138: ='DOLDURULMASI GEREKEN TABLO'!E151 -> 0 | E138: ='DOLDURULMASI GEREKEN TABLO'!F151 -> 0 | F138: ='DOLDURULMASI GEREKEN TABLO'!G151 -> 0 | G138: 0 | H138: ='DOLDURULMASI GEREKEN TABLO'!H151 -> 00:00:00 | I138: 2025-12-31 | J138: =IF(AND( H138>45657, H138<=46022),"2025 TE İKTİSAP EDİLEN KIYMETLER, İKTİSAP EDİLDİĞİ AYI İZLEYEN AYIN Yİ-ÜFE ENDEKSİ İLE DEĞERLEME YAPILACAK ARALIK/2025 AYININ Yİ-ÜFE'Sİ BAZ ALINARAK GEÇİCİ 32 YE GÖRE YD YAPILABİLECEKTİR.", "2025 YD ORANINA GÖRE GEÇİCİ 32 YE GÖRE YD YAPILABİLİR") -> 2025 YD ORANINA GÖRE GEÇİCİ 32 YE GÖRE YD YAPILABİLİR | K138: ='DOLDURULMASI GEREKEN TABLO'!J151 -> 0 | L138: ='DOLDURULMASI GEREKEN TABLO'!K151 -> 0 | M138: ='DOLDURULMASI GEREKEN TABLO'!L151 -> 0 | N138: =IFERROR(IF('DOLDURULMASI GEREKEN TABLO'!M151="EVET",(I138-H138)+1,0),0) -> 0 | O138: =IFERROR(MIN(YEAR(I138)-YEAR(H138)+1,F138),0) -> 0 | P138: =IFERROR(MIN(((YEAR(I138)-YEAR(H138))*12+(MONTH(I138)-MONTH(H138))+1)/12,F138),0) -> 0 | Q138: =IFERROR(MIN(IF(M138="HAYIR",O138,P138),F138),0) -> 0 | R138: =IF(D138="250- Arazi ve Arsalar",0, IF(Q138=F138,K138, IF(AND(L138="NORMAL AMORTİSMAN",M138="HAYIR"),K138*G138*Q138, IF(AND(L138="NORMAL AMORTİSMAN",M138="EVET"),K138*G138*Q138, IF(AND(L138="AZALAN BAKİYELERE GÖRE AMORTİSMAN",M138="HAYIR",F138<=4),VDB(K138,0,4,0,O138,2,TRUE), IF(AND(L138="AZALAN BAKİYELERE GÖRE AMORTİSMAN",M138="HAYIR",AND(F138>4,Q138<F138)),VDB(K138,0,F138,0,Q138,2,TRUE), IF(AND(L138="AZALAN BAKİYELERE GÖRE AMORTİSMAN",M138="EVET",O138=1),(DDB(K138,0,IF(F138<=4,4,F138),1,2)/12)*(12-MONTH(H138)+1), IF(AND(L138="AZALAN BAKİYELERE GÖRE AMORTİSMAN",M138="EVET",O138=2),(DDB(K138,0,IF(F138<=4,4,F138),1,2)/12)*(12-MONTH(H138)+1)+DDB(K138,0,IF(F138<=4,4,F138),2,2), IF(AND(L138="AZALAN BAKİYELERE GÖRE AMORTİSMAN",M138="EVET",O138=3),(DDB(K138,0,IF(F138<=4,4,F138),1,2)/12)*(12-MONTH(H138)+1)+DDB(K138,0,IF(F138<=4,4,F138),2,2)+DDB(K138,0,IF(F138<=4,4,F138),3,2), IF(AND(L138="AZALAN BAKİYELERE GÖRE AMORTİSMAN",M138="EVET",AND(O138>3,O138<5)),(DDB(K138,0,IF(F138<=4,4,F138),1,2)/12)*(12-MONTH(H138)+1)+DDB(K138,0,IF(F138<=4,4,F138),2,2)+DDB(K138,0,IF(F138<=4,4,F138),3,2)+DDB(K138,0,IF(F138<=4,4,F138),Q138,2), IF(AND(L138="AZALAN BAKİYELERE GÖRE AMORTİSMAN",M138="EVET",O138=5),VDB(K138,0,F138,0,Q138,2,TRUE),0))))))))))) -> 0 | S138: =K138 -> 0 | T138: =R138 -> 0 | U138: =S138-T138 -> 0 | V138: ='DOLDURULMASI GEREKEN TABLO'!M151 -> 0 | W138: 2025-1 | X138: =VLOOKUP(W138,'Aylık Yİ-ÜFE'!$D$1:$E$500,2,0) -> 3861.33 | Y138: =CONCATENATE(YEAR('DOLDURULMASI GEREKEN TABLO'!N151),"-",MONTH('DOLDURULMASI GEREKEN TABLO'!N151)) -> 2025-12 | Z138: =VLOOKUP(Y138,'Aylık Yİ-ÜFE'!$D$1:$E$500,2,0) -> 4783.04 | AA138: 1 | AB138: =IF('DOLDURULMASI GEREKEN TABLO'!M151="EVET",MAX(S138*AA138,S138),S138) -> 0 | AC138: =IF('DOLDURULMASI GEREKEN TABLO'!M151="EVET",MAX(T138*AA138,T138),T138) -> 0 | AD138: =AB138-AC138 -> 0 | AE138: =IFERROR(IF(AB138-S138<0,0,AB138-S138),0) -> 0 | AF138: =IFERROR(IF(AC138-T138<0,0,AC138-T138),0) -> 0 | AG138: =IFERROR(IF((AE138-AF138)<0,0,(AE138-AF138)),0) -> 0 | AH138: 0 | AJ138: =H138 -> 00:00:00 | AK138: ='DOLDURULMASI GEREKEN TABLO'!N151 -> 2025-12-31 | AL138: =L138 -> 0 | AM138: =M138 -> 0 | AN138: =(AK138-AJ138) -> 46022 | AO138: =YEAR(AK138)-YEAR(AJ138)+1 -> 126 | AP138: =(((YEAR(AK138)-YEAR(AJ138))*12)+(MONTH(AK138)-MONTH(AJ138)+1))/12 -> 126 | AQ138: =IF(AL138="NORMAL AMORTİSMAN",AO138,AP138) -> 126 | AR138: =IF(AL138="NORMAL AMORTİSMAN",AB138*(1/F138), IF(AND(AL138="AZALAN BAKİYELERE GÖRE AMORTİSMAN",AP138<F138),DDB(AB138,0,IF(F138<=4,4,F138),ROUNDUP(AQ138,0),2), IF(AND(AL138="AZALAN BAKİYELERE GÖRE AMORTİSMAN",AQ138=F138),(AB138-AB138),0))) -> 0
B139: 132 | C139: ='DOLDURULMASI GEREKEN TABLO'!D152 -> 0 | D139: ='DOLDURULMASI GEREKEN TABLO'!E152 -> 0 | E139: ='DOLDURULMASI GEREKEN TABLO'!F152 -> 0 | F139: ='DOLDURULMASI GEREKEN TABLO'!G152 -> 0 | G139: 0 | H139: ='DOLDURULMASI GEREKEN TABLO'!H152 -> 00:00:00 | I139: 2025-12-31 | J139: 2025 YD ORANINA GÖRE GEÇİCİ 32 YE GÖRE YD YAPILABİLİR | K139: ='DOLDURULMASI GEREKEN TABLO'!J152 -> 0 | L139: ='DOLDURULMASI GEREKEN TABLO'!K152 -> 0 | M139: ='DOLDURULMASI GEREKEN TABLO'!L152 -> 0 | N139: =IFERROR(IF('DOLDURULMASI GEREKEN TABLO'!M152="EVET",(I139-H139)+1,0),0) -> 0 | O139: 0 | P139: 0 | Q139: 0 | R139: 0 | S139: 0 | T139: 0 | U139: 0 | V139: ='DOLDURULMASI GEREKEN TABLO'!M152 -> 0 | W139: 2025-1 | X139: =VLOOKUP(W139,'Aylık Yİ-ÜFE'!$D$1:$E$500,2,0) -> 3861.33 | Y139: =CONCATENATE(YEAR('DOLDURULMASI GEREKEN TABLO'!N152),"-",MONTH('DOLDURULMASI GEREKEN TABLO'!N152)) -> 2025-12 | Z139: =VLOOKUP(Y139,'Aylık Yİ-ÜFE'!$D$1:$E$500,2,0) -> 4783.04 | AA139: 1 | AB139: =IF('DOLDURULMASI GEREKEN TABLO'!M152="EVET",MAX(S139*AA139,S139),S139) -> 0 | AC139: =IF('DOLDURULMASI GEREKEN TABLO'!M152="EVET",MAX(T139*AA139,T139),T139) -> 0 | AD139: 0 | AE139: 0 | AF139: 0 | AG139: 0 | AH139: 0 | AJ139: 00:00:00 | AK139: ='DOLDURULMASI GEREKEN TABLO'!N152 -> 2025-12-31 | AL139: 0 | AM139: 0 | AN139: 46022 | AO139: 126 | AP139: 126 | AQ139: 126 | AR139: 0
B140: 133 | C140: ='DOLDURULMASI GEREKEN TABLO'!D153 -> 0 | D140: ='DOLDURULMASI GEREKEN TABLO'!E153 -> 0 | E140: ='DOLDURULMASI GEREKEN TABLO'!F153 -> 0 | F140: ='DOLDURULMASI GEREKEN TABLO'!G153 -> 0 | G140: 0 | H140: ='DOLDURULMASI GEREKEN TABLO'!H153 -> 00:00:00 | I140: 2025-12-31 | J140: 2025 YD ORANINA GÖRE GEÇİCİ 32 YE GÖRE YD YAPILABİLİR | K140: ='DOLDURULMASI GEREKEN TABLO'!J153 -> 0 | L140: ='DOLDURULMASI GEREKEN TABLO'!K153 -> 0 | M140: ='DOLDURULMASI GEREKEN TABLO'!L153 -> 0 | N140: =IFERROR(IF('DOLDURULMASI GEREKEN TABLO'!M153="EVET",(I140-H140)+1,0),0) -> 0 | O140: 0 | P140: 0 | Q140: 0 | R140: 0 | S140: 0 | T140: 0 | U140: 0 | V140: ='DOLDURULMASI GEREKEN TABLO'!M153 -> 0 | W140: 2025-1 | X140: =VLOOKUP(W140,'Aylık Yİ-ÜFE'!$D$1:$E$500,2,0) -> 3861.33 | Y140: =CONCATENATE(YEAR('DOLDURULMASI GEREKEN TABLO'!N153),"-",MONTH('DOLDURULMASI GEREKEN TABLO'!N153)) -> 2025-12 | Z140: =VLOOKUP(Y140,'Aylık Yİ-ÜFE'!$D$1:$E$500,2,0) -> 4783.04 | AA140: 1 | AB140: =IF('DOLDURULMASI GEREKEN TABLO'!M153="EVET",MAX(S140*AA140,S140),S140) -> 0 | AC140: =IF('DOLDURULMASI GEREKEN TABLO'!M153="EVET",MAX(T140*AA140,T140),T140) -> 0 | AD140: 0 | AE140: 0 | AF140: 0 | AG140: 0 | AH140: 0 | AJ140: 00:00:00 | AK140: ='DOLDURULMASI GEREKEN TABLO'!N153 -> 2025-12-31 | AL140: 0 | AM140: 0 | AN140: 46022 | AO140: 126 | AP140: 126 | AQ140: 126 | AR140: 0
B141: 134 | C141: ='DOLDURULMASI GEREKEN TABLO'!D154 -> 0 | D141: ='DOLDURULMASI GEREKEN TABLO'!E154 -> 0 | E141: ='DOLDURULMASI GEREKEN TABLO'!F154 -> 0 | F141: ='DOLDURULMASI GEREKEN TABLO'!G154 -> 0 | G141: 0 | H141: ='DOLDURULMASI GEREKEN TABLO'!H154 -> 00:00:00 | I141: 2025-12-31 | J141: 2025 YD ORANINA GÖRE GEÇİCİ 32 YE GÖRE YD YAPILABİLİR | K141: ='DOLDURULMASI GEREKEN TABLO'!J154 -> 0 | L141: ='DOLDURULMASI GEREKEN TABLO'!K154 -> 0 | M141: ='DOLDURULMASI GEREKEN TABLO'!L154 -> 0 | N141: =IFERROR(IF('DOLDURULMASI GEREKEN TABLO'!M154="EVET",(I141-H141)+1,0),0) -> 0 | O141: 0 | P141: 0 | Q141: 0 | R141: 0 | S141: 0 | T141: 0 | U141: 0 | V141: ='DOLDURULMASI GEREKEN TABLO'!M154 -> 0 | W141: 2025-1 | X141: =VLOOKUP(W141,'Aylık Yİ-ÜFE'!$D$1:$E$500,2,0) -> 3861.33 | Y141: =CONCATENATE(YEAR('DOLDURULMASI GEREKEN TABLO'!N154),"-",MONTH('DOLDURULMASI GEREKEN TABLO'!N154)) -> 2025-12 | Z141: =VLOOKUP(Y141,'Aylık Yİ-ÜFE'!$D$1:$E$500,2,0) -> 4783.04 | AA141: 1 | AB141: =IF('DOLDURULMASI GEREKEN TABLO'!M154="EVET",MAX(S141*AA141,S141),S141) -> 0 | AC141: =IF('DOLDURULMASI GEREKEN TABLO'!M154="EVET",MAX(T141*AA141,T141),T141) -> 0 | AD141: 0 | AE141: 0 | AF141: 0 | AG141: 0 | AH141: 0 | AJ141: 00:00:00 | AK141: ='DOLDURULMASI GEREKEN TABLO'!N154 -> 2025-12-31 | AL141: 0 | AM141: 0 | AN141: 46022 | AO141: 126 | AP141: 126 | AQ141: 126 | AR141: 0
B142: 135 | C142: ='DOLDURULMASI GEREKEN TABLO'!D155 -> 0 | D142: ='DOLDURULMASI GEREKEN TABLO'!E155 -> 0 | E142: ='DOLDURULMASI GEREKEN TABLO'!F155 -> 0 | F142: ='DOLDURULMASI GEREKEN TABLO'!G155 -> 0 | G142: 0 | H142: ='DOLDURULMASI GEREKEN TABLO'!H155 -> 00:00:00 | I142: 2025-12-31 | J142: 2025 YD ORANINA GÖRE GEÇİCİ 32 YE GÖRE YD YAPILABİLİR | K142: ='DOLDURULMASI GEREKEN TABLO'!J155 -> 0 | L142: ='DOLDURULMASI GEREKEN TABLO'!K155 -> 0 | M142: ='DOLDURULMASI GEREKEN TABLO'!L155 -> 0 | N142: =IFERROR(IF('DOLDURULMASI GEREKEN TABLO'!M155="EVET",(I142-H142)+1,0),0) -> 0 | O142: 0 | P142: 0 | Q142: 0 | R142: 0 | S142: 0 | T142: 0 | U142: 0 | V142: ='DOLDURULMASI GEREKEN TABLO'!M155 -> 0 | W142: 2025-1 | X142: =VLOOKUP(W142,'Aylık Yİ-ÜFE'!$D$1:$E$500,2,0) -> 3861.33 | Y142: =CONCATENATE(YEAR('DOLDURULMASI GEREKEN TABLO'!N155),"-",MONTH('DOLDURULMASI GEREKEN TABLO'!N155)) -> 2025-12 | Z142: =VLOOKUP(Y142,'Aylık Yİ-ÜFE'!$D$1:$E$500,2,0) -> 4783.04 | AA142: 1 | AB142: =IF('DOLDURULMASI GEREKEN TABLO'!M155="EVET",MAX(S142*AA142,S142),S142) -> 0 | AC142: =IF('DOLDURULMASI GEREKEN TABLO'!M155="EVET",MAX(T142*AA142,T142),T142) -> 0 | AD142: 0 | AE142: 0 | AF142: 0 | AG142: 0 | AH142: 0 | AJ142: 00:00:00 | AK142: ='DOLDURULMASI GEREKEN TABLO'!N155 -> 2025-12-31 | AL142: 0 | AM142: 0 | AN142: 46022 | AO142: 126 | AP142: 126 | AQ142: 126 | AR142: 0
B143: 136 | C143: ='DOLDURULMASI GEREKEN TABLO'!D156 -> 0 | D143: ='DOLDURULMASI GEREKEN TABLO'!E156 -> 0 | E143: ='DOLDURULMASI GEREKEN TABLO'!F156 -> 0 | F143: ='DOLDURULMASI GEREKEN TABLO'!G156 -> 0 | G143: 0 | H143: ='DOLDURULMASI GEREKEN TABLO'!H156 -> 00:00:00 | I143: 2025-12-31 | J143: 2025 YD ORANINA GÖRE GEÇİCİ 32 YE GÖRE YD YAPILABİLİR | K143: ='DOLDURULMASI GEREKEN TABLO'!J156 -> 0 | L143: ='DOLDURULMASI GEREKEN TABLO'!K156 -> 0 | M143: ='DOLDURULMASI GEREKEN TABLO'!L156 -> 0 | N143: =IFERROR(IF('DOLDURULMASI GEREKEN TABLO'!M156="EVET",(I143-H143)+1,0),0) -> 0 | O143: 0 | P143: 0 | Q143: 0 | R143: 0 | S143: 0 | T143: 0 | U143: 0 | V143: ='DOLDURULMASI GEREKEN TABLO'!M156 -> 0 | W143: 2025-1 | X143: =VLOOKUP(W143,'Aylık Yİ-ÜFE'!$D$1:$E$500,2,0) -> 3861.33 | Y143: =CONCATENATE(YEAR('DOLDURULMASI GEREKEN TABLO'!N156),"-",MONTH('DOLDURULMASI GEREKEN TABLO'!N156)) -> 2025-12 | Z143: =VLOOKUP(Y143,'Aylık Yİ-ÜFE'!$D$1:$E$500,2,0) -> 4783.04 | AA143: 1 | AB143: =IF('DOLDURULMASI GEREKEN TABLO'!M156="EVET",MAX(S143*AA143,S143),S143) -> 0 | AC143: =IF('DOLDURULMASI GEREKEN TABLO'!M156="EVET",MAX(T143*AA143,T143),T143) -> 0 | AD143: 0 | AE143: 0 | AF143: 0 | AG143: 0 | AH143: 0 | AJ143: 00:00:00 | AK143: ='DOLDURULMASI GEREKEN TABLO'!N156 -> 2025-12-31 | AL143: 0 | AM143: 0 | AN143: 46022 | AO143: 126 | AP143: 126 | AQ143: 126 | AR143: 0
B144: 137 | C144: ='DOLDURULMASI GEREKEN TABLO'!D157 -> 0 | D144: ='DOLDURULMASI GEREKEN TABLO'!E157 -> 0 | E144: ='DOLDURULMASI GEREKEN TABLO'!F157 -> 0 | F144: ='DOLDURULMASI GEREKEN TABLO'!G157 -> 0 | G144: 0 | H144: ='DOLDURULMASI GEREKEN TABLO'!H157 -> 00:00:00 | I144: 2025-12-31 | J144: 2025 YD ORANINA GÖRE GEÇİCİ 32 YE GÖRE YD YAPILABİLİR | K144: ='DOLDURULMASI GEREKEN TABLO'!J157 -> 0 | L144: ='DOLDURULMASI GEREKEN TABLO'!K157 -> 0 | M144: ='DOLDURULMASI GEREKEN TABLO'!L157 -> 0 | N144: =IFERROR(IF('DOLDURULMASI GEREKEN TABLO'!M157="EVET",(I144-H144)+1,0),0) -> 0 | O144: 0 | P144: 0 | Q144: 0 | R144: 0 | S144: 0 | T144: 0 | U144: 0 | V144: ='DOLDURULMASI GEREKEN TABLO'!M157 -> 0 | W144: 2025-1 | X144: =VLOOKUP(W144,'Aylık Yİ-ÜFE'!$D$1:$E$500,2,0) -> 3861.33 | Y144: =CONCATENATE(YEAR('DOLDURULMASI GEREKEN TABLO'!N157),"-",MONTH('DOLDURULMASI GEREKEN TABLO'!N157)) -> 2025-12 | Z144: =VLOOKUP(Y144,'Aylık Yİ-ÜFE'!$D$1:$E$500,2,0) -> 4783.04 | AA144: 1 | AB144: =IF('DOLDURULMASI GEREKEN TABLO'!M157="EVET",MAX(S144*AA144,S144),S144) -> 0 | AC144: =IF('DOLDURULMASI GEREKEN TABLO'!M157="EVET",MAX(T144*AA144,T144),T144) -> 0 | AD144: 0 | AE144: 0 | AF144: 0 | AG144: 0 | AH144: 0 | AJ144: 00:00:00 | AK144: ='DOLDURULMASI GEREKEN TABLO'!N157 -> 2025-12-31 | AL144: 0 | AM144: 0 | AN144: 46022 | AO144: 126 | AP144: 126 | AQ144: 126 | AR144: 0
B145: 138 | C145: ='DOLDURULMASI GEREKEN TABLO'!D158 -> 0 | D145: ='DOLDURULMASI GEREKEN TABLO'!E158 -> 0 | E145: ='DOLDURULMASI GEREKEN TABLO'!F158 -> 0 | F145: ='DOLDURULMASI GEREKEN TABLO'!G158 -> 0 | G145: 0 | H145: ='DOLDURULMASI GEREKEN TABLO'!H158 -> 00:00:00 | I145: 2025-12-31 | J145: 2025 YD ORANINA GÖRE GEÇİCİ 32 YE GÖRE YD YAPILABİLİR | K145: ='DOLDURULMASI GEREKEN TABLO'!J158 -> 0 | L145: ='DOLDURULMASI GEREKEN TABLO'!K158 -> 0 | M145: ='DOLDURULMASI GEREKEN TABLO'!L158 -> 0 | N145: =IFERROR(IF('DOLDURULMASI GEREKEN TABLO'!M158="EVET",(I145-H145)+1,0),0) -> 0 | O145: 0 | P145: 0 | Q145: 0 | R145: 0 | S145: 0 | T145: 0 | U145: 0 | V145: ='DOLDURULMASI GEREKEN TABLO'!M158 -> 0 | W145: 2025-1 | X145: =VLOOKUP(W145,'Aylık Yİ-ÜFE'!$D$1:$E$500,2,0) -> 3861.33 | Y145: =CONCATENATE(YEAR('DOLDURULMASI GEREKEN TABLO'!N158),"-",MONTH('DOLDURULMASI GEREKEN TABLO'!N158)) -> 2025-12 | Z145: =VLOOKUP(Y145,'Aylık Yİ-ÜFE'!$D$1:$E$500,2,0) -> 4783.04 | AA145: 1 | AB145: =IF('DOLDURULMASI GEREKEN TABLO'!M158="EVET",MAX(S145*AA145,S145),S145) -> 0 | AC145: =IF('DOLDURULMASI GEREKEN TABLO'!M158="EVET",MAX(T145*AA145,T145),T145) -> 0 | AD145: 0 | AE145: 0 | AF145: 0 | AG145: 0 | AH145: 0 | AJ145: 00:00:00 | AK145: ='DOLDURULMASI GEREKEN TABLO'!N158 -> 2025-12-31 | AL145: 0 | AM145: 0 | AN145: 46022 | AO145: 126 | AP145: 126 | AQ145: 126 | AR145: 0
B146: 139 | C146: ='DOLDURULMASI GEREKEN TABLO'!D159 -> 0 | D146: ='DOLDURULMASI GEREKEN TABLO'!E159 -> 0 | E146: ='DOLDURULMASI GEREKEN TABLO'!F159 -> 0 | F146: ='DOLDURULMASI GEREKEN TABLO'!G159 -> 0 | G146: 0 | H146: ='DOLDURULMASI GEREKEN TABLO'!H159 -> 00:00:00 | I146: 2025-12-31 | J146: 2025 YD ORANINA GÖRE GEÇİCİ 32 YE GÖRE YD YAPILABİLİR | K146: ='DOLDURULMASI GEREKEN TABLO'!J159 -> 0 | L146: ='DOLDURULMASI GEREKEN TABLO'!K159 -> 0 | M146: ='DOLDURULMASI GEREKEN TABLO'!L159 -> 0 | N146: =IFERROR(IF('DOLDURULMASI GEREKEN TABLO'!M159="EVET",(I146-H146)+1,0),0) -> 0 | O146: 0 | P146: 0 | Q146: 0 | R146: 0 | S146: 0 | T146: 0 | U146: 0 | V146: ='DOLDURULMASI GEREKEN TABLO'!M159 -> 0 | W146: 2025-1 | X146: =VLOOKUP(W146,'Aylık Yİ-ÜFE'!$D$1:$E$500,2,0) -> 3861.33 | Y146: =CONCATENATE(YEAR('DOLDURULMASI GEREKEN TABLO'!N159),"-",MONTH('DOLDURULMASI GEREKEN TABLO'!N159)) -> 2025-12 | Z146: =VLOOKUP(Y146,'Aylık Yİ-ÜFE'!$D$1:$E$500,2,0) -> 4783.04 | AA146: 1 | AB146: =IF('DOLDURULMASI GEREKEN TABLO'!M159="EVET",MAX(S146*AA146,S146),S146) -> 0 | AC146: =IF('DOLDURULMASI GEREKEN TABLO'!M159="EVET",MAX(T146*AA146,T146),T146) -> 0 | AD146: 0 | AE146: 0 | AF146: 0 | AG146: 0 | AH146: 0 | AJ146: 00:00:00 | AK146: ='DOLDURULMASI GEREKEN TABLO'!N159 -> 2025-12-31 | AL146: 0 | AM146: 0 | AN146: 46022 | AO146: 126 | AP146: 126 | AQ146: 126 | AR146: 0
B147: 140 | C147: ='DOLDURULMASI GEREKEN TABLO'!D160 -> 0 | D147: ='DOLDURULMASI GEREKEN TABLO'!E160 -> 0 | E147: ='DOLDURULMASI GEREKEN TABLO'!F160 -> 0 | F147: ='DOLDURULMASI GEREKEN TABLO'!G160 -> 0 | G147: 0 | H147: ='DOLDURULMASI GEREKEN TABLO'!H160 -> 00:00:00 | I147: 2025-12-31 | J147: 2025 YD ORANINA GÖRE GEÇİCİ 32 YE GÖRE YD YAPILABİLİR | K147: ='DOLDURULMASI GEREKEN TABLO'!J160 -> 0 | L147: ='DOLDURULMASI GEREKEN TABLO'!K160 -> 0 | M147: ='DOLDURULMASI GEREKEN TABLO'!L160 -> 0 | N147: =IFERROR(IF('DOLDURULMASI GEREKEN TABLO'!M160="EVET",(I147-H147)+1,0),0) -> 0 | O147: 0 | P147: 0 | Q147: 0 | R147: 0 | S147: 0 | T147: 0 | U147: 0 | V147: ='DOLDURULMASI GEREKEN TABLO'!M160 -> 0 | W147: 2025-1 | X147: =VLOOKUP(W147,'Aylık Yİ-ÜFE'!$D$1:$E$500,2,0) -> 3861.33 | Y147: =CONCATENATE(YEAR('DOLDURULMASI GEREKEN TABLO'!N160),"-",MONTH('DOLDURULMASI GEREKEN TABLO'!N160)) -> 2025-12 | Z147: =VLOOKUP(Y147,'Aylık Yİ-ÜFE'!$D$1:$E$500,2,0) -> 4783.04 | AA147: 1 | AB147: =IF('DOLDURULMASI GEREKEN TABLO'!M160="EVET",MAX(S147*AA147,S147),S147) -> 0 | AC147: =IF('DOLDURULMASI GEREKEN TABLO'!M160="EVET",MAX(T147*AA147,T147),T147) -> 0 | AD147: 0 | AE147: 0 | AF147: 0 | AG147: 0 | AH147: 0 | AJ147: 00:00:00 | AK147: ='DOLDURULMASI GEREKEN TABLO'!N160 -> 2025-12-31 | AL147: 0 | AM147: 0 | AN147: 46022 | AO147: 126 | AP147: 126 | AQ147: 126 | AR147: 0
B148: 141 | C148: ='DOLDURULMASI GEREKEN TABLO'!D161 -> 0 | D148: ='DOLDURULMASI GEREKEN TABLO'!E161 -> 0 | E148: ='DOLDURULMASI GEREKEN TABLO'!F161 -> 0 | F148: ='DOLDURULMASI GEREKEN TABLO'!G161 -> 0 | G148: 0 | H148: ='DOLDURULMASI GEREKEN TABLO'!H161 -> 00:00:00 | I148: 2025-12-31 | J148: 2025 YD ORANINA GÖRE GEÇİCİ 32 YE GÖRE YD YAPILABİLİR | K148: ='DOLDURULMASI GEREKEN TABLO'!J161 -> 0 | L148: ='DOLDURULMASI GEREKEN TABLO'!K161 -> 0 | M148: ='DOLDURULMASI GEREKEN TABLO'!L161 -> 0 | N148: =IFERROR(IF('DOLDURULMASI GEREKEN TABLO'!M161="EVET",(I148-H148)+1,0),0) -> 0 | O148: 0 | P148: 0 | Q148: 0 | R148: 0 | S148: 0 | T148: 0 | U148: 0 | V148: ='DOLDURULMASI GEREKEN TABLO'!M161 -> 0 | W148: 2025-1 | X148: =VLOOKUP(W148,'Aylık Yİ-ÜFE'!$D$1:$E$500,2,0) -> 3861.33 | Y148: =CONCATENATE(YEAR('DOLDURULMASI GEREKEN TABLO'!N161),"-",MONTH('DOLDURULMASI GEREKEN TABLO'!N161)) -> 2025-12 | Z148: =VLOOKUP(Y148,'Aylık Yİ-ÜFE'!$D$1:$E$500,2,0) -> 4783.04 | AA148: 1 | AB148: =IF('DOLDURULMASI GEREKEN TABLO'!M161="EVET",MAX(S148*AA148,S148),S148) -> 0 | AC148: =IF('DOLDURULMASI GEREKEN TABLO'!M161="EVET",MAX(T148*AA148,T148),T148) -> 0 | AD148: 0 | AE148: 0 | AF148: 0 | AG148: 0 | AH148: 0 | AJ148: 00:00:00 | AK148: ='DOLDURULMASI GEREKEN TABLO'!N161 -> 2025-12-31 | AL148: 0 | AM148: 0 | AN148: 46022 | AO148: 126 | AP148: 126 | AQ148: 126 | AR148: 0
B149: 142 | C149: ='DOLDURULMASI GEREKEN TABLO'!D162 -> 0 | D149: ='DOLDURULMASI GEREKEN TABLO'!E162 -> 0 | E149: ='DOLDURULMASI GEREKEN TABLO'!F162 -> 0 | F149: ='DOLDURULMASI GEREKEN TABLO'!G162 -> 0 | G149: 0 | H149: ='DOLDURULMASI GEREKEN TABLO'!H162 -> 00:00:00 | I149: 2025-12-31 | J149: 2025 YD ORANINA GÖRE GEÇİCİ 32 YE GÖRE YD YAPILABİLİR | K149: ='DOLDURULMASI GEREKEN TABLO'!J162 -> 0 | L149: ='DOLDURULMASI GEREKEN TABLO'!K162 -> 0 | M149: ='DOLDURULMASI GEREKEN TABLO'!L162 -> 0 | N149: =IFERROR(IF('DOLDURULMASI GEREKEN TABLO'!M162="EVET",(I149-H149)+1,0),0) -> 0 | O149: 0 | P149: 0 | Q149: 0 | R149: 0 | S149: 0 | T149: 0 | U149: 0 | V149: ='DOLDURULMASI GEREKEN TABLO'!M162 -> 0 | W149: 2025-1 | X149: =VLOOKUP(W149,'Aylık Yİ-ÜFE'!$D$1:$E$500,2,0) -> 3861.33 | Y149: =CONCATENATE(YEAR('DOLDURULMASI GEREKEN TABLO'!N162),"-",MONTH('DOLDURULMASI GEREKEN TABLO'!N162)) -> 2025-12 | Z149: =VLOOKUP(Y149,'Aylık Yİ-ÜFE'!$D$1:$E$500,2,0) -> 4783.04 | AA149: 1 | AB149: =IF('DOLDURULMASI GEREKEN TABLO'!M162="EVET",MAX(S149*AA149,S149),S149) -> 0 | AC149: =IF('DOLDURULMASI GEREKEN TABLO'!M162="EVET",MAX(T149*AA149,T149),T149) -> 0 | AD149: 0 | AE149: 0 | AF149: 0 | AG149: 0 | AH149: 0 | AJ149: 00:00:00 | AK149: ='DOLDURULMASI GEREKEN TABLO'!N162 -> 2025-12-31 | AL149: 0 | AM149: 0 | AN149: 46022 | AO149: 126 | AP149: 126 | AQ149: 126 | AR149: 0
B150: 143 | C150: ='DOLDURULMASI GEREKEN TABLO'!D163 -> 0 | D150: ='DOLDURULMASI GEREKEN TABLO'!E163 -> 0 | E150: ='DOLDURULMASI GEREKEN TABLO'!F163 -> 0 | F150: ='DOLDURULMASI GEREKEN TABLO'!G163 -> 0 | G150: 0 | H150: ='DOLDURULMASI GEREKEN TABLO'!H163 -> 00:00:00 | I150: 2025-12-31 | J150: 2025 YD ORANINA GÖRE GEÇİCİ 32 YE GÖRE YD YAPILABİLİR | K150: ='DOLDURULMASI GEREKEN TABLO'!J163 -> 0 | L150: ='DOLDURULMASI GEREKEN TABLO'!K163 -> 0 | M150: ='DOLDURULMASI GEREKEN TABLO'!L163 -> 0 | N150: =IFERROR(IF('DOLDURULMASI GEREKEN TABLO'!M163="EVET",(I150-H150)+1,0),0) -> 0 | O150: 0 | P150: 0 | Q150: 0 | R150: 0 | S150: 0 | T150: 0 | U150: 0 | V150: ='DOLDURULMASI GEREKEN TABLO'!M163 -> 0 | W150: 2025-1 | X150: =VLOOKUP(W150,'Aylık Yİ-ÜFE'!$D$1:$E$500,2,0) -> 3861.33 | Y150: =CONCATENATE(YEAR('DOLDURULMASI GEREKEN TABLO'!N163),"-",MONTH('DOLDURULMASI GEREKEN TABLO'!N163)) -> 2025-12 | Z150: =VLOOKUP(Y150,'Aylık Yİ-ÜFE'!$D$1:$E$500,2,0) -> 4783.04 | AA150: 1 | AB150: =IF('DOLDURULMASI GEREKEN TABLO'!M163="EVET",MAX(S150*AA150,S150),S150) -> 0 | AC150: =IF('DOLDURULMASI GEREKEN TABLO'!M163="EVET",MAX(T150*AA150,T150),T150) -> 0 | AD150: 0 | AE150: 0 | AF150: 0 | AG150: 0 | AH150: 0 | AJ150: 00:00:00 | AK150: ='DOLDURULMASI GEREKEN TABLO'!N163 -> 2025-12-31 | AL150: 0 | AM150: 0 | AN150: 46022 | AO150: 126 | AP150: 126 | AQ150: 126 | AR150: 0
B151: 144 | C151: ='DOLDURULMASI GEREKEN TABLO'!D164 -> 0 | D151: ='DOLDURULMASI GEREKEN TABLO'!E164 -> 0 | E151: ='DOLDURULMASI GEREKEN TABLO'!F164 -> 0 | F151: ='DOLDURULMASI GEREKEN TABLO'!G164 -> 0 | G151: 0 | H151: ='DOLDURULMASI GEREKEN TABLO'!H164 -> 00:00:00 | I151: 2025-12-31 | J151: 2025 YD ORANINA GÖRE GEÇİCİ 32 YE GÖRE YD YAPILABİLİR | K151: ='DOLDURULMASI GEREKEN TABLO'!J164 -> 0 | L151: ='DOLDURULMASI GEREKEN TABLO'!K164 -> 0 | M151: ='DOLDURULMASI GEREKEN TABLO'!L164 -> 0 | N151: =IFERROR(IF('DOLDURULMASI GEREKEN TABLO'!M164="EVET",(I151-H151)+1,0),0) -> 0 | O151: 0 | P151: 0 | Q151: 0 | R151: 0 | S151: 0 | T151: 0 | U151: 0 | V151: ='DOLDURULMASI GEREKEN TABLO'!M164 -> 0 | W151: 2025-1 | X151: =VLOOKUP(W151,'Aylık Yİ-ÜFE'!$D$1:$E$500,2,0) -> 3861.33 | Y151: =CONCATENATE(YEAR('DOLDURULMASI GEREKEN TABLO'!N164),"-",MONTH('DOLDURULMASI GEREKEN TABLO'!N164)) -> 2025-12 | Z151: =VLOOKUP(Y151,'Aylık Yİ-ÜFE'!$D$1:$E$500,2,0) -> 4783.04 | AA151: 1 | AB151: =IF('DOLDURULMASI GEREKEN TABLO'!M164="EVET",MAX(S151*AA151,S151),S151) -> 0 | AC151: =IF('DOLDURULMASI GEREKEN TABLO'!M164="EVET",MAX(T151*AA151,T151),T151) -> 0 | AD151: 0 | AE151: 0 | AF151: 0 | AG151: 0 | AH151: 0 | AJ151: 00:00:00 | AK151: ='DOLDURULMASI GEREKEN TABLO'!N164 -> 2025-12-31 | AL151: 0 | AM151: 0 | AN151: 46022 | AO151: 126 | AP151: 126 | AQ151: 126 | AR151: 0
B152: 145 | C152: ='DOLDURULMASI GEREKEN TABLO'!D165 -> 0 | D152: ='DOLDURULMASI GEREKEN TABLO'!E165 -> 0 | E152: ='DOLDURULMASI GEREKEN TABLO'!F165 -> 0 | F152: ='DOLDURULMASI GEREKEN TABLO'!G165 -> 0 | G152: 0 | H152: ='DOLDURULMASI GEREKEN TABLO'!H165 -> 00:00:00 | I152: 2025-12-31 | J152: 2025 YD ORANINA GÖRE GEÇİCİ 32 YE GÖRE YD YAPILABİLİR | K152: ='DOLDURULMASI GEREKEN TABLO'!J165 -> 0 | L152: ='DOLDURULMASI GEREKEN TABLO'!K165 -> 0 | M152: ='DOLDURULMASI GEREKEN TABLO'!L165 -> 0 | N152: =IFERROR(IF('DOLDURULMASI GEREKEN TABLO'!M165="EVET",(I152-H152)+1,0),0) -> 0 | O152: 0 | P152: 0 | Q152: 0 | R152: 0 | S152: 0 | T152: 0 | U152: 0 | V152: ='DOLDURULMASI GEREKEN TABLO'!M165 -> 0 | W152: 2025-1 | X152: =VLOOKUP(W152,'Aylık Yİ-ÜFE'!$D$1:$E$500,2,0) -> 3861.33 | Y152: =CONCATENATE(YEAR('DOLDURULMASI GEREKEN TABLO'!N165),"-",MONTH('DOLDURULMASI GEREKEN TABLO'!N165)) -> 2025-12 | Z152: =VLOOKUP(Y152,'Aylık Yİ-ÜFE'!$D$1:$E$500,2,0) -> 4783.04 | AA152: 1 | AB152: =IF('DOLDURULMASI GEREKEN TABLO'!M165="EVET",MAX(S152*AA152,S152),S152) -> 0 | AC152: =IF('DOLDURULMASI GEREKEN TABLO'!M165="EVET",MAX(T152*AA152,T152),T152) -> 0 | AD152: 0 | AE152: 0 | AF152: 0 | AG152: 0 | AH152: 0 | AJ152: 00:00:00 | AK152: ='DOLDURULMASI GEREKEN TABLO'!N165 -> 2025-12-31 | AL152: 0 | AM152: 0 | AN152: 46022 | AO152: 126 | AP152: 126 | AQ152: 126 | AR152: 0
B153: 146 | C153: ='DOLDURULMASI GEREKEN TABLO'!D166 -> 0 | D153: ='DOLDURULMASI GEREKEN TABLO'!E166 -> 0 | E153: ='DOLDURULMASI GEREKEN TABLO'!F166 -> 0 | F153: ='DOLDURULMASI GEREKEN TABLO'!G166 -> 0 | G153: 0 | H153: ='DOLDURULMASI GEREKEN TABLO'!H166 -> 00:00:00 | I153: 2025-12-31 | J153: 2025 YD ORANINA GÖRE GEÇİCİ 32 YE GÖRE YD YAPILABİLİR | K153: ='DOLDURULMASI GEREKEN TABLO'!J166 -> 0 | L153: ='DOLDURULMASI GEREKEN TABLO'!K166 -> 0 | M153: ='DOLDURULMASI GEREKEN TABLO'!L166 -> 0 | N153: =IFERROR(IF('DOLDURULMASI GEREKEN TABLO'!M166="EVET",(I153-H153)+1,0),0) -> 0 | O153: 0 | P153: 0 | Q153: 0 | R153: 0 | S153: 0 | T153: 0 | U153: 0 | V153: ='DOLDURULMASI GEREKEN TABLO'!M166 -> 0 | W153: 2025-1 | X153: =VLOOKUP(W153,'Aylık Yİ-ÜFE'!$D$1:$E$500,2,0) -> 3861.33 | Y153: =CONCATENATE(YEAR('DOLDURULMASI GEREKEN TABLO'!N166),"-",MONTH('DOLDURULMASI GEREKEN TABLO'!N166)) -> 2025-12 | Z153: =VLOOKUP(Y153,'Aylık Yİ-ÜFE'!$D$1:$E$500,2,0) -> 4783.04 | AA153: 1 | AB153: =IF('DOLDURULMASI GEREKEN TABLO'!M166="EVET",MAX(S153*AA153,S153),S153) -> 0 | AC153: =IF('DOLDURULMASI GEREKEN TABLO'!M166="EVET",MAX(T153*AA153,T153),T153) -> 0 | AD153: 0 | AE153: 0 | AF153: 0 | AG153: 0 | AH153: 0 | AJ153: 00:00:00 | AK153: ='DOLDURULMASI GEREKEN TABLO'!N166 -> 2025-12-31 | AL153: 0 | AM153: 0 | AN153: 46022 | AO153: 126 | AP153: 126 | AQ153: 126 | AR153: 0
B154: 147 | C154: ='DOLDURULMASI GEREKEN TABLO'!D167 -> 0 | D154: ='DOLDURULMASI GEREKEN TABLO'!E167 -> 0 | E154: ='DOLDURULMASI GEREKEN TABLO'!F167 -> 0 | F154: ='DOLDURULMASI GEREKEN TABLO'!G167 -> 0 | G154: 0 | H154: ='DOLDURULMASI GEREKEN TABLO'!H167 -> 00:00:00 | I154: 2025-12-31 | J154: 2025 YD ORANINA GÖRE GEÇİCİ 32 YE GÖRE YD YAPILABİLİR | K154: ='DOLDURULMASI GEREKEN TABLO'!J167 -> 0 | L154: ='DOLDURULMASI GEREKEN TABLO'!K167 -> 0 | M154: ='DOLDURULMASI GEREKEN TABLO'!L167 -> 0 | N154: =IFERROR(IF('DOLDURULMASI GEREKEN TABLO'!M167="EVET",(I154-H154)+1,0),0) -> 0 | O154: 0 | P154: 0 | Q154: 0 | R154: 0 | S154: 0 | T154: 0 | U154: 0 | V154: ='DOLDURULMASI GEREKEN TABLO'!M167 -> 0 | W154: 2025-1 | X154: =VLOOKUP(W154,'Aylık Yİ-ÜFE'!$D$1:$E$500,2,0) -> 3861.33 | Y154: =CONCATENATE(YEAR('DOLDURULMASI GEREKEN TABLO'!N167),"-",MONTH('DOLDURULMASI GEREKEN TABLO'!N167)) -> 2025-12 | Z154: =VLOOKUP(Y154,'Aylık Yİ-ÜFE'!$D$1:$E$500,2,0) -> 4783.04 | AA154: 1 | AB154: =IF('DOLDURULMASI GEREKEN TABLO'!M167="EVET",MAX(S154*AA154,S154),S154) -> 0 | AC154: =IF('DOLDURULMASI GEREKEN TABLO'!M167="EVET",MAX(T154*AA154,T154),T154) -> 0 | AD154: 0 | AE154: 0 | AF154: 0 | AG154: 0 | AH154: 0 | AJ154: 00:00:00 | AK154: ='DOLDURULMASI GEREKEN TABLO'!N167 -> 2025-12-31 | AL154: 0 | AM154: 0 | AN154: 46022 | AO154: 126 | AP154: 126 | AQ154: 126 | AR154: 0
B155: 148 | C155: ='DOLDURULMASI GEREKEN TABLO'!D168 -> 0 | D155: ='DOLDURULMASI GEREKEN TABLO'!E168 -> 0 | E155: ='DOLDURULMASI GEREKEN TABLO'!F168 -> 0 | F155: ='DOLDURULMASI GEREKEN TABLO'!G168 -> 0 | G155: 0 | H155: ='DOLDURULMASI GEREKEN TABLO'!H168 -> 00:00:00 | I155: 2025-12-31 | J155: 2025 YD ORANINA GÖRE GEÇİCİ 32 YE GÖRE YD YAPILABİLİR | K155: ='DOLDURULMASI GEREKEN TABLO'!J168 -> 0 | L155: ='DOLDURULMASI GEREKEN TABLO'!K168 -> 0 | M155: ='DOLDURULMASI GEREKEN TABLO'!L168 -> 0 | N155: =IFERROR(IF('DOLDURULMASI GEREKEN TABLO'!M168="EVET",(I155-H155)+1,0),0) -> 0 | O155: 0 | P155: 0 | Q155: 0 | R155: 0 | S155: 0 | T155: 0 | U155: 0 | V155: ='DOLDURULMASI GEREKEN TABLO'!M168 -> 0 | W155: 2025-1 | X155: =VLOOKUP(W155,'Aylık Yİ-ÜFE'!$D$1:$E$500,2,0) -> 3861.33 | Y155: =CONCATENATE(YEAR('DOLDURULMASI GEREKEN TABLO'!N168),"-",MONTH('DOLDURULMASI GEREKEN TABLO'!N168)) -> 2025-12 | Z155: =VLOOKUP(Y155,'Aylık Yİ-ÜFE'!$D$1:$E$500,2,0) -> 4783.04 | AA155: 1 | AB155: =IF('DOLDURULMASI GEREKEN TABLO'!M168="EVET",MAX(S155*AA155,S155),S155) -> 0 | AC155: =IF('DOLDURULMASI GEREKEN TABLO'!M168="EVET",MAX(T155*AA155,T155),T155) -> 0 | AD155: 0 | AE155: 0 | AF155: 0 | AG155: 0 | AH155: 0 | AJ155: 00:00:00 | AK155: ='DOLDURULMASI GEREKEN TABLO'!N168 -> 2025-12-31 | AL155: 0 | AM155: 0 | AN155: 46022 | AO155: 126 | AP155: 126 | AQ155: 126 | AR155: 0
